{"text_format":"1","workbook":"xlsx","n_sheets":77,"sheets":["1","Сам","Сам 1)","1 (23)","Сам (14)","Сам (13)","1 (1)","Сам (1)","1 (2)","Сам (6)","1 (3)","Сам (7)","1 (4)","1 (24)","Сам (2)","1 (25)","1 (5)","Сам (3)","1 (6)","Сам (9)","1 (7)","Сам (4)","1 (8)","Сам (5)","1 (9)","Сам (10)","1 (10)","Сам (11)","1 (12)","Сам (12)","1(13)","1 (14)","1 (16)","1 (17)","Лист1","Лист2","Лист3","Лист4","Лист5","Лист6","Лист7","Лист8","Лист9","Лист10","Самостійна (5)","Самостійна","самост (2)","Самостійна (3)","Лист13","Лист11","Лист14","Самостійна (2)","Лист13 (2)","Лист13 (3)","Лист12","1 (15)","Лист13 (4)","Лист13 (5)","Самостійна (6)","Лист13 (6)","Самостійна (7)","Лист13 (7)","Самостійна (8)","Лист13 (8)","Самостійна (9)","Лист13 (9)","Лист13 (10)","Самостійна (10)","1 (11)","1 (13)","Сам (8)","1 (18)","1 (19)","1 (20)","1 (21)","1 22","1 (22)"],"not_rendered":{"charts":0,"images":0,"macros":1,"external_links":0,"defined_names":66,"comments":0,"pivot_tables":0},"unopened":[],"bounds":{"document_bytes":16777216,"sheet_cells":100000,"rows_first":2000,"rows_last":500,"rows_between":2000,"halvings":0,"cell_chars":16384,"cell_head_chars":4096},"cells_cut":0,"cells_raw":0,"read":"whole","date_system":"1900"}

{"sheet":"1","index":0,"n_rows":55,"n_cols":10,"rows_kept":55,"cut":false,"hidden":false,"merged":[]}
[null,null,null,"Form 7",null,null,null,null,"Form 7"]
[{"$f":"J2","v":1},{"$f":"K2","v":0},{"$f":"L2","v":0},{"$f":"M2","v":0},null,{"$f":"A2","v":1},{"$f":"B2","v":0},{"$f":"C2","v":0},{"$f":"D2","v":0},1]
[{"$f":"J3","v":2},0,0,0,null,{"$f":"A3","v":2},0,0,0,2]
[3,0,0,0,null,3,0,0,0,3]
[4,0,0,0,null,4,0,0,0,4]
[5,0,0,0,null,5,0,0,0,5]
[6,0,0,0,null,6,0,0,0,6]
[7,0,0,0,null,7,0,0,0,7]
[8,0,0,0,null,8,0,0,0,8]
[9,0,0,0,null,9,0,0,0,9]
[10,0,0,0,null,10,0,0,0,10]
[11,{"$f":"K12","v":0},0,0,null,11,0,0,0,11]
[12,{"$f":"K13","v":0},0,0,null,12,0,0,0,12]
[]
[null,null,null,"Form 7",null,null,null,null,"Form 7"]
[1,{"$f":"B2","v":0},0,0,null,1,{"$f":"B16","v":0},{"$f":"C16","v":0},{"$f":"D16","v":0}]
[2,0,0,0,null,2,{"$f":"B17","v":0},0,0]
[3,0,0,0,null,3,0,0,0]
[4,0,0,0,null,4,0,0,0]
[5,0,0,0,null,5,0,0,0]
[6,0,0,0,null,6,0,0,0]
[7,0,0,0,null,7,0,0,0]
[8,0,0,0,null,8,0,0,0]
[9,0,0,0,null,9,0,0,0]
[10,0,0,0,null,10,0,0,0]
[11,0,0,0,null,11,0,0,0]
[12,0,0,0,null,12,0,0,0]
[]
[null,null,null,"Form 7",null,null,null,null,"Form 7"]
[1,{"$f":"B16","v":0},0,0,null,1,{"$f":"B30","v":0},{"$f":"C30","v":0},{"$f":"D30","v":0}]
[2,0,0,0,null,2,{"$f":"B31","v":0},0,0]
[3,0,0,0,null,3,0,0,0]
[4,0,0,0,null,4,0,0,0]
[5,0,0,0,null,5,0,0,0]
[6,0,0,0,null,6,0,0,0]
[7,0,0,0,null,7,0,0,0]
[8,0,0,0,null,8,0,0,0]
[9,0,0,0,null,9,0,0,0]
[10,0,0,0,null,10,0,0,0]
[11,0,0,0,null,11,0,0,0]
[12,0,0,0,null,12,0,0,0]
[]
[null,null,null,"Form 7",null,null,null,null,"Form 7"]
[1,{"$f":"B30","v":0},0,0,null,1,{"$f":"B44","v":0},{"$f":"C44","v":0},{"$f":"D44","v":0}]
[2,0,0,0,null,2,{"$f":"B45","v":0},0,0]
[3,0,0,0,null,3,0,0,0]
[4,0,0,0,null,4,0,0,0]
[5,0,0,0,null,5,0,0,0]
[6,0,0,0,null,6,0,0,0]
[7,0,0,0,null,7,0,0,0]
[8,0,0,0,null,8,0,0,0]
[9,0,0,0,null,9,0,0,0]
[10,0,0,0,null,10,0,0,0]
[11,0,0,0,null,11,0,0,0]
[12,0,0,0,null,12,0,0,0]

{"sheet":"Сам","index":1,"n_rows":52,"n_cols":21,"rows_kept":52,"cut":false,"hidden":false,"merged":[]}
["Name_________________________   Form 7   Date_______",null,null,null,null,"Name_________________________   Form 7   Date_______",null,null,null,"Name_________________________   Form 7   Date_______",null,null,null,"Name_________________________   Form 7   Date_______"]
[]
[null,{"$f":"S3","v":0},1,{"$f":"V3","v":0},null,null,{"$f":"S3","v":0},1,{"$f":"V3","v":0},{"$f":"S16","v":0},null,null,null,{"$f":"J3","v":0},null,null,null,null,null,null,1]
[null,0,2,0,null,null,{"$f":"S4","v":0},2,{"$f":"V4","v":0},{"$f":"S17","v":0},null,null,null,{"$f":"J4","v":0},null,null,null,null,null,null,2]
[null,0,3,0,null,null,0,3,0,0,null,null,null,0,null,null,null,null,null,null,3]
[null,0,4,0,null,null,0,4,0,0,null,null,null,0,null,null,null,null,null,null,4]
[null,0,5,0,null,null,0,5,0,0,null,null,null,0,null,null,null,null,null,null,5]
[null,0,6,0,null,null,0,6,0,0,null,null,null,0,null,null,null,null,null,null,6]
[null,0,7,0,null,null,0,7,0,0,null,null,null,0,null,null,null,null,null,null,7]
[null,0,8,0,null,null,0,8,0,0,null,null,null,0,null,null,null,null,null,null,8]
[null,0,9,0,null,null,0,9,0,0,null,null,null,0,null,null,null,null,null,null,9]
[null,0,10,0,null,null,0,10,0,0,null,null,null,0,null,null,null,null,null,null,10]
[null,0,11,0,null,null,0,11,0,0,null,null,null,0,null,null,null,null,null,null,11]
[]
["Name_________________________   Form 7   Date_______",null,null,null,null,"Name_________________________   Form 7   Date_______",null,null,null,"Name_________________________   Form 7   Date_______",null,null,null,"Name_________________________   Form 7   Date_______"]
[]
[null,{"$f":"S3","v":0},1,{"$f":"V3","v":0},null,null,{"$f":"B17","v":0},1,{"$f":"D17","v":0},{"$f":"J3","v":0},null,null,null,{"$f":"J17","v":0}]
[null,{"$f":"S4","v":0},2,{"$f":"V4","v":0},null,null,{"$f":"B18","v":0},2,{"$f":"D18","v":0},{"$f":"J4","v":0},null,null,null,{"$f":"J18","v":0}]
[null,0,3,0,null,null,0,3,0,0,null,null,null,0]
[null,0,4,0,null,null,0,4,0,0,null,null,null,0]
[null,0,5,0,null,null,0,5,0,0,null,null,null,0]
[null,0,6,0,null,null,0,6,0,0,null,null,null,0]
[null,0,7,0,null,null,0,7,0,0,null,null,null,0]
[null,0,8,0,null,null,0,8,0,0,null,null,null,0]
[null,0,9,0,null,null,0,9,0,0,null,null,null,0]
[null,0,10,0,null,null,0,10,0,0,null,null,null,0]
[null,0,11,0,null,null,0,11,0,0,null,null,null,0]
[]
["Name_________________________   Form 7   Date_______",null,null,null,null,"Name_________________________   Form 7   Date_______",null,null,null,"Name_________________________   Form 7   Date_______",null,null,null,"Name_________________________   Form 7   Date_______"]
[]
[null,{"$f":"B17","v":0},1,{"$f":"D17","v":0},null,null,{"$f":"B31","v":0},1,{"$f":"D31","v":0},{"$f":"J17","v":0},null,null,null,{"$f":"J31","v":0}]
[null,{"$f":"B18","v":0},2,{"$f":"D18","v":0},null,null,{"$f":"B32","v":0},2,{"$f":"D32","v":0},{"$f":"J18","v":0},null,null,null,{"$f":"J32","v":0}]
[null,0,3,0,null,null,0,3,0,0,null,null,null,0]
[null,0,4,0,null,null,0,4,0,0,null,null,null,0]
[null,0,5,0,null,null,0,5,0,0,null,null,null,0]
[null,0,6,0,null,null,0,6,0,0,null,null,null,0]
[null,0,7,0,null,null,0,7,0,0,null,null,null,0]
[null,0,8,0,null,null,0,8,0,0,null,null,null,0]
[null,0,9,0,null,null,0,9,0,0,null,null,null,0]
[null,0,10,0,null,null,0,10,0,0,null,null,null,0]
[null,0,11,0,null,null,0,11,0,0,null,null,null,0]
[]
["Name_________________________   Form 7   Date_______",null,null,null,null,null,null,null,null,"Name_________________________   Form 7   Date_______"]
[]
[null,{"$f":"B31","v":0},1,{"$f":"D31","v":0},null,null,{"$f":"B39","v":0},9,{"$f":"D39","v":0},{"$f":"J31","v":0},null,null,null,{"$f":"J39","v":0}]
[null,{"$f":"B32","v":0},2,{"$f":"D32","v":0},null,null,{"$f":"B40","v":0},10,{"$f":"D40","v":0},{"$f":"J32","v":0},null,null,null,{"$f":"J40","v":0}]
[null,0,3,0,null,null,{"$f":"B41","v":0},11,{"$f":"D41","v":0},0,null,null,null,{"$f":"J41","v":0}]
[null,0,4,0,null,null,null,null,null,0]
[null,0,5,0,null,null,null,null,null,0]
[null,0,6,0,null,null,null,null,null,0]
[null,{"$f":"B37","v":0},7,{"$f":"D37","v":0},null,null,null,null,null,{"$f":"J37","v":0}]
[null,{"$f":"B38","v":0},8,{"$f":"D38","v":0},null,null,null,null,null,{"$f":"J38","v":0}]

{"sheet":"Сам 1)","index":2,"n_rows":54,"n_cols":27,"rows_kept":54,"cut":false,"hidden":false,"merged":[]}
["Name_________________________              Date_______",null,null,null,null,"Name_________________________              Date_______",null,null,null,"Name_________________________              Date_______",null,null,null,"Name_________________________              Date_______"]
[]
[null,{"$f":"S3","v":"after that"},1,{"$f":"V3","v":"потребувати"},null,null,{"$f":"S3","v":"after that"},1,{"$f":"V3","v":"потребувати"},{"$f":"S16","v":"grow"},null,null,null,{"$f":"J3","v":"grow"},null,null,null,null,"after that",null,1,"потребувати",null,null,"after that",null,"потребувати"]
[null,"put",2,"потім",null,null,{"$f":"S4","v":"put"},2,{"$f":"V4","v":"потім"},{"$f":"S17","v":"land"},null,null,null,{"$f":"J4","v":"land"},null,null,null,null,"put",null,2,"потім",null,null,"put","[put]","потім"]
[null,"serve",3,"подавати (на стіл)",null,null,"serve",3,"подавати (на стіл)","hunger",null,null,null,"hunger",null,null,null,null,"serve",null,3,"подавати (на стіл)",null,null,"serve","[sɜːv]","подавати (на стіл)"]
[null,"pancake",4,"після цього",null,null,"pancake",4,"після цього","wheat",null,null,null,"wheat",null,null,null,null,"pancake",null,4,"після цього",null,null,"pancake","[ˈpænkeɪk]","після цього"]
[null,"need",5,"нарешті",null,null,"need",5,"нарешті","corn",null,null,null,"corn",null,null,null,null,"need",null,5,"нарешті",null,null,"need","[niːd]","нарешті"]
[null,"finally",6,"млинці, оладки",null,null,"finally",6,"млинці, оладки","rice",null,null,null,"rice",null,null,null,null,"finally",null,6,"млинці, оладки",null,null,"finally","[ˈfaɪn(ə)lɪ]","млинці, оладки"]
[null,"then",7,"класти",null,null,"then",7,"класти","food",null,null,null,"food",null,null,null,null,"then",null,7,"класти",null,null,"then","[ðen]","класти"]
[null,"add",8,"додавати",null,null,"add",8,"додавати","plant",null,null,null,"plant",null,null,null,null,"add",null,8,"додавати",null,null,"add","[æd]","додавати"]
[null,"flour",9,"борошно",null,null,"flour",9,"борошно","potato",null,null,null,"potato",null,null,null,null,"flour",null,9,"борошно",null,null,"flour","[ˈflauə]","борошно"]
[null,0,10,0,null,null,0,10,0,"bread",null,null,null,"bread"]
[null,0,11,0,null,null,0,11,0,"supper",null,null,null,"supper"]
[]
["Name_________________________              Date_______",null,null,null,null,"Name_________________________              Date_______",null,null,null,"Name_________________________              Date_______",null,null,null,"Name_________________________              Date_______"]
[null,null,null,null,null,null,null,null,null,null,null,null,null,null,null,null,null,null,"grow"]
[null,{"$f":"S3","v":"after that"},1,{"$f":"V3","v":"потребувати"},null,null,{"$f":"B17","v":"after that"},1,{"$f":"D17","v":"потребувати"},{"$f":"J3","v":"grow"},null,null,null,{"$f":"J17","v":"grow"},null,null,null,null,"land"]
[null,{"$f":"S4","v":"put"},2,{"$f":"V4","v":"потім"},null,null,{"$f":"B18","v":"put"},2,{"$f":"D18","v":"потім"},{"$f":"J4","v":"land"},null,null,null,{"$f":"J18","v":"land"},null,null,null,null,"hunger"]
[null,"serve",3,"подавати (на стіл)",null,null,"serve",3,"подавати (на стіл)","hunger",null,null,null,"hunger",null,null,null,null,"wheat"]
[null,"pancake",4,"після цього",null,null,"pancake",4,"після цього","wheat",null,null,null,"wheat",null,null,null,null,"corn"]
[null,"need",5,"нарешті",null,null,"need",5,"нарешті","corn",null,null,null,"corn",null,null,null,null,"rice"]
[null,"finally",6,"млинці, оладки",null,null,"finally",6,"млинці, оладки","rice",null,null,null,"rice",null,null,null,null,"food"]
[null,"then",7,"класти",null,null,"then",7,"класти","food",null,null,null,"food",null,null,null,null,"plant"]
[null,"add",8,"додавати",null,null,"add",8,"додавати","plant",null,null,null,"plant",null,null,null,null,"potato"]
[null,"flour",9,"борошно",null,null,"flour",9,"борошно","potato",null,null,null,"potato",null,null,null,null,"bread"]
[null,0,10,0,null,null,0,10,0,"bread",null,null,null,"bread",null,null,null,null,"supper"]
[null,0,11,0,null,null,0,11,0,"supper",null,null,null,"supper"]
[]
["Name_________________________              Date_______",null,null,null,null,"Name_________________________              Date_______",null,null,null,"Name_________________________              Date_______",null,null,null,"Name_________________________              Date_______"]
[]
[null,{"$f":"B17","v":"after that"},1,{"$f":"D17","v":"потребувати"},null,null,{"$f":"B31","v":"after that"},1,{"$f":"D31","v":"потребувати"},{"$f":"J17","v":"grow"},null,null,null,{"$f":"J31","v":"grow"}]
[null,{"$f":"B18","v":"put"},2,{"$f":"D18","v":"потім"},null,null,{"$f":"B32","v":"put"},2,{"$f":"D32","v":"потім"},{"$f":"J18","v":"land"},null,null,null,{"$f":"J32","v":"land"}]
[null,"serve",3,"подавати (на стіл)",null,null,"serve",3,"подавати (на стіл)","hunger",null,null,null,"hunger"]
[null,"pancake",4,"після цього",null,null,"pancake",4,"після цього","wheat",null,null,null,"wheat"]
[null,"need",5,"нарешті",null,null,"need",5,"нарешті","corn",null,null,null,"corn"]
[null,"finally",6,"млинці, оладки",null,null,"finally",6,"млинці, оладки","rice",null,null,null,"rice"]
[null,"then",7,"класти",null,null,"then",7,"класти","food",null,null,null,"food"]
[null,"add",8,"додавати",null,null,"add",8,"додавати","plant",null,null,null,"plant"]
[null,"flour",9,"борошно",null,null,"flour",9,"борошно","potato",null,null,null,"potato"]
[null,0,10,0,null,null,0,10,0,"bread",null,null,null,"bread"]
[null,0,11,0,null,null,0,11,0,"supper",null,null,null,"supper"]
[]
["Name_________________________              Date_______",null,null,null,null,null,null,null,null,"Name_________________________              Date_______",null,null,null,"Name_________________________              Date_______"]
[]
[null,{"$f":"B31","v":"after that"},1,{"$f":"D31","v":"потребувати"},null,null,{"$f":"B39","v":"flour"},9,{"$f":"D39","v":"борошно"},{"$f":"J31","v":"grow"},null,null,null,{"$f":"J39","v":"potato"}]
[null,{"$f":"B32","v":"put"},2,{"$f":"D32","v":"потім"},null,null,{"$f":"B40","v":0},10,{"$f":"D40","v":0},{"$f":"J32","v":"land"},null,null,null,{"$f":"J40","v":"bread"}]
[null,"serve",3,"подавати (на стіл)",null,null,{"$f":"B41","v":0},11,{"$f":"D41","v":0},"hunger",null,null,null,{"$f":"J41","v":"supper"}]
[null,"pancake",4,"після цього",null,null,null,null,null,"wheat"]
[null,"need",5,"нарешті",null,null,null,null,null,"corn"]
[null,"finally",6,"млинці, оладки",null,null,null,null,null,"rice"]
[null,{"$f":"B37","v":"then"},7,{"$f":"D37","v":"класти"},null,null,null,null,null,{"$f":"J37","v":"food"}]
[null,{"$f":"B38","v":"add"},8,{"$f":"D38","v":"додавати"},null,null,null,null,null,{"$f":"J38","v":"plant"}]
[]
[null,7]

{"sheet":"1 (23)","index":3,"n_rows":55,"n_cols":13,"rows_kept":55,"cut":false,"hidden":false,"merged":[]}
[null,null,null,"Form 7",null,null,null,null,"Form 7"]
[{"$f":"J2","v":1},{"$f":"K2","v":"ready"},{"$f":"L2","v":"[ˈredɪ]"},{"$f":"M2","v":"гото́вий;"},null,{"$f":"A2","v":1},{"$f":"B2","v":"ready"},{"$f":"C2","v":"[ˈredɪ]"},{"$f":"D2","v":"гото́вий;"},1,"ready","[ˈredɪ]","гото́вий;"]
[{"$f":"J3","v":2},"leave","[liːv]","покида́ти; залиша́ти",null,{"$f":"A3","v":2},"leave","[liːv]","покида́ти; залиша́ти",2,"leave","[liːv]","покида́ти; залиша́ти"]
[3,"experiment","[ɪkˈsperɪmənt]","до́слід, експериме́нт",null,3,"experiment","[ɪkˈsperɪmənt]","до́слід, експериме́нт",3,"experiment","[ɪkˈsperɪmənt]","до́слід, експериме́нт"]
[4,"thing","[θɪŋ]","річ, предме́т",null,4,"thing","[θɪŋ]","річ, предме́т",4,"thing","[θɪŋ]","річ, предме́т"]
[5,"headmaster","[ˌhedˈmɑːstə]","дире́ктор шко́ли",null,5,"headmaster","[ˌhedˈmɑːstə]","дире́ктор шко́ли",5,"headmaster","[ˌhedˈmɑːstə]","дире́ктор шко́ли"]
[6,"find","[faɪnd]"," (з)нахо́дити",null,6,"find","[faɪnd]"," (з)нахо́дити",6,"find","[faɪnd]"," (з)нахо́дити"]
[7,0,0,0,null,7,0,0,0,7]
[8,0,0,0,null,8,0,0,0,8]
[9,0,0,0,null,9,0,0,0,9]
[10,0,0,0,null,10,0,0,0,10]
[11,{"$f":"K12","v":0},0,0,null,11,0,0,0,11]
[12,{"$f":"K13","v":0},0,0,null,12,0,0,0,12]
[]
[null,null,null,"Form 7",null,null,null,null,"Form 7"]
[1,{"$f":"B2","v":"ready"},"[ˈredɪ]","гото́вий;",null,1,{"$f":"B16","v":"ready"},{"$f":"C16","v":"[ˈredɪ]"},{"$f":"D16","v":"гото́вий;"}]
[2,"leave","[liːv]","покида́ти; залиша́ти",null,2,{"$f":"B17","v":"leave"},"[liːv]","покида́ти; залиша́ти"]
[3,"experiment","[ɪkˈsperɪmənt]","до́слід, експериме́нт",null,3,"experiment","[ɪkˈsperɪmənt]","до́слід, експериме́нт"]
[4,"thing","[θɪŋ]","річ, предме́т",null,4,"thing","[θɪŋ]","річ, предме́т"]
[5,"headmaster","[ˌhedˈmɑːstə]","дире́ктор шко́ли",null,5,"headmaster","[ˌhedˈmɑːstə]","дире́ктор шко́ли"]
[6,"find","[faɪnd]"," (з)нахо́дити",null,6,"find","[faɪnd]"," (з)нахо́дити"]
[7,0,0,0,null,7,0,0,0]
[8,0,0,0,null,8,0,0,0]
[9,0,0,0,null,9,0,0,0]
[10,0,0,0,null,10,0,0,0]
[11,0,0,0,null,11,0,0,0]
[12,0,0,0,null,12,0,0,0]
[]
[null,null,null,"Form 7",null,null,null,null,"Form 7"]
[1,{"$f":"B16","v":"ready"},"[ˈredɪ]","гото́вий;",null,1,{"$f":"B30","v":"ready"},{"$f":"C30","v":"[ˈredɪ]"},{"$f":"D30","v":"гото́вий;"}]
[2,"leave","[liːv]","покида́ти; залиша́ти",null,2,{"$f":"B31","v":"leave"},"[liːv]","покида́ти; залиша́ти"]
[3,"experiment","[ɪkˈsperɪmənt]","до́слід, експериме́нт",null,3,"experiment","[ɪkˈsperɪmənt]","до́слід, експериме́нт"]
[4,"thing","[θɪŋ]","річ, предме́т",null,4,"thing","[θɪŋ]","річ, предме́т"]
[5,"headmaster","[ˌhedˈmɑːstə]","дире́ктор шко́ли",null,5,"headmaster","[ˌhedˈmɑːstə]","дире́ктор шко́ли"]
[6,"find","[faɪnd]"," (з)нахо́дити",null,6,"find","[faɪnd]"," (з)нахо́дити"]
[7,0,0,0,null,7,0,0,0]
[8,0,0,0,null,8,0,0,0]
[9,0,0,0,null,9,0,0,0]
[10,0,0,0,null,10,0,0,0]
[11,0,0,0,null,11,0,0,0]
[12,0,0,0,null,12,0,0,0]
[]
[null,null,null,"Form 7",null,null,null,null,"Form 7"]
[1,{"$f":"B30","v":"ready"},"[ˈredɪ]","гото́вий;",null,1,{"$f":"B44","v":"ready"},{"$f":"C44","v":"[ˈredɪ]"},{"$f":"D44","v":"гото́вий;"}]
[2,"leave","[liːv]","покида́ти; залиша́ти",null,2,{"$f":"B45","v":"leave"},"[liːv]","покида́ти; залиша́ти"]
[3,"experiment","[ɪkˈsperɪmənt]","до́слід, експериме́нт",null,3,"experiment","[ɪkˈsperɪmənt]","до́слід, експериме́нт"]
[4,"thing","[θɪŋ]","річ, предме́т",null,4,"thing","[θɪŋ]","річ, предме́т"]
[5,"headmaster","[ˌhedˈmɑːstə]","дире́ктор шко́ли",null,5,"headmaster","[ˌhedˈmɑːstə]","дире́ктор шко́ли"]
[6,"find","[faɪnd]"," (з)нахо́дити",null,6,"find","[faɪnd]"," (з)нахо́дити"]
[7,0,0,0,null,7,0,0,0]
[8,0,0,0,null,8,0,0,0]
[9,0,0,0,null,9,0,0,0]
[10,0,0,0,null,10,0,0,0]
[11,0,0,0,null,11,0,0,0]
[12,0,0,0,null,12,0,0,0]

{"sheet":"Сам (14)","index":4,"n_rows":52,"n_cols":22,"rows_kept":52,"cut":false,"hidden":false,"merged":[]}
["Name_________________________   Form 7   Date_______",null,null,null,null,"Name_________________________   Form 7   Date_______",null,null,null,"Name_________________________   Form 7   Date_______",null,null,null,"Name_________________________   Form 7   Date_______"]
[]
[null,{"$f":"S3","v":0},1,{"$f":"V3","v":0},null,null,{"$f":"S3","v":0},1,{"$f":"V3","v":0},{"$f":"S16","v":"experiment"},null,null,null,{"$f":"J3","v":"experiment"},null,null,null,null,null,null,1]
[null,0,2,0,null,null,{"$f":"S4","v":0},2,{"$f":"V4","v":0},{"$f":"S17","v":"find"},null,null,null,{"$f":"J4","v":"find"},null,null,null,null,null,null,2]
[null,0,3,0,null,null,0,3,0,"headmaster",null,null,null,"headmaster",null,null,null,null,null,null,3]
[null,0,4,0,null,null,0,4,0,"leave",null,null,null,"leave",null,null,null,null,null,null,4]
[null,0,5,0,null,null,0,5,0,"ready",null,null,null,"ready",null,null,null,null,null,null,5]
[null,0,6,0,null,null,0,6,0,"thing",null,null,null,"thing",null,null,null,null,null,null,6]
[null,0,7,0,null,null,0,7,0,0,null,null,null,0,null,null,null,null,null,null,7]
[null,0,8,0,null,null,0,8,0,0,null,null,null,0,null,null,null,null,null,null,8]
[null,0,9,0,null,null,0,9,0,0,null,null,null,0,null,null,null,null,null,null,9]
[null,0,10,0,null,null,0,10,0,0,null,null,null,0,null,null,null,null,null,null,10]
[null,0,11,0,null,null,0,11,0,0,null,null,null,0,null,null,null,null,null,null,11]
[]
["Name_________________________   Form 7   Date_______",null,null,null,null,"Name_________________________   Form 7   Date_______",null,null,null,"Name_________________________   Form 7   Date_______",null,null,null,"Name_________________________   Form 7   Date_______"]
[null,null,null,null,null,null,null,null,null,null,null,null,null,null,null,null,null,null,"experiment"]
[null,{"$f":"S3","v":0},1,{"$f":"V3","v":0},null,null,{"$f":"B17","v":0},1,{"$f":"D17","v":0},{"$f":"J3","v":"experiment"},null,null,null,{"$f":"J17","v":"experiment"},null,null,null,null,"find"]
[null,{"$f":"S4","v":0},2,{"$f":"V4","v":0},null,null,{"$f":"B18","v":0},2,{"$f":"D18","v":0},{"$f":"J4","v":"find"},null,null,null,{"$f":"J18","v":"find"},null,null,null,null,"headmaster"]
[null,0,3,0,null,null,0,3,0,"headmaster",null,null,null,"headmaster",null,null,null,null,"leave"]
[null,0,4,0,null,null,0,4,0,"leave",null,null,null,"leave",null,null,null,null,"ready"]
[null,0,5,0,null,null,0,5,0,"ready",null,null,null,"ready",null,null,null,null,"thing"]
[null,0,6,0,null,null,0,6,0,"thing",null,null,null,"thing"]
[null,0,7,0,null,null,0,7,0,0,null,null,null,0,null,null,null,null,null,null,null,"experiment"]
[null,0,8,0,null,null,0,8,0,0,null,null,null,0,null,null,null,null,null,null,null,"find"]
[null,0,9,0,null,null,0,9,0,0,null,null,null,0,null,null,null,null,null,null,null,"headmaster"]
[null,0,10,0,null,null,0,10,0,0,null,null,null,0,null,null,null,null,null,null,null,"leave"]
[null,0,11,0,null,null,0,11,0,0,null,null,null,0,null,null,null,null,null,null,null,"ready"]
[null,null,null,null,null,null,null,null,null,null,null,null,null,null,null,null,null,null,null,null,null,"thing"]
["Name_________________________   Form 7   Date_______",null,null,null,null,"Name_________________________   Form 7   Date_______",null,null,null,"Name_________________________   Form 7   Date_______",null,null,null,"Name_________________________   Form 7   Date_______"]
[]
[null,{"$f":"B17","v":0},1,{"$f":"D17","v":0},null,null,{"$f":"B31","v":0},1,{"$f":"D31","v":0},{"$f":"J17","v":"experiment"},null,null,null,{"$f":"J31","v":"experiment"}]
[null,{"$f":"B18","v":0},2,{"$f":"D18","v":0},null,null,{"$f":"B32","v":0},2,{"$f":"D32","v":0},{"$f":"J18","v":"find"},null,null,null,{"$f":"J32","v":"find"}]
[null,0,3,0,null,null,0,3,0,"headmaster",null,null,null,"headmaster"]
[null,0,4,0,null,null,0,4,0,"leave",null,null,null,"leave"]
[null,0,5,0,null,null,0,5,0,"ready",null,null,null,"ready"]
[null,0,6,0,null,null,0,6,0,"thing",null,null,null,"thing"]
[null,0,7,0,null,null,0,7,0,0,null,null,null,0]
[null,0,8,0,null,null,0,8,0,0,null,null,null,0]
[null,0,9,0,null,null,0,9,0,0,null,null,null,0]
[null,0,10,0,null,null,0,10,0,0,null,null,null,0]
[null,0,11,0,null,null,0,11,0,0,null,null,null,0]
[]
["Name_________________________   Form 7   Date_______",null,null,null,null,null,null,null,null,"Name_________________________   Form 7   Date_______"]
[]
[null,{"$f":"B31","v":0},1,{"$f":"D31","v":0},null,null,{"$f":"B39","v":0},9,{"$f":"D39","v":0},{"$f":"J31","v":"experiment"},null,null,null,{"$f":"J39","v":0}]
[null,{"$f":"B32","v":0},2,{"$f":"D32","v":0},null,null,{"$f":"B40","v":0},10,{"$f":"D40","v":0},{"$f":"J32","v":"find"},null,null,null,{"$f":"J40","v":0}]
[null,0,3,0,null,null,{"$f":"B41","v":0},11,{"$f":"D41","v":0},"headmaster",null,null,null,{"$f":"J41","v":0}]
[null,0,4,0,null,null,null,null,null,"leave"]
[null,0,5,0,null,null,null,null,null,"ready"]
[null,0,6,0,null,null,null,null,null,"thing"]
[null,{"$f":"B37","v":0},7,{"$f":"D37","v":0},null,null,null,null,null,{"$f":"J37","v":0}]
[null,{"$f":"B38","v":0},8,{"$f":"D38","v":0},null,null,null,null,null,{"$f":"J38","v":0}]

{"sheet":"Сам (13)","index":5,"n_rows":52,"n_cols":21,"rows_kept":52,"cut":false,"hidden":false,"merged":[]}
["Name_________________________   Form 7   Date_______",null,null,null,null,"Name_________________________   Form 7   Date_______",null,null,null,"Name_________________________   Form 7   Date_______",null,null,null,"Name_________________________   Form 7   Date_______"]
[]
[null,{"$f":"S3","v":0},1,{"$f":"V3","v":0},null,null,{"$f":"S3","v":0},1,{"$f":"V3","v":0},{"$f":"S16","v":"gym"},null,null,null,{"$f":"J3","v":"gym"},null,null,null,null,null,null,1]
[null,0,2,0,null,null,{"$f":"S4","v":0},2,{"$f":"V4","v":0},{"$f":"S17","v":"locker"},null,null,null,{"$f":"J4","v":"locker"},null,null,null,null,null,null,2]
[null,0,3,0,null,null,0,3,0,"stair",null,null,null,"stair",null,null,null,null,null,null,3]
[null,0,4,0,null,null,0,4,0,"canteen",null,null,null,"canteen",null,null,null,null,null,null,4]
[null,0,5,0,null,null,0,5,0,"entrance",null,null,null,"entrance",null,null,null,null,null,null,5]
[null,0,6,0,null,null,0,6,0,0,null,null,null,0,null,null,null,null,null,null,6]
[null,0,7,0,null,null,0,7,0,0,null,null,null,0,null,null,null,null,null,null,7]
[null,0,8,0,null,null,0,8,0,0,null,null,null,0,null,null,null,null,null,null,8]
[null,0,9,0,null,null,0,9,0,0,null,null,null,0,null,null,null,null,null,null,9]
[null,0,10,0,null,null,0,10,0,0,null,null,null,0,null,null,null,null,null,null,10]
[null,0,11,0,null,null,0,11,0,0,null,null,null,0,null,null,null,null,null,null,11]
[]
["Name_________________________   Form 7   Date_______",null,null,null,null,"Name_________________________   Form 7   Date_______",null,null,null,"Name_________________________   Form 7   Date_______",null,null,null,"Name_________________________   Form 7   Date_______"]
[null,null,null,null,null,null,null,null,null,null,null,null,null,null,null,null,null,null,"gym"]
[null,{"$f":"S3","v":0},1,{"$f":"V3","v":0},null,null,{"$f":"B17","v":0},1,{"$f":"D17","v":0},{"$f":"J3","v":"gym"},null,null,null,{"$f":"J17","v":"gym"},null,null,null,null,"locker"]
[null,{"$f":"S4","v":0},2,{"$f":"V4","v":0},null,null,{"$f":"B18","v":0},2,{"$f":"D18","v":0},{"$f":"J4","v":"locker"},null,null,null,{"$f":"J18","v":"locker"},null,null,null,null,"stair"]
[null,0,3,0,null,null,0,3,0,"stair",null,null,null,"stair",null,null,null,null,"canteen"]
[null,0,4,0,null,null,0,4,0,"canteen",null,null,null,"canteen",null,null,null,null,"entrance"]
[null,0,5,0,null,null,0,5,0,"entrance",null,null,null,"entrance"]
[null,0,6,0,null,null,0,6,0,0,null,null,null,0]
[null,0,7,0,null,null,0,7,0,0,null,null,null,0]
[null,0,8,0,null,null,0,8,0,0,null,null,null,0]
[null,0,9,0,null,null,0,9,0,0,null,null,null,0]
[null,0,10,0,null,null,0,10,0,0,null,null,null,0]
[null,0,11,0,null,null,0,11,0,0,null,null,null,0]
[]
["Name_________________________   Form 7   Date_______",null,null,null,null,"Name_________________________   Form 7   Date_______",null,null,null,"Name_________________________   Form 7   Date_______",null,null,null,"Name_________________________   Form 7   Date_______"]
[]
[null,{"$f":"B17","v":0},1,{"$f":"D17","v":0},null,null,{"$f":"B31","v":0},1,{"$f":"D31","v":0},{"$f":"J17","v":"gym"},null,null,null,{"$f":"J31","v":"gym"}]
[null,{"$f":"B18","v":0},2,{"$f":"D18","v":0},null,null,{"$f":"B32","v":0},2,{"$f":"D32","v":0},{"$f":"J18","v":"locker"},null,null,null,{"$f":"J32","v":"locker"}]
[null,0,3,0,null,null,0,3,0,"stair",null,null,null,"stair"]
[null,0,4,0,null,null,0,4,0,"canteen",null,null,null,"canteen"]
[null,0,5,0,null,null,0,5,0,"entrance",null,null,null,"entrance"]
[null,0,6,0,null,null,0,6,0,0,null,null,null,0]
[null,0,7,0,null,null,0,7,0,0,null,null,null,0]
[null,0,8,0,null,null,0,8,0,0,null,null,null,0]
[null,0,9,0,null,null,0,9,0,0,null,null,null,0]
[null,0,10,0,null,null,0,10,0,0,null,null,null,0]
[null,0,11,0,null,null,0,11,0,0,null,null,null,0]
[]
["Name_________________________   Form 7   Date_______",null,null,null,null,null,null,null,null,"Name_________________________   Form 7   Date_______"]
[]
[null,{"$f":"B31","v":0},1,{"$f":"D31","v":0},null,null,{"$f":"B39","v":0},9,{"$f":"D39","v":0},{"$f":"J31","v":"gym"},null,null,null,{"$f":"J39","v":0}]
[null,{"$f":"B32","v":0},2,{"$f":"D32","v":0},null,null,{"$f":"B40","v":0},10,{"$f":"D40","v":0},{"$f":"J32","v":"locker"},null,null,null,{"$f":"J40","v":0}]
[null,0,3,0,null,null,{"$f":"B41","v":0},11,{"$f":"D41","v":0},"stair",null,null,null,{"$f":"J41","v":0}]
[null,0,4,0,null,null,null,null,null,"canteen"]
[null,0,5,0,null,null,null,null,null,"entrance"]
[null,0,6,0,null,null,null,null,null,0]
[null,{"$f":"B37","v":0},7,{"$f":"D37","v":0},null,null,null,null,null,{"$f":"J37","v":0}]
[null,{"$f":"B38","v":0},8,{"$f":"D38","v":0},null,null,null,null,null,{"$f":"J38","v":0}]

{"sheet":"1 (1)","index":6,"n_rows":55,"n_cols":13,"rows_kept":55,"cut":false,"hidden":false,"merged":[]}
[{"$f":"J1","v":1},{"$f":"K1","v":"changing room"},{"$f":"L1","v":"[ʧeɪnʤiŋ]"},{"$f":"M1","v":"роздягальня"},null,{"$f":"A1","v":1},{"$f":"B1","v":"changing room"},{"$f":"C1","v":"[ʧeɪnʤiŋ]"},{"$f":"D1","v":"роздягальня"},1,"changing room","[ʧeɪnʤiŋ]","роздягальня"]
[{"$f":"J2","v":2},"gym","[ʤɪm]","спортзал",null,{"$f":"A2","v":2},"gym","[ʤɪm]","спортзал",2,"gym","[ʤɪm]","спортзал"]
[3,"locker","[ˈlɔkə]","ша́фка з замко́м",null,3,"locker","[ˈlɔkə]","ша́фка з замко́м",3,"locker","[ˈlɔkə]","ша́фка з замко́м"]
[4,"stair","[stɛə]","сходинка",null,4,"stair","[stɛə]","сходинка",4,"stair","[stɛə]","сходинка"]
[5,"canteen","[kænˈtiːn]","їда́льня",null,5,"canteen","[kænˈtiːn]","їда́льня",5,"canteen","[kænˈtiːn]","їда́льня"]
[6,"entrance","[ˈentrən(t)s]","вхід",null,6,"entrance","[ˈentrən(t)s]","вхід",6,"entrance","[ˈentrən(t)s]","вхід"]
[7,"toilet","[ˈtɔɪlət]","туалет",null,7,"toilet","[ˈtɔɪlət]","туалет",7,"toilet","[ˈtɔɪlət]","туалет"]
[8,"ground floor","[graund] [flɔː]","1-ий поверх",null,8,"ground floor","[graund] [flɔː]","1-ий поверх",8,"ground floor","[graund] [flɔː]","1-ий поверх"]
[9,"kitchen","[ˈkɪʧɪn]","кухня",null,9,"kitchen","[ˈkɪʧɪn]","кухня",9,"kitchen","[ˈkɪʧɪn]","кухня"]
[10,0,0,0,null,10,0,0,0,10]
[11,{"$f":"K11","v":0},0,0,null,11,0,0,0,11]
[12,{"$f":"K12","v":0},0,0,null,12,0,0,0,12]
[13,{"$f":"K13","v":0},0,0,null,13,0,0,0,13]
[]
[1,{"$f":"B1","v":"changing room"},{"$f":"C1","v":"[ʧeɪnʤiŋ]"},{"$f":"D1","v":"роздягальня"},null,1,{"$f":"B15","v":"changing room"},{"$f":"C15","v":"[ʧeɪnʤiŋ]"},{"$f":"D15","v":"роздягальня"}]
[2,{"$f":"B2","v":"gym"},"[ʤɪm]","спортзал",null,2,{"$f":"B16","v":"gym"},"[ʤɪm]","спортзал"]
[3,"locker","[ˈlɔkə]","ша́фка з замко́м",null,3,"locker","[ˈlɔkə]","ша́фка з замко́м"]
[4,"stair","[stɛə]","сходинка",null,4,"stair","[stɛə]","сходинка"]
[5,"canteen","[kænˈtiːn]","їда́льня",null,5,"canteen","[kænˈtiːn]","їда́льня"]
[6,"entrance","[ˈentrən(t)s]","вхід",null,6,"entrance","[ˈentrən(t)s]","вхід"]
[7,"toilet","[ˈtɔɪlət]","туалет",null,7,"toilet","[ˈtɔɪlət]","туалет"]
[8,"ground floor","[graund] [flɔː]","1-ий поверх",null,8,"ground floor","[graund] [flɔː]","1-ий поверх"]
[9,"kitchen","[ˈkɪʧɪn]","кухня",null,9,"kitchen","[ˈkɪʧɪn]","кухня"]
[10,0,0,0,null,10,0,0,0]
[11,0,0,0,null,11,0,0,0]
[12,0,0,0,null,12,0,0,0]
[13,0,0,0,null,13,0,0,0]
[]
[1,{"$f":"B15","v":"changing room"},{"$f":"C15","v":"[ʧeɪnʤiŋ]"},{"$f":"D15","v":"роздягальня"},null,1,{"$f":"B29","v":"changing room"},{"$f":"C29","v":"[ʧeɪnʤiŋ]"},{"$f":"D29","v":"роздягальня"}]
[2,{"$f":"B16","v":"gym"},"[ʤɪm]","спортзал",null,2,{"$f":"B30","v":"gym"},"[ʤɪm]","спортзал"]
[3,"locker","[ˈlɔkə]","ша́фка з замко́м",null,3,"locker","[ˈlɔkə]","ша́фка з замко́м"]
[4,"stair","[stɛə]","сходинка",null,4,"stair","[stɛə]","сходинка"]
[5,"canteen","[kænˈtiːn]","їда́льня",null,5,"canteen","[kænˈtiːn]","їда́льня"]
[6,"entrance","[ˈentrən(t)s]","вхід",null,6,"entrance","[ˈentrən(t)s]","вхід"]
[7,"toilet","[ˈtɔɪlət]","туалет",null,7,"toilet","[ˈtɔɪlət]","туалет"]
[8,"ground floor","[graund] [flɔː]","1-ий поверх",null,8,"ground floor","[graund] [flɔː]","1-ий поверх"]
[9,"kitchen","[ˈkɪʧɪn]","кухня",null,9,"kitchen","[ˈkɪʧɪn]","кухня"]
[10,0,0,0,null,10,0,0,0]
[11,0,0,0,null,11,0,0,0]
[12,0,0,0,null,12,0,0,0]
[13,0,0,0,null,13,0,0,0]
[]
[1,{"$f":"B29","v":"changing room"},{"$f":"C29","v":"[ʧeɪnʤiŋ]"},{"$f":"D29","v":"роздягальня"},null,1,{"$f":"B43","v":"changing room"},{"$f":"C43","v":"[ʧeɪnʤiŋ]"},{"$f":"D43","v":"роздягальня"}]
[2,{"$f":"B30","v":"gym"},"[ʤɪm]","спортзал",null,2,{"$f":"B44","v":"gym"},"[ʤɪm]","спортзал"]
[3,"locker","[ˈlɔkə]","ша́фка з замко́м",null,3,"locker","[ˈlɔkə]","ша́фка з замко́м"]
[4,"stair","[stɛə]","сходинка",null,4,"stair","[stɛə]","сходинка"]
[5,"canteen","[kænˈtiːn]","їда́льня",null,5,"canteen","[kænˈtiːn]","їда́льня"]
[6,"entrance","[ˈentrən(t)s]","вхід",null,6,"entrance","[ˈentrən(t)s]","вхід"]
[7,"toilet","[ˈtɔɪlət]","туалет",null,7,"toilet","[ˈtɔɪlət]","туалет"]
[8,"ground floor","[graund] [flɔː]","1-ий поверх",null,8,"ground floor","[graund] [flɔː]","1-ий поверх"]
[9,"kitchen","[ˈkɪʧɪn]","кухня",null,9,"kitchen","[ˈkɪʧɪn]","кухня"]
[10,0,0,0,null,10,0,0,0]
[11,0,0,0,null,11,0,0,0]
[12,0,0,0,null,12,0,0,0]
[13,0,0,0,null,13,0,0,0]

{"sheet":"Сам (1)","index":7,"n_rows":54,"n_cols":22,"rows_kept":54,"cut":false,"hidden":false,"merged":[]}
["Name_________________________              Date_______",null,null,null,null,"Name_________________________              Date_______",null,null,null,"Name_________________________              Date_______",null,null,null,"Name_________________________              Date_______"]
[]
[null,{"$f":"S3","v":"canteen"},1,{"$f":"V3","v":"ша́фка з замко́м"},null,null,{"$f":"S3","v":"canteen"},1,{"$f":"V3","v":"ша́фка з замко́м"},{"$f":"S16","v":"toilet"},null,null,null,{"$f":"J3","v":"toilet"},null,null,null,null,"canteen",null,1,"ша́фка з замко́м"]
[null,"changing room",2,"туалет",null,null,{"$f":"S4","v":"changing room"},2,{"$f":"V4","v":"туалет"},{"$f":"S17","v":"stair"},null,null,null,{"$f":"J4","v":"stair"},null,null,null,null,"changing room",null,2,"туалет"]
[null,"entrance",3,"сходинка",null,null,"entrance",3,"сходинка","locker",null,null,null,"locker",null,null,null,null,"entrance",null,3,"сходинка"]
[null,"ground floor",4,"спортзал",null,null,"ground floor",4,"спортзал","kitchen",null,null,null,"kitchen",null,null,null,null,"ground floor",null,4,"спортзал"]
[null,"gym",5,"роздягальня",null,null,"gym",5,"роздягальня","gym",null,null,null,"gym",null,null,null,null,"gym",null,5,"роздягальня"]
[null,"kitchen",6,"кухня",null,null,"kitchen",6,"кухня","ground floor",null,null,null,"ground floor",null,null,null,null,"kitchen",null,6,"кухня"]
[null,"locker",7,"їда́льня",null,null,"locker",7,"їда́льня","entrance",null,null,null,"entrance",null,null,null,null,"locker",null,7,"їда́льня"]
[null,"stair",8,"вхід",null,null,"stair",8,"вхід","changing room",null,null,null,"changing room",null,null,null,null,"stair",null,8,"вхід"]
[null,"toilet",9,"1-ий поверх",null,null,"toilet",9,"1-ий поверх","canteen",null,null,null,"canteen",null,null,null,null,"toilet",null,9,"1-ий поверх"]
[null,0,10,0,null,null,0,10,0,0,null,null,null,0]
[null,0,11,0,null,null,0,11,0,0,null,null,null,0]
[]
["Name_________________________              Date_______",null,null,null,null,"Name_________________________              Date_______",null,null,null,"Name_________________________              Date_______",null,null,null,"Name_________________________              Date_______"]
[null,null,null,null,null,null,null,null,null,null,null,null,null,null,null,null,null,null,"toilet"]
[null,{"$f":"S3","v":"canteen"},1,{"$f":"V3","v":"ша́фка з замко́м"},null,null,{"$f":"B17","v":"canteen"},1,{"$f":"D17","v":"ша́фка з замко́м"},{"$f":"J3","v":"toilet"},null,null,null,{"$f":"J17","v":"toilet"},null,null,null,null,"stair"]
[null,{"$f":"S4","v":"changing room"},2,{"$f":"V4","v":"туалет"},null,null,{"$f":"B18","v":"changing room"},2,{"$f":"D18","v":"туалет"},{"$f":"J4","v":"stair"},null,null,null,{"$f":"J18","v":"stair"},null,null,null,null,"locker"]
[null,"entrance",3,"сходинка",null,null,"entrance",3,"сходинка","locker",null,null,null,"locker",null,null,null,null,"kitchen"]
[null,"ground floor",4,"спортзал",null,null,"ground floor",4,"спортзал","kitchen",null,null,null,"kitchen",null,null,null,null,"gym"]
[null,"gym",5,"роздягальня",null,null,"gym",5,"роздягальня","gym",null,null,null,"gym",null,null,null,null,"ground floor"]
[null,"kitchen",6,"кухня",null,null,"kitchen",6,"кухня","ground floor",null,null,null,"ground floor",null,null,null,null,"entrance"]
[null,"locker",7,"їда́льня",null,null,"locker",7,"їда́льня","entrance",null,null,null,"entrance",null,null,null,null,"changing room"]
[null,"stair",8,"вхід",null,null,"stair",8,"вхід","changing room",null,null,null,"changing room",null,null,null,null,"canteen"]
[null,"toilet",9,"1-ий поверх",null,null,"toilet",9,"1-ий поверх","canteen",null,null,null,"canteen"]
[null,0,10,0,null,null,0,10,0,0,null,null,null,0]
[null,0,11,0,null,null,0,11,0,0,null,null,null,0]
[]
["Name_________________________              Date_______",null,null,null,null,"Name_________________________              Date_______",null,null,null,"Name_________________________              Date_______",null,null,null,"Name_________________________              Date_______"]
[]
[null,{"$f":"B17","v":"canteen"},1,{"$f":"D17","v":"ша́фка з замко́м"},null,null,{"$f":"B31","v":"canteen"},1,{"$f":"D31","v":"ша́фка з замко́м"},{"$f":"J17","v":"toilet"},null,null,null,{"$f":"J31","v":"toilet"}]
[null,{"$f":"B18","v":"changing room"},2,{"$f":"D18","v":"туалет"},null,null,{"$f":"B32","v":"changing room"},2,{"$f":"D32","v":"туалет"},{"$f":"J18","v":"stair"},null,null,null,{"$f":"J32","v":"stair"}]
[null,"entrance",3,"сходинка",null,null,"entrance",3,"сходинка","locker",null,null,null,"locker"]
[null,"ground floor",4,"спортзал",null,null,"ground floor",4,"спортзал","kitchen",null,null,null,"kitchen"]
[null,"gym",5,"роздягальня",null,null,"gym",5,"роздягальня","gym",null,null,null,"gym"]
[null,"kitchen",6,"кухня",null,null,"kitchen",6,"кухня","ground floor",null,null,null,"ground floor"]
[null,"locker",7,"їда́льня",null,null,"locker",7,"їда́льня","entrance",null,null,null,"entrance"]
[null,"stair",8,"вхід",null,null,"stair",8,"вхід","changing room",null,null,null,"changing room"]
[null,"toilet",9,"1-ий поверх",null,null,"toilet",9,"1-ий поверх","canteen",null,null,null,"canteen"]
[null,0,10,0,null,null,0,10,0,0,null,null,null,0]
[null,0,11,0,null,null,0,11,0,0,null,null,null,0]
[]
["Name_________________________              Date_______",null,null,null,null,null,null,null,null,"Name_________________________              Date_______",null,null,null,"Name_________________________              Date_______"]
[]
[null,{"$f":"B31","v":"canteen"},1,{"$f":"D31","v":"ша́фка з замко́м"},null,null,{"$f":"B39","v":"toilet"},9,{"$f":"D39","v":"1-ий поверх"},{"$f":"J31","v":"toilet"},null,null,null,{"$f":"J39","v":"canteen"}]
[null,{"$f":"B32","v":"changing room"},2,{"$f":"D32","v":"туалет"},null,null,{"$f":"B40","v":0},10,{"$f":"D40","v":0},{"$f":"J32","v":"stair"},null,null,null,{"$f":"J40","v":0}]
[null,"entrance",3,"сходинка",null,null,{"$f":"B41","v":0},11,{"$f":"D41","v":0},"locker",null,null,null,{"$f":"J41","v":0}]
[null,"ground floor",4,"спортзал",null,null,null,null,null,"kitchen"]
[null,"gym",5,"роздягальня",null,null,null,null,null,"gym"]
[null,"kitchen",6,"кухня",null,null,null,null,null,"ground floor"]
[null,{"$f":"B37","v":"locker"},7,{"$f":"D37","v":"їда́льня"},null,null,null,null,null,{"$f":"J37","v":"entrance"}]
[null,{"$f":"B38","v":"stair"},8,{"$f":"D38","v":"вхід"},null,null,null,null,null,{"$f":"J38","v":"changing room"}]
[]
[null,7]

{"sheet":"1 (2)","index":8,"n_rows":55,"n_cols":13,"rows_kept":55,"cut":false,"hidden":false,"merged":[]}
[{"$f":"J1","v":1},{"$f":"K1","v":"staff"},{"$f":"L1","v":"[stɑːf]"},{"$f":"M1","v":"штат"},null,{"$f":"A1","v":1},{"$f":"B1","v":"staff"},{"$f":"C1","v":"[stɑːf]"},{"$f":"D1","v":"штат"},1,"staff","[stɑːf]","штат"]
[{"$f":"J2","v":2},"headmaster","[ˌhedˈmɑːstə]","дире́ктор шко́ли",null,{"$f":"A2","v":2},"headmaster","[ˌhedˈmɑːstə]","дире́ктор шко́ли",2,"headmaster","[ˌhedˈmɑːstə]","дире́ктор шко́ли"]
[3,"between","[bɪˈtwiːn]","між; помі́ж",null,3,"between","[bɪˈtwiːn]","між; помі́ж",3,"between","[bɪˈtwiːn]","між; помі́ж"]
[4,"next to","[ˈneksttʊ]","поряд",null,4,"next to","[ˈneksttʊ]","поряд",4,"next to","[ˈneksttʊ]","поряд"]
[5,"opposite","[ˈɔpəzɪt]","навпро́ти",null,5,"opposite","[ˈɔpəzɪt]","навпро́ти",5,"opposite","[ˈɔpəzɪt]","навпро́ти"]
[6,"role","[rəul]","роль",null,6,"role","[rəul]","роль",6,"role","[rəul]","роль"]
[7,"teach","[tiːʧ]","навчати",null,7,"teach","[tiːʧ]","навчати",7,"teach","[tiːʧ]","навчати"]
[8,"regular","[ˈregjələ]","регуля́рний",null,8,"regular","[ˈregjələ]","регуля́рний",8,"regular","[ˈregjələ]","регуля́рний"]
[9,"believe","[bɪˈliːv]","ві́рити;  ду́мати",null,9,"believe","[bɪˈliːv]","ві́рити;  ду́мати",9,"believe","[bɪˈliːv]","ві́рити;  ду́мати"]
[10,"headmistress","[ˌhedˈmɪstrɪs]","дире́ктор шко́ли (жінка)",null,10,"headmistress","[ˌhedˈmɪstrɪs]","дире́ктор шко́ли (жінка)",10,"headmistress","[ˌhedˈmɪstrɪs]","дире́ктор шко́ли (жінка)"]
[11,{"$f":"K11","v":0},0,0,null,11,0,0,0,11]
[12,{"$f":"K12","v":0},0,0,null,12,0,0,0,12]
[13,{"$f":"K13","v":0},0,0,null,13,0,0,0,13]
[]
[1,{"$f":"B1","v":"staff"},{"$f":"C1","v":"[stɑːf]"},{"$f":"D1","v":"штат"},null,1,{"$f":"B15","v":"staff"},{"$f":"C15","v":"[stɑːf]"},{"$f":"D15","v":"штат"}]
[2,{"$f":"B2","v":"headmaster"},"[ˌhedˈmɑːstə]","дире́ктор шко́ли",null,2,{"$f":"B16","v":"headmaster"},"[ˌhedˈmɑːstə]","дире́ктор шко́ли"]
[3,"between","[bɪˈtwiːn]","між; помі́ж",null,3,"between","[bɪˈtwiːn]","між; помі́ж"]
[4,"next to","[ˈneksttʊ]","поряд",null,4,"next to","[ˈneksttʊ]","поряд"]
[5,"opposite","[ˈɔpəzɪt]","навпро́ти",null,5,"opposite","[ˈɔpəzɪt]","навпро́ти"]
[6,"role","[rəul]","роль",null,6,"role","[rəul]","роль"]
[7,"teach","[tiːʧ]","навчати",null,7,"teach","[tiːʧ]","навчати"]
[8,"regular","[ˈregjələ]","регуля́рний",null,8,"regular","[ˈregjələ]","регуля́рний"]
[9,"believe","[bɪˈliːv]","ві́рити;  ду́мати",null,9,"believe","[bɪˈliːv]","ві́рити;  ду́мати"]
[10,"headmistress","[ˌhedˈmɪstrɪs]","дире́ктор шко́ли (жінка)",null,10,"headmistress","[ˌhedˈmɪstrɪs]","дире́ктор шко́ли (жінка)"]
[11,0,0,0,null,11,0,0,0]
[12,0,0,0,null,12,0,0,0]
[13,0,0,0,null,13,0,0,0]
[]
[1,{"$f":"B15","v":"staff"},{"$f":"C15","v":"[stɑːf]"},{"$f":"D15","v":"штат"},null,1,{"$f":"B29","v":"staff"},{"$f":"C29","v":"[stɑːf]"},{"$f":"D29","v":"штат"}]
[2,{"$f":"B16","v":"headmaster"},"[ˌhedˈmɑːstə]","дире́ктор шко́ли",null,2,{"$f":"B30","v":"headmaster"},"[ˌhedˈmɑːstə]","дире́ктор шко́ли"]
[3,"between","[bɪˈtwiːn]","між; помі́ж",null,3,"between","[bɪˈtwiːn]","між; помі́ж"]
[4,"next to","[ˈneksttʊ]","поряд",null,4,"next to","[ˈneksttʊ]","поряд"]
[5,"opposite","[ˈɔpəzɪt]","навпро́ти",null,5,"opposite","[ˈɔpəzɪt]","навпро́ти"]
[6,"role","[rəul]","роль",null,6,"role","[rəul]","роль"]
[7,"teach","[tiːʧ]","навчати",null,7,"teach","[tiːʧ]","навчати"]
[8,"regular","[ˈregjələ]","регуля́рний",null,8,"regular","[ˈregjələ]","регуля́рний"]
[9,"believe","[bɪˈliːv]","ві́рити;  ду́мати",null,9,"believe","[bɪˈliːv]","ві́рити;  ду́мати"]
[10,"headmistress","[ˌhedˈmɪstrɪs]","дире́ктор шко́ли (жінка)",null,10,"headmistress","[ˌhedˈmɪstrɪs]","дире́ктор шко́ли (жінка)"]
[11,0,0,0,null,11,0,0,0]
[12,0,0,0,null,12,0,0,0]
[13,0,0,0,null,13,0,0,0]
[]
[1,{"$f":"B29","v":"staff"},{"$f":"C29","v":"[stɑːf]"},{"$f":"D29","v":"штат"},null,1,{"$f":"B43","v":"staff"},{"$f":"C43","v":"[stɑːf]"},{"$f":"D43","v":"штат"}]
[2,{"$f":"B30","v":"headmaster"},"[ˌhedˈmɑːstə]","дире́ктор шко́ли",null,2,{"$f":"B44","v":"headmaster"},"[ˌhedˈmɑːstə]","дире́ктор шко́ли"]
[3,"between","[bɪˈtwiːn]","між; помі́ж",null,3,"between","[bɪˈtwiːn]","між; помі́ж"]
[4,"next to","[ˈneksttʊ]","поряд",null,4,"next to","[ˈneksttʊ]","поряд"]
[5,"opposite","[ˈɔpəzɪt]","навпро́ти",null,5,"opposite","[ˈɔpəzɪt]","навпро́ти"]
[6,"role","[rəul]","роль",null,6,"role","[rəul]","роль"]
[7,"teach","[tiːʧ]","навчати",null,7,"teach","[tiːʧ]","навчати"]
[8,"regular","[ˈregjələ]","регуля́рний",null,8,"regular","[ˈregjələ]","регуля́рний"]
[9,"believe","[bɪˈliːv]","ві́рити;  ду́мати",null,9,"believe","[bɪˈliːv]","ві́рити;  ду́мати"]
[10,"headmistress","[ˌhedˈmɪstrɪs]","дире́ктор шко́ли (жінка)",null,10,"headmistress","[ˌhedˈmɪstrɪs]","дире́ктор шко́ли (жінка)"]
[11,0,0,0,null,11,0,0,0]
[12,0,0,0,null,12,0,0,0]
[13,0,0,0,null,13,0,0,0]

{"sheet":"Сам (6)","index":9,"n_rows":52,"n_cols":21,"rows_kept":52,"cut":false,"hidden":false,"merged":[]}
["Name_________________________   Form 7   Date_______",null,null,null,null,"Name_________________________   Form 7   Date_______",null,null,null,"Name_________________________   Form 7   Date_______",null,null,null,"Name_________________________   Form 7   Date_______"]
[]
[null,{"$f":"S3","v":0},1,{"$f":"V3","v":0},null,null,{"$f":"S3","v":0},1,{"$f":"V3","v":0},{"$f":"S16","v":"staff"},null,null,null,{"$f":"J3","v":"staff"},null,null,null,null,null,null,1]
[null,0,2,0,null,null,{"$f":"S4","v":0},2,{"$f":"V4","v":0},{"$f":"S17","v":"headmaster"},null,null,null,{"$f":"J4","v":"headmaster"},null,null,null,null,null,null,2]
[null,0,3,0,null,null,0,3,0,"between",null,null,null,"between",null,null,null,null,null,null,3]
[null,0,4,0,null,null,0,4,0,"next to",null,null,null,"next to",null,null,null,null,null,null,4]
[null,0,5,0,null,null,0,5,0,"opposite",null,null,null,"opposite",null,null,null,null,null,null,5]
[null,0,6,0,null,null,0,6,0,"role",null,null,null,"role",null,null,null,null,null,null,6]
[null,0,7,0,null,null,0,7,0,"teach",null,null,null,"teach",null,null,null,null,null,null,7]
[null,0,8,0,null,null,0,8,0,"regular",null,null,null,"regular",null,null,null,null,null,null,8]
[null,0,9,0,null,null,0,9,0,"believe",null,null,null,"believe",null,null,null,null,null,null,9]
[null,0,10,0,null,null,0,10,0,0,null,null,null,0,null,null,null,null,null,null,10]
[null,0,11,0,null,null,0,11,0,0,null,null,null,0,null,null,null,null,null,null,11]
[]
["Name_________________________   Form 7   Date_______",null,null,null,null,"Name_________________________   Form 7   Date_______",null,null,null,"Name_________________________   Form 7   Date_______",null,null,null,"Name_________________________   Form 7   Date_______"]
[null,null,null,null,null,null,null,null,null,null,null,null,null,null,null,null,null,null,"staff"]
[null,{"$f":"S3","v":0},1,{"$f":"V3","v":0},null,null,{"$f":"B17","v":0},1,{"$f":"D17","v":0},{"$f":"J3","v":"staff"},null,null,null,{"$f":"J17","v":"staff"},null,null,null,null,"headmaster"]
[null,{"$f":"S4","v":0},2,{"$f":"V4","v":0},null,null,{"$f":"B18","v":0},2,{"$f":"D18","v":0},{"$f":"J4","v":"headmaster"},null,null,null,{"$f":"J18","v":"headmaster"},null,null,null,null,"between"]
[null,0,3,0,null,null,0,3,0,"between",null,null,null,"between",null,null,null,null,"next to"]
[null,0,4,0,null,null,0,4,0,"next to",null,null,null,"next to",null,null,null,null,"opposite"]
[null,0,5,0,null,null,0,5,0,"opposite",null,null,null,"opposite",null,null,null,null,"role"]
[null,0,6,0,null,null,0,6,0,"role",null,null,null,"role",null,null,null,null,"teach"]
[null,0,7,0,null,null,0,7,0,"teach",null,null,null,"teach",null,null,null,null,"regular"]
[null,0,8,0,null,null,0,8,0,"regular",null,null,null,"regular",null,null,null,null,"believe"]
[null,0,9,0,null,null,0,9,0,"believe",null,null,null,"believe"]
[null,0,10,0,null,null,0,10,0,0,null,null,null,0]
[null,0,11,0,null,null,0,11,0,0,null,null,null,0]
[]
["Name_________________________   Form 7   Date_______",null,null,null,null,"Name_________________________   Form 7   Date_______",null,null,null,"Name_________________________   Form 7   Date_______",null,null,null,"Name_________________________   Form 7   Date_______"]
[]
[null,{"$f":"B17","v":0},1,{"$f":"D17","v":0},null,null,{"$f":"B31","v":0},1,{"$f":"D31","v":0},{"$f":"J17","v":"staff"},null,null,null,{"$f":"J31","v":"staff"}]
[null,{"$f":"B18","v":0},2,{"$f":"D18","v":0},null,null,{"$f":"B32","v":0},2,{"$f":"D32","v":0},{"$f":"J18","v":"headmaster"},null,null,null,{"$f":"J32","v":"headmaster"}]
[null,0,3,0,null,null,0,3,0,"between",null,null,null,"between"]
[null,0,4,0,null,null,0,4,0,"next to",null,null,null,"next to"]
[null,0,5,0,null,null,0,5,0,"opposite",null,null,null,"opposite"]
[null,0,6,0,null,null,0,6,0,"role",null,null,null,"role"]
[null,0,7,0,null,null,0,7,0,"teach",null,null,null,"teach"]
[null,0,8,0,null,null,0,8,0,"regular",null,null,null,"regular"]
[null,0,9,0,null,null,0,9,0,"believe",null,null,null,"believe"]
[null,0,10,0,null,null,0,10,0,0,null,null,null,0]
[null,0,11,0,null,null,0,11,0,0,null,null,null,0]
[]
["Name_________________________   Form 7   Date_______",null,null,null,null,null,null,null,null,"Name_________________________   Form 7   Date_______"]
[]
[null,{"$f":"B31","v":0},1,{"$f":"D31","v":0},null,null,{"$f":"B39","v":0},9,{"$f":"D39","v":0},{"$f":"J31","v":"staff"},null,null,null,{"$f":"J39","v":"believe"}]
[null,{"$f":"B32","v":0},2,{"$f":"D32","v":0},null,null,{"$f":"B40","v":0},10,{"$f":"D40","v":0},{"$f":"J32","v":"headmaster"},null,null,null,{"$f":"J40","v":0}]
[null,0,3,0,null,null,{"$f":"B41","v":0},11,{"$f":"D41","v":0},"between",null,null,null,{"$f":"J41","v":0}]
[null,0,4,0,null,null,null,null,null,"next to"]
[null,0,5,0,null,null,null,null,null,"opposite"]
[null,0,6,0,null,null,null,null,null,"role"]
[null,{"$f":"B37","v":0},7,{"$f":"D37","v":0},null,null,null,null,null,{"$f":"J37","v":"teach"}]
[null,{"$f":"B38","v":0},8,{"$f":"D38","v":0},null,null,null,null,null,{"$f":"J38","v":"regular"}]

{"sheet":"1 (3)","index":10,"n_rows":55,"n_cols":13,"rows_kept":55,"cut":false,"hidden":false,"merged":[]}
[{"$f":"J1","v":1},{"$f":"K1","v":"bullying"},{"$f":"L1","v":"[ˈbulɪŋ]"},{"$f":"M1","v":"булінг, цькування"},null,{"$f":"A1","v":1},{"$f":"B1","v":"bullying"},{"$f":"C1","v":"[ˈbulɪŋ]"},{"$f":"D1","v":"булінг, цькування"},1,"bullying","[ˈbulɪŋ]","булінг, цькування"]
[{"$f":"J2","v":2},"case","[keɪs]"," ви́падок",null,{"$f":"A2","v":2},"case","[keɪs]"," ви́падок",2,"case","[keɪs]"," ви́падок"]
[3,"spend","[spend]","витрача́ти;прово́дити (час)",null,3,"spend","[spend]","витрача́ти;прово́дити (час)",3,"spend","[spend]","витрача́ти;прово́дити (час)"]
[4,"over","[ˈəuvə]","по́над, бі́льше",null,4,"over","[ˈəuvə]","по́над, бі́льше",4,"over","[ˈəuvə]","по́над, бі́льше"]
[5,"whose","[huːz]","чий, чия́, чиє́, чиї́",null,5,"whose","[huːz]","чий, чия́, чиє́, чиї́",5,"whose","[huːz]","чий, чия́, чиє́, чиї́"]
[6,"teach","[tiːʧ]","навчати",null,6,"teach","[tiːʧ]","навчати",6,"teach","[tiːʧ]","навчати"]
[7,"regular","[ˈregjələ]","регуля́рний",null,7,"regular","[ˈregjələ]","регуля́рний",7,"regular","[ˈregjələ]","регуля́рний"]
[8,"believe","[bɪˈliːv]","ві́рити;  ду́мати",null,8,"believe","[bɪˈliːv]","ві́рити;  ду́мати",8,"believe","[bɪˈliːv]","ві́рити;  ду́мати"]
[9,"role","[rəul]","роль",null,9,"role","[rəul]","роль",9,"role","[rəul]","роль"]
[10,0,0,0,null,10,0,0,0,10,{"$f":"T10","v":0},0,0]
[11,{"$f":"K11","v":0},0,0,null,11,0,0,0,11]
[12,{"$f":"K12","v":0},0,0,null,12,0,0,0,12]
[13,{"$f":"K13","v":0},0,0,null,13,0,0,0,13]
[]
[1,{"$f":"B1","v":"bullying"},{"$f":"C1","v":"[ˈbulɪŋ]"},{"$f":"D1","v":"булінг, цькування"},null,1,{"$f":"B15","v":"bullying"},{"$f":"C15","v":"[ˈbulɪŋ]"},{"$f":"D15","v":"булінг, цькування"}]
[2,{"$f":"B2","v":"case"},"[keɪs]"," ви́падок",null,2,{"$f":"B16","v":"case"},"[keɪs]"," ви́падок"]
[3,"spend","[spend]","витрача́ти;прово́дити (час)",null,3,"spend","[spend]","витрача́ти;прово́дити (час)"]
[4,"over","[ˈəuvə]","по́над, бі́льше",null,4,"over","[ˈəuvə]","по́над, бі́льше"]
[5,"whose","[huːz]","чий, чия́, чиє́, чиї́",null,5,"whose","[huːz]","чий, чия́, чиє́, чиї́"]
[6,"teach","[tiːʧ]","навчати",null,6,"teach","[tiːʧ]","навчати"]
[7,"regular","[ˈregjələ]","регуля́рний",null,7,"regular","[ˈregjələ]","регуля́рний"]
[8,"believe","[bɪˈliːv]","ві́рити;  ду́мати",null,8,"believe","[bɪˈliːv]","ві́рити;  ду́мати"]
[9,"role","[rəul]","роль",null,9,"role","[rəul]","роль"]
[10,0,0,0,null,10,0,0,0]
[11,0,0,0,null,11,0,0,0]
[12,0,0,0,null,12,0,0,0]
[13,0,0,0,null,13,0,0,0]
[]
[1,{"$f":"B15","v":"bullying"},{"$f":"C15","v":"[ˈbulɪŋ]"},{"$f":"D15","v":"булінг, цькування"},null,1,{"$f":"B29","v":"bullying"},{"$f":"C29","v":"[ˈbulɪŋ]"},{"$f":"D29","v":"булінг, цькування"}]
[2,{"$f":"B16","v":"case"},"[keɪs]"," ви́падок",null,2,{"$f":"B30","v":"case"},"[keɪs]"," ви́падок"]
[3,"spend","[spend]","витрача́ти;прово́дити (час)",null,3,"spend","[spend]","витрача́ти;прово́дити (час)"]
[4,"over","[ˈəuvə]","по́над, бі́льше",null,4,"over","[ˈəuvə]","по́над, бі́льше"]
[5,"whose","[huːz]","чий, чия́, чиє́, чиї́",null,5,"whose","[huːz]","чий, чия́, чиє́, чиї́"]
[6,"teach","[tiːʧ]","навчати",null,6,"teach","[tiːʧ]","навчати"]
[7,"regular","[ˈregjələ]","регуля́рний",null,7,"regular","[ˈregjələ]","регуля́рний"]
[8,"believe","[bɪˈliːv]","ві́рити;  ду́мати",null,8,"believe","[bɪˈliːv]","ві́рити;  ду́мати"]
[9,"role","[rəul]","роль",null,9,"role","[rəul]","роль"]
[10,0,0,0,null,10,0,0,0]
[11,0,0,0,null,11,0,0,0]
[12,0,0,0,null,12,0,0,0]
[13,0,0,0,null,13,0,0,0]
[]
[1,{"$f":"B29","v":"bullying"},{"$f":"C29","v":"[ˈbulɪŋ]"},{"$f":"D29","v":"булінг, цькування"},null,1,{"$f":"B43","v":"bullying"},{"$f":"C43","v":"[ˈbulɪŋ]"},{"$f":"D43","v":"булінг, цькування"}]
[2,{"$f":"B30","v":"case"},"[keɪs]"," ви́падок",null,2,{"$f":"B44","v":"case"},"[keɪs]"," ви́падок"]
[3,"spend","[spend]","витрача́ти;прово́дити (час)",null,3,"spend","[spend]","витрача́ти;прово́дити (час)"]
[4,"over","[ˈəuvə]","по́над, бі́льше",null,4,"over","[ˈəuvə]","по́над, бі́льше"]
[5,"whose","[huːz]","чий, чия́, чиє́, чиї́",null,5,"whose","[huːz]","чий, чия́, чиє́, чиї́"]
[6,"teach","[tiːʧ]","навчати",null,6,"teach","[tiːʧ]","навчати"]
[7,"regular","[ˈregjələ]","регуля́рний",null,7,"regular","[ˈregjələ]","регуля́рний"]
[8,"believe","[bɪˈliːv]","ві́рити;  ду́мати",null,8,"believe","[bɪˈliːv]","ві́рити;  ду́мати"]
[9,"role","[rəul]","роль",null,9,"role","[rəul]","роль"]
[10,0,0,0,null,10,0,0,0]
[11,0,0,0,null,11,0,0,0]
[12,0,0,0,null,12,0,0,0]
[13,0,0,0,null,13,0,0,0]

{"sheet":"Сам (7)","index":11,"n_rows":52,"n_cols":21,"rows_kept":52,"cut":false,"hidden":false,"merged":[]}
["Name_________________________   Form 7   Date_______",null,null,null,null,"Name_________________________   Form 7   Date_______",null,null,null,"Name_________________________   Form 7   Date_______",null,null,null,"Name_________________________   Form 7   Date_______"]
[]
[null,{"$f":"S3","v":0},1,{"$f":"V3","v":0},null,null,{"$f":"S3","v":0},1,{"$f":"V3","v":0},{"$f":"S16","v":"bullying"},null,null,null,{"$f":"J3","v":"bullying"},null,null,null,null,null,null,1]
[null,0,2,0,null,null,{"$f":"S4","v":0},2,{"$f":"V4","v":0},{"$f":"S17","v":"case"},null,null,null,{"$f":"J4","v":"case"},null,null,null,null,null,null,2]
[null,0,3,0,null,null,0,3,0,"spend",null,null,null,"spend",null,null,null,null,null,null,3]
[null,0,4,0,null,null,0,4,0,"over",null,null,null,"over",null,null,null,null,null,null,4]
[null,0,5,0,null,null,0,5,0,"whose",null,null,null,"whose",null,null,null,null,null,null,5]
[null,0,6,0,null,null,0,6,0,"teach",null,null,null,"teach",null,null,null,null,null,null,6]
[null,0,7,0,null,null,0,7,0,"regular",null,null,null,"regular",null,null,null,null,null,null,7]
[null,0,8,0,null,null,0,8,0,"believe",null,null,null,"believe",null,null,null,null,null,null,8]
[null,0,9,0,null,null,0,9,0,"role",null,null,null,"role",null,null,null,null,null,null,9]
[null,0,10,0,null,null,0,10,0,0,null,null,null,0,null,null,null,null,null,null,10]
[null,0,11,0,null,null,0,11,0,0,null,null,null,0,null,null,null,null,null,null,11]
[]
["Name_________________________   Form 7   Date_______",null,null,null,null,"Name_________________________   Form 7   Date_______",null,null,null,"Name_________________________   Form 7   Date_______",null,null,null,"Name_________________________   Form 7   Date_______"]
[null,null,null,null,null,null,null,null,null,null,null,null,null,null,null,null,null,null,"bullying"]
[null,{"$f":"S3","v":0},1,{"$f":"V3","v":0},null,null,{"$f":"B17","v":0},1,{"$f":"D17","v":0},{"$f":"J3","v":"bullying"},null,null,null,{"$f":"J17","v":"bullying"},null,null,null,null,"case"]
[null,{"$f":"S4","v":0},2,{"$f":"V4","v":0},null,null,{"$f":"B18","v":0},2,{"$f":"D18","v":0},{"$f":"J4","v":"case"},null,null,null,{"$f":"J18","v":"case"},null,null,null,null,"spend"]
[null,0,3,0,null,null,0,3,0,"spend",null,null,null,"spend",null,null,null,null,"over"]
[null,0,4,0,null,null,0,4,0,"over",null,null,null,"over",null,null,null,null,"whose"]
[null,0,5,0,null,null,0,5,0,"whose",null,null,null,"whose",null,null,null,null,"teach"]
[null,0,6,0,null,null,0,6,0,"teach",null,null,null,"teach",null,null,null,null,"regular"]
[null,0,7,0,null,null,0,7,0,"regular",null,null,null,"regular",null,null,null,null,"believe"]
[null,0,8,0,null,null,0,8,0,"believe",null,null,null,"believe",null,null,null,null,"role"]
[null,0,9,0,null,null,0,9,0,"role",null,null,null,"role"]
[null,0,10,0,null,null,0,10,0,0,null,null,null,0]
[null,0,11,0,null,null,0,11,0,0,null,null,null,0]
[]
["Name_________________________   Form 7   Date_______",null,null,null,null,"Name_________________________   Form 7   Date_______",null,null,null,"Name_________________________   Form 7   Date_______",null,null,null,"Name_________________________   Form 7   Date_______"]
[]
[null,{"$f":"B17","v":0},1,{"$f":"D17","v":0},null,null,{"$f":"B31","v":0},1,{"$f":"D31","v":0},{"$f":"J17","v":"bullying"},null,null,null,{"$f":"J31","v":"bullying"}]
[null,{"$f":"B18","v":0},2,{"$f":"D18","v":0},null,null,{"$f":"B32","v":0},2,{"$f":"D32","v":0},{"$f":"J18","v":"case"},null,null,null,{"$f":"J32","v":"case"}]
[null,0,3,0,null,null,0,3,0,"spend",null,null,null,"spend"]
[null,0,4,0,null,null,0,4,0,"over",null,null,null,"over"]
[null,0,5,0,null,null,0,5,0,"whose",null,null,null,"whose"]
[null,0,6,0,null,null,0,6,0,"teach",null,null,null,"teach"]
[null,0,7,0,null,null,0,7,0,"regular",null,null,null,"regular"]
[null,0,8,0,null,null,0,8,0,"believe",null,null,null,"believe"]
[null,0,9,0,null,null,0,9,0,"role",null,null,null,"role"]
[null,0,10,0,null,null,0,10,0,0,null,null,null,0]
[null,0,11,0,null,null,0,11,0,0,null,null,null,0]
[]
["Name_________________________   Form 7   Date_______",null,null,null,null,null,null,null,null,"Name_________________________   Form 7   Date_______"]
[]
[null,{"$f":"B31","v":0},1,{"$f":"D31","v":0},null,null,{"$f":"B39","v":0},9,{"$f":"D39","v":0},{"$f":"J31","v":"bullying"},null,null,null,{"$f":"J39","v":"role"}]
[null,{"$f":"B32","v":0},2,{"$f":"D32","v":0},null,null,{"$f":"B40","v":0},10,{"$f":"D40","v":0},{"$f":"J32","v":"case"},null,null,null,{"$f":"J40","v":0}]
[null,0,3,0,null,null,{"$f":"B41","v":0},11,{"$f":"D41","v":0},"spend",null,null,null,{"$f":"J41","v":0}]
[null,0,4,0,null,null,null,null,null,"over"]
[null,0,5,0,null,null,null,null,null,"whose"]
[null,0,6,0,null,null,null,null,null,"teach"]
[null,{"$f":"B37","v":0},7,{"$f":"D37","v":0},null,null,null,null,null,{"$f":"J37","v":"regular"}]
[null,{"$f":"B38","v":0},8,{"$f":"D38","v":0},null,null,null,null,null,{"$f":"J38","v":"believe"}]

{"sheet":"1 (4)","index":12,"n_rows":55,"n_cols":14,"rows_kept":55,"cut":false,"hidden":false,"merged":[]}
[{"$f":"J1","v":1},{"$f":"K1","v":"subject"},{"$f":"L1","v":"[ˈsʌbʤekt]"},{"$f":"M1","v":"(шкільний) предме́т "},null,{"$f":"A1","v":1},{"$f":"B1","v":"subject"},{"$f":"C1","v":"[ˈsʌbʤekt]"},{"$f":"D1","v":"(шкільний) предме́т "},1,"subject","[ˈsʌbʤekt]","(шкільний) предме́т "]
[{"$f":"J2","v":2},"Information","[ˌɪnfəˈmeɪʃ(ə)n]","нформа́ція",null,{"$f":"A2","v":2},"Information","[ˌɪnfəˈmeɪʃ(ə)n]","нформа́ція",2,"Information","[ˌɪnfəˈmeɪʃ(ə)n]","нформа́ція"]
[3,"Technology","[tekˈnɔləʤɪ]","технологія",null,3,"Technology","[tekˈnɔləʤɪ]","технологія",3,"Technology","[tekˈnɔləʤɪ]","технологія"]
[4,"great","[greɪt]","чудо́вий; вели́кий",null,4,"great","[greɪt]","чудо́вий; вели́кий",4,"great","[greɪt]","чудо́вий; вели́кий"]
[5,"fair","[fɛə]","біля́вий, справедли́вий, га́рний",null,5,"fair","[fɛə]","біля́вий, справедли́вий, га́рний",5,"fair","[fɛə]","біля́вий, справедли́вий, га́рний"]
[6,"laugh","[lɑːf]","сміх, смія́тися",null,6,"laugh","[lɑːf]","сміх, смія́тися",6,"laugh","[lɑːf]","сміх, смія́тися"]
[7,"screen","[skriːn]","екра́н",null,7,"screen","[skriːn]","екра́н",7,"screen","[skriːn]","екра́н"]
[8,"young","[jʌŋ]","молоди́й",null,8,"young","[jʌŋ]","молоди́й",8,"young","[jʌŋ]","молоди́й"]
[9,"always","[ˈɔːlweɪz]","за́вжди́",null,9,"always","[ˈɔːlweɪz]","за́вжди́",9,"always","[ˈɔːlweɪz]","за́вжди́","за́вжди́"]
[10,0,0,0,null,10,0,0,0,10]
[11,{"$f":"K11","v":0},0,0,null,11,0,0,null,11]
[12,{"$f":"K12","v":0},0,0,null,12,0,0,0,12]
[13,{"$f":"K13","v":0},0,0,null,13,0,0,0,13]
[]
[1,{"$f":"B1","v":"subject"},{"$f":"C1","v":"[ˈsʌbʤekt]"},{"$f":"D1","v":"(шкільний) предме́т "},null,1,{"$f":"B15","v":"subject"},{"$f":"C15","v":"[ˈsʌbʤekt]"},{"$f":"D15","v":"(шкільний) предме́т "}]
[2,{"$f":"B2","v":"Information"},"[ˌɪnfəˈmeɪʃ(ə)n]","нформа́ція",null,2,{"$f":"B16","v":"Information"},"[ˌɪnfəˈmeɪʃ(ə)n]","нформа́ція"]
[3,"Technology","[tekˈnɔləʤɪ]","технологія",null,3,"Technology","[tekˈnɔləʤɪ]","технологія"]
[4,"great","[greɪt]","чудо́вий; вели́кий",null,4,"great","[greɪt]","чудо́вий; вели́кий"]
[5,"fair","[fɛə]","біля́вий, справедли́вий, га́рний",null,5,"fair","[fɛə]","біля́вий, справедли́вий, га́рний"]
[6,"laugh","[lɑːf]","сміх, смія́тися",null,6,"laugh","[lɑːf]","сміх, смія́тися"]
[7,"screen","[skriːn]","екра́н",null,7,"screen","[skriːn]","екра́н"]
[8,"young","[jʌŋ]","молоди́й",null,8,"young","[jʌŋ]","молоди́й"]
[9,"always","[ˈɔːlweɪz]","за́вжди́",null,9,"always","[ˈɔːlweɪz]","за́вжди́"]
[10,0,0,0,null,10,0,0,0]
[11,0,0,0,null,11,0,0,0]
[12,0,0,0,null,12,0,0,0]
[13,0,0,0,null,13,0,0,0]
[]
[1,{"$f":"B15","v":"subject"},{"$f":"C15","v":"[ˈsʌbʤekt]"},{"$f":"D15","v":"(шкільний) предме́т "},null,1,{"$f":"B29","v":"subject"},{"$f":"C29","v":"[ˈsʌbʤekt]"},{"$f":"D29","v":"(шкільний) предме́т "}]
[2,{"$f":"B16","v":"Information"},"[ˌɪnfəˈmeɪʃ(ə)n]","нформа́ція",null,2,{"$f":"B30","v":"Information"},"[ˌɪnfəˈmeɪʃ(ə)n]","нформа́ція"]
[3,"Technology","[tekˈnɔləʤɪ]","технологія",null,3,"Technology","[tekˈnɔləʤɪ]","технологія"]
[4,"great","[greɪt]","чудо́вий; вели́кий",null,4,"great","[greɪt]","чудо́вий; вели́кий"]
[5,"fair","[fɛə]","біля́вий, справедли́вий, га́рний",null,5,"fair","[fɛə]","біля́вий, справедли́вий, га́рний"]
[6,"laugh","[lɑːf]","сміх, смія́тися",null,6,"laugh","[lɑːf]","сміх, смія́тися"]
[7,"screen","[skriːn]","екра́н",null,7,"screen","[skriːn]","екра́н"]
[8,"young","[jʌŋ]","молоди́й",null,8,"young","[jʌŋ]","молоди́й"]
[9,"always","[ˈɔːlweɪz]","за́вжди́",null,9,"always","[ˈɔːlweɪz]","за́вжди́"]
[10,0,0,0,null,10,0,0,0]
[11,0,0,0,null,11,0,0,0]
[12,0,0,0,null,12,0,0,0]
[13,0,0,0,null,13,0,0,0]
[]
[1,{"$f":"B29","v":"subject"},{"$f":"C29","v":"[ˈsʌbʤekt]"},{"$f":"D29","v":"(шкільний) предме́т "},null,1,{"$f":"B43","v":"subject"},{"$f":"C43","v":"[ˈsʌbʤekt]"},{"$f":"D43","v":"(шкільний) предме́т "}]
[2,{"$f":"B30","v":"Information"},"[ˌɪnfəˈmeɪʃ(ə)n]","нформа́ція",null,2,{"$f":"B44","v":"Information"},"[ˌɪnfəˈmeɪʃ(ə)n]","нформа́ція"]
[3,"Technology","[tekˈnɔləʤɪ]","технологія",null,3,"Technology","[tekˈnɔləʤɪ]","технологія"]
[4,"great","[greɪt]","чудо́вий; вели́кий",null,4,"great","[greɪt]","чудо́вий; вели́кий"]
[5,"fair","[fɛə]","біля́вий, справедли́вий, га́рний",null,5,"fair","[fɛə]","біля́вий, справедли́вий, га́рний"]
[6,"laugh","[lɑːf]","сміх, смія́тися",null,6,"laugh","[lɑːf]","сміх, смія́тися"]
[7,"screen","[skriːn]","екра́н",null,7,"screen","[skriːn]","екра́н"]
[8,"young","[jʌŋ]","молоди́й",null,8,"young","[jʌŋ]","молоди́й"]
[9,"always","[ˈɔːlweɪz]","за́вжди́",null,9,"always","[ˈɔːlweɪz]","за́вжди́"]
[10,0,0,0,null,10,0,0,0]
[11,0,0,0,null,11,0,0,0]
[12,0,0,0,null,12,0,0,0]
[13,0,0,0,null,13,0,0,0]

{"sheet":"1 (24)","index":13,"n_rows":55,"n_cols":14,"rows_kept":55,"cut":false,"hidden":false,"merged":[]}
[{"$f":"J1","v":1},{"$f":"K1","v":"subject"},{"$f":"L1","v":"сабджект"},{"$f":"M1","v":"(шкільний) предме́т "},null,{"$f":"A1","v":1},{"$f":"B1","v":"subject"},{"$f":"C1","v":"сабджект"},{"$f":"D1","v":"(шкільний) предме́т "},1,"subject","сабджект","(шкільний) предме́т "]
[{"$f":"J2","v":2},"Information","інфомейшн","нформа́ція",null,{"$f":"A2","v":2},"Information","інфомейшн","нформа́ція",2,"Information","інфомейшн","нформа́ція"]
[3,"Technology","текноледжі","технологія",null,3,"Technology","текноледжі","технологія",3,"Technology","текноледжі","технологія"]
[4,"great","ґрейт","чудо́вий; вели́кий",null,4,"great","ґрейт","чудо́вий; вели́кий",4,"great","ґрейт","чудо́вий; вели́кий"]
[5,"fair","фее","біля́вий, справедли́вий, га́рний",null,5,"fair","фее","біля́вий, справедли́вий, га́рний",5,"fair","фее","біля́вий, справедли́вий, га́рний"]
[6,"laugh","лаф","сміх, смія́тися",null,6,"laugh","лаф","сміх, смія́тися",6,"laugh","лаф","сміх, смія́тися"]
[7,"screen","скрі:н","екра́н",null,7,"screen","скрі:н","екра́н",7,"screen","скрі:н","екра́н"]
[8,"young","ян","молоди́й",null,8,"young","ян","молоди́й",8,"young","ян","молоди́й"]
[9,"always","олвейз","за́вжди́",null,9,"always","олвейз","за́вжди́",9,"always","олвейз","за́вжди́","за́вжди́"]
[10,0,0,0,null,10,0,0,0,10]
[11,{"$f":"K11","v":0},0,0,null,11,0,0,null,11]
[12,{"$f":"K12","v":0},0,0,null,12,0,0,0,12]
[13,{"$f":"K13","v":0},0,0,null,13,0,0,0,13]
[]
[1,{"$f":"B1","v":"subject"},{"$f":"C1","v":"сабджект"},{"$f":"D1","v":"(шкільний) предме́т "},null,1,{"$f":"B15","v":"subject"},{"$f":"C15","v":"сабджект"},{"$f":"D15","v":"(шкільний) предме́т "}]
[2,{"$f":"B2","v":"Information"},"інфомейшн","нформа́ція",null,2,{"$f":"B16","v":"Information"},"інфомейшн","нформа́ція"]
[3,"Technology","текноледжі","технологія",null,3,"Technology","текноледжі","технологія"]
[4,"great","ґрейт","чудо́вий; вели́кий",null,4,"great","ґрейт","чудо́вий; вели́кий"]
[5,"fair","фее","біля́вий, справедли́вий, га́рний",null,5,"fair","фее","біля́вий, справедли́вий, га́рний"]
[6,"laugh","лаф","сміх, смія́тися",null,6,"laugh","лаф","сміх, смія́тися"]
[7,"screen","скрі:н","екра́н",null,7,"screen","скрі:н","екра́н"]
[8,"young","ян","молоди́й",null,8,"young","ян","молоди́й"]
[9,"always","олвейз","за́вжди́",null,9,"always","олвейз","за́вжди́"]
[10,0,0,0,null,10,0,0,0]
[11,0,0,0,null,11,0,0,0]
[12,0,0,0,null,12,0,0,0]
[13,0,0,0,null,13,0,0,0]
[]
[1,{"$f":"B15","v":"subject"},{"$f":"C15","v":"сабджект"},{"$f":"D15","v":"(шкільний) предме́т "},null,1,{"$f":"B29","v":"subject"},{"$f":"C29","v":"сабджект"},{"$f":"D29","v":"(шкільний) предме́т "}]
[2,{"$f":"B16","v":"Information"},"інфомейшн","нформа́ція",null,2,{"$f":"B30","v":"Information"},"інфомейшн","нформа́ція"]
[3,"Technology","текноледжі","технологія",null,3,"Technology","текноледжі","технологія"]
[4,"great","ґрейт","чудо́вий; вели́кий",null,4,"great","ґрейт","чудо́вий; вели́кий"]
[5,"fair","фее","біля́вий, справедли́вий, га́рний",null,5,"fair","фее","біля́вий, справедли́вий, га́рний"]
[6,"laugh","лаф","сміх, смія́тися",null,6,"laugh","лаф","сміх, смія́тися"]
[7,"screen","скрі:н","екра́н",null,7,"screen","скрі:н","екра́н"]
[8,"young","ян","молоди́й",null,8,"young","ян","молоди́й"]
[9,"always","олвейз","за́вжди́",null,9,"always","олвейз","за́вжди́"]
[10,0,0,0,null,10,0,0,0]
[11,0,0,0,null,11,0,0,0]
[12,0,0,0,null,12,0,0,0]
[13,0,0,0,null,13,0,0,0]
[]
[1,{"$f":"B29","v":"subject"},{"$f":"C29","v":"сабджект"},{"$f":"D29","v":"(шкільний) предме́т "},null,1,{"$f":"B43","v":"subject"},{"$f":"C43","v":"сабджект"},{"$f":"D43","v":"(шкільний) предме́т "}]
[2,{"$f":"B30","v":"Information"},"інфомейшн","нформа́ція",null,2,{"$f":"B44","v":"Information"},"інфомейшн","нформа́ція"]
[3,"Technology","текноледжі","технологія",null,3,"Technology","текноледжі","технологія"]
[4,"great","ґрейт","чудо́вий; вели́кий",null,4,"great","ґрейт","чудо́вий; вели́кий"]
[5,"fair","фее","біля́вий, справедли́вий, га́рний",null,5,"fair","фее","біля́вий, справедли́вий, га́рний"]
[6,"laugh","лаф","сміх, смія́тися",null,6,"laugh","лаф","сміх, смія́тися"]
[7,"screen","скрі:н","екра́н",null,7,"screen","скрі:н","екра́н"]
[8,"young","ян","молоди́й",null,8,"young","ян","молоди́й"]
[9,"always","олвейз","за́вжди́",null,9,"always","олвейз","за́вжди́"]
[10,0,0,0,null,10,0,0,0]
[11,0,0,0,null,11,0,0,0]
[12,0,0,0,null,12,0,0,0]
[13,0,0,0,null,13,0,0,0]

{"sheet":"Сам (2)","index":14,"n_rows":54,"n_cols":27,"rows_kept":54,"cut":false,"hidden":false,"merged":[]}
["Name_________________________              Date_______",null,null,null,null,"Name_________________________              Date_______",null,null,null,"Name_________________________              Date_______",null,null,null,"Name_________________________              Date_______"]
[]
[null,{"$f":"S3","v":"always"},1,{"$f":"V3","v":"чудо́вий; вели́кий"},null,null,{"$f":"S3","v":"always"},1,{"$f":"V3","v":"чудо́вий; вели́кий"},{"$f":"S16","v":"always"},null,null,null,{"$f":"J3","v":"always"},null,null,null,null,"always",null,1,"чудо́вий; вели́кий",null,null,"after that",null,"потребувати"]
[null,"fair",2,"технологія",null,null,{"$f":"S4","v":"fair"},2,{"$f":"V4","v":"технологія"},{"$f":"S17","v":"young"},null,null,null,{"$f":"J4","v":"young"},null,null,null,null,"fair",null,2,"технологія",null,null,"put","[put]","потім"]
[null,"great",3,"сміх, смія́тися",null,null,"great",3,"сміх, смія́тися","Technology",null,null,null,"Technology",null,null,null,null,"great",null,3,"сміх, смія́тися",null,null,"serve","[sɜːv]","подавати (на стіл)"]
[null,"Information",4,"нформа́ція",null,null,"Information",4,"нформа́ція","subject",null,null,null,"subject",null,null,null,null,"Information",null,4,"нформа́ція",null,null,"pancake","[ˈpænkeɪk]","після цього"]
[null,"laugh",5,"молоди́й",null,null,"laugh",5,"молоди́й","screen",null,null,null,"screen",null,null,null,null,"laugh",null,5,"молоди́й",null,null,"need","[niːd]","нарешті"]
[null,"screen",6,"за́вжди́",null,null,"screen",6,"за́вжди́","laugh",null,null,null,"laugh",null,null,null,null,"screen",null,6,"за́вжди́","за́вжди́",null,"finally","[ˈfaɪn(ə)lɪ]","млинці, оладки"]
[null,"subject",7,"екра́н",null,null,"subject",7,"екра́н","Information",null,null,null,"Information",null,null,null,null,"subject",null,7,"екра́н",null,null,"then","[ðen]","класти"]
[null,"Technology",8,"біля́вий, справедли́вий, га́рний",null,null,"Technology",8,"біля́вий, справедли́вий, га́рний","great",null,null,null,"great",null,null,null,null,"Technology",null,8,"біля́вий, справедли́вий, га́рний",null,null,"add","[æd]","додавати"]
[null,"young",9,"(шкільний) предме́т ",null,null,"young",9,"(шкільний) предме́т ","fair",null,null,null,"fair",null,null,null,null,"young",null,9,"(шкільний) предме́т ",null,null,"flour","[ˈflauə]","борошно"]
[null,0,10,0,null,null,0,10,0,0,null,null,null,0]
[null,0,11,0,null,null,0,11,0,0,null,null,null,0]
[]
["Name_________________________              Date_______",null,null,null,null,"Name_________________________              Date_______",null,null,null,"Name_________________________              Date_______",null,null,null,"Name_________________________              Date_______"]
[null,null,null,null,null,null,null,null,null,null,null,null,null,null,null,null,null,null,"always"]
[null,{"$f":"S3","v":"always"},1,{"$f":"V3","v":"чудо́вий; вели́кий"},null,null,{"$f":"B17","v":"always"},1,{"$f":"D17","v":"чудо́вий; вели́кий"},{"$f":"J3","v":"always"},null,null,null,{"$f":"J17","v":"always"},null,null,null,null,"young"]
[null,{"$f":"S4","v":"fair"},2,{"$f":"V4","v":"технологія"},null,null,{"$f":"B18","v":"fair"},2,{"$f":"D18","v":"технологія"},{"$f":"J4","v":"young"},null,null,null,{"$f":"J18","v":"young"},null,null,null,null,"Technology"]
[null,"great",3,"сміх, смія́тися",null,null,"great",3,"сміх, смія́тися","Technology",null,null,null,"Technology",null,null,null,null,"subject"]
[null,"Information",4,"нформа́ція",null,null,"Information",4,"нформа́ція","subject",null,null,null,"subject",null,null,null,null,"screen",null,null,null,null,null,null,"always"]
[null,"laugh",5,"молоди́й",null,null,"laugh",5,"молоди́й","screen",null,null,null,"screen",null,null,null,null,"laugh",null,null,"чудо́вий; вели́кий",null,null,null,"young"]
[null,"screen",6,"за́вжди́",null,null,"screen",6,"за́вжди́","laugh",null,null,null,"laugh",null,null,null,null,"Information",null,null,"технологія",null,null,null,"Technology"]
[null,"subject",7,"екра́н",null,null,"subject",7,"екра́н","Information",null,null,null,"Information",null,null,null,null,"great",null,null,"сміх, смія́тися",null,null,null,"subject"]
[null,"Technology",8,"біля́вий, справедли́вий, га́рний",null,null,"Technology",8,"біля́вий, справедли́вий, га́рний","great",null,null,null,"great",null,null,null,null,"fair",null,null,"нформа́ція",null,null,null,"screen"]
[null,"young",9,"(шкільний) предме́т ",null,null,"young",9,"(шкільний) предме́т ","fair",null,null,null,"fair",null,null,null,null,null,null,null,"молоди́й",null,null,null,"laugh"]
[null,0,10,0,null,null,0,10,0,0,null,null,null,0,null,null,null,null,null,null,null,"за́вжди́","за́вжди́",null,null,"Information"]
[null,0,11,0,null,null,0,11,0,0,null,null,null,0,null,null,null,null,null,null,null,"екра́н",null,null,null,"great"]
[null,null,null,null,null,null,null,null,null,null,null,null,null,null,null,null,null,null,null,null,null,"біля́вий, справедли́вий, га́рний",null,null,null,"fair"]
["Name_________________________              Date_______",null,null,null,null,"Name_________________________              Date_______",null,null,null,"Name_________________________              Date_______",null,null,null,"Name_________________________              Date_______",null,null,null,null,null,null,null,"(шкільний) предме́т "]
[]
[null,{"$f":"B17","v":"always"},1,{"$f":"D17","v":"чудо́вий; вели́кий"},null,null,{"$f":"B31","v":"always"},1,{"$f":"D31","v":"чудо́вий; вели́кий"},{"$f":"J17","v":"always"},null,null,null,{"$f":"J31","v":"always"}]
[null,{"$f":"B18","v":"fair"},2,{"$f":"D18","v":"технологія"},null,null,{"$f":"B32","v":"fair"},2,{"$f":"D32","v":"технологія"},{"$f":"J18","v":"young"},null,null,null,{"$f":"J32","v":"young"}]
[null,"great",3,"сміх, смія́тися",null,null,"great",3,"сміх, смія́тися","Technology",null,null,null,"Technology"]
[null,"Information",4,"нформа́ція",null,null,"Information",4,"нформа́ція","subject",null,null,null,"subject"]
[null,"laugh",5,"молоди́й",null,null,"laugh",5,"молоди́й","screen",null,null,null,"screen"]
[null,"screen",6,"за́вжди́",null,null,"screen",6,"за́вжди́","laugh",null,null,null,"laugh"]
[null,"subject",7,"екра́н",null,null,"subject",7,"екра́н","Information",null,null,null,"Information"]
[null,"Technology",8,"біля́вий, справедли́вий, га́рний",null,null,"Technology",8,"біля́вий, справедли́вий, га́рний","great",null,null,null,"great"]
[null,"young",9,"(шкільний) предме́т ",null,null,"young",9,"(шкільний) предме́т ","fair",null,null,null,"fair"]
[null,0,10,0,null,null,0,10,0,0,null,null,null,0]
[null,0,11,0,null,null,0,11,0,0,null,null,null,0]
[]
["Name_________________________              Date_______",null,null,null,null,null,null,null,null,"Name_________________________              Date_______",null,null,null,"Name_________________________              Date_______"]
[]
[null,{"$f":"B31","v":"always"},1,{"$f":"D31","v":"чудо́вий; вели́кий"},null,null,{"$f":"B39","v":"young"},9,{"$f":"D39","v":"(шкільний) предме́т "},{"$f":"J31","v":"always"},null,null,null,{"$f":"J39","v":"fair"}]
[null,{"$f":"B32","v":"fair"},2,{"$f":"D32","v":"технологія"},null,null,{"$f":"B40","v":0},10,{"$f":"D40","v":0},{"$f":"J32","v":"young"},null,null,null,{"$f":"J40","v":0}]
[null,"great",3,"сміх, смія́тися",null,null,{"$f":"B41","v":0},11,{"$f":"D41","v":0},"Technology",null,null,null,{"$f":"J41","v":0}]
[null,"Information",4,"нформа́ція",null,null,null,null,null,"subject"]
[null,"laugh",5,"молоди́й",null,null,null,null,null,"screen"]
[null,"screen",6,"за́вжди́",null,null,null,null,null,"laugh"]
[null,{"$f":"B37","v":"subject"},7,{"$f":"D37","v":"екра́н"},null,null,null,null,null,{"$f":"J37","v":"Information"}]
[null,{"$f":"B38","v":"Technology"},8,{"$f":"D38","v":"біля́вий, справедли́вий, га́рний"},null,null,null,null,null,{"$f":"J38","v":"great"}]
[]
[null,7]

{"sheet":"1 (25)","index":15,"n_rows":55,"n_cols":13,"rows_kept":55,"cut":false,"hidden":false,"merged":[]}
[{"$f":"J1","v":1},{"$f":"K1","v":"mean"},{"$f":"L1","v":"міін"},{"$f":"M1","v":"означа́ти"},null,{"$f":"A1","v":1},{"$f":"B1","v":"mean"},{"$f":"C1","v":"міін"},{"$f":"D1","v":"означа́ти"},1,"mean","міін","означа́ти"]
[{"$f":"J2","v":2},"boarding school","боодін creek","шко́ла-інтерна́т",null,{"$f":"A2","v":2},"boarding school","боодін creek","шко́ла-інтерна́т",2,"boarding school","боодін creek","шко́ла-інтерна́т"]
[3,"choose","чууз","вибира́ти",null,3,"choose","чууз","вибира́ти",3,"choose","чууз","вибира́ти"]
[4,"sound","саунд","звук; звучати",null,4,"sound","саунд","звук; звучати",4,"sound","саунд","звук; звучати"]
[5,"around","ераунд","всю́ди, скрізь, навкруги́",null,5,"around","ераунд","всю́ди, скрізь, навкруги́",5,"around","ераунд","всю́ди, скрізь, навкруги́"]
[6,"spacious","[ˈspeɪʃəs]","широ́кий, просто́рий;",null,6,"spacious","[ˈspeɪʃəs]","широ́кий, просто́рий;",6,"spacious","[ˈspeɪʃəs]","широ́кий, просто́рий;"]
[7,"hungry","[ˈhʌŋgrɪ]","голо́дний;",null,7,"hungry","[ˈhʌŋgrɪ]","голо́дний;",7,"hungry","[ˈhʌŋgrɪ]","голо́дний;"]
[8,"late","[leɪt]","пі́зній",null,8,"late","[leɪt]","пі́зній",8,"late","[leɪt]","пі́зній"]
[9,"get late",".","вечоріти, запізнюватися ",null,9,"get late",".","вечоріти, запізнюватися ",9,"get late",".","вечоріти, запізнюватися "]
[10,"get red",".","червоніти",null,10,"get red",".","червоніти",10,"get red",".","червоніти"]
[11,{"$f":"K11","v":"get white"},"[waɪt]","побіліти",null,11,"get white","[waɪt]","побіліти",11,"get white","[waɪt]","побіліти"]
[12,{"$f":"K12","v":0},0,0,null,12,0,0,0,12]
[13,{"$f":"K13","v":0},0,0,null,13,0,0,0,13]
[]
[1,{"$f":"B1","v":"mean"},{"$f":"C1","v":"міін"},{"$f":"D1","v":"означа́ти"},null,1,{"$f":"B15","v":"mean"},{"$f":"C15","v":"міін"},{"$f":"D15","v":"означа́ти"}]
[2,{"$f":"B2","v":"boarding school"},"боодін creek","шко́ла-інтерна́т",null,2,{"$f":"B16","v":"boarding school"},"боодін creek","шко́ла-інтерна́т"]
[3,"choose","чууз","вибира́ти",null,3,"choose","чууз","вибира́ти"]
[4,"sound","саунд","звук; звучати",null,4,"sound","саунд","звук; звучати"]
[5,"around","ераунд","всю́ди, скрізь, навкруги́",null,5,"around","ераунд","всю́ди, скрізь, навкруги́"]
[6,"spacious","[ˈspeɪʃəs]","широ́кий, просто́рий;",null,6,"spacious","[ˈspeɪʃəs]","широ́кий, просто́рий;"]
[7,"hungry","[ˈhʌŋgrɪ]","голо́дний;",null,7,"hungry","[ˈhʌŋgrɪ]","голо́дний;"]
[8,"late","[leɪt]","пі́зній",null,8,"late","[leɪt]","пі́зній"]
[9,"get late",".","вечоріти, запізнюватися ",null,9,"get late",".","вечоріти, запізнюватися "]
[10,"get red",".","червоніти",null,10,"get red",".","червоніти"]
[11,"get white","[waɪt]","побіліти",null,11,"get white","[waɪt]","побіліти"]
[12,0,0,0,null,12,0,0,0]
[13,0,0,0,null,13,0,0,0]
[]
[1,{"$f":"B15","v":"mean"},{"$f":"C15","v":"міін"},{"$f":"D15","v":"означа́ти"},null,1,{"$f":"B29","v":"mean"},{"$f":"C29","v":"міін"},{"$f":"D29","v":"означа́ти"}]
[2,{"$f":"B16","v":"boarding school"},"боодін creek","шко́ла-інтерна́т",null,2,{"$f":"B30","v":"boarding school"},"боодін creek","шко́ла-інтерна́т"]
[3,"choose","чууз","вибира́ти",null,3,"choose","чууз","вибира́ти"]
[4,"sound","саунд","звук; звучати",null,4,"sound","саунд","звук; звучати"]
[5,"around","ераунд","всю́ди, скрізь, навкруги́",null,5,"around","ераунд","всю́ди, скрізь, навкруги́"]
[6,"spacious","[ˈspeɪʃəs]","широ́кий, просто́рий;",null,6,"spacious","[ˈspeɪʃəs]","широ́кий, просто́рий;"]
[7,"hungry","[ˈhʌŋgrɪ]","голо́дний;",null,7,"hungry","[ˈhʌŋgrɪ]","голо́дний;"]
[8,"late","[leɪt]","пі́зній",null,8,"late","[leɪt]","пі́зній"]
[9,"get late",".","вечоріти, запізнюватися ",null,9,"get late",".","вечоріти, запізнюватися "]
[10,"get red",".","червоніти",null,10,"get red",".","червоніти"]
[11,"get white","[waɪt]","побіліти",null,11,"get white","[waɪt]","побіліти"]
[12,0,0,0,null,12,0,0,0]
[13,0,0,0,null,13,0,0,0]
[]
[1,{"$f":"B29","v":"mean"},{"$f":"C29","v":"міін"},{"$f":"D29","v":"означа́ти"},null,1,{"$f":"B43","v":"mean"},{"$f":"C43","v":"міін"},{"$f":"D43","v":"означа́ти"}]
[2,{"$f":"B30","v":"boarding school"},"боодін creek","шко́ла-інтерна́т",null,2,{"$f":"B44","v":"boarding school"},"боодін creek","шко́ла-інтерна́т"]
[3,"choose","чууз","вибира́ти",null,3,"choose","чууз","вибира́ти"]
[4,"sound","саунд","звук; звучати",null,4,"sound","саунд","звук; звучати"]
[5,"around","ераунд","всю́ди, скрізь, навкруги́",null,5,"around","ераунд","всю́ди, скрізь, навкруги́"]
[6,"spacious","[ˈspeɪʃəs]","широ́кий, просто́рий;",null,6,"spacious","[ˈspeɪʃəs]","широ́кий, просто́рий;"]
[7,"hungry","[ˈhʌŋgrɪ]","голо́дний;",null,7,"hungry","[ˈhʌŋgrɪ]","голо́дний;"]
[8,"late","[leɪt]","пі́зній",null,8,"late","[leɪt]","пі́зній"]
[9,"get late",".","вечоріти, запізнюватися ",null,9,"get late",".","вечоріти, запізнюватися "]
[10,"get red",".","червоніти",null,10,"get red",".","червоніти"]
[11,"get white","[waɪt]","побіліти",null,11,"get white","[waɪt]","побіліти"]
[12,0,0,0,null,12,0,0,0]
[13,0,0,0,null,13,0,0,0]

{"sheet":"1 (5)","index":16,"n_rows":55,"n_cols":13,"rows_kept":55,"cut":false,"hidden":false,"merged":[]}
[{"$f":"J1","v":1},{"$f":"K1","v":"mean"},{"$f":"L1","v":"[miːn]"},{"$f":"M1","v":"означа́ти"},null,{"$f":"A1","v":1},{"$f":"B1","v":"mean"},{"$f":"C1","v":"[miːn]"},{"$f":"D1","v":"означа́ти"},1,"mean","[miːn]","означа́ти"]
[{"$f":"J2","v":2},"boarding school","[ˈbɔːdɪŋ]","шко́ла-інтерна́т",null,{"$f":"A2","v":2},"boarding school","[ˈbɔːdɪŋ]","шко́ла-інтерна́т",2,"boarding school","[ˈbɔːdɪŋ]","шко́ла-інтерна́т"]
[3,"choose","[ʧuːz]","вибира́ти",null,3,"choose","[ʧuːz]","вибира́ти",3,"choose","[ʧuːz]","вибира́ти"]
[4,"sound","[saund]","звук; звучати",null,4,"sound","[saund]","звук; звучати",4,"sound","[saund]","звук; звучати"]
[5,"around","[əˈraund]","всю́ди, скрізь, навкруги́",null,5,"around","[əˈraund]","всю́ди, скрізь, навкруги́",5,"around","[əˈraund]","всю́ди, скрізь, навкруги́"]
[6,"spacious","[ˈspeɪʃəs]","широ́кий, просто́рий;",null,6,"spacious","[ˈspeɪʃəs]","широ́кий, просто́рий;",6,"spacious","[ˈspeɪʃəs]","широ́кий, просто́рий;"]
[7,"hungry","[ˈhʌŋgrɪ]","голо́дний;",null,7,"hungry","[ˈhʌŋgrɪ]","голо́дний;",7,"hungry","[ˈhʌŋgrɪ]","голо́дний;"]
[8,"late","[leɪt]","пі́зній",null,8,"late","[leɪt]","пі́зній",8,"late","[leɪt]","пі́зній"]
[9,"get late",".","вечоріти, запізнюватися ",null,9,"get late",".","вечоріти, запізнюватися ",9,"get late",".","вечоріти, запізнюватися "]
[10,"get red",".","червоніти",null,10,"get red",".","червоніти",10,"get red",".","червоніти"]
[11,{"$f":"K11","v":"get white"},"[waɪt]","побіліти",null,11,"get white","[waɪt]","побіліти",11,"get white","[waɪt]","побіліти"]
[12,{"$f":"K12","v":0},0,0,null,12,0,0,0,12]
[13,{"$f":"K13","v":0},0,0,null,13,0,0,0,13]
[]
[1,{"$f":"B1","v":"mean"},{"$f":"C1","v":"[miːn]"},{"$f":"D1","v":"означа́ти"},null,1,{"$f":"B15","v":"mean"},{"$f":"C15","v":"[miːn]"},{"$f":"D15","v":"означа́ти"}]
[2,{"$f":"B2","v":"boarding school"},"[ˈbɔːdɪŋ]","шко́ла-інтерна́т",null,2,{"$f":"B16","v":"boarding school"},"[ˈbɔːdɪŋ]","шко́ла-інтерна́т"]
[3,"choose","[ʧuːz]","вибира́ти",null,3,"choose","[ʧuːz]","вибира́ти"]
[4,"sound","[saund]","звук; звучати",null,4,"sound","[saund]","звук; звучати"]
[5,"around","[əˈraund]","всю́ди, скрізь, навкруги́",null,5,"around","[əˈraund]","всю́ди, скрізь, навкруги́"]
[6,"spacious","[ˈspeɪʃəs]","широ́кий, просто́рий;",null,6,"spacious","[ˈspeɪʃəs]","широ́кий, просто́рий;"]
[7,"hungry","[ˈhʌŋgrɪ]","голо́дний;",null,7,"hungry","[ˈhʌŋgrɪ]","голо́дний;"]
[8,"late","[leɪt]","пі́зній",null,8,"late","[leɪt]","пі́зній"]
[9,"get late",".","вечоріти, запізнюватися ",null,9,"get late",".","вечоріти, запізнюватися "]
[10,"get red",".","червоніти",null,10,"get red",".","червоніти"]
[11,"get white","[waɪt]","побіліти",null,11,"get white","[waɪt]","побіліти"]
[12,0,0,0,null,12,0,0,0]
[13,0,0,0,null,13,0,0,0]
[]
[1,{"$f":"B15","v":"mean"},{"$f":"C15","v":"[miːn]"},{"$f":"D15","v":"означа́ти"},null,1,{"$f":"B29","v":"mean"},{"$f":"C29","v":"[miːn]"},{"$f":"D29","v":"означа́ти"}]
[2,{"$f":"B16","v":"boarding school"},"[ˈbɔːdɪŋ]","шко́ла-інтерна́т",null,2,{"$f":"B30","v":"boarding school"},"[ˈbɔːdɪŋ]","шко́ла-інтерна́т"]
[3,"choose","[ʧuːz]","вибира́ти",null,3,"choose","[ʧuːz]","вибира́ти"]
[4,"sound","[saund]","звук; звучати",null,4,"sound","[saund]","звук; звучати"]
[5,"around","[əˈraund]","всю́ди, скрізь, навкруги́",null,5,"around","[əˈraund]","всю́ди, скрізь, навкруги́"]
[6,"spacious","[ˈspeɪʃəs]","широ́кий, просто́рий;",null,6,"spacious","[ˈspeɪʃəs]","широ́кий, просто́рий;"]
[7,"hungry","[ˈhʌŋgrɪ]","голо́дний;",null,7,"hungry","[ˈhʌŋgrɪ]","голо́дний;"]
[8,"late","[leɪt]","пі́зній",null,8,"late","[leɪt]","пі́зній"]
[9,"get late",".","вечоріти, запізнюватися ",null,9,"get late",".","вечоріти, запізнюватися "]
[10,"get red",".","червоніти",null,10,"get red",".","червоніти"]
[11,"get white","[waɪt]","побіліти",null,11,"get white","[waɪt]","побіліти"]
[12,0,0,0,null,12,0,0,0]
[13,0,0,0,null,13,0,0,0]
[]
[1,{"$f":"B29","v":"mean"},{"$f":"C29","v":"[miːn]"},{"$f":"D29","v":"означа́ти"},null,1,{"$f":"B43","v":"mean"},{"$f":"C43","v":"[miːn]"},{"$f":"D43","v":"означа́ти"}]
[2,{"$f":"B30","v":"boarding school"},"[ˈbɔːdɪŋ]","шко́ла-інтерна́т",null,2,{"$f":"B44","v":"boarding school"},"[ˈbɔːdɪŋ]","шко́ла-інтерна́т"]
[3,"choose","[ʧuːz]","вибира́ти",null,3,"choose","[ʧuːz]","вибира́ти"]
[4,"sound","[saund]","звук; звучати",null,4,"sound","[saund]","звук; звучати"]
[5,"around","[əˈraund]","всю́ди, скрізь, навкруги́",null,5,"around","[əˈraund]","всю́ди, скрізь, навкруги́"]
[6,"spacious","[ˈspeɪʃəs]","широ́кий, просто́рий;",null,6,"spacious","[ˈspeɪʃəs]","широ́кий, просто́рий;"]
[7,"hungry","[ˈhʌŋgrɪ]","голо́дний;",null,7,"hungry","[ˈhʌŋgrɪ]","голо́дний;"]
[8,"late","[leɪt]","пі́зній",null,8,"late","[leɪt]","пі́зній"]
[9,"get late",".","вечоріти, запізнюватися ",null,9,"get late",".","вечоріти, запізнюватися "]
[10,"get red",".","червоніти",null,10,"get red",".","червоніти"]
[11,"get white","[waɪt]","побіліти",null,11,"get white","[waɪt]","побіліти"]
[12,0,0,0,null,12,0,0,0]
[13,0,0,0,null,13,0,0,0]

{"sheet":"Сам (3)","index":17,"n_rows":54,"n_cols":26,"rows_kept":54,"cut":false,"hidden":false,"merged":[]}
["Name_________________________              Date_______",null,null,null,null,"Name_________________________              Date_______",null,null,null,"Name_________________________              Date_______",null,null,null,"Name_________________________              Date_______"]
[]
[null,{"$f":"S3","v":0},1,{"$f":"V3","v":0},null,null,{"$f":"S3","v":0},1,{"$f":"V3","v":0},{"$f":"S16","v":"keep [ki:p]"},null,null,null,{"$f":"J3","v":"keep [ki:p]"},null,null,null,null,null,null,1]
[null,0,2,0,null,null,{"$f":"S4","v":0},2,{"$f":"V4","v":0},{"$f":"S17","v":"hurt [hɜːt]"},null,null,null,{"$f":"J4","v":"hurt [hɜːt]"},null,null,null,null,null,null,2]
[null,0,3,0,null,null,0,3,0,"hide [haɪd]",null,null,null,"hide [haɪd]",null,null,null,null,null,null,3]
[null,0,4,0,null,null,0,4,0,"hear [hɪə]",null,null,null,"hear [hɪə]",null,null,null,null,null,null,4]
[null,0,5,0,null,null,0,5,0,"hang [hæŋ]",null,null,null,"hang [hæŋ]",null,null,null,null,null,null,5]
[null,0,6,0,null,null,0,6,0,"grow [grəu]",null,null,null,"grow [grəu]",null,null,null,null,null,null,6]
[null,0,7,0,null,null,0,7,0,"give [giv]",null,null,null,"give [giv]",null,null,null,null,null,null,7,null,null,null,null,"keep [ki:p]"]
[null,0,8,0,null,null,0,8,0,"get [get]",null,null,null,"get [get]",null,null,null,null,null,null,8,null,null,null,null,"hurt [hɜːt]"]
[null,0,9,0,null,null,0,9,0,0,null,null,null,0,null,null,null,null,null,null,9,null,null,null,null,"hide [haɪd]"]
[null,0,10,0,null,null,0,10,0,0,null,null,null,0,null,null,null,null,null,null,null,null,null,null,null,"hear [hɪə]"]
[null,0,11,0,null,null,0,11,0,0,null,null,null,0,null,null,null,null,null,null,null,null,null,null,null,"hang [hæŋ]"]
[null,null,null,null,null,null,null,null,null,null,null,null,null,null,null,null,null,null,null,null,null,null,null,null,null,"grow [grəu]"]
["Name_________________________              Date_______",null,null,null,null,"Name_________________________              Date_______",null,null,null,"Name_________________________              Date_______",null,null,null,"Name_________________________              Date_______",null,null,null,null,null,null,null,null,null,null,null,"give [giv]"]
[null,null,null,null,null,null,null,null,null,null,null,null,null,null,null,null,null,null,"keep [ki:p]",null,null,null,null,null,null,"get [get]"]
[null,{"$f":"S3","v":0},1,{"$f":"V3","v":0},null,null,{"$f":"B17","v":0},1,{"$f":"D17","v":0},{"$f":"J3","v":"keep [ki:p]"},null,null,null,{"$f":"J17","v":"keep [ki:p]"},null,null,null,null,"hurt [hɜːt]"]
[null,{"$f":"S4","v":0},2,{"$f":"V4","v":0},null,null,{"$f":"B18","v":0},2,{"$f":"D18","v":0},{"$f":"J4","v":"hurt [hɜːt]"},null,null,null,{"$f":"J18","v":"hurt [hɜːt]"},null,null,null,null,"hide [haɪd]"]
[null,0,3,0,null,null,0,3,0,"hide [haɪd]",null,null,null,"hide [haɪd]",null,null,null,null,"hear [hɪə]"]
[null,0,4,0,null,null,0,4,0,"hear [hɪə]",null,null,null,"hear [hɪə]",null,null,null,null,"hang [hæŋ]"]
[null,0,5,0,null,null,0,5,0,"hang [hæŋ]",null,null,null,"hang [hæŋ]",null,null,null,null,"grow [grəu]"]
[null,0,6,0,null,null,0,6,0,"grow [grəu]",null,null,null,"grow [grəu]",null,null,null,null,"give [giv]"]
[null,0,7,0,null,null,0,7,0,"give [giv]",null,null,null,"give [giv]",null,null,null,null,"get [get]"]
[null,0,8,0,null,null,0,8,0,"get [get]",null,null,null,"get [get]"]
[null,0,9,0,null,null,0,9,0,0,null,null,null,0]
[null,0,10,0,null,null,0,10,0,0,null,null,null,0]
[null,0,11,0,null,null,0,11,0,0,null,null,null,0]
[]
["Name_________________________              Date_______",null,null,null,null,"Name_________________________              Date_______",null,null,null,"Name_________________________              Date_______",null,null,null,"Name_________________________              Date_______"]
[]
[null,{"$f":"B17","v":0},1,{"$f":"D17","v":0},null,null,{"$f":"B31","v":0},1,{"$f":"D31","v":0},{"$f":"J17","v":"keep [ki:p]"},null,null,null,{"$f":"J31","v":"keep [ki:p]"}]
[null,{"$f":"B18","v":0},2,{"$f":"D18","v":0},null,null,{"$f":"B32","v":0},2,{"$f":"D32","v":0},{"$f":"J18","v":"hurt [hɜːt]"},null,null,null,{"$f":"J32","v":"hurt [hɜːt]"}]
[null,0,3,0,null,null,0,3,0,"hide [haɪd]",null,null,null,"hide [haɪd]"]
[null,0,4,0,null,null,0,4,0,"hear [hɪə]",null,null,null,"hear [hɪə]"]
[null,0,5,0,null,null,0,5,0,"hang [hæŋ]",null,null,null,"hang [hæŋ]"]
[null,0,6,0,null,null,0,6,0,"grow [grəu]",null,null,null,"grow [grəu]"]
[null,0,7,0,null,null,0,7,0,"give [giv]",null,null,null,"give [giv]"]
[null,0,8,0,null,null,0,8,0,"get [get]",null,null,null,"get [get]"]
[null,0,9,0,null,null,0,9,0,0,null,null,null,0]
[null,0,10,0,null,null,0,10,0,0,null,null,null,0]
[null,0,11,0,null,null,0,11,0,0,null,null,null,0]
[]
["Name_________________________              Date_______",null,null,null,null,null,null,null,null,"Name_________________________              Date_______",null,null,null,"Name_________________________              Date_______"]
[]
[null,{"$f":"B31","v":0},1,{"$f":"D31","v":0},null,null,{"$f":"B39","v":0},9,{"$f":"D39","v":0},{"$f":"J31","v":"keep [ki:p]"},null,null,null,{"$f":"J39","v":0}]
[null,{"$f":"B32","v":0},2,{"$f":"D32","v":0},null,null,{"$f":"B40","v":0},10,{"$f":"D40","v":0},{"$f":"J32","v":"hurt [hɜːt]"},null,null,null,{"$f":"J40","v":0}]
[null,0,3,0,null,null,{"$f":"B41","v":0},11,{"$f":"D41","v":0},"hide [haɪd]",null,null,null,{"$f":"J41","v":0}]
[null,0,4,0,null,null,null,null,null,"hear [hɪə]"]
[null,0,5,0,null,null,null,null,null,"hang [hæŋ]"]
[null,0,6,0,null,null,null,null,null,"grow [grəu]"]
[null,{"$f":"B37","v":0},7,{"$f":"D37","v":0},null,null,null,null,null,{"$f":"J37","v":"give [giv]"}]
[null,{"$f":"B38","v":0},8,{"$f":"D38","v":0},null,null,null,null,null,{"$f":"J38","v":"get [get]"}]
[]
[null,7]

{"sheet":"1 (6)","index":18,"n_rows":55,"n_cols":13,"rows_kept":55,"cut":false,"hidden":false,"merged":[]}
[{"$f":"J1","v":1},{"$f":"K1","v":"pot"},{"$f":"L1","v":"[pɒt]"},{"$f":"M1","v":"го́рщик; казано́к; ба́нка"},null,{"$f":"A1","v":1},{"$f":"B1","v":"pot"},{"$f":"C1","v":"[pɒt]"},{"$f":"D1","v":"го́рщик; казано́к; ба́нка"},1,"pot","[pɒt]","го́рщик; казано́к; ба́нка"]
[{"$f":"J2","v":2},"to fry ","[fraɪ]","сма́жити(ся)",null,{"$f":"A2","v":2},"to fry ","[fraɪ]","сма́жити(ся)",2,"to fry ","[fraɪ]","сма́жити(ся)"]
[3,"to pour","[pɔː]","ли́ти(ся), полити",null,3,"to pour","[pɔː]","ли́ти(ся), полити",3,"to pour","[pɔː]","ли́ти(ся), полити"]
[4,"kettle","[ˈketl]","казано́к; ча́йник",null,4,"kettle","[ˈketl]","казано́к; ча́йник",4,"kettle","[ˈketl]","казано́к; ча́йник"]
[5,"teapot","[ˈtiːpɔt]","чайник (для заварки)",null,5,"teapot","[ˈtiːpɔt]","чайник (для заварки)",5,"teapot","[ˈtiːpɔt]","чайник (для заварки)"]
[6,"tablecloth","[ˈteɪb(ə)lklɒθ]","ска́терка",null,6,"tablecloth","[ˈteɪb(ə)lklɒθ]","ска́терка",6,"tablecloth","[ˈteɪb(ə)lklɒθ]","ска́терка"]
[7,"pan","[pæn]","сковорода́; кастру́ля",null,7,"pan","[pæn]","сковорода́; кастру́ля",7,"pan","[pæn]","сковорода́; кастру́ля"]
[8,"to boil ","[bɔɪl]","кип'яти́ти(ся); вари́ти(ся)",null,8,"to boil ","[bɔɪl]","кип'яти́ти(ся); вари́ти(ся)",8,"to boil ","[bɔɪl]","кип'яти́ти(ся); вари́ти(ся)"]
[9,"frying pan","[ˈfraɪɪŋpæn]","сковорода́",null,9,"frying pan","[ˈfraɪɪŋpæn]","сковорода́",9,"frying pan","[ˈfraɪɪŋpæn]","сковорода́"]
[10,"part","[pɑːt]","части́на; ча́стка",null,10,"part","[pɑːt]","части́на; ча́стка",10,"part","[pɑːt]","части́на; ча́стка"]
[11,{"$f":"K11","v":0},0,0,null,11,0,0,0,11]
[12,{"$f":"K12","v":0},0,0,null,12,0,0,0,12]
[13,{"$f":"K13","v":0},0,0,null,13,0,0,0,13]
[]
[1,{"$f":"B1","v":"pot"},{"$f":"C1","v":"[pɒt]"},{"$f":"D1","v":"го́рщик; казано́к; ба́нка"},null,1,{"$f":"B15","v":"pot"},{"$f":"C15","v":"[pɒt]"},{"$f":"D15","v":"го́рщик; казано́к; ба́нка"}]
[2,{"$f":"B2","v":"to fry "},"[fraɪ]","сма́жити(ся)",null,2,{"$f":"B16","v":"to fry "},"[fraɪ]","сма́жити(ся)"]
[3,"to pour","[pɔː]","ли́ти(ся), полити",null,3,"to pour","[pɔː]","ли́ти(ся), полити"]
[4,"kettle","[ˈketl]","казано́к; ча́йник",null,4,"kettle","[ˈketl]","казано́к; ча́йник"]
[5,"teapot","[ˈtiːpɔt]","чайник (для заварки)",null,5,"teapot","[ˈtiːpɔt]","чайник (для заварки)"]
[6,"tablecloth","[ˈteɪb(ə)lklɒθ]","ска́терка",null,6,"tablecloth","[ˈteɪb(ə)lklɒθ]","ска́терка"]
[7,"pan","[pæn]","сковорода́; кастру́ля",null,7,"pan","[pæn]","сковорода́; кастру́ля"]
[8,"to boil ","[bɔɪl]","кип'яти́ти(ся); вари́ти(ся)",null,8,"to boil ","[bɔɪl]","кип'яти́ти(ся); вари́ти(ся)"]
[9,"frying pan","[ˈfraɪɪŋpæn]","сковорода́",null,9,"frying pan","[ˈfraɪɪŋpæn]","сковорода́"]
[10,"part","[pɑːt]","части́на; ча́стка",null,10,"part","[pɑːt]","части́на; ча́стка"]
[11,0,0,0,null,11,0,0,0]
[12,0,0,0,null,12,0,0,0]
[13,0,0,0,null,13,0,0,0]
[]
[1,{"$f":"B15","v":"pot"},{"$f":"C15","v":"[pɒt]"},{"$f":"D15","v":"го́рщик; казано́к; ба́нка"},null,1,{"$f":"B29","v":"pot"},{"$f":"C29","v":"[pɒt]"},{"$f":"D29","v":"го́рщик; казано́к; ба́нка"}]
[2,{"$f":"B16","v":"to fry "},"[fraɪ]","сма́жити(ся)",null,2,{"$f":"B30","v":"to fry "},"[fraɪ]","сма́жити(ся)"]
[3,"to pour","[pɔː]","ли́ти(ся), полити",null,3,"to pour","[pɔː]","ли́ти(ся), полити"]
[4,"kettle","[ˈketl]","казано́к; ча́йник",null,4,"kettle","[ˈketl]","казано́к; ча́йник"]
[5,"teapot","[ˈtiːpɔt]","чайник (для заварки)",null,5,"teapot","[ˈtiːpɔt]","чайник (для заварки)"]
[6,"tablecloth","[ˈteɪb(ə)lklɒθ]","ска́терка",null,6,"tablecloth","[ˈteɪb(ə)lklɒθ]","ска́терка"]
[7,"pan","[pæn]","сковорода́; кастру́ля",null,7,"pan","[pæn]","сковорода́; кастру́ля"]
[8,"to boil ","[bɔɪl]","кип'яти́ти(ся); вари́ти(ся)",null,8,"to boil ","[bɔɪl]","кип'яти́ти(ся); вари́ти(ся)"]
[9,"frying pan","[ˈfraɪɪŋpæn]","сковорода́",null,9,"frying pan","[ˈfraɪɪŋpæn]","сковорода́"]
[10,"part","[pɑːt]","части́на; ча́стка",null,10,"part","[pɑːt]","части́на; ча́стка"]
[11,0,0,0,null,11,0,0,0]
[12,0,0,0,null,12,0,0,0]
[13,0,0,0,null,13,0,0,0]
[]
[1,{"$f":"B29","v":"pot"},{"$f":"C29","v":"[pɒt]"},{"$f":"D29","v":"го́рщик; казано́к; ба́нка"},null,1,{"$f":"B43","v":"pot"},{"$f":"C43","v":"[pɒt]"},{"$f":"D43","v":"го́рщик; казано́к; ба́нка"}]
[2,{"$f":"B30","v":"to fry "},"[fraɪ]","сма́жити(ся)",null,2,{"$f":"B44","v":"to fry "},"[fraɪ]","сма́жити(ся)"]
[3,"to pour","[pɔː]","ли́ти(ся), полити",null,3,"to pour","[pɔː]","ли́ти(ся), полити"]
[4,"kettle","[ˈketl]","казано́к; ча́йник",null,4,"kettle","[ˈketl]","казано́к; ча́йник"]
[5,"teapot","[ˈtiːpɔt]","чайник (для заварки)",null,5,"teapot","[ˈtiːpɔt]","чайник (для заварки)"]
[6,"tablecloth","[ˈteɪb(ə)lklɒθ]","ска́терка",null,6,"tablecloth","[ˈteɪb(ə)lklɒθ]","ска́терка"]
[7,"pan","[pæn]","сковорода́; кастру́ля",null,7,"pan","[pæn]","сковорода́; кастру́ля"]
[8,"to boil ","[bɔɪl]","кип'яти́ти(ся); вари́ти(ся)",null,8,"to boil ","[bɔɪl]","кип'яти́ти(ся); вари́ти(ся)"]
[9,"frying pan","[ˈfraɪɪŋpæn]","сковорода́",null,9,"frying pan","[ˈfraɪɪŋpæn]","сковорода́"]
[10,"part","[pɑːt]","части́на; ча́стка",null,10,"part","[pɑːt]","части́на; ча́стка"]
[11,0,0,0,null,11,0,0,0]
[12,0,0,0,null,12,0,0,0]
[13,0,0,0,null,13,0,0,0]

{"sheet":"Сам (9)","index":19,"n_rows":52,"n_cols":21,"rows_kept":52,"cut":false,"hidden":false,"merged":[]}
["Name_________________________   Form 7   Date_______",null,null,null,null,"Name_________________________   Form 7   Date_______",null,null,null,"Name_________________________   Form 7   Date_______",null,null,null,"Name_________________________   Form 7   Date_______"]
[]
[null,{"$f":"S3","v":0},1,{"$f":"V3","v":0},null,null,{"$f":"S3","v":0},1,{"$f":"V3","v":0},{"$f":"S16","v":0},null,null,null,{"$f":"J3","v":0},null,null,null,null,null,null,1]
[null,0,2,0,null,null,{"$f":"S4","v":0},2,{"$f":"V4","v":0},{"$f":"S17","v":0},null,null,null,{"$f":"J4","v":0},null,null,null,null,null,null,2]
[null,0,3,0,null,null,0,3,0,0,null,null,null,0,null,null,null,null,null,null,3]
[null,0,4,0,null,null,0,4,0,0,null,null,null,0,null,null,null,null,null,null,4]
[null,0,5,0,null,null,0,5,0,0,null,null,null,0,null,null,null,null,null,null,5]
[null,0,6,0,null,null,0,6,0,0,null,null,null,0,null,null,null,null,null,null,6]
[null,0,7,0,null,null,0,7,0,0,null,null,null,0,null,null,null,null,null,null,7]
[null,0,8,0,null,null,0,8,0,0,null,null,null,0,null,null,null,null,null,null,8]
[null,0,9,0,null,null,0,9,0,0,null,null,null,0,null,null,null,null,null,null,9]
[null,0,10,0,null,null,0,10,0,0,null,null,null,0,null,null,null,null,null,null,10]
[null,0,11,0,null,null,0,11,0,0,null,null,null,0,null,null,null,null,null,null,11]
[]
["Name_________________________   Form 7   Date_______",null,null,null,null,"Name_________________________   Form 7   Date_______",null,null,null,"Name_________________________   Form 7   Date_______",null,null,null,"Name_________________________   Form 7   Date_______"]
[]
[null,{"$f":"S3","v":0},1,{"$f":"V3","v":0},null,null,{"$f":"B17","v":0},1,{"$f":"D17","v":0},{"$f":"J3","v":0},null,null,null,{"$f":"J17","v":0}]
[null,{"$f":"S4","v":0},2,{"$f":"V4","v":0},null,null,{"$f":"B18","v":0},2,{"$f":"D18","v":0},{"$f":"J4","v":0},null,null,null,{"$f":"J18","v":0}]
[null,0,3,0,null,null,0,3,0,0,null,null,null,0]
[null,0,4,0,null,null,0,4,0,0,null,null,null,0]
[null,0,5,0,null,null,0,5,0,0,null,null,null,0]
[null,0,6,0,null,null,0,6,0,0,null,null,null,0]
[null,0,7,0,null,null,0,7,0,0,null,null,null,0]
[null,0,8,0,null,null,0,8,0,0,null,null,null,0]
[null,0,9,0,null,null,0,9,0,0,null,null,null,0]
[null,0,10,0,null,null,0,10,0,0,null,null,null,0]
[null,0,11,0,null,null,0,11,0,0,null,null,null,0]
[]
["Name_________________________   Form 7   Date_______",null,null,null,null,"Name_________________________   Form 7   Date_______",null,null,null,"Name_________________________   Form 7   Date_______",null,null,null,"Name_________________________   Form 7   Date_______"]
[]
[null,{"$f":"B17","v":0},1,{"$f":"D17","v":0},null,null,{"$f":"B31","v":0},1,{"$f":"D31","v":0},{"$f":"J17","v":0},null,null,null,{"$f":"J31","v":0}]
[null,{"$f":"B18","v":0},2,{"$f":"D18","v":0},null,null,{"$f":"B32","v":0},2,{"$f":"D32","v":0},{"$f":"J18","v":0},null,null,null,{"$f":"J32","v":0}]
[null,0,3,0,null,null,0,3,0,0,null,null,null,0]
[null,0,4,0,null,null,0,4,0,0,null,null,null,0]
[null,0,5,0,null,null,0,5,0,0,null,null,null,0]
[null,0,6,0,null,null,0,6,0,0,null,null,null,0]
[null,0,7,0,null,null,0,7,0,0,null,null,null,0]
[null,0,8,0,null,null,0,8,0,0,null,null,null,0]
[null,0,9,0,null,null,0,9,0,0,null,null,null,0]
[null,0,10,0,null,null,0,10,0,0,null,null,null,0]
[null,0,11,0,null,null,0,11,0,0,null,null,null,0]
[]
["Name_________________________   Form 7   Date_______",null,null,null,null,null,null,null,null,"Name_________________________   Form 7   Date_______"]
[]
[null,{"$f":"B31","v":0},1,{"$f":"D31","v":0},null,null,{"$f":"B39","v":0},9,{"$f":"D39","v":0},{"$f":"J31","v":0},null,null,null,{"$f":"J39","v":0}]
[null,{"$f":"B32","v":0},2,{"$f":"D32","v":0},null,null,{"$f":"B40","v":0},10,{"$f":"D40","v":0},{"$f":"J32","v":0},null,null,null,{"$f":"J40","v":0}]
[null,0,3,0,null,null,{"$f":"B41","v":0},11,{"$f":"D41","v":0},0,null,null,null,{"$f":"J41","v":0}]
[null,0,4,0,null,null,null,null,null,0]
[null,0,5,0,null,null,null,null,null,0]
[null,0,6,0,null,null,null,null,null,0]
[null,{"$f":"B37","v":0},7,{"$f":"D37","v":0},null,null,null,null,null,{"$f":"J37","v":0}]
[null,{"$f":"B38","v":0},8,{"$f":"D38","v":0},null,null,null,null,null,{"$f":"J38","v":0}]

{"sheet":"1 (7)","index":20,"n_rows":55,"n_cols":13,"rows_kept":55,"cut":false,"hidden":false,"merged":[]}
[{"$f":"J1","v":1},{"$f":"K1","v":"hold"},{"$f":"L1","v":"[həuld]"},{"$f":"M1","v":"тримати, утримувати"},null,{"$f":"A1","v":1},{"$f":"B1","v":"hold"},{"$f":"C1","v":"[həuld]"},{"$f":"D1","v":"тримати, утримувати"},1,"hold","[həuld]","тримати, утримувати"]
[{"$f":"J2","v":2},"chore","[ʧɔː]"," рутинна робота",null,{"$f":"A2","v":2},"chore","[ʧɔː]"," рутинна робота",2,"chore","[ʧɔː]"," рутинна робота"]
[3,"duty","[ˈdjuːtɪ]","обо́в'язок",null,3,"duty","[ˈdjuːtɪ]","обо́в'язок",3,"duty","[ˈdjuːtɪ]","обо́в'язок"]
[4,"note","[nəut]","замі́тка, нота́тка; за́писка",null,4,"note","[nəut]","замі́тка, нота́тка; за́писка",4,"note","[nəut]","замі́тка, нота́тка; за́писка"]
[5,"each","[iːʧ]","ко́жний",null,5,"each","[iːʧ]","ко́жний",5,"each","[iːʧ]","ко́жний"]
[6,"other","[ˈʌðə]","і́нший",null,6,"other","[ˈʌðə]","і́нший",6,"other","[ˈʌðə]","і́нший"]
[7,"each other","[ˈiːʧˈʌðə]","один одного",null,7,"each other","[ˈiːʧˈʌðə]","один одного",7,"each other","[ˈiːʧˈʌðə]","один одного"]
[8,"keen ","[kiːn]","захоплюватися",null,8,"keen ","[kiːn]","захоплюватися",8,"keen ","[kiːn]","захоплюватися"]
[9,"act","[ækt]","ді́яти; грати (у театрі)",null,9,"act","[ækt]","ді́яти; грати (у театрі)",9,"act","[ækt]","ді́яти; грати (у театрі)"]
[10,"learn","[lɜːn]","вчити; знати",null,10,"learn","[lɜːn]","вчити; знати",10,"learn","[lɜːn]","вчити; знати"]
[11,{"$f":"K11","v":0},0,0,null,11,0,0,0,11]
[12,{"$f":"K12","v":0},0,0,null,12,0,0,0,12]
[13,{"$f":"K13","v":0},0,0,null,13,0,0,0,13]
[]
[1,{"$f":"B1","v":"hold"},{"$f":"C1","v":"[həuld]"},{"$f":"D1","v":"тримати, утримувати"},null,1,{"$f":"B15","v":"hold"},{"$f":"C15","v":"[həuld]"},{"$f":"D15","v":"тримати, утримувати"}]
[2,{"$f":"B2","v":"chore"},"[ʧɔː]"," рутинна робота",null,2,{"$f":"B16","v":"chore"},"[ʧɔː]"," рутинна робота"]
[3,"duty","[ˈdjuːtɪ]","обо́в'язок",null,3,"duty","[ˈdjuːtɪ]","обо́в'язок"]
[4,"note","[nəut]","замі́тка, нота́тка; за́писка",null,4,"note","[nəut]","замі́тка, нота́тка; за́писка"]
[5,"each","[iːʧ]","ко́жний",null,5,"each","[iːʧ]","ко́жний"]
[6,"other","[ˈʌðə]","і́нший",null,6,"other","[ˈʌðə]","і́нший"]
[7,"each other","[ˈiːʧˈʌðə]","один одного",null,7,"each other","[ˈiːʧˈʌðə]","один одного"]
[8,"keen ","[kiːn]","захоплюватися",null,8,"keen ","[kiːn]","захоплюватися"]
[9,"act","[ækt]","ді́яти; грати (у театрі)",null,9,"act","[ækt]","ді́яти; грати (у театрі)"]
[10,"learn","[lɜːn]","вчити; знати",null,10,"learn","[lɜːn]","вчити; знати"]
[11,0,0,0,null,11,0,0,0]
[12,0,0,0,null,12,0,0,0]
[13,0,0,0,null,13,0,0,0]
[]
[1,{"$f":"B15","v":"hold"},{"$f":"C15","v":"[həuld]"},{"$f":"D15","v":"тримати, утримувати"},null,1,{"$f":"B29","v":"hold"},{"$f":"C29","v":"[həuld]"},{"$f":"D29","v":"тримати, утримувати"}]
[2,{"$f":"B16","v":"chore"},"[ʧɔː]"," рутинна робота",null,2,{"$f":"B30","v":"chore"},"[ʧɔː]"," рутинна робота"]
[3,"duty","[ˈdjuːtɪ]","обо́в'язок",null,3,"duty","[ˈdjuːtɪ]","обо́в'язок"]
[4,"note","[nəut]","замі́тка, нота́тка; за́писка",null,4,"note","[nəut]","замі́тка, нота́тка; за́писка"]
[5,"each","[iːʧ]","ко́жний",null,5,"each","[iːʧ]","ко́жний"]
[6,"other","[ˈʌðə]","і́нший",null,6,"other","[ˈʌðə]","і́нший"]
[7,"each other","[ˈiːʧˈʌðə]","один одного",null,7,"each other","[ˈiːʧˈʌðə]","один одного"]
[8,"keen ","[kiːn]","захоплюватися",null,8,"keen ","[kiːn]","захоплюватися"]
[9,"act","[ækt]","ді́яти; грати (у театрі)",null,9,"act","[ækt]","ді́яти; грати (у театрі)"]
[10,"learn","[lɜːn]","вчити; знати",null,10,"learn","[lɜːn]","вчити; знати"]
[11,0,0,0,null,11,0,0,0]
[12,0,0,0,null,12,0,0,0]
[13,0,0,0,null,13,0,0,0]
[]
[1,{"$f":"B29","v":"hold"},{"$f":"C29","v":"[həuld]"},{"$f":"D29","v":"тримати, утримувати"},null,1,{"$f":"B43","v":"hold"},{"$f":"C43","v":"[həuld]"},{"$f":"D43","v":"тримати, утримувати"}]
[2,{"$f":"B30","v":"chore"},"[ʧɔː]"," рутинна робота",null,2,{"$f":"B44","v":"chore"},"[ʧɔː]"," рутинна робота"]
[3,"duty","[ˈdjuːtɪ]","обо́в'язок",null,3,"duty","[ˈdjuːtɪ]","обо́в'язок"]
[4,"note","[nəut]","замі́тка, нота́тка; за́писка",null,4,"note","[nəut]","замі́тка, нота́тка; за́писка"]
[5,"each","[iːʧ]","ко́жний",null,5,"each","[iːʧ]","ко́жний"]
[6,"other","[ˈʌðə]","і́нший",null,6,"other","[ˈʌðə]","і́нший"]
[7,"each other","[ˈiːʧˈʌðə]","один одного",null,7,"each other","[ˈiːʧˈʌðə]","один одного"]
[8,"keen ","[kiːn]","захоплюватися",null,8,"keen ","[kiːn]","захоплюватися"]
[9,"act","[ækt]","ді́яти; грати (у театрі)",null,9,"act","[ækt]","ді́яти; грати (у театрі)"]
[10,"learn","[lɜːn]","вчити; знати",null,10,"learn","[lɜːn]","вчити; знати"]
[11,0,0,0,null,11,0,0,0]
[12,0,0,0,null,12,0,0,0]
[13,0,0,0,null,13,0,0,0]

{"sheet":"Сам (4)","index":21,"n_rows":54,"n_cols":27,"rows_kept":54,"cut":false,"hidden":false,"merged":[]}
["Name_________________________              Date_______",null,null,null,null,"Name_________________________              Date_______",null,null,null,"Name_________________________              Date_______",null,null,null,"Name_________________________              Date_______",null,null,null,null,null,null,null,null,null,null,null,null," рутинна робота"]
[null,null,null,null,null,null,null,null,null,null,null,null,null,null,null,null,null,null,null,null,null,null,null,null,"other",null,"вчити; знати"]
[null,{"$f":"S3","v":"other"},1,{"$f":"V3","v":" рутинна робота"},null,null,{"$f":"S3","v":"other"},1,{"$f":"V3","v":" рутинна робота"},{"$f":"S16","v":"act"},null,null,null,{"$f":"J3","v":"act"},null,null,null,null,"other",null,1," рутинна робота",null,null,"note",null,"ді́яти; грати (у театрі)"]
[null,"note",2,"вчити; знати",null,null,{"$f":"S4","v":"note"},2,{"$f":"V4","v":"вчити; знати"},{"$f":"S17","v":"chore"},null,null,null,{"$f":"J4","v":"chore"},null,null,null,null,"note",null,2,"вчити; знати",null,null,"learn","[put]","замі́тка, нота́тка; за́писка"]
[null,"learn",3,"ді́яти; грати (у театрі)",null,null,"learn",3,"ді́яти; грати (у театрі)","duty",null,null,null,"duty",null,null,null,null,"learn",null,3,"ді́яти; грати (у театрі)",null,null,"keen ","[sɜːv]","захоплюватися"]
[null,"keen ",4,"замі́тка, нота́тка; за́писка",null,null,"keen ",4,"замі́тка, нота́тка; за́писка","each",null,null,null,"each",null,null,null,null,"keen ",null,4,"замі́тка, нота́тка; за́писка",null,null,"hold","[ˈpænkeɪk]","і́нший"]
[null,"hold",5,"захоплюватися",null,null,"hold",5,"захоплюватися","each other",null,null,null,"each other",null,null,null,null,"hold",null,5,"захоплюватися",null,null,"each other","[niːd]","ко́жний"]
[null,"each other",6,"і́нший",null,null,"each other",6,"і́нший","hold",null,null,null,"hold",null,null,null,null,"each other",null,6,"і́нший",null,null,"each","[ˈfaɪn(ə)lɪ]","обо́в'язок"]
[null,"each",7,"ко́жний",null,null,"each",7,"ко́жний","keen ",null,null,null,"keen ",null,null,null,null,"each",null,7,"ко́жний",null,null,"duty","[ðen]","один одного"]
[null,"duty",8,"обо́в'язок",null,null,"duty",8,"обо́в'язок","learn",null,null,null,"learn",null,null,null,null,"duty",null,8,"обо́в'язок",null,null,"chore","[æd]","тримати, утримувати"]
[null,"chore",9,"один одного",null,null,"chore",9,"один одного","note",null,null,null,"note",null,null,null,null,"chore",null,9,"один одного",null,null,"act","[ˈflauə]"]
[null,"act",10,"тримати, утримувати",null,null,"act",10,"тримати, утримувати","other",null,null,null,"other",null,null,null,null,"act",null,null,"тримати, утримувати"]
[null,0,11,0,null,null,0,11,0,0,null,null,null,0]
[]
["Name_________________________              Date_______",null,null,null,null,"Name_________________________              Date_______",null,null,null,"Name_________________________              Date_______",null,null,null,"Name_________________________              Date_______"]
[null,null,null,null,null,null,null,null,null,null,null,null,null,null,null,null,null,null,"act"]
[null,{"$f":"S3","v":"other"},1,{"$f":"V3","v":" рутинна робота"},null,null,{"$f":"B17","v":"other"},1,{"$f":"D17","v":" рутинна робота"},{"$f":"J3","v":"act"},null,null,null,{"$f":"J17","v":"act"},null,null,null,null,"chore",null,null,null,null,null,"act"]
[null,{"$f":"S4","v":"note"},2,{"$f":"V4","v":"вчити; знати"},null,null,{"$f":"B18","v":"note"},2,{"$f":"D18","v":"вчити; знати"},{"$f":"J4","v":"chore"},null,null,null,{"$f":"J18","v":"chore"},null,null,null,null,"duty",null,null,null,null,null,"chore"]
[null,"learn",3,"ді́яти; грати (у театрі)",null,null,"learn",3,"ді́яти; грати (у театрі)","duty",null,null,null,"duty",null,null,null,null,"each",null,null,null,null,null,"duty"]
[null,"keen ",4,"замі́тка, нота́тка; за́писка",null,null,"keen ",4,"замі́тка, нота́тка; за́писка","each",null,null,null,"each",null,null,null,null,"each other",null,null,null,null,null,"each"]
[null,"hold",5,"захоплюватися",null,null,"hold",5,"захоплюватися","each other",null,null,null,"each other",null,null,null,null,"hold",null,null,null,null,null,"each other"]
[null,"each other",6,"і́нший",null,null,"each other",6,"і́нший","hold",null,null,null,"hold",null,null,null,null,"keen ",null,null,null,null,null,"hold"]
[null,"each",7,"ко́жний",null,null,"each",7,"ко́жний","keen ",null,null,null,"keen ",null,null,null,null,"learn",null,null,null,null,null,"keen "]
[null,"duty",8,"обо́в'язок",null,null,"duty",8,"обо́в'язок","learn",null,null,null,"learn",null,null,null,null,"note",null,null,null,null,null,"learn"]
[null,"chore",9,"один одного",null,null,"chore",9,"один одного","note",null,null,null,"note",null,null,null,null,"other",null,null,null,null,null,"note"]
[null,"act",10,"тримати, утримувати",null,null,"act",10,"тримати, утримувати","other",null,null,null,"other",null,null,null,null,null,null,null,null,null,null,"other"]
[null,0,11,0,null,null,0,11,0,0,null,null,null,0]
[]
["Name_________________________              Date_______",null,null,null,null,"Name_________________________              Date_______",null,null,null,"Name_________________________              Date_______",null,null,null,"Name_________________________              Date_______"]
[]
[null,{"$f":"B17","v":"other"},1,{"$f":"D17","v":" рутинна робота"},null,null,{"$f":"B31","v":"other"},1,{"$f":"D31","v":" рутинна робота"},{"$f":"J17","v":"act"},null,null,null,{"$f":"J31","v":"act"}]
[null,{"$f":"B18","v":"note"},2,{"$f":"D18","v":"вчити; знати"},null,null,{"$f":"B32","v":"note"},2,{"$f":"D32","v":"вчити; знати"},{"$f":"J18","v":"chore"},null,null,null,{"$f":"J32","v":"chore"}]
[null,"learn",3,"ді́яти; грати (у театрі)",null,null,"learn",3,"ді́яти; грати (у театрі)","duty",null,null,null,"duty"]
[null,"keen ",4,"замі́тка, нота́тка; за́писка",null,null,"keen ",4,"замі́тка, нота́тка; за́писка","each",null,null,null,"each"]
[null,"hold",5,"захоплюватися",null,null,"hold",5,"захоплюватися","each other",null,null,null,"each other"]
[null,"each other",6,"і́нший",null,null,"each other",6,"і́нший","hold",null,null,null,"hold"]
[null,"each",7,"ко́жний",null,null,"each",7,"ко́жний","keen ",null,null,null,"keen "]
[null,"duty",8,"обо́в'язок",null,null,"duty",8,"обо́в'язок","learn",null,null,null,"learn"]
[null,"chore",9,"один одного",null,null,"chore",9,"один одного","note",null,null,null,"note"]
[null,"act",10,"тримати, утримувати",null,null,"act",10,"тримати, утримувати","other",null,null,null,"other"]
[null,0,11,0,null,null,0,11,0,0,null,null,null,0]
[]
["Name_________________________              Date_______",null,null,null,null,null,null,null,null,"Name_________________________              Date_______",null,null,null,"Name_________________________              Date_______"]
[]
[null,{"$f":"B31","v":"other"},1,{"$f":"D31","v":" рутинна робота"},null,null,{"$f":"B39","v":"chore"},9,{"$f":"D39","v":"один одного"},{"$f":"J31","v":"act"},null,null,null,{"$f":"J39","v":"note"}]
[null,{"$f":"B32","v":"note"},2,{"$f":"D32","v":"вчити; знати"},null,null,{"$f":"B40","v":"act"},10,{"$f":"D40","v":"тримати, утримувати"},{"$f":"J32","v":"chore"},null,null,null,{"$f":"J40","v":"other"}]
[null,"learn",3,"ді́яти; грати (у театрі)",null,null,{"$f":"B41","v":0},11,{"$f":"D41","v":0},"duty",null,null,null,{"$f":"J41","v":0}]
[null,"keen ",4,"замі́тка, нота́тка; за́писка",null,null,null,null,null,"each"]
[null,"hold",5,"захоплюватися",null,null,null,null,null,"each other"]
[null,"each other",6,"і́нший",null,null,null,null,null,"hold"]
[null,{"$f":"B37","v":"each"},7,{"$f":"D37","v":"ко́жний"},null,null,null,null,null,{"$f":"J37","v":"keen "}]
[null,{"$f":"B38","v":"duty"},8,{"$f":"D38","v":"обо́в'язок"},null,null,null,null,null,{"$f":"J38","v":"learn"}]
[]
[null,7]

{"sheet":"1 (8)","index":22,"n_rows":55,"n_cols":13,"rows_kept":55,"cut":false,"hidden":false,"merged":[]}
[{"$f":"J1","v":1},{"$f":"K1","v":"full"},{"$f":"L1","v":"[fʊl]"},{"$f":"M1","v":"по́вний"},null,{"$f":"A1","v":1},{"$f":"B1","v":"full"},{"$f":"C1","v":"[fʊl]"},{"$f":"D1","v":"по́вний"},1,"full","[fʊl]","по́вний"]
[{"$f":"J2","v":2},"wheel","[wiːl]","ко́лесо",null,{"$f":"A2","v":2},"wheel","[wiːl]","ко́лесо",2,"wheel","[wiːl]","ко́лесо"]
[3,"inside","[ˈɪnsaɪd]","всере́дині",null,3,"inside","[ˈɪnsaɪd]","всере́дині",3,"inside","[ˈɪnsaɪd]","всере́дині"]
[4,"noise","[nɔɪz]","шум; го́мін, га́мір, га́лас",null,4,"noise","[nɔɪz]","шум; го́мін, га́мір, га́лас",4,"noise","[nɔɪz]","шум; го́мін, га́мір, га́лас"]
[5,"playground","[ˈpleɪgraund]","майда́нчик для гри; спортмайда́нчик",null,5,"playground","[ˈpleɪgraund]","майда́нчик для гри; спортмайда́нчик",5,"playground","[ˈpleɪgraund]","майда́нчик для гри; спортмайда́нчик"]
[6,"during","[ˈdjuərɪŋ]","про́тягом, під час",null,6,"during","[ˈdjuərɪŋ]","про́тягом, під час",6,"during","[ˈdjuərɪŋ]","про́тягом, під час"]
[7,"bring","[brɪŋ]","прино́сити, приво́дити;",null,7,"bring","[brɪŋ]","прино́сити, приво́дити;",7,"bring","[brɪŋ]","прино́сити, приво́дити;"]
[8,"leave"," [liːv]","покида́ти; від'їжджа́ти, ",null,8,"leave"," [liːv]","покида́ти; від'їжджа́ти, ",8,"leave"," [liːv]","покида́ти; від'їжджа́ти, "]
[9,"switch on/off","[swɪʧ]","вмикати/вимикати",null,9,"switch on/off","[swɪʧ]","вмикати/вимикати",9,"switch on/off","[swɪʧ]","вмикати/вимикати"]
[10,"wear","[wɛə]","носи́ти (одяг тощо)",null,10,"wear","[wɛə]","носи́ти (одяг тощо)",10,"wear","[wɛə]","носи́ти (одяг тощо)"]
[11,{"$f":"K11","v":0},0,0,null,11,0,0,0,11]
[12,{"$f":"K12","v":0},0,0,null,12,0,0,0,12]
[13,{"$f":"K13","v":0},0,0,null,13,0,0,0,13]
[]
[1,{"$f":"B1","v":"full"},{"$f":"C1","v":"[fʊl]"},{"$f":"D1","v":"по́вний"},null,1,{"$f":"B15","v":"full"},{"$f":"C15","v":"[fʊl]"},{"$f":"D15","v":"по́вний"}]
[2,{"$f":"B2","v":"wheel"},"[wiːl]","ко́лесо",null,2,{"$f":"B16","v":"wheel"},"[wiːl]","ко́лесо"]
[3,"inside","[ˈɪnsaɪd]","всере́дині",null,3,"inside","[ˈɪnsaɪd]","всере́дині"]
[4,"noise","[nɔɪz]","шум; го́мін, га́мір, га́лас",null,4,"noise","[nɔɪz]","шум; го́мін, га́мір, га́лас"]
[5,"playground","[ˈpleɪgraund]","майда́нчик для гри; спортмайда́нчик",null,5,"playground","[ˈpleɪgraund]","майда́нчик для гри; спортмайда́нчик"]
[6,"during","[ˈdjuərɪŋ]","про́тягом, під час",null,6,"during","[ˈdjuərɪŋ]","про́тягом, під час"]
[7,"bring","[brɪŋ]","прино́сити, приво́дити;",null,7,"bring","[brɪŋ]","прино́сити, приво́дити;"]
[8,"leave"," [liːv]","покида́ти; від'їжджа́ти, ",null,8,"leave"," [liːv]","покида́ти; від'їжджа́ти, "]
[9,"switch on/off","[swɪʧ]","вмикати/вимикати",null,9,"switch on/off","[swɪʧ]","вмикати/вимикати"]
[10,"wear","[wɛə]","носи́ти (одяг тощо)",null,10,"wear","[wɛə]","носи́ти (одяг тощо)"]
[11,0,0,0,null,11,0,0,0]
[12,0,0,0,null,12,0,0,0]
[13,0,0,0,null,13,0,0,0]
[]
[1,{"$f":"B15","v":"full"},{"$f":"C15","v":"[fʊl]"},{"$f":"D15","v":"по́вний"},null,1,{"$f":"B29","v":"full"},{"$f":"C29","v":"[fʊl]"},{"$f":"D29","v":"по́вний"}]
[2,{"$f":"B16","v":"wheel"},"[wiːl]","ко́лесо",null,2,{"$f":"B30","v":"wheel"},"[wiːl]","ко́лесо"]
[3,"inside","[ˈɪnsaɪd]","всере́дині",null,3,"inside","[ˈɪnsaɪd]","всере́дині"]
[4,"noise","[nɔɪz]","шум; го́мін, га́мір, га́лас",null,4,"noise","[nɔɪz]","шум; го́мін, га́мір, га́лас"]
[5,"playground","[ˈpleɪgraund]","майда́нчик для гри; спортмайда́нчик",null,5,"playground","[ˈpleɪgraund]","майда́нчик для гри; спортмайда́нчик"]
[6,"during","[ˈdjuərɪŋ]","про́тягом, під час",null,6,"during","[ˈdjuərɪŋ]","про́тягом, під час"]
[7,"bring","[brɪŋ]","прино́сити, приво́дити;",null,7,"bring","[brɪŋ]","прино́сити, приво́дити;"]
[8,"leave"," [liːv]","покида́ти; від'їжджа́ти, ",null,8,"leave"," [liːv]","покида́ти; від'їжджа́ти, "]
[9,"switch on/off","[swɪʧ]","вмикати/вимикати",null,9,"switch on/off","[swɪʧ]","вмикати/вимикати"]
[10,"wear","[wɛə]","носи́ти (одяг тощо)",null,10,"wear","[wɛə]","носи́ти (одяг тощо)"]
[11,0,0,0,null,11,0,0,0]
[12,0,0,0,null,12,0,0,0]
[13,0,0,0,null,13,0,0,0]
[]
[1,{"$f":"B29","v":"full"},{"$f":"C29","v":"[fʊl]"},{"$f":"D29","v":"по́вний"},null,1,{"$f":"B43","v":"full"},{"$f":"C43","v":"[fʊl]"},{"$f":"D43","v":"по́вний"}]
[2,{"$f":"B30","v":"wheel"},"[wiːl]","ко́лесо",null,2,{"$f":"B44","v":"wheel"},"[wiːl]","ко́лесо"]
[3,"inside","[ˈɪnsaɪd]","всере́дині",null,3,"inside","[ˈɪnsaɪd]","всере́дині"]
[4,"noise","[nɔɪz]","шум; го́мін, га́мір, га́лас",null,4,"noise","[nɔɪz]","шум; го́мін, га́мір, га́лас"]
[5,"playground","[ˈpleɪgraund]","майда́нчик для гри; спортмайда́нчик",null,5,"playground","[ˈpleɪgraund]","майда́нчик для гри; спортмайда́нчик"]
[6,"during","[ˈdjuərɪŋ]","про́тягом, під час",null,6,"during","[ˈdjuərɪŋ]","про́тягом, під час"]
[7,"bring","[brɪŋ]","прино́сити, приво́дити;",null,7,"bring","[brɪŋ]","прино́сити, приво́дити;"]
[8,"leave"," [liːv]","покида́ти; від'їжджа́ти, ",null,8,"leave"," [liːv]","покида́ти; від'їжджа́ти, "]
[9,"switch on/off","[swɪʧ]","вмикати/вимикати",null,9,"switch on/off","[swɪʧ]","вмикати/вимикати"]
[10,"wear","[wɛə]","носи́ти (одяг тощо)",null,10,"wear","[wɛə]","носи́ти (одяг тощо)"]
[11,0,0,0,null,11,0,0,0]
[12,0,0,0,null,12,0,0,0]
[13,0,0,0,null,13,0,0,0]

{"sheet":"Сам (5)","index":23,"n_rows":54,"n_cols":27,"rows_kept":54,"cut":false,"hidden":false,"merged":[]}
["Name_________________________              Date_______",null,null,null,null,"Name_________________________              Date_______",null,null,null,"Name_________________________              Date_______",null,null,null,"Name_________________________              Date_______"]
[]
[null,{"$f":"S3","v":"wheel"},1,{"$f":"V3","v":"шум; го́мін, га́мір, га́лас"},null,null,{"$f":"S3","v":"wheel"},1,{"$f":"V3","v":"шум; го́мін, га́мір, га́лас"},{"$f":"S16","v":"leave"},null,null,null,{"$f":"J3","v":"leave"},null,null,null,null,"wheel",null,1,"шум; го́мін, га́мір, га́лас"]
[null,"wear",2,"про́тягом, під час",null,null,{"$f":"S4","v":"wear"},2,{"$f":"V4","v":"про́тягом, під час"},{"$f":"S17","v":"inside"},null,null,null,{"$f":"J4","v":"inside"},null,null,null,null,"wear",null,2,"про́тягом, під час"]
[null,"switch on/off",3,"прино́сити, приво́дити;",null,null,"switch on/off",3,"прино́сити, приво́дити;","playground",null,null,null,"playground",null,null,null,null,"switch on/off",null,3,"прино́сити, приво́дити;"]
[null,"playground",4,"покида́ти; від'їжджа́ти, ",null,null,"playground",4,"покида́ти; від'їжджа́ти, ","noise",null,null,null,"noise",null,null,null,null,"playground",null,4,"покида́ти; від'їжджа́ти, "]
[null,"noise",5,"по́вний",null,null,"noise",5,"по́вний","wheel",null,null,null,"wheel",null,null,null,null,"noise",null,5,"по́вний"]
[null,"leave",6,"носи́ти (одяг тощо)",null,null,"leave",6,"носи́ти (одяг тощо)","wear",null,null,null,"wear",null,null,null,null,"leave",null,6,"носи́ти (одяг тощо)"]
[null,"inside",7,"майда́нчик для гри; спортмайда́нчик",null,null,"inside",7,"майда́нчик для гри; спортмайда́нчик","switch on/off",null,null,null,"switch on/off",null,null,null,null,"inside",null,7,"майда́нчик для гри; спортмайда́нчик"]
[null,"full",8,"ко́лесо",null,null,"full",8,"ко́лесо","full",null,null,null,"full",null,null,null,null,"full",null,8,"ко́лесо"]
[null,"during",9,"всере́дині",null,null,"during",9,"всере́дині","during",null,null,null,"during",null,null,null,null,"during",null,9,"всере́дині"]
[null,"bring",10,"вмикати/вимикати",null,null,"bring",10,"вмикати/вимикати","bring",null,null,null,"bring",null,null,null,null,"bring",null,null,"вмикати/вимикати"]
[null,0,11,0,null,null,0,11,0,0,null,null,null,0]
[]
["Name_________________________              Date_______",null,null,null,null,"Name_________________________              Date_______",null,null,null,"Name_________________________              Date_______",null,null,null,"Name_________________________              Date_______"]
[null,null,null,null,null,null,null,null,null,null,null,null,null,null,null,null,null,null,"leave"]
[null,{"$f":"S3","v":"wheel"},1,{"$f":"V3","v":"шум; го́мін, га́мір, га́лас"},null,null,{"$f":"B17","v":"wheel"},1,{"$f":"D17","v":"шум; го́мін, га́мір, га́лас"},{"$f":"J3","v":"leave"},null,null,null,{"$f":"J17","v":"leave"},null,null,null,null,"inside"]
[null,{"$f":"S4","v":"wear"},2,{"$f":"V4","v":"про́тягом, під час"},null,null,{"$f":"B18","v":"wear"},2,{"$f":"D18","v":"про́тягом, під час"},{"$f":"J4","v":"inside"},null,null,null,{"$f":"J18","v":"inside"},null,null,null,null,"playground"]
[null,"switch on/off",3,"прино́сити, приво́дити;",null,null,"switch on/off",3,"прино́сити, приво́дити;","playground",null,null,null,"playground",null,null,null,null,"noise",null,null,null,null,null,null,null,"шум; го́мін, га́мір, га́лас"]
[null,"playground",4,"покида́ти; від'їжджа́ти, ",null,null,"playground",4,"покида́ти; від'їжджа́ти, ","noise",null,null,null,"noise",null,null,null,null,"wheel",null,null,null,null,null,null,null,"про́тягом, під час"]
[null,"noise",5,"по́вний",null,null,"noise",5,"по́вний","wheel",null,null,null,"wheel",null,null,null,null,"wear",null,null,null,null,null,null,null,"прино́сити, приво́дити;"]
[null,"leave",6,"носи́ти (одяг тощо)",null,null,"leave",6,"носи́ти (одяг тощо)","wear",null,null,null,"wear",null,null,null,null,"switch on/off",null,null,null,null,null,null,null,"покида́ти; від'їжджа́ти, "]
[null,"inside",7,"майда́нчик для гри; спортмайда́нчик",null,null,"inside",7,"майда́нчик для гри; спортмайда́нчик","switch on/off",null,null,null,"switch on/off",null,null,null,null,"full",null,null,null,null,null,null,null,"по́вний"]
[null,"full",8,"ко́лесо",null,null,"full",8,"ко́лесо","full",null,null,null,"full",null,null,null,null,"during",null,null,null,null,null,null,null,"носи́ти (одяг тощо)"]
[null,"during",9,"всере́дині",null,null,"during",9,"всере́дині","during",null,null,null,"during",null,null,null,null,"bring",null,null,null,null,null,null,null,"майда́нчик для гри; спортмайда́нчик"]
[null,"bring",10,"вмикати/вимикати",null,null,"bring",10,"вмикати/вимикати","bring",null,null,null,"bring",null,null,null,null,null,null,null,null,null,null,null,null,"ко́лесо"]
[null,0,11,0,null,null,0,11,0,0,null,null,null,0,null,null,null,null,null,null,null,null,null,null,null,null,"всере́дині"]
[null,null,null,null,null,null,null,null,null,null,null,null,null,null,null,null,null,null,null,null,null,null,null,null,null,null,"вмикати/вимикати"]
["Name_________________________              Date_______",null,null,null,null,"Name_________________________              Date_______",null,null,null,"Name_________________________              Date_______",null,null,null,"Name_________________________              Date_______"]
[]
[null,{"$f":"B17","v":"wheel"},1,{"$f":"D17","v":"шум; го́мін, га́мір, га́лас"},null,null,{"$f":"B31","v":"wheel"},1,{"$f":"D31","v":"шум; го́мін, га́мір, га́лас"},{"$f":"J17","v":"leave"},null,null,null,{"$f":"J31","v":"leave"}]
[null,{"$f":"B18","v":"wear"},2,{"$f":"D18","v":"про́тягом, під час"},null,null,{"$f":"B32","v":"wear"},2,{"$f":"D32","v":"про́тягом, під час"},{"$f":"J18","v":"inside"},null,null,null,{"$f":"J32","v":"inside"}]
[null,"switch on/off",3,"прино́сити, приво́дити;",null,null,"switch on/off",3,"прино́сити, приво́дити;","playground",null,null,null,"playground"]
[null,"playground",4,"покида́ти; від'їжджа́ти, ",null,null,"playground",4,"покида́ти; від'їжджа́ти, ","noise",null,null,null,"noise"]
[null,"noise",5,"по́вний",null,null,"noise",5,"по́вний","wheel",null,null,null,"wheel"]
[null,"leave",6,"носи́ти (одяг тощо)",null,null,"leave",6,"носи́ти (одяг тощо)","wear",null,null,null,"wear"]
[null,"inside",7,"майда́нчик для гри; спортмайда́нчик",null,null,"inside",7,"майда́нчик для гри; спортмайда́нчик","switch on/off",null,null,null,"switch on/off"]
[null,"full",8,"ко́лесо",null,null,"full",8,"ко́лесо","full",null,null,null,"full"]
[null,"during",9,"всере́дині",null,null,"during",9,"всере́дині","during",null,null,null,"during"]
[null,"bring",10,"вмикати/вимикати",null,null,"bring",10,"вмикати/вимикати","bring",null,null,null,"bring"]
[null,0,11,0,null,null,0,11,0,0,null,null,null,0]
[]
["Name_________________________              Date_______",null,null,null,null,null,null,null,null,"Name_________________________              Date_______",null,null,null,"Name_________________________              Date_______"]
[]
[null,{"$f":"B31","v":"wheel"},1,{"$f":"D31","v":"шум; го́мін, га́мір, га́лас"},null,null,{"$f":"B39","v":"during"},9,{"$f":"D39","v":"всере́дині"},{"$f":"J31","v":"leave"},null,null,null,{"$f":"J39","v":"during"}]
[null,{"$f":"B32","v":"wear"},2,{"$f":"D32","v":"про́тягом, під час"},null,null,{"$f":"B40","v":"bring"},10,{"$f":"D40","v":"вмикати/вимикати"},{"$f":"J32","v":"inside"},null,null,null,{"$f":"J40","v":"bring"}]
[null,"switch on/off",3,"прино́сити, приво́дити;",null,null,{"$f":"B41","v":0},11,{"$f":"D41","v":0},"playground",null,null,null,{"$f":"J41","v":0}]
[null,"playground",4,"покида́ти; від'їжджа́ти, ",null,null,null,null,null,"noise"]
[null,"noise",5,"по́вний",null,null,null,null,null,"wheel"]
[null,"leave",6,"носи́ти (одяг тощо)",null,null,null,null,null,"wear"]
[null,{"$f":"B37","v":"inside"},7,{"$f":"D37","v":"майда́нчик для гри; спортмайда́нчик"},null,null,null,null,null,{"$f":"J37","v":"switch on/off"}]
[null,{"$f":"B38","v":"full"},8,{"$f":"D38","v":"ко́лесо"},null,null,null,null,null,{"$f":"J38","v":"full"}]
[]
[null,7]

{"sheet":"1 (9)","index":24,"n_rows":55,"n_cols":13,"rows_kept":55,"cut":false,"hidden":false,"merged":[]}
[{"$f":"J1","v":1},{"$f":"K1","v":"questions"},{"$f":"L1","v":"[ˈkwesʧ(ə)n]"},{"$f":"M1","v":"запита́ння,"},null,{"$f":"A1","v":1},{"$f":"B1","v":"questions"},{"$f":"C1","v":"[ˈkwesʧ(ə)n]"},{"$f":"D1","v":"запита́ння,"},1,"questions","[ˈkwesʧ(ə)n]","запита́ння,"]
[{"$f":"J2","v":2},"shoot","[ʃuːt]","стріляти; викладати ",null,{"$f":"A2","v":2},"shoot","[ʃuːt]","стріляти; викладати ",2,"shoot","[ʃuːt]","стріляти; викладати "]
[3,"at once","[wʌns]","за один раз",null,3,"at once","[wʌns]","за один раз",3,"at once","[wʌns]","за один раз"]
[4,"twice","[twaɪs]"," дві́чі",null,4,"twice","[twaɪs]"," дві́чі",4,"twice","[twaɪs]"," дві́чі"]
[5,"join in","[dʒɔɪn]","приєднуватися",null,5,"join in","[dʒɔɪn]","приєднуватися",5,"join in","[dʒɔɪn]","приєднуватися"]
[6,"coach","[kəuʧ]","тре́нер",null,6,"coach","[kəuʧ]","тре́нер",6,"coach","[kəuʧ]","тре́нер"]
[7,"recipe","[ˈresɪpɪ]","реце́пт",null,7,"recipe","[ˈresɪpɪ]","реце́пт",7,"recipe","[ˈresɪpɪ]","реце́пт"]
[8,"joke","[ʤəuk]","жарт, до́теп",null,8,"joke","[ʤəuk]","жарт, до́теп",8,"joke","[ʤəuk]","жарт, до́теп"]
[9,0,0,0,null,9,0,0,0,9]
[10,0,0,0,null,10,0,0,0,10]
[11,{"$f":"K11","v":0},0,0,null,11,0,0,0,11]
[12,{"$f":"K12","v":0},0,0,null,12,0,0,0,12]
[13,{"$f":"K13","v":0},0,0,null,13,0,0,0,13]
[]
[1,{"$f":"B1","v":"questions"},{"$f":"C1","v":"[ˈkwesʧ(ə)n]"},{"$f":"D1","v":"запита́ння,"},null,1,{"$f":"B15","v":"questions"},{"$f":"C15","v":"[ˈkwesʧ(ə)n]"},{"$f":"D15","v":"запита́ння,"}]
[2,{"$f":"B2","v":"shoot"},"[ʃuːt]","стріляти; викладати ",null,2,{"$f":"B16","v":"shoot"},"[ʃuːt]","стріляти; викладати "]
[3,"at once","[wʌns]","за один раз",null,3,"at once","[wʌns]","за один раз"]
[4,"twice","[twaɪs]"," дві́чі",null,4,"twice","[twaɪs]"," дві́чі"]
[5,"join in","[dʒɔɪn]","приєднуватися",null,5,"join in","[dʒɔɪn]","приєднуватися"]
[6,"coach","[kəuʧ]","тре́нер",null,6,"coach","[kəuʧ]","тре́нер"]
[7,"recipe","[ˈresɪpɪ]","реце́пт",null,7,"recipe","[ˈresɪpɪ]","реце́пт"]
[8,"joke","[ʤəuk]","жарт, до́теп",null,8,"joke","[ʤəuk]","жарт, до́теп"]
[9,0,0,0,null,9,0,0,0]
[10,0,0,0,null,10,0,0,0]
[11,0,0,0,null,11,0,0,0]
[12,0,0,0,null,12,0,0,0]
[13,0,0,0,null,13,0,0,0]
[]
[1,{"$f":"B15","v":"questions"},{"$f":"C15","v":"[ˈkwesʧ(ə)n]"},{"$f":"D15","v":"запита́ння,"},null,1,{"$f":"B29","v":"questions"},{"$f":"C29","v":"[ˈkwesʧ(ə)n]"},{"$f":"D29","v":"запита́ння,"}]
[2,{"$f":"B16","v":"shoot"},"[ʃuːt]","стріляти; викладати ",null,2,{"$f":"B30","v":"shoot"},"[ʃuːt]","стріляти; викладати "]
[3,"at once","[wʌns]","за один раз",null,3,"at once","[wʌns]","за один раз"]
[4,"twice","[twaɪs]"," дві́чі",null,4,"twice","[twaɪs]"," дві́чі"]
[5,"join in","[dʒɔɪn]","приєднуватися",null,5,"join in","[dʒɔɪn]","приєднуватися"]
[6,"coach","[kəuʧ]","тре́нер",null,6,"coach","[kəuʧ]","тре́нер"]
[7,"recipe","[ˈresɪpɪ]","реце́пт",null,7,"recipe","[ˈresɪpɪ]","реце́пт"]
[8,"joke","[ʤəuk]","жарт, до́теп",null,8,"joke","[ʤəuk]","жарт, до́теп"]
[9,0,0,0,null,9,0,0,0]
[10,0,0,0,null,10,0,0,0]
[11,0,0,0,null,11,0,0,0]
[12,0,0,0,null,12,0,0,0]
[13,0,0,0,null,13,0,0,0]
[]
[1,{"$f":"B29","v":"questions"},{"$f":"C29","v":"[ˈkwesʧ(ə)n]"},{"$f":"D29","v":"запита́ння,"},null,1,{"$f":"B43","v":"questions"},{"$f":"C43","v":"[ˈkwesʧ(ə)n]"},{"$f":"D43","v":"запита́ння,"}]
[2,{"$f":"B30","v":"shoot"},"[ʃuːt]","стріляти; викладати ",null,2,{"$f":"B44","v":"shoot"},"[ʃuːt]","стріляти; викладати "]
[3,"at once","[wʌns]","за один раз",null,3,"at once","[wʌns]","за один раз"]
[4,"twice","[twaɪs]"," дві́чі",null,4,"twice","[twaɪs]"," дві́чі"]
[5,"join in","[dʒɔɪn]","приєднуватися",null,5,"join in","[dʒɔɪn]","приєднуватися"]
[6,"coach","[kəuʧ]","тре́нер",null,6,"coach","[kəuʧ]","тре́нер"]
[7,"recipe","[ˈresɪpɪ]","реце́пт",null,7,"recipe","[ˈresɪpɪ]","реце́пт"]
[8,"joke","[ʤəuk]","жарт, до́теп",null,8,"joke","[ʤəuk]","жарт, до́теп"]
[9,0,0,0,null,9,0,0,0]
[10,0,0,0,null,10,0,0,0]
[11,0,0,0,null,11,0,0,0]
[12,0,0,0,null,12,0,0,0]
[13,0,0,0,null,13,0,0,0]

{"sheet":"Сам (10)","index":25,"n_rows":52,"n_cols":21,"rows_kept":52,"cut":false,"hidden":false,"merged":[]}
["Name_________________________   Form 7   Date_______",null,null,null,null,"Name_________________________   Form 7   Date_______",null,null,null,"Name_________________________   Form 7   Date_______",null,null,null,"Name_________________________   Form 7   Date_______"]
[]
[null,{"$f":"S3","v":0},1,{"$f":"V3","v":0},null,null,{"$f":"S3","v":0},1,{"$f":"V3","v":0},{"$f":"S16","v":"twice"},null,null,null,{"$f":"J3","v":"twice"},null,null,null,null,null,null,1]
[null,0,2,0,null,null,{"$f":"S4","v":0},2,{"$f":"V4","v":0},{"$f":"S17","v":"shoot"},null,null,null,{"$f":"J4","v":"shoot"},null,null,null,null,null,null,2]
[null,0,3,0,null,null,0,3,0,"recipe",null,null,null,"recipe",null,null,null,null,null,null,3]
[null,0,4,0,null,null,0,4,0,"questions",null,null,null,"questions",null,null,null,null,null,null,4]
[null,0,5,0,null,null,0,5,0,"joke",null,null,null,"joke",null,null,null,null,null,null,5]
[null,0,6,0,null,null,0,6,0,"join in",null,null,null,"join in",null,null,null,null,null,null,6]
[null,0,7,0,null,null,0,7,0,"coach",null,null,null,"coach",null,null,null,null,null,null,7]
[null,0,8,0,null,null,0,8,0,"at once",null,null,null,"at once",null,null,null,null,null,null,8]
[null,0,9,0,null,null,0,9,0,0,null,null,null,0,null,null,null,null,null,null,9]
[null,0,10,0,null,null,0,10,0,0,null,null,null,0,null,null,null,null,null,null,10]
[null,0,11,0,null,null,0,11,0,0,null,null,null,0,null,null,null,null,null,null,11]
[]
["Name_________________________   Form 7   Date_______",null,null,null,null,"Name_________________________   Form 7   Date_______",null,null,null,"Name_________________________   Form 7   Date_______",null,null,null,"Name_________________________   Form 7   Date_______"]
[null,null,null,null,null,null,null,null,null,null,null,null,null,null,null,null,null,null,"twice"]
[null,{"$f":"S3","v":0},1,{"$f":"V3","v":0},null,null,{"$f":"B17","v":0},1,{"$f":"D17","v":0},{"$f":"J3","v":"twice"},null,null,null,{"$f":"J17","v":"twice"},null,null,null,null,"shoot"]
[null,{"$f":"S4","v":0},2,{"$f":"V4","v":0},null,null,{"$f":"B18","v":0},2,{"$f":"D18","v":0},{"$f":"J4","v":"shoot"},null,null,null,{"$f":"J18","v":"shoot"},null,null,null,null,"recipe"]
[null,0,3,0,null,null,0,3,0,"recipe",null,null,null,"recipe",null,null,null,null,"questions"]
[null,0,4,0,null,null,0,4,0,"questions",null,null,null,"questions",null,null,null,null,"joke"]
[null,0,5,0,null,null,0,5,0,"joke",null,null,null,"joke",null,null,null,null,"join in"]
[null,0,6,0,null,null,0,6,0,"join in",null,null,null,"join in",null,null,null,null,"coach"]
[null,0,7,0,null,null,0,7,0,"coach",null,null,null,"coach",null,null,null,null,"at once"]
[null,0,8,0,null,null,0,8,0,"at once",null,null,null,"at once"]
[null,0,9,0,null,null,0,9,0,0,null,null,null,0]
[null,0,10,0,null,null,0,10,0,0,null,null,null,0]
[null,0,11,0,null,null,0,11,0,0,null,null,null,0]
[]
["Name_________________________   Form 7   Date_______",null,null,null,null,"Name_________________________   Form 7   Date_______",null,null,null,"Name_________________________   Form 7   Date_______",null,null,null,"Name_________________________   Form 7   Date_______"]
[]
[null,{"$f":"B17","v":0},1,{"$f":"D17","v":0},null,null,{"$f":"B31","v":0},1,{"$f":"D31","v":0},{"$f":"J17","v":"twice"},null,null,null,{"$f":"J31","v":"twice"}]
[null,{"$f":"B18","v":0},2,{"$f":"D18","v":0},null,null,{"$f":"B32","v":0},2,{"$f":"D32","v":0},{"$f":"J18","v":"shoot"},null,null,null,{"$f":"J32","v":"shoot"}]
[null,0,3,0,null,null,0,3,0,"recipe",null,null,null,"recipe"]
[null,0,4,0,null,null,0,4,0,"questions",null,null,null,"questions"]
[null,0,5,0,null,null,0,5,0,"joke",null,null,null,"joke"]
[null,0,6,0,null,null,0,6,0,"join in",null,null,null,"join in"]
[null,0,7,0,null,null,0,7,0,"coach",null,null,null,"coach"]
[null,0,8,0,null,null,0,8,0,"at once",null,null,null,"at once"]
[null,0,9,0,null,null,0,9,0,0,null,null,null,0]
[null,0,10,0,null,null,0,10,0,0,null,null,null,0]
[null,0,11,0,null,null,0,11,0,0,null,null,null,0]
[]
["Name_________________________   Form 7   Date_______",null,null,null,null,null,null,null,null,"Name_________________________   Form 7   Date_______"]
[]
[null,{"$f":"B31","v":0},1,{"$f":"D31","v":0},null,null,{"$f":"B39","v":0},9,{"$f":"D39","v":0},{"$f":"J31","v":"twice"},null,null,null,{"$f":"J39","v":0}]
[null,{"$f":"B32","v":0},2,{"$f":"D32","v":0},null,null,{"$f":"B40","v":0},10,{"$f":"D40","v":0},{"$f":"J32","v":"shoot"},null,null,null,{"$f":"J40","v":0}]
[null,0,3,0,null,null,{"$f":"B41","v":0},11,{"$f":"D41","v":0},"recipe",null,null,null,{"$f":"J41","v":0}]
[null,0,4,0,null,null,null,null,null,"questions"]
[null,0,5,0,null,null,null,null,null,"joke"]
[null,0,6,0,null,null,null,null,null,"join in"]
[null,{"$f":"B37","v":0},7,{"$f":"D37","v":0},null,null,null,null,null,{"$f":"J37","v":"coach"}]
[null,{"$f":"B38","v":0},8,{"$f":"D38","v":0},null,null,null,null,null,{"$f":"J38","v":"at once"}]

{"sheet":"1 (10)","index":26,"n_rows":55,"n_cols":13,"rows_kept":55,"cut":false,"hidden":false,"merged":[]}
[null,null,null,"Form 7",null,null,null,null,"Form 7"]
[{"$f":"J2","v":1},{"$f":"K2","v":"tidy (up) the room"},{"$f":"L2","v":"[ˈtaɪdɪ]"},{"$f":"M2","v":"прибрати у кімнаті"},null,{"$f":"A2","v":1},{"$f":"B2","v":"tidy (up) the room"},{"$f":"C2","v":"[ˈtaɪdɪ]"},{"$f":"D2","v":"прибрати у кімнаті"},1,"tidy (up) the room","[ˈtaɪdɪ]","прибрати у кімнаті"]
[{"$f":"J3","v":2},"do the washing up","[ˈwɔʃɪŋ]","мити посуд",null,{"$f":"A3","v":2},"do the washing up","[ˈwɔʃɪŋ]","мити посуд",2,"do the washing up","[ˈwɔʃɪŋ]","мити посуд"]
[3,"do the cooking","[ˈkukɪŋ]","приготувати їсти",null,3,"do the cooking","[ˈkukɪŋ]","приготувати їсти",3,"do the cooking","[ˈkukɪŋ]","приготувати їсти"]
[4," iron","[ˈaɪən]","залізо, праска",null,4," iron","[ˈaɪən]","залізо, праска",4," iron","[ˈaɪən]","залізо, праска"]
[5,"do the ironing","[ˈaɪənɪŋ]","прасувати",null,5,"do the ironing","[ˈaɪənɪŋ]","прасувати",5,"do the ironing","[ˈaɪənɪŋ]","прасувати"]
[6,"sweep the floor","[swiːp]","замести підлогу",null,6,"sweep the floor","[swiːp]","замести підлогу",6,"sweep the floor","[swiːp]","замести підлогу"]
[7,"water the plants","[ˈwɔːtə] [plɑːnts]","полити квіти",null,7,"water the plants","[ˈwɔːtə] [plɑːnts]","полити квіти",7,"water the plants","[ˈwɔːtə] [plɑːnts]","полити квіти"]
[8,"do the laundry","[ˈlɔːndrɪ]","прати",null,8,"do the laundry","[ˈlɔːndrɪ]","прати",8,"do the laundry","[ˈlɔːndrɪ]","прати"]
[9,"thing","[θɪŋ]","річ",null,9,"thing","[θɪŋ]","річ",9,"thing","[θɪŋ]","річ"]
[10," fix things","[fɪks]","ремонтувати речі",null,10," fix things","[fɪks]","ремонтувати речі",10," fix things","[fɪks]","ремонтувати речі"]
[11,{"$f":"K12","v":0},0,0,null,11,0,0,0,11]
[12,{"$f":"K13","v":0},0,0,null,12,0,0,0,12]
[]
[null,null,null,"Form 7",null,null,null,null,"Form 7"]
[1,{"$f":"B2","v":"tidy (up) the room"},"[ˈtaɪdɪ]","прибрати у кімнаті",null,1,{"$f":"B16","v":"tidy (up) the room"},{"$f":"C16","v":"[ˈtaɪdɪ]"},{"$f":"D16","v":"прибрати у кімнаті"}]
[2,"do the washing up","[ˈwɔʃɪŋ]","мити посуд",null,2,{"$f":"B17","v":"do the washing up"},"[ˈwɔʃɪŋ]","мити посуд"]
[3,"do the cooking","[ˈkukɪŋ]","приготувати їсти",null,3,"do the cooking","[ˈkukɪŋ]","приготувати їсти"]
[4," iron","[ˈaɪən]","залізо, праска",null,4," iron","[ˈaɪən]","залізо, праска"]
[5,"do the ironing","[ˈaɪənɪŋ]","прасувати",null,5,"do the ironing","[ˈaɪənɪŋ]","прасувати"]
[6,"sweep the floor","[swiːp]","замести підлогу",null,6,"sweep the floor","[swiːp]","замести підлогу"]
[7,"water the plants","[ˈwɔːtə] [plɑːnts]","полити квіти",null,7,"water the plants","[ˈwɔːtə] [plɑːnts]","полити квіти"]
[8,"do the laundry","[ˈlɔːndrɪ]","прати",null,8,"do the laundry","[ˈlɔːndrɪ]","прати"]
[9,"thing","[θɪŋ]","річ",null,9,"thing","[θɪŋ]","річ"]
[10," fix things","[fɪks]","ремонтувати речі",null,10," fix things","[fɪks]","ремонтувати речі"]
[11,0,0,0,null,11,0,0,0]
[12,0,0,0,null,12,0,0,0]
[]
[null,null,null,"Form 7",null,null,null,null,"Form 7"]
[1,{"$f":"B16","v":"tidy (up) the room"},"[ˈtaɪdɪ]","прибрати у кімнаті",null,1,{"$f":"B30","v":"tidy (up) the room"},{"$f":"C30","v":"[ˈtaɪdɪ]"},{"$f":"D30","v":"прибрати у кімнаті"}]
[2,"do the washing up","[ˈwɔʃɪŋ]","мити посуд",null,2,{"$f":"B31","v":"do the washing up"},"[ˈwɔʃɪŋ]","мити посуд"]
[3,"do the cooking","[ˈkukɪŋ]","приготувати їсти",null,3,"do the cooking","[ˈkukɪŋ]","приготувати їсти"]
[4," iron","[ˈaɪən]","залізо, праска",null,4," iron","[ˈaɪən]","залізо, праска"]
[5,"do the ironing","[ˈaɪənɪŋ]","прасувати",null,5,"do the ironing","[ˈaɪənɪŋ]","прасувати"]
[6,"sweep the floor","[swiːp]","замести підлогу",null,6,"sweep the floor","[swiːp]","замести підлогу"]
[7,"water the plants","[ˈwɔːtə] [plɑːnts]","полити квіти",null,7,"water the plants","[ˈwɔːtə] [plɑːnts]","полити квіти"]
[8,"do the laundry","[ˈlɔːndrɪ]","прати",null,8,"do the laundry","[ˈlɔːndrɪ]","прати"]
[9,"thing","[θɪŋ]","річ",null,9,"thing","[θɪŋ]","річ"]
[10," fix things","[fɪks]","ремонтувати речі",null,10," fix things","[fɪks]","ремонтувати речі"]
[11,0,0,0,null,11,0,0,0]
[12,0,0,0,null,12,0,0,0]
[]
[null,null,null,"Form 7",null,null,null,null,"Form 7"]
[1,{"$f":"B30","v":"tidy (up) the room"},"[ˈtaɪdɪ]","прибрати у кімнаті",null,1,{"$f":"B44","v":"tidy (up) the room"},{"$f":"C44","v":"[ˈtaɪdɪ]"},{"$f":"D44","v":"прибрати у кімнаті"}]
[2,"do the washing up","[ˈwɔʃɪŋ]","мити посуд",null,2,{"$f":"B45","v":"do the washing up"},"[ˈwɔʃɪŋ]","мити посуд"]
[3,"do the cooking","[ˈkukɪŋ]","приготувати їсти",null,3,"do the cooking","[ˈkukɪŋ]","приготувати їсти"]
[4," iron","[ˈaɪən]","залізо, праска",null,4," iron","[ˈaɪən]","залізо, праска"]
[5,"do the ironing","[ˈaɪənɪŋ]","прасувати",null,5,"do the ironing","[ˈaɪənɪŋ]","прасувати"]
[6,"sweep the floor","[swiːp]","замести підлогу",null,6,"sweep the floor","[swiːp]","замести підлогу"]
[7,"water the plants","[ˈwɔːtə] [plɑːnts]","полити квіти",null,7,"water the plants","[ˈwɔːtə] [plɑːnts]","полити квіти"]
[8,"do the laundry","[ˈlɔːndrɪ]","прати",null,8,"do the laundry","[ˈlɔːndrɪ]","прати"]
[9,"thing","[θɪŋ]","річ",null,9,"thing","[θɪŋ]","річ"]
[10," fix things","[fɪks]","ремонтувати речі",null,10," fix things","[fɪks]","ремонтувати речі"]
[11,0,0,0,null,11,0,0,0]
[12,0,0,0,null,12,0,0,0]

{"sheet":"Сам (11)","index":27,"n_rows":52,"n_cols":23,"rows_kept":52,"cut":false,"hidden":false,"merged":[]}
["Name_________________________   Form 7   Date_______",null,null,null,null,"Name_________________________   Form 7   Date_______",null,null,null,"Name_________________________   Form 7   Date_______",null,null,null,"Name_________________________   Form 7   Date_______"]
[]
[null,{"$f":"S3","v":0},1,{"$f":"V3","v":0},null,null,{"$f":"S3","v":0},1,{"$f":"V3","v":0},{"$f":"S16","v":0},null,null,null,{"$f":"J3","v":0},null,null,null,null,null,null,1]
[null,0,2,0,null,null,{"$f":"S4","v":0},2,{"$f":"V4","v":0},{"$f":"S17","v":0},null,null,null,{"$f":"J4","v":0},null,null,null,null,null,null,2]
[null,0,3,0,null,null,0,3,0,0,null,null,null,0,null,null,null,null,null,null,3]
[null,0,4,0,null,null,0,4,0,0,null,null,null,0,null,null,null,null,null,null,4]
[null,0,5,0,null,null,0,5,0,0,null,null,null,0,null,null,null,null,null,null,5]
[null,0,6,0,null,null,0,6,0,0,null,null,null,0,null,null,null,null,null,null,6]
[null,0,7,0,null,null,0,7,0,0,null,null,null,0,null,null,null,null,null,null,7]
[null,0,8,0,null,null,0,8,0,0,null,null,null,0,null,null,null,null,null,null,8]
[null,0,9,0,null,null,0,9,0,0,null,null,null,0,null,null,null,null,null,null,9]
[null,0,10,0,null,null,0,10,0,0,null,null,null,0,null,null,null,null,null,null,10]
[null,0,11,0,null,null,0,11,0,0,null,null,null,0,null,null,null,null,null,null,11]
[]
["Name_________________________   Form 7   Date_______",null,null,null,null,"Name_________________________   Form 7   Date_______",null,null,null,"Name_________________________   Form 7   Date_______",null,null,null,"Name_________________________   Form 7   Date_______"]
[]
[null,{"$f":"S3","v":0},1,{"$f":"V3","v":0},null,null,{"$f":"B17","v":0},1,{"$f":"D17","v":0},{"$f":"J3","v":0},null,null,null,{"$f":"J17","v":0}]
[null,{"$f":"S4","v":0},2,{"$f":"V4","v":0},null,null,{"$f":"B18","v":0},2,{"$f":"D18","v":0},{"$f":"J4","v":0},null,null,null,{"$f":"J18","v":0}]
[null,0,3,0,null,null,0,3,0,0,null,null,null,0]
[null,0,4,0,null,null,0,4,0,0,null,null,null,0,null,null,null,null,null,null,null,null,"tidy (up) the room"]
[null,0,5,0,null,null,0,5,0,0,null,null,null,0,null,null,null,null,null,null,null,null,"do the washing up"]
[null,0,6,0,null,null,0,6,0,0,null,null,null,0,null,null,null,null,null,null,null,null,"do the cooking"]
[null,0,7,0,null,null,0,7,0,0,null,null,null,0,null,null,null,null,null,null,null,null," iron"]
[null,0,8,0,null,null,0,8,0,0,null,null,null,0,null,null,null,null,null,null,null,null,"do the ironing"]
[null,0,9,0,null,null,0,9,0,0,null,null,null,0,null,null,null,null,null,null,null,null,"sweep the floor"]
[null,0,10,0,null,null,0,10,0,0,null,null,null,0,null,null,null,null,null,null,null,null,"water the plants"]
[null,0,11,0,null,null,0,11,0,0,null,null,null,0,null,null,null,null,null,null,null,null,"do the laundry"]
[null,null,null,null,null,null,null,null,null,null,null,null,null,null,null,null,null,null,null,null,null,null,"thing"]
["Name_________________________   Form 7   Date_______",null,null,null,null,"Name_________________________   Form 7   Date_______",null,null,null,"Name_________________________   Form 7   Date_______",null,null,null,"Name_________________________   Form 7   Date_______",null,null,null,null,null,null,null,null," fix things"]
[]
[null,{"$f":"B17","v":0},1,{"$f":"D17","v":0},null,null,{"$f":"B31","v":0},1,{"$f":"D31","v":0},{"$f":"J17","v":0},null,null,null,{"$f":"J31","v":0}]
[null,{"$f":"B18","v":0},2,{"$f":"D18","v":0},null,null,{"$f":"B32","v":0},2,{"$f":"D32","v":0},{"$f":"J18","v":0},null,null,null,{"$f":"J32","v":0}]
[null,0,3,0,null,null,0,3,0,0,null,null,null,0]
[null,0,4,0,null,null,0,4,0,0,null,null,null,0]
[null,0,5,0,null,null,0,5,0,0,null,null,null,0]
[null,0,6,0,null,null,0,6,0,0,null,null,null,0]
[null,0,7,0,null,null,0,7,0,0,null,null,null,0]
[null,0,8,0,null,null,0,8,0,0,null,null,null,0]
[null,0,9,0,null,null,0,9,0,0,null,null,null,0]
[null,0,10,0,null,null,0,10,0,0,null,null,null,0]
[null,0,11,0,null,null,0,11,0,0,null,null,null,0]
[]
["Name_________________________   Form 7   Date_______",null,null,null,null,null,null,null,null,"Name_________________________   Form 7   Date_______"]
[]
[null,{"$f":"B31","v":0},1,{"$f":"D31","v":0},null,null,{"$f":"B39","v":0},9,{"$f":"D39","v":0},{"$f":"J31","v":0},null,null,null,{"$f":"J39","v":0}]
[null,{"$f":"B32","v":0},2,{"$f":"D32","v":0},null,null,{"$f":"B40","v":0},10,{"$f":"D40","v":0},{"$f":"J32","v":0},null,null,null,{"$f":"J40","v":0}]
[null,0,3,0,null,null,{"$f":"B41","v":0},11,{"$f":"D41","v":0},0,null,null,null,{"$f":"J41","v":0}]
[null,0,4,0,null,null,null,null,null,0]
[null,0,5,0,null,null,null,null,null,0]
[null,0,6,0,null,null,null,null,null,0]
[null,{"$f":"B37","v":0},7,{"$f":"D37","v":0},null,null,null,null,null,{"$f":"J37","v":0}]
[null,{"$f":"B38","v":0},8,{"$f":"D38","v":0},null,null,null,null,null,{"$f":"J38","v":0}]

{"sheet":"1 (12)","index":28,"n_rows":55,"n_cols":13,"rows_kept":55,"cut":false,"hidden":false,"merged":[]}
[null,null,null,"Form 7",null,null,null,null,"Form 7"]
[{"$f":"J2","v":1},{"$f":"K2","v":"food"},{"$f":"L2","v":"[fuːd]"},{"$f":"M2","v":"їжа"},null,{"$f":"A2","v":1},{"$f":"B2","v":"food"},{"$f":"C2","v":"[fuːd]"},{"$f":"D2","v":"їжа"},1,"food","[fuːd]","їжа"]
[{"$f":"J3","v":2},"plant","[plɑːnt]","завод; рослина",null,{"$f":"A3","v":2},"plant","[plɑːnt]","завод; рослина",2,"plant","[plɑːnt]","завод; рослина"]
[3,"wheat","[(h)wiːt]","пшениця",null,3,"wheat","[(h)wiːt]","пшениця",3,"wheat","[(h)wiːt]","пшениця"]
[4,"corn","[kɔːn]","кукурудза",null,4,"corn","[kɔːn]","кукурудза",4,"corn","[kɔːn]","кукурудза"]
[5,"supper","[ˈsʌpə]","вечеря",null,5,"supper","[ˈsʌpə]","вечеря",5,"supper","[ˈsʌpə]","вечеря"]
[6,"grow","[grəu]","рости, вирощувати",null,6,"grow","[grəu]","рости, вирощувати",6,"grow","[grəu]","рости, вирощувати"]
[7,"land","[lænd]","земля, країна",null,7,"land","[lænd]","земля, країна",7,"land","[lænd]","земля, країна"]
[8,"poor","[puə]","бі́дний",null,8,"poor","[puə]","бі́дний",8,"poor","[puə]","бі́дний"]
[9,"piece","[piːs]","шмато́к",null,9,"piece","[piːs]","шмато́к",9,"piece","[piːs]","шмато́к"]
[10,0,0,0,null,10,0,0,0,10]
[11,{"$f":"K12","v":0},0,0,null,11,0,0,0,11]
[12,{"$f":"K13","v":0},0,0,null,12,0,0,0,12]
[]
[null,null,null,"Form 7",null,null,null,null,"Form 7"]
[1,{"$f":"B2","v":"food"},"[fuːd]","їжа",null,1,{"$f":"B16","v":"food"},{"$f":"C16","v":"[fuːd]"},{"$f":"D16","v":"їжа"}]
[2,"plant","[plɑːnt]","завод; рослина",null,2,{"$f":"B17","v":"plant"},"[plɑːnt]","завод; рослина"]
[3,"wheat","[(h)wiːt]","пшениця",null,3,"wheat","[(h)wiːt]","пшениця"]
[4,"corn","[kɔːn]","кукурудза",null,4,"corn","[kɔːn]","кукурудза"]
[5,"supper","[ˈsʌpə]","вечеря",null,5,"supper","[ˈsʌpə]","вечеря"]
[6,"grow","[grəu]","рости, вирощувати",null,6,"grow","[grəu]","рости, вирощувати"]
[7,"land","[lænd]","земля, країна",null,7,"land","[lænd]","земля, країна"]
[8,"poor","[puə]","бі́дний",null,8,"poor","[puə]","бі́дний"]
[9,"piece","[piːs]","шмато́к",null,9,"piece","[piːs]","шмато́к"]
[10,0,0,0,null,10,0,0,0]
[11,0,0,0,null,11,0,0,0]
[12,0,0,0,null,12,0,0,0]
[]
[null,null,null,"Form 7",null,null,null,null,"Form 7"]
[1,{"$f":"B16","v":"food"},"[fuːd]","їжа",null,1,{"$f":"B30","v":"food"},{"$f":"C30","v":"[fuːd]"},{"$f":"D30","v":"їжа"}]
[2,"plant","[plɑːnt]","завод; рослина",null,2,{"$f":"B31","v":"plant"},"[plɑːnt]","завод; рослина"]
[3,"wheat","[(h)wiːt]","пшениця",null,3,"wheat","[(h)wiːt]","пшениця"]
[4,"corn","[kɔːn]","кукурудза",null,4,"corn","[kɔːn]","кукурудза"]
[5,"supper","[ˈsʌpə]","вечеря",null,5,"supper","[ˈsʌpə]","вечеря"]
[6,"grow","[grəu]","рости, вирощувати",null,6,"grow","[grəu]","рости, вирощувати"]
[7,"land","[lænd]","земля, країна",null,7,"land","[lænd]","земля, країна"]
[8,"poor","[puə]","бі́дний",null,8,"poor","[puə]","бі́дний"]
[9,"piece","[piːs]","шмато́к",null,9,"piece","[piːs]","шмато́к"]
[10,0,0,0,null,10,0,0,0]
[11,0,0,0,null,11,0,0,0]
[12,0,0,0,null,12,0,0,0]
[]
[null,null,null,"Form 7",null,null,null,null,"Form 7"]
[1,{"$f":"B30","v":"food"},"[fuːd]","їжа",null,1,{"$f":"B44","v":"food"},{"$f":"C44","v":"[fuːd]"},{"$f":"D44","v":"їжа"}]
[2,"plant","[plɑːnt]","завод; рослина",null,2,{"$f":"B45","v":"plant"},"[plɑːnt]","завод; рослина"]
[3,"wheat","[(h)wiːt]","пшениця",null,3,"wheat","[(h)wiːt]","пшениця"]
[4,"corn","[kɔːn]","кукурудза",null,4,"corn","[kɔːn]","кукурудза"]
[5,"supper","[ˈsʌpə]","вечеря",null,5,"supper","[ˈsʌpə]","вечеря"]
[6,"grow","[grəu]","рости, вирощувати",null,6,"grow","[grəu]","рости, вирощувати"]
[7,"land","[lænd]","земля, країна",null,7,"land","[lænd]","земля, країна"]
[8,"poor","[puə]","бі́дний",null,8,"poor","[puə]","бі́дний"]
[9,"piece","[piːs]","шмато́к",null,9,"piece","[piːs]","шмато́к"]
[10,0,0,0,null,10,0,0,0]
[11,0,0,0,null,11,0,0,0]
[12,0,0,0,null,12,0,0,0]

{"sheet":"Сам (12)","index":29,"n_rows":52,"n_cols":21,"rows_kept":52,"cut":false,"hidden":false,"merged":[]}
["Name_________________________   Form 7   Date_______",null,null,null,null,"Name_________________________   Form 7   Date_______",null,null,null,"Name_________________________   Form 7   Date_______",null,null,null,"Name_________________________   Form 7   Date_______"]
[]
[null,{"$f":"S3","v":0},1,{"$f":"V3","v":0},null,null,{"$f":"S3","v":0},1,{"$f":"V3","v":0},{"$f":"S16","v":0},null,null,null,{"$f":"J3","v":0},null,null,null,null,null,null,1]
[null,0,2,0,null,null,{"$f":"S4","v":0},2,{"$f":"V4","v":0},{"$f":"S17","v":0},null,null,null,{"$f":"J4","v":0},null,null,null,null,null,null,2]
[null,0,3,0,null,null,0,3,0,0,null,null,null,0,null,null,null,null,null,null,3]
[null,0,4,0,null,null,0,4,0,0,null,null,null,0,null,null,null,null,null,null,4]
[null,0,5,0,null,null,0,5,0,0,null,null,null,0,null,null,null,null,null,null,5]
[null,0,6,0,null,null,0,6,0,0,null,null,null,0,null,null,null,null,null,null,6]
[null,0,7,0,null,null,0,7,0,0,null,null,null,0,null,null,null,null,null,null,7]
[null,0,8,0,null,null,0,8,0,0,null,null,null,0,null,null,null,null,null,null,8]
[null,0,9,0,null,null,0,9,0,0,null,null,null,0,null,null,null,null,null,null,9]
[null,0,10,0,null,null,0,10,0,0,null,null,null,0,null,null,null,null,null,null,10]
[null,0,11,0,null,null,0,11,0,0,null,null,null,0,null,null,null,null,null,null,11]
[]
["Name_________________________   Form 7   Date_______",null,null,null,null,"Name_________________________   Form 7   Date_______",null,null,null,"Name_________________________   Form 7   Date_______",null,null,null,"Name_________________________   Form 7   Date_______"]
[]
[null,{"$f":"S3","v":0},1,{"$f":"V3","v":0},null,null,{"$f":"B17","v":0},1,{"$f":"D17","v":0},{"$f":"J3","v":0},null,null,null,{"$f":"J17","v":0}]
[null,{"$f":"S4","v":0},2,{"$f":"V4","v":0},null,null,{"$f":"B18","v":0},2,{"$f":"D18","v":0},{"$f":"J4","v":0},null,null,null,{"$f":"J18","v":0}]
[null,0,3,0,null,null,0,3,0,0,null,null,null,0]
[null,0,4,0,null,null,0,4,0,0,null,null,null,0]
[null,0,5,0,null,null,0,5,0,0,null,null,null,0]
[null,0,6,0,null,null,0,6,0,0,null,null,null,0]
[null,0,7,0,null,null,0,7,0,0,null,null,null,0]
[null,0,8,0,null,null,0,8,0,0,null,null,null,0]
[null,0,9,0,null,null,0,9,0,0,null,null,null,0]
[null,0,10,0,null,null,0,10,0,0,null,null,null,0]
[null,0,11,0,null,null,0,11,0,0,null,null,null,0]
[]
["Name_________________________   Form 7   Date_______",null,null,null,null,"Name_________________________   Form 7   Date_______",null,null,null,"Name_________________________   Form 7   Date_______",null,null,null,"Name_________________________   Form 7   Date_______"]
[]
[null,{"$f":"B17","v":0},1,{"$f":"D17","v":0},null,null,{"$f":"B31","v":0},1,{"$f":"D31","v":0},{"$f":"J17","v":0},null,null,null,{"$f":"J31","v":0}]
[null,{"$f":"B18","v":0},2,{"$f":"D18","v":0},null,null,{"$f":"B32","v":0},2,{"$f":"D32","v":0},{"$f":"J18","v":0},null,null,null,{"$f":"J32","v":0}]
[null,0,3,0,null,null,0,3,0,0,null,null,null,0]
[null,0,4,0,null,null,0,4,0,0,null,null,null,0]
[null,0,5,0,null,null,0,5,0,0,null,null,null,0]
[null,0,6,0,null,null,0,6,0,0,null,null,null,0]
[null,0,7,0,null,null,0,7,0,0,null,null,null,0]
[null,0,8,0,null,null,0,8,0,0,null,null,null,0]
[null,0,9,0,null,null,0,9,0,0,null,null,null,0]
[null,0,10,0,null,null,0,10,0,0,null,null,null,0]
[null,0,11,0,null,null,0,11,0,0,null,null,null,0]
[]
["Name_________________________   Form 7   Date_______",null,null,null,null,null,null,null,null,"Name_________________________   Form 7   Date_______"]
[]
[null,{"$f":"B31","v":0},1,{"$f":"D31","v":0},null,null,{"$f":"B39","v":0},9,{"$f":"D39","v":0},{"$f":"J31","v":0},null,null,null,{"$f":"J39","v":0}]
[null,{"$f":"B32","v":0},2,{"$f":"D32","v":0},null,null,{"$f":"B40","v":0},10,{"$f":"D40","v":0},{"$f":"J32","v":0},null,null,null,{"$f":"J40","v":0}]
[null,0,3,0,null,null,{"$f":"B41","v":0},11,{"$f":"D41","v":0},0,null,null,null,{"$f":"J41","v":0}]
[null,0,4,0,null,null,null,null,null,0]
[null,0,5,0,null,null,null,null,null,0]
[null,0,6,0,null,null,null,null,null,0]
[null,{"$f":"B37","v":0},7,{"$f":"D37","v":0},null,null,null,null,null,{"$f":"J37","v":0}]
[null,{"$f":"B38","v":0},8,{"$f":"D38","v":0},null,null,null,null,null,{"$f":"J38","v":0}]

{"sheet":"1(13)","index":30,"n_rows":55,"n_cols":13,"rows_kept":55,"cut":false,"hidden":false,"merged":[]}
[null,null,null,"Form 7",null,null,null,null,"Form 7"]
[{"$f":"J2","v":1},{"$f":"K2","v":"no big deal"},{"$f":"L2","v":"[diːl] справа\n"},{"$f":"M2","v":"не проблема"},null,{"$f":"A2","v":1},{"$f":"B2","v":"no big deal"},{"$f":"C2","v":"[diːl] справа\n"},{"$f":"D2","v":"не проблема"},1,"no big deal","[diːl] справа\n","не проблема"]
[{"$f":"J3","v":2},"discuss","[dɪsˈkʌs]","обгово́рювати; дискутува́ти",null,{"$f":"A3","v":2},"discuss","[dɪsˈkʌs]","обгово́рювати; дискутува́ти",2,"discuss","[dɪsˈkʌs]","обгово́рювати; дискутува́ти"]
[3,"task","[tɑːsk]","завда́ння",null,3,"task","[tɑːsk]","завда́ння",3,"task","[tɑːsk]","завда́ння"]
[4,"stay","[steɪ]","залиша́тися",null,4,"stay","[steɪ]","залиша́тися",4,"stay","[steɪ]","залиша́тися"]
[5,"list","[lɪst]"," спи́сок, пере́лік, ",null,5,"list","[lɪst]"," спи́сок, пере́лік, ",5,"list","[lɪst]"," спи́сок, пере́лік, "]
[6,"check","[ʧek]","перевіряти",null,6,"check","[ʧek]","перевіряти",6,"check","[ʧek]","перевіряти"]
[7,"before","[bɪˈfɔː]","пе́ред, до",null,7,"before","[bɪˈfɔː]","пе́ред, до",7,"before","[bɪˈfɔː]","пе́ред, до"]
[8,"clear","[klɪə]","чи́стий, очища́ти",null,8,"clear","[klɪə]","чи́стий, очища́ти",8,"clear","[klɪə]","чи́стий, очища́ти"]
[9,"walk","[wɔːk]","ході́ння, прогу́лянка пі́шки\n",null,9,"walk","[wɔːk]","ході́ння, прогу́лянка пі́шки\n",9,"walk","[wɔːk]","ході́ння, прогу́лянка пі́шки\n"]
[10,"garbage","[ˈgɑːbɪʤ]","смі́ття",null,10,"garbage","[ˈgɑːbɪʤ]","смі́ття",10,"garbage","[ˈgɑːbɪʤ]","смі́ття"]
[11,{"$f":"K12","v":0},0,0,null,11,0,0,0,11]
[12,{"$f":"K13","v":0},0,0,null,12,0,0,0,12]
[]
[null,null,null,"Form 7",null,null,null,null,"Form 7"]
[1,{"$f":"B2","v":"no big deal"},"[diːl] справа\n","не проблема",null,1,{"$f":"B16","v":"no big deal"},{"$f":"C16","v":"[diːl] справа\n"},{"$f":"D16","v":"не проблема"}]
[2,"discuss","[dɪsˈkʌs]","обгово́рювати; дискутува́ти",null,2,{"$f":"B17","v":"discuss"},"[dɪsˈkʌs]","обгово́рювати; дискутува́ти"]
[3,"task","[tɑːsk]","завда́ння",null,3,"task","[tɑːsk]","завда́ння"]
[4,"stay","[steɪ]","залиша́тися",null,4,"stay","[steɪ]","залиша́тися"]
[5,"list","[lɪst]"," спи́сок, пере́лік, ",null,5,"list","[lɪst]"," спи́сок, пере́лік, "]
[6,"check","[ʧek]","перевіряти",null,6,"check","[ʧek]","перевіряти"]
[7,"before","[bɪˈfɔː]","пе́ред, до",null,7,"before","[bɪˈfɔː]","пе́ред, до"]
[8,"clear","[klɪə]","чи́стий, очища́ти",null,8,"clear","[klɪə]","чи́стий, очища́ти"]
[9,"walk","[wɔːk]","ході́ння, прогу́лянка пі́шки\n",null,9,"walk","[wɔːk]","ході́ння, прогу́лянка пі́шки\n"]
[10,"garbage","[ˈgɑːbɪʤ]","смі́ття",null,10,"garbage","[ˈgɑːbɪʤ]","смі́ття"]
[11,0,0,0,null,11,0,0,0]
[12,0,0,0,null,12,0,0,0]
[]
[null,null,null,"Form 7",null,null,null,null,"Form 7"]
[1,{"$f":"B16","v":"no big deal"},"[diːl] справа\n","не проблема",null,1,{"$f":"B30","v":"no big deal"},{"$f":"C30","v":"[diːl] справа\n"},{"$f":"D30","v":"не проблема"}]
[2,"discuss","[dɪsˈkʌs]","обгово́рювати; дискутува́ти",null,2,{"$f":"B31","v":"discuss"},"[dɪsˈkʌs]","обгово́рювати; дискутува́ти"]
[3,"task","[tɑːsk]","завда́ння",null,3,"task","[tɑːsk]","завда́ння"]
[4,"stay","[steɪ]","залиша́тися",null,4,"stay","[steɪ]","залиша́тися"]
[5,"list","[lɪst]"," спи́сок, пере́лік, ",null,5,"list","[lɪst]"," спи́сок, пере́лік, "]
[6,"check","[ʧek]","перевіряти",null,6,"check","[ʧek]","перевіряти"]
[7,"before","[bɪˈfɔː]","пе́ред, до",null,7,"before","[bɪˈfɔː]","пе́ред, до"]
[8,"clear","[klɪə]","чи́стий, очища́ти",null,8,"clear","[klɪə]","чи́стий, очища́ти"]
[9,"walk","[wɔːk]","ході́ння, прогу́лянка пі́шки\n",null,9,"walk","[wɔːk]","ході́ння, прогу́лянка пі́шки\n"]
[10,"garbage","[ˈgɑːbɪʤ]","смі́ття",null,10,"garbage","[ˈgɑːbɪʤ]","смі́ття"]
[11,0,0,0,null,11,0,0,0]
[12,0,0,0,null,12,0,0,0]
[]
[null,null,null,"Form 7",null,null,null,null,"Form 7"]
[1,{"$f":"B30","v":"no big deal"},"[diːl] справа\n","не проблема",null,1,{"$f":"B44","v":"no big deal"},{"$f":"C44","v":"[diːl] справа\n"},{"$f":"D44","v":"не проблема"}]
[2,"discuss","[dɪsˈkʌs]","обгово́рювати; дискутува́ти",null,2,{"$f":"B45","v":"discuss"},"[dɪsˈkʌs]","обгово́рювати; дискутува́ти"]
[3,"task","[tɑːsk]","завда́ння",null,3,"task","[tɑːsk]","завда́ння"]
[4,"stay","[steɪ]","залиша́тися",null,4,"stay","[steɪ]","залиша́тися"]
[5,"list","[lɪst]"," спи́сок, пере́лік, ",null,5,"list","[lɪst]"," спи́сок, пере́лік, "]
[6,"check","[ʧek]","перевіряти",null,6,"check","[ʧek]","перевіряти"]
[7,"before","[bɪˈfɔː]","пе́ред, до",null,7,"before","[bɪˈfɔː]","пе́ред, до"]
[8,"clear","[klɪə]","чи́стий, очища́ти",null,8,"clear","[klɪə]","чи́стий, очища́ти"]
[9,"walk","[wɔːk]","ході́ння, прогу́лянка пі́шки\n",null,9,"walk","[wɔːk]","ході́ння, прогу́лянка пі́шки\n"]
[10,"garbage","[ˈgɑːbɪʤ]","смі́ття",null,10,"garbage","[ˈgɑːbɪʤ]","смі́ття"]
[11,0,0,0,null,11,0,0,0]
[12,0,0,0,null,12,0,0,0]

{"sheet":"1 (14)","index":31,"n_rows":55,"n_cols":23,"rows_kept":55,"cut":false,"hidden":false,"merged":[]}
[null,null,null,"Form 7",null,null,null,null,"Form 7",null,null,null,null,null,null,null,null,"1.David did not go to school on Friday.",null,null,null,null,"1.David did not go to school on Friday."]
[{"$f":"J2","v":1},{"$f":"K2","v":"1.David did not go to school on Friday."},{"$f":"L2","v":"[ˈmæskət]"},{"$f":"M2","v":"талісма́н"},null,{"$f":"A2","v":1},{"$f":"B2","v":"1.David did not go to school on Friday."},{"$f":"C2","v":"[ˈmæskət]"},{"$f":"D2","v":"талісма́н"},1,"1.David did not go to school on Friday.","[ˈmæskət]","талісма́н",null,null,null,null,"2. I am watching TV.",null,null,null,null,"2. I am watching TV."]
[{"$f":"J3","v":2},"2.Dania was not at school too.","[fleɪm]"," по́лум'я",null,{"$f":"A3","v":2},"2.Dania was not at school too.","[fleɪm]"," по́лум'я",2,"2.Dania was not at school too.","[fleɪm]"," по́лум'я",null,null,null,null,"3. They watch cartoon every Sunday.",null,null,null,null,"3. They watch cartoon every Sunday."]
[3,"3.The boys were ill. And they are ill now. ","[ɪˈvent]","поді́я",null,3,"3.The boys were ill. And they are ill now. ","[ɪˈvent]","поді́я",3,"3.The boys were ill. And they are ill now. ","[ɪˈvent]","поді́я",null,null,null,null,"4. Taras played with his sister.",null,null,null,null,"4. Taras played with his sister."]
[4,"4.Usually they go to school every day. ","[kəmˈpiːt]","змага́тися",null,4,"4.Usually they go to school every day. ","[kəmˈpiːt]","змага́тися",4,"4.Usually they go to school every day. ","[kəmˈpiːt]","змага́тися",null,null,null,null,"5.Usually they go to school every day. ",null,null,null,null,"5.Usually they go to school every day. "]
[5,"5.Maybe they will go to school next Monday.","[praud]","го́рдий",null,5,"5.Maybe they will go to school next Monday.","[praud]","го́рдий",5,"5.Maybe they will go to school next Monday.","[praud]","го́рдий",null,null,null,null,"6.Maybe they will go to school next Monday.",null,null,null,null,"6.Maybe they will go to school next Monday."]
[6,"6.But now they are in a bed. They are watching TV.","[ˈmɒtəu]","деві́з, га́сло",null,6,"6.But now they are in a bed. They are watching TV.","[ˈmɒtəu]","деві́з, га́сло",6,"6.But now they are in a bed. They are watching TV.","[ˈmɒtəu]","деві́з, га́сло",null,null,null,null,"7. They are watching TV.",null,null,null,null,"7. They are watching TV."]
[7,"swift","[swɪft]","швидки́й, ско́рий",null,7,"swift","[swɪft]","швидки́й, ско́рий",7,"swift","[swɪft]","швидки́й, ско́рий",null,null,null,null,"8. Did you wash up&",null,null,null,null,"8. Did you wash up&"]
[8,"strong","[strɒŋ]","си́льний, ду́жий",null,8,"strong","[strɒŋ]","си́льний, ду́жий",8,"strong","[strɒŋ]","си́льний, ду́жий",null,null,null,null,"9. Do you like ice-cream?",null,null,null,null,"9. Do you like ice-cream?"]
[9,"character","[ˈkærɪktə]","хара́ктер; образ, герой;",null,9,"character","[ˈkærɪktə]","хара́ктер; образ, герой;",9,"character","[ˈkærɪktə]","хара́ктер; образ, герой;","background",null,null,null,"10. Does he help his parents?",null,null,null,null,"10. Does he help his parents?"]
[10,"spirit","[ˈspɪrɪt]","дух, душа́",null,10,"spirit","[ˈspɪrɪt]","дух, душа́",10,"spirit","[ˈspɪrɪt]","дух, душа́","Beijing"]
[11,{"$f":"K12","v":0},0,0,null,11,0,0,0,11,null,null,null,"character"]
[12,{"$f":"K13","v":0},0,0,null,12,0,0,0,12,null,null,null,"compete"]
[null,null,null,null,null,null,null,null,null,null,null,null,null,"creature"]
[null,null,null,"Form 7",null,null,null,null,"Form 7",null,null,null,null,"eagle",null,null,null,"1.David did not go to school on Friday.",null,null,null,null,"1.David did not go to school on Friday."]
[1,{"$f":"B2","v":"1.David did not go to school on Friday."},"[ˈmæskət]","талісма́н",null,1,{"$f":"B16","v":"1.David did not go to school on Friday."},{"$f":"C16","v":"[ˈmæskət]"},{"$f":"D16","v":"талісма́н"},null,null,null,null,"event",null,null,null,"2. I am watching TV.",null,null,null,null,"2. I am watching TV."]
[2,"2.Dania was not at school too.","[fleɪm]"," по́лум'я",null,2,{"$f":"B17","v":"2.Dania was not at school too."},"[fleɪm]"," по́лум'я",null,null,null,null,"Fuwa",null,null,null,"3. They watch cartoon every Sunday.",null,null,null,null,"3. They watch cartoon every Sunday."]
[3,"3.The boys were ill. And they are ill now. ","[ɪˈvent]","поді́я",null,3,"3.The boys were ill. And they are ill now. ","[ɪˈvent]","поді́я",null,null,null,null,"inhabited",null,null,null,"4. Taras played with his sister.",null,null,null,null,"4. Taras played with his sister."]
[4,"4.Usually they go to school every day. ","[kəmˈpiːt]","змага́тися",null,4,"4.Usually they go to school every day. ","[kəmˈpiːt]","змага́тися",null,null,null,null,"interlocking",null,null,null,"5.Usually they go to school every day. ",null,null,null,null,"5.Usually they go to school every day. "]
[5,"5.Maybe they will go to school next Monday.","[praud]","го́рдий",null,5,"5.Maybe they will go to school next Monday.","[praud]","го́рдий",null,null,null,null,"Mandeville",null,null,null,"6.Maybe they will go to school next Monday.",null,null,null,null,"6.Maybe they will go to school next Monday."]
[6,"6.But now they are in a bed. They are watching TV.","[ˈmɒtəu]","деві́з, га́сло",null,6,"6.But now they are in a bed. They are watching TV.","[ˈmɒtəu]","деві́з, га́сло",null,null,null,null,"MASCOT",null,null,null,"7. They are watching TV.",null,null,null,null,"7. They are watching TV."]
[7,"swift","[swɪft]","швидки́й, ско́рий",null,7,"swift","[swɪft]","швидки́й, ско́рий",null,null,null,null,"motto",null,null,null,"8. Did you wash up&",null,null,null,null,"8. Did you wash up&"]
[8,"strong","[strɒŋ]","си́льний, ду́жий",null,8,"strong","[strɒŋ]","си́льний, ду́жий",null,null,null,null,"Oceania",null,null,null,"9. Do you like ice-cream?",null,null,null,null,"9. Do you like ice-cream?"]
[9,"character","[ˈkærɪktə]","хара́ктер; образ, герой;",null,9,"character","[ˈkærɪktə]","хара́ктер; образ, герой;",null,null,null,null,"PARALYMPIC",null,null,null,"10. Does he help his parents?",null,null,null,null,"10. Does he help his parents?"]
[10,"spirit","[ˈspɪrɪt]","дух, душа́",null,10,"spirit","[ˈspɪrɪt]","дух, душа́",null,null,null,null,"paralympics"]
[11,0,0,0,null,11,0,0,0,null,null,null,null,"represent"]
[12,0,0,0,null,12,0,0,0,null,null,null,null,"rings"]
[null,null,null,null,null,null,null,null,null,null,null,null,null,"spirit"]
[null,null,null,"Form 7",null,null,null,null,"Form 7",null,null,null,null,"SWIFTER",null,null,null,"1.David did not go to school on Friday.",null,null,null,null,"1.David did not go to school on Friday."]
[1,{"$f":"B16","v":"1.David did not go to school on Friday."},"[ˈmæskət]","талісма́н",null,1,{"$f":"B30","v":"1.David did not go to school on Friday."},{"$f":"C30","v":"[ˈmæskət]"},{"$f":"D30","v":"талісма́н"},null,null,null,null,"the fi ve inhabited continents of the",null,null,null,"2. I am watching TV.",null,null,null,null,"2. I am watching TV."]
[2,"2.Dania was not at school too.","[fleɪm]"," по́лум'я",null,2,{"$f":"B31","v":"2.Dania was not at school too."},"[fleɪm]"," по́лум'я",null,null,null,null,"Wenlock",null,null,null,"3. They watch cartoon every Sunday.",null,null,null,null,"3. They watch cartoon every Sunday."]
[3,"3.The boys were ill. And they are ill now. ","[ɪˈvent]","поді́я",null,3,"3.The boys were ill. And they are ill now. ","[ɪˈvent]","поді́я",null,null,null,null,"Океания",null,null,null,"4. Taras played with his sister.",null,null,null,null,"4. Taras played with his sister."]
[4,"4.Usually they go to school every day. ","[kəmˈpiːt]","змага́тися",null,4,"4.Usually they go to school every day. ","[kəmˈpiːt]","змага́тися",null,null,null,null,null,null,null,null,"5.Usually they go to school every day. ",null,null,null,null,"5.Usually they go to school every day. "]
[5,"5.Maybe they will go to school next Monday.","[praud]","го́рдий",null,5,"5.Maybe they will go to school next Monday.","[praud]","го́рдий",null,null,null,null,null,null,null,null,"6.Maybe they will go to school next Monday.",null,null,null,null,"6.Maybe they will go to school next Monday."]
[6,"6.But now they are in a bed. They are watching TV.","[ˈmɒtəu]","деві́з, га́сло",null,6,"6.But now they are in a bed. They are watching TV.","[ˈmɒtəu]","деві́з, га́сло",null,null,null,null,null,null,null,null,"7. They are watching TV.",null,null,null,null,"7. They are watching TV."]
[7,"swift","[swɪft]","швидки́й, ско́рий",null,7,"swift","[swɪft]","швидки́й, ско́рий",null,null,null,null,null,null,null,null,"8. Did you wash up&",null,null,null,null,"8. Did you wash up&"]
[8,"strong","[strɒŋ]","си́льний, ду́жий",null,8,"strong","[strɒŋ]","си́льний, ду́жий",null,null,null,null,null,null,null,null,"9. Do you like ice-cream?",null,null,null,null,"9. Do you like ice-cream?"]
[9,"character","[ˈkærɪktə]","хара́ктер; образ, герой;",null,9,"character","[ˈkærɪktə]","хара́ктер; образ, герой;",null,null,null,null,null,null,null,null,"10. Does he help his parents?",null,null,null,null,"10. Does he help his parents?"]
[10,"spirit","[ˈspɪrɪt]","дух, душа́",null,10,"spirit","[ˈspɪrɪt]","дух, душа́"]
[11,0,0,0,null,11,0,0,0]
[12,0,0,0,null,12,0,0,0]
[]
[null,null,null,"Form 7",null,null,null,null,"Form 7",null,null,null,null,null,null,null,null,"1.David did not go to school on Friday.",null,null,null,null,"1.David did not go to school on Friday."]
[1,{"$f":"B30","v":"1.David did not go to school on Friday."},"[ˈmæskət]","талісма́н",null,1,{"$f":"B44","v":"1.David did not go to school on Friday."},{"$f":"C44","v":"[ˈmæskət]"},{"$f":"D44","v":"талісма́н"},null,null,null,null,null,null,null,null,"2. I am watching TV.",null,null,null,null,"2. I am watching TV."]
[2,"2.Dania was not at school too.","[fleɪm]"," по́лум'я",null,2,{"$f":"B45","v":"2.Dania was not at school too."},"[fleɪm]"," по́лум'я",null,null,null,null,null,null,null,null,"3. They watch cartoon every Sunday.",null,null,null,null,"3. They watch cartoon every Sunday."]
[3,"3.The boys were ill. And they are ill now. ","[ɪˈvent]","поді́я",null,3,"3.The boys were ill. And they are ill now. ","[ɪˈvent]","поді́я",null,null,null,null,null,null,null,null,"4. Taras played with his sister.",null,null,null,null,"4. Taras played with his sister."]
[4,"4.Usually they go to school every day. ","[kəmˈpiːt]","змага́тися",null,4,"4.Usually they go to school every day. ","[kəmˈpiːt]","змага́тися",null,null,null,null,null,null,null,null,"5.Usually they go to school every day. ",null,null,null,null,"5.Usually they go to school every day. "]
[5,"5.Maybe they will go to school next Monday.","[praud]","го́рдий",null,5,"5.Maybe they will go to school next Monday.","[praud]","го́рдий",null,null,null,null,null,null,null,null,"6.Maybe they will go to school next Monday.",null,null,null,null,"6.Maybe they will go to school next Monday."]
[6,"6.But now they are in a bed. They are watching TV.","[ˈmɒtəu]","деві́з, га́сло",null,6,"6.But now they are in a bed. They are watching TV.","[ˈmɒtəu]","деві́з, га́сло",null,null,null,null,null,null,null,null,"7. They are watching TV.",null,null,null,null,"7. They are watching TV."]
[7,"swift","[swɪft]","швидки́й, ско́рий",null,7,"swift","[swɪft]","швидки́й, ско́рий",null,null,null,null,null,null,null,null,"8. Did you wash up&",null,null,null,null,"8. Did you wash up&"]
[8,"strong","[strɒŋ]","си́льний, ду́жий",null,8,"strong","[strɒŋ]","си́льний, ду́жий",null,null,null,null,null,null,null,null,"9. Do you like ice-cream?",null,null,null,null,"9. Do you like ice-cream?"]
[9,"character","[ˈkærɪktə]","хара́ктер; образ, герой;",null,9,"character","[ˈkærɪktə]","хара́ктер; образ, герой;",null,null,null,null,null,null,null,null,"10. Does he help his parents?",null,null,null,null,"10. Does he help his parents?"]
[10,"spirit","[ˈspɪrɪt]","дух, душа́",null,10,"spirit","[ˈspɪrɪt]","дух, душа́"]
[11,0,0,0,null,11,0,0,0]
[12,0,0,0,null,12,0,0,0]

{"sheet":"1 (16)","index":32,"n_rows":55,"n_cols":13,"rows_kept":55,"cut":false,"hidden":false,"merged":[]}
[null,null,null,"Form 7",null,null,null,null,"Form 7"]
[{"$f":"J2","v":1},{"$f":"K2","v":"stomach"},{"$f":"L2","v":"[ˈstʌmək]"},{"$f":"M2","v":"шлу́нок; живі́т"},null,{"$f":"A2","v":1},{"$f":"B2","v":"stomach"},{"$f":"C2","v":"[ˈstʌmək]"},{"$f":"D2","v":"шлу́нок; живі́т"},1,"stomach","[ˈstʌmək]","шлу́нок; живі́т"]
[{"$f":"J3","v":2},"head","[hed]","голова́",null,{"$f":"A3","v":2},"head","[hed]","голова́",2,"head","[hed]","голова́"]
[3,"tooth","[tuːθ]","зуб",null,3,"tooth","[tuːθ]","зуб",3,"tooth","[tuːθ]","зуб"]
[4,"teeth","[tiːθ]","зуби",null,4,"teeth","[tiːθ]","зуби",4,"teeth","[tiːθ]","зуби"]
[5,"ear","[ɪə]","ву́хо",null,5,"ear","[ɪə]","ву́хо",5,"ear","[ɪə]","ву́хо"]
[6,"tummy","[ˈtʌmɪ]","живіт",null,6,"tummy","[ˈtʌmɪ]","живіт",6,"tummy","[ˈtʌmɪ]","живіт"]
[7,"ache","[eɪk]","біль;  болі́ти",null,7,"ache","[eɪk]","біль;  болі́ти",7,"ache","[eɪk]","біль;  болі́ти"]
[8,"hurt","[hɜːt]","пора́нити; завда́ти бо́лю",null,8,"hurt","[hɜːt]","пора́нити; завда́ти бо́лю",8,"hurt","[hɜːt]","пора́нити; завда́ти бо́лю"]
[9,"medicine","[ˈmeds(ə)n]","ліки; медици́на",null,9,"medicine","[ˈmeds(ə)n]","ліки; медици́на",9,"medicine","[ˈmeds(ə)n]","ліки; медици́на"]
[10,0,0,0,null,10,0,0,0,10]
[11,{"$f":"K12","v":0},0,0,null,11,0,0,0,11]
[12,{"$f":"K13","v":0},0,0,null,12,0,0,0,12]
[]
[null,null,null,"Form 7",null,null,null,null,"Form 7"]
[1,{"$f":"B2","v":"stomach"},"[ˈstʌmək]","шлу́нок; живі́т",null,1,{"$f":"B16","v":"stomach"},{"$f":"C16","v":"[ˈstʌmək]"},{"$f":"D16","v":"шлу́нок; живі́т"}]
[2,"head","[hed]","голова́",null,2,{"$f":"B17","v":"head"},"[hed]","голова́"]
[3,"tooth","[tuːθ]","зуб",null,3,"tooth","[tuːθ]","зуб"]
[4,"teeth","[tiːθ]","зуби",null,4,"teeth","[tiːθ]","зуби"]
[5,"ear","[ɪə]","ву́хо",null,5,"ear","[ɪə]","ву́хо"]
[6,"tummy","[ˈtʌmɪ]","живіт",null,6,"tummy","[ˈtʌmɪ]","живіт"]
[7,"ache","[eɪk]","біль;  болі́ти",null,7,"ache","[eɪk]","біль;  болі́ти"]
[8,"hurt","[hɜːt]","пора́нити; завда́ти бо́лю",null,8,"hurt","[hɜːt]","пора́нити; завда́ти бо́лю"]
[9,"medicine","[ˈmeds(ə)n]","ліки; медици́на",null,9,"medicine","[ˈmeds(ə)n]","ліки; медици́на"]
[10,0,0,0,null,10,0,0,0]
[11,0,0,0,null,11,0,0,0]
[12,0,0,0,null,12,0,0,0]
[]
[null,null,null,"Form 7",null,null,null,null,"Form 7"]
[1,{"$f":"B16","v":"stomach"},"[ˈstʌmək]","шлу́нок; живі́т",null,1,{"$f":"B30","v":"stomach"},{"$f":"C30","v":"[ˈstʌmək]"},{"$f":"D30","v":"шлу́нок; живі́т"}]
[2,"head","[hed]","голова́",null,2,{"$f":"B31","v":"head"},"[hed]","голова́"]
[3,"tooth","[tuːθ]","зуб",null,3,"tooth","[tuːθ]","зуб"]
[4,"teeth","[tiːθ]","зуби",null,4,"teeth","[tiːθ]","зуби"]
[5,"ear","[ɪə]","ву́хо",null,5,"ear","[ɪə]","ву́хо"]
[6,"tummy","[ˈtʌmɪ]","живіт",null,6,"tummy","[ˈtʌmɪ]","живіт"]
[7,"ache","[eɪk]","біль;  болі́ти",null,7,"ache","[eɪk]","біль;  болі́ти"]
[8,"hurt","[hɜːt]","пора́нити; завда́ти бо́лю",null,8,"hurt","[hɜːt]","пора́нити; завда́ти бо́лю"]
[9,"medicine","[ˈmeds(ə)n]","ліки; медици́на",null,9,"medicine","[ˈmeds(ə)n]","ліки; медици́на"]
[10,0,0,0,null,10,0,0,0]
[11,0,0,0,null,11,0,0,0]
[12,0,0,0,null,12,0,0,0]
[]
[null,null,null,"Form 7",null,null,null,null,"Form 7"]
[1,{"$f":"B30","v":"stomach"},"[ˈstʌmək]","шлу́нок; живі́т",null,1,{"$f":"B44","v":"stomach"},{"$f":"C44","v":"[ˈstʌmək]"},{"$f":"D44","v":"шлу́нок; живі́т"}]
[2,"head","[hed]","голова́",null,2,{"$f":"B45","v":"head"},"[hed]","голова́"]
[3,"tooth","[tuːθ]","зуб",null,3,"tooth","[tuːθ]","зуб"]
[4,"teeth","[tiːθ]","зуби",null,4,"teeth","[tiːθ]","зуби"]
[5,"ear","[ɪə]","ву́хо",null,5,"ear","[ɪə]","ву́хо"]
[6,"tummy","[ˈtʌmɪ]","живіт",null,6,"tummy","[ˈtʌmɪ]","живіт"]
[7,"ache","[eɪk]","біль;  болі́ти",null,7,"ache","[eɪk]","біль;  болі́ти"]
[8,"hurt","[hɜːt]","пора́нити; завда́ти бо́лю",null,8,"hurt","[hɜːt]","пора́нити; завда́ти бо́лю"]
[9,"medicine","[ˈmeds(ə)n]","ліки; медици́на",null,9,"medicine","[ˈmeds(ə)n]","ліки; медици́на"]
[10,0,0,0,null,10,0,0,0]
[11,0,0,0,null,11,0,0,0]
[12,0,0,0,null,12,0,0,0]

{"sheet":"1 (17)","index":33,"n_rows":55,"n_cols":13,"rows_kept":55,"cut":false,"hidden":false,"merged":[]}
[null,null,null,"Form 7",null,null,null,null,"Form 7"]
[{"$f":"J2","v":1},{"$f":"K2","v":"rash"},{"$f":"L2","v":"[ræʃ]"},{"$f":"M2","v":"висип"},null,{"$f":"A2","v":1},{"$f":"B2","v":"rash"},{"$f":"C2","v":"[ræʃ]"},{"$f":"D2","v":"висип"},1,"rash","[ræʃ]","висип"]
[{"$f":"J3","v":2},"throat","[θrəut]","горло",null,{"$f":"A3","v":2},"throat","[θrəut]","горло",2,"throat","[θrəut]","горло"]
[3,"feel dizzy","[fiːl ˈdɪzɪ]","відчувати головокружіння",null,3,{"$f":"B4","v":"feel dizzy"},"[fiːl ˈdɪzɪ]","відчувати головокружіння",3,"feel dizzy","[fiːl ˈdɪzɪ]","відчувати головокружіння"]
[4,"bruise","[bruːz]","синяк",null,4,"bruise","[bruːz]","синяк",4,"bruise","[bruːz]","синяк"]
[5,"flu","[fluː]","грип",null,5,"flu","[fluː]","грип",5,"flu","[fluː]","грип"]
[6,"cough","[kɔf]","кашель",null,6,"cough","[kɔf]","кашель",6,"cough","[kɔf]","кашель"]
[7,"fever","[ˈfiːvə]","жар, лихоманка",null,7,"fever","[ˈfiːvə]","жар, лихоманка",7,"fever","[ˈfiːvə]","жар, лихоманка"]
[8,"tummy ache","[ˊtʌmɪ eɪk]","біль у животі",null,8,"tummy ache","[ˊtʌmɪ eɪk]","біль у животі",8,"tummy ache","[ˊtʌmɪ eɪk]","біль у животі"]
[9,"pain","[peɪn]","біль",null,9,"pain","[peɪn]","біль",9,"pain","[peɪn]","біль"]
[10,0,0,0,null,10,0,0,0,10]
[11,{"$f":"K12","v":0},0,0,null,11,0,0,0,11]
[12,{"$f":"K13","v":0},0,0,null,12,0,0,0,12]
[]
[null,null,null,"Form 7",null,null,null,null,"Form 7"]
[1,{"$f":"B2","v":"rash"},"[ræʃ]","висип",null,1,{"$f":"B16","v":"rash"},{"$f":"C16","v":"[ræʃ]"},{"$f":"D16","v":"висип"}]
[2,"throat","[θrəut]","горло",null,2,{"$f":"B17","v":"throat"},"[θrəut]","горло"]
[3,"feel dizzy","[fiːl ˈdɪzɪ]","відчувати головокружіння",null,3,"feel dizzy","[fiːl ˈdɪzɪ]","відчувати головокружіння"]
[4,"bruise","[bruːz]","синяк",null,4,"bruise","[bruːz]","синяк"]
[5,"flu","[fluː]","грип",null,5,"flu","[fluː]","грип"]
[6,"cough","[kɔf]","кашель",null,6,"cough","[kɔf]","кашель"]
[7,"fever","[ˈfiːvə]","жар, лихоманка",null,7,"fever","[ˈfiːvə]","жар, лихоманка"]
[8,"tummy ache","[ˊtʌmɪ eɪk]","біль у животі",null,8,"tummy ache","[ˊtʌmɪ eɪk]","біль у животі"]
[9,"pain","[peɪn]","біль",null,9,"pain","[peɪn]","біль"]
[10,0,0,0,null,10,0,0,0]
[11,0,0,0,null,11,0,0,0]
[12,0,0,0,null,12,0,0,0]
[]
[null,null,null,"Form 7",null,null,null,null,"Form 7"]
[1,{"$f":"B16","v":"rash"},"[ræʃ]","висип",null,1,{"$f":"B30","v":"rash"},{"$f":"C30","v":"[ræʃ]"},{"$f":"D30","v":"висип"}]
[2,"throat","[θrəut]","горло",null,2,{"$f":"B31","v":"throat"},"[θrəut]","горло"]
[3,"feel dizzy","[fiːl ˈdɪzɪ]","відчувати головокружіння",null,3,"feel dizzy","[fiːl ˈdɪzɪ]","відчувати головокружіння"]
[4,"bruise","[bruːz]","синяк",null,4,"bruise","[bruːz]","синяк"]
[5,"flu","[fluː]","грип",null,5,"flu","[fluː]","грип"]
[6,"cough","[kɔf]","кашель",null,6,"cough","[kɔf]","кашель"]
[7,"fever","[ˈfiːvə]","жар, лихоманка",null,7,"fever","[ˈfiːvə]","жар, лихоманка"]
[8,"tummy ache","[ˊtʌmɪ eɪk]","біль у животі",null,8,"tummy ache","[ˊtʌmɪ eɪk]","біль у животі"]
[9,"pain","[peɪn]","біль",null,9,"pain","[peɪn]","біль"]
[10,0,0,0,null,10,0,0,0]
[11,0,0,0,null,11,0,0,0]
[12,0,0,0,null,12,0,0,0]
[]
[null,null,null,"Form 7",null,null,null,null,"Form 7"]
[1,{"$f":"B30","v":"rash"},"[ræʃ]","висип",null,1,{"$f":"B44","v":"rash"},{"$f":"C44","v":"[ræʃ]"},{"$f":"D44","v":"висип"}]
[2,"throat","[θrəut]","горло",null,2,{"$f":"B45","v":"throat"},"[θrəut]","горло"]
[3,"feel dizzy","[fiːl ˈdɪzɪ]","відчувати головокружіння",null,3,"feel dizzy","[fiːl ˈdɪzɪ]","відчувати головокружіння"]
[4,"bruise","[bruːz]","синяк",null,4,"bruise","[bruːz]","синяк"]
[5,"flu","[fluː]","грип",null,5,"flu","[fluː]","грип"]
[6,"cough","[kɔf]","кашель",null,6,"cough","[kɔf]","кашель"]
[7,"fever","[ˈfiːvə]","жар, лихоманка",null,7,"fever","[ˈfiːvə]","жар, лихоманка"]
[8,"tummy ache","[ˊtʌmɪ eɪk]","біль у животі",null,8,"tummy ache","[ˊtʌmɪ eɪk]","біль у животі"]
[9,"pain","[peɪn]","біль",null,9,"pain","[peɪn]","біль"]
[10,0,0,0,null,10,0,0,0]
[11,0,0,0,null,11,0,0,0]
[12,0,0,0,null,12,0,0,0]

{"sheet":"Лист1","index":34,"n_rows":12,"n_cols":7,"rows_kept":12,"cut":false,"hidden":false,"merged":[]}
[1,"away","[ə'weɪ]","геть, далеко"]
[2,"so","[səu","так, таким чином",null,"away","геть, далеко"]
[3,"learn","[lɜːn]","вивчати",null,"chance","так, таким чином"]
[4,"use","[juːz]","використовувати",null,"learn","вивчати"]
[5,"technology","[tek'nɔləʤɪ]","технологія",null,"meet","використовувати"]
[6,"screen","[skriːn]","екран",null,"microphone","технологія"]
[7,"talk","[tɔːk]","розмовляти",null,"over","екран"]
[8,"over","['əuvə]","через",null,"screen","розмовляти"]
[9,"microphone","['maɪkrəfəun]","мікрофон",null,"so","через"]
[10,"chance","[ʧɑːn(t)s]","шанс, нагода, можливість",null,"talk","мікрофон"]
[11,"meet","[miːt]","зустрічати;",null,"technology","шанс, нагода, можливість"]
[null,null,null,null,null,"use","зустрічати;"]

{"sheet":"Лист2","index":35,"n_rows":56,"n_cols":14,"rows_kept":56,"cut":false,"hidden":false,"merged":[]}
[null,"Name_______________________              Date_______",null,null,null,null,"Name_______________________              Date_______",null,null,"Name_________________________              Date_______",null,null,null,"Name_________________________              Date_______"]
[]
[1,"trainers",null,"уніформа",null,1,"trainers",null,"уніформа","trainers",null,null,null,"trainers"]
[2,"jewellery",null,"носити",null,2,"jewellery",null,"носити","jewellery",null,null,null,"jewellery"]
[3,"tie",null,"сорочка",null,3,"tie",null,"сорочка","tie",null,null,null,"tie"]
[4,"helmet",null,"пуловер",null,4,"helmet",null,"пуловер","helmet",null,null,null,"helmet"]
[5,"noise",null,"туфлі",null,5,"noise",null,"туфлі","noise",null,null,null,"noise"]
[6,"uniform",null,"кросівки",null,6,"uniform",null,"кросівки","uniform",null,null,null,"uniform"]
[7,"wear",null,"дорогоцінності",null,7,"wear",null,"дорогоцінності","wear",null,null,null,"wear"]
[8,"shirt",null,"грим, мейк-ап",null,8,"shirt",null,"грим, мейк-ап","shirt",null,null,null,"shirt"]
[9,"make up",null,"галстук",null,9,"make up",null,"галстук","make up",null,null,null,"make up"]
[10,"shoes",null,"шолом",null,10,"shoes",null,"шолом","shoes",null,null,null,"shoes"]
[11,"pullover",null,"шум, гамір",null,11,"pullover",null,"шум, гамір","pullover",null,null,null,"pullover"]
[]
[]
[null,"Name_______________________              Date_______",null,null,null,null,"Name_______________________              Date_______",null,null,"Name_________________________              Date_______",null,null,null,"Name_________________________              Date_______"]
[]
[1,"trainers",null,"уніформа",null,1,"trainers",null,"уніформа","trainers",null,null,null,"trainers"]
[2,"jewellery",null,"носити",null,2,"jewellery",null,"носити","jewellery",null,null,null,"jewellery"]
[3,"tie",null,"сорочка",null,3,"tie",null,"сорочка","tie",null,null,null,"tie"]
[4,"helmet",null,"пуловер",null,4,"helmet",null,"пуловер","helmet",null,null,null,"helmet"]
[5,"noise",null,"туфлі",null,5,"noise",null,"туфлі","noise",null,null,null,"noise"]
[6,"uniform",null,"кросівки",null,6,"uniform",null,"кросівки","uniform",null,null,null,"uniform"]
[7,"wear",null,"дорогоцінності",null,7,"wear",null,"дорогоцінності","wear",null,null,null,"wear"]
[8,"shirt",null,"грим, мейк-ап",null,8,"shirt",null,"грим, мейк-ап","shirt",null,null,null,"shirt"]
[9,"make up",null,"галстук",null,9,"make up",null,"галстук","make up",null,null,null,"make up"]
[10,"shoes",null,"шолом",null,10,"shoes",null,"шолом","shoes",null,null,null,"shoes"]
[11,"pullover",null,"шум, гамір",null,11,"pullover",null,"шум, гамір","pullover",null,null,null,"pullover"]
[]
[]
[null,"Name_______________________              Date_______",null,null,null,null,"Name_______________________              Date_______",null,null,"Name_________________________              Date_______",null,null,null,"Name_________________________              Date_______"]
[]
[1,"trainers",null,"уніформа",null,1,"trainers",null,"уніформа","trainers",null,null,null,"trainers"]
[2,"jewellery",null,"носити",null,2,"jewellery",null,"носити","jewellery",null,null,null,"jewellery"]
[3,"tie",null,"сорочка",null,3,"tie",null,"сорочка","tie",null,null,null,"tie"]
[4,"helmet",null,"пуловер",null,4,"helmet",null,"пуловер","helmet",null,null,null,"helmet"]
[5,"noise",null,"туфлі",null,5,"noise",null,"туфлі","noise",null,null,null,"noise"]
[6,"uniform",null,"кросівки",null,6,"uniform",null,"кросівки","uniform",null,null,null,"uniform"]
[7,"wear",null,"дорогоцінності",null,7,"wear",null,"дорогоцінності","wear",null,null,null,"wear"]
[8,"shirt",null,"грим, мейк-ап",null,8,"shirt",null,"грим, мейк-ап","shirt",null,null,null,"shirt"]
[9,"make up",null,"галстук",null,9,"make up",null,"галстук","make up",null,null,null,"make up"]
[10,"shoes",null,"шолом",null,10,"shoes",null,"шолом","shoes",null,null,null,"shoes"]
[11,"pullover",null,"шум, гамір",null,11,"pullover",null,"шум, гамір","pullover",null,null,null,"pullover"]
[]
[]
[null,"Name_______________________              Date_______",null,null,null,null,"Name_______________________              Date_______",null,null,"Name_________________________              Date_______",null,null,null,"Name_________________________              Date_______"]
[]
[1,"trainers",null,"уніформа",null,10,"shoes",null,"шолом","trainers",null,null,null,"shoes"]
[2,"jewellery",null,"носити",null,11,"pullover",null,"шум, гамір","jewellery",null,null,null,"pullover"]
[3,"tie",null,"сорочка",null,null,null,null,null,"tie"]
[4,"helmet",null,"пуловер",null,null,null,null,null,"helmet"]
[5,"noise",null,"туфлі",null,null,null,null,null,"noise"]
[6,"uniform",null,"кросівки",null,null,null,null,null,"uniform"]
[7,"wear",null,"дорогоцінності",null,null,null,null,null,"wear"]
[8,"shirt",null,"грим, мейк-ап",null,null,null,null,null,"shirt"]
[9,"make up",null,"галстук",null,null,null,null,null,"make up"]

{"sheet":"Лист3","index":36,"n_rows":58,"n_cols":15,"rows_kept":58,"cut":false,"hidden":false,"merged":[]}
["Name_________________________              Date_______",null,null,null,"Name_________________________              Date_______",null,null,null,"Name__________________              Date_______",null,null,null,null,null,"Name______________________              Date_______"]
[]
[null,"use",1,"геть, далеко",null,"way",1,"носити","away",null,null,null,"away"]
[null,"technology",2,"так, таким чином",null,"develop",2,"виснажитися","chance",null,null,null,"chance"]
[null,"talk",3,"вивчати",null,"On the other hand",3,"3 іншого боку","learn",null,null,null,"learn"]
[null,"so",4,"використовувати",null,"trust",4,"порозумітися з","meet",null,null,null,"meet"]
[null,"screen",5,"технологія",null,"adult",5,"нагорода","microphone",null,null,null,"microphone"]
[null,"over",6,"екран",null,"get through to",6,"консультант","over",null,null,null,"over"]
[null,"microphone",7,"розмовляти",null,"reward",7,"навіть","screen",null,null,null,"screen"]
[null,"meet",8,"через",null,"counselor",8,"шлях, спосіб","so",null,null,null,"so"]
[null,"learn",9,"мікрофон",null,"even",9,"довіряти","talk",null,null,null,"talk"]
[null,"chance",10,"шанс, нагода, можливість",null,"wear ",10,"дорослий","technology",null,null,null,"technology"]
[null,"away",11,"зустрічати;",null,"wear out",11,"розвивати","use",null,null,null,"use"]
[]
[]
["Name_________________________              Date_______",null,null,null,"Name_________________________              Date_______",null,null,null,"Name__________________              Date_______",null,null,null,null,null,"Name______________________              Date_______"]
[]
[null,"use",1,"геть, далеко",null,"way",1,"носити","away",null,null,null,"away"]
[null,"technology",2,"так, таким чином",null,"develop",2,"виснажитися","chance",null,null,null,"chance"]
[null,"talk",3,"вивчати",null,"On the other hand",3,"3 іншого боку","learn",null,null,null,"learn"]
[null,"so",4,"використовувати",null,"trust",4,"порозумітися з","meet",null,null,null,"meet"]
[null,"screen",5,"технологія",null,"adult",5,"нагорода","microphone",null,null,null,"microphone"]
[null,"over",6,"екран",null,"get through to",6,"консультант","over",null,null,null,"over"]
[null,"microphone",7,"розмовляти",null,"reward",7,"навіть","screen",null,null,null,"screen"]
[null,"meet",8,"через",null,"counselor",8,"шлях, спосіб","so",null,null,null,"so"]
[null,"learn",9,"мікрофон",null,"even",9,"довіряти","talk",null,null,null,"talk"]
[null,"chance",10,"шанс, нагода, можливість",null,"wear ",10,"дорослий","technology",null,null,null,"technology"]
[null,"away",11,"зустрічати;",null,"wear out",11,"розвивати","use",null,null,null,"use"]
[]
[]
["Name_________________________              Date_______",null,null,null,"Name_________________________              Date_______",null,null,null,"Name__________________              Date_______",null,null,null,null,null,"Name______________________              Date_______"]
[]
[null,"use",1,"геть, далеко",null,"way",1,"носити","away",null,null,null,"away"]
[null,"technology",2,"так, таким чином",null,"develop",2,"виснажитися","chance",null,null,null,"chance"]
[null,"talk",3,"вивчати",null,"On the other hand",3,"3 іншого боку","learn",null,null,null,"learn"]
[null,"so",4,"використовувати",null,"trust",4,"порозумітися з","meet",null,null,null,"meet"]
[null,"screen",5,"технологія",null,"adult",5,"нагорода","microphone",null,null,null,"microphone"]
[null,"over",6,"екран",null,"get through to",6,"консультант","over",null,null,null,"over"]
[null,"microphone",7,"розмовляти",null,"reward",7,"навіть","screen",null,null,null,"screen"]
[null,"meet",8,"через",null,"counselor",8,"шлях, спосіб","so",null,null,null,"so"]
[null,"learn",9,"мікрофон",null,"even",9,"довіряти","talk",null,null,null,"talk"]
[null,"chance",10,"шанс, нагода, можливість",null,"wear ",10,"дорослий","technology",null,null,null,"technology"]
[null,"away",11,"зустрічати;",null,"wear out",11,"розвивати","use",null,null,null,"use"]
[]
[]
["Name_________________________              Date_______",null,null,null,"Name_________________________              Date_______",null,null,null,"Name__________________              Date_______",null,null,null,null,null,"Name______________________              Date_______"]
[]
[null,"use",1,"геть, далеко",null,"way",1,"носити","away",null,null,null,"away"]
[null,"technology",2,"так, таким чином",null,"develop",2,"виснажитися","chance",null,null,null,"chance"]
[null,"talk",3,"вивчати",null,"On the other hand",3,"3 іншого боку","learn",null,null,null,"learn"]
[null,"so",4,"використовувати",null,"trust",4,"порозумітися з","meet",null,null,null,"meet"]
[null,"screen",5,"технологія",null,"adult",5,"нагорода","microphone",null,null,null,"microphone"]
[null,"over",6,"екран",null,"get through to",6,"консультант","over",null,null,null,"over"]
[null,"microphone",7,"розмовляти",null,"reward",7,"навіть","screen",null,null,null,"screen"]
[null,"meet",8,"через",null,"counselor",8,"шлях, спосіб","so",null,null,null,"so"]
[null,"learn",9,"мікрофон",null,"even",9,"довіряти","talk",null,null,null,"talk"]
[null,"chance",10,"шанс, нагода, можливість",null,"wear ",10,"дорослий","technology",null,null,null,"technology"]
[null,"away",11,"зустрічати;",null,"wear out",11,"розвивати","use",null,null,null,"use"]

{"sheet":"Лист4","index":37,"n_rows":31,"n_cols":5,"rows_kept":31,"cut":false,"hidden":false,"merged":[]}
["to tidy up the class ","[pɑːt]","прибрати у класі"]
["to take part"," [ækˈtɪvətɪ]","взяти участь"]
["to surf the net","[ˈpræktɪs]","жувати гумку"]
["to shoot films","[ʃuːt]","заняття після уроків (школи)"]
["to practise","[wɔːk]","знімати фільми"]
["to go for a walk","[sɜːf] ","мандрувати, блукати в  інтернеті, сидіти в інтернеті,переходити з одого сайту на інший "]
["to chew gum","[ʧuː]","піти на прогулянку"]
["to  skip classes",null,"практикувати"]
["after-school activity ","[ˈtaɪdɪ]","пропускати уроки"]
[]
[null,1,"знімати фільми",1,"знімати фільми"]
[null,2,"мандрувати, блукати в  інтернеті, сидіти в інтернеті,переходити з одого сайту на інший ",2,"мандрувати, блукати в  інтернеті, сидіти в інтернеті,переходити з одого сайту на інший "]
[null,3,"піти на прогулянку",3,"піти на прогулянку"]
[null,4,"прибрати у класі",4,"прибрати у класі"]
[null,5,"практикувати",5,"практикувати"]
[null,6,"пропускати уроки",6,"пропускати уроки"]
[null,7,"взяти участь",7,"взяти участь"]
[null,8,"жувати гумку",8,"жувати гумку"]
[null,9,"заняття після уроків (школи)",9,"заняття після уроків (школи)"]
[]
[null,1,"через",1,"через"]
[null,2,"так, таким чином",2,"так, таким чином"]
[null,3,"шанс, нагода, можливість",3,"шанс, нагода, можливість"]
[null,4,"зустрічати;",4,"зустрічати;"]
[null,5,"технологія",5,"технологія"]
[null,6,"екран",6,"екран"]
[null,7,"розмовляти",7,"розмовляти"]
[null,8,"мікрофон",8,"мікрофон"]
[null,9,"геть, далеко",9,"геть, далеко"]
[null,10,"вивчати",10,"вивчати"]
[null,11,"використовувати",11,"використовувати"]

{"sheet":"Лист5","index":38,"n_rows":56,"n_cols":14,"rows_kept":56,"cut":false,"hidden":false,"merged":[]}
[null,"Name_______________________              Date_______",null,null,null,null,"Name_______________________              Date_______",null,null,"Name_________________________              Date_______",null,null,null,"Name_________________________              Date_______"]
[]
[1,"after-school activity ",null,"прибрати у класі",null,1,"after-school activity ",null,"прибрати у класі","to tidy up the class ",null,null,null,"to tidy up the class "]
[2,"to  skip classes",null,"взяти участь",null,2,"to  skip classes",null,"взяти участь","to take part",null,null,null,"to take part"]
[3,"to chew gum",null,"жувати гумку",null,3,"to chew gum",null,"жувати гумку","to surf the net",null,null,null,"to surf the net"]
[4,"to go for a walk",null,"заняття після уроків (школи)",null,4,"to go for a walk",null,"заняття після уроків (школи)","to shoot films",null,null,null,"to shoot films"]
[5,"to practise",null,"знімати фільми",null,5,"to practise",null,"знімати фільми","to practise",null,null,null,"to practise"]
[6,"to shoot films",null,"мандрувати, блукати в  інтернеті, сидіти в інтернеті,переходити з одого сайту на інший ",null,6,"to shoot films",null,"мандрувати, блукати в  інтернеті, сидіти в інтернеті,переходити з одого сайту на інший ","to go for a walk",null,null,null,"to go for a walk"]
[7,"to surf the net",null,"піти на прогулянку",null,7,"to surf the net",null,"піти на прогулянку","to chew gum",null,null,null,"to chew gum"]
[8,"to take part",null,"практикувати",null,8,"to take part",null,"практикувати","to  skip classes",null,null,null,"to  skip classes"]
[9,"to tidy up the class ",null,"пропускати уроки",null,9,"to tidy up the class ",null,"пропускати уроки","after-school activity ",null,null,null,"after-school activity "]
[]
[]
[]
[]
[null,"Name_______________________              Date_______",null,null,null,null,"Name_______________________              Date_______",null,null,"Name_________________________              Date_______",null,null,null,"Name_________________________              Date_______"]
[]
[1,"after-school activity ",null,"прибрати у класі",null,1,"after-school activity ",null,"прибрати у класі","to tidy up the class ",null,null,null,"to tidy up the class "]
[2,"to  skip classes",null,"взяти участь",null,2,"to  skip classes",null,"взяти участь","to take part",null,null,null,"to take part"]
[3,"to chew gum",null,"жувати гумку",null,3,"to chew gum",null,"жувати гумку","to surf the net",null,null,null,"to surf the net"]
[4,"to go for a walk",null,"заняття після уроків (школи)",null,4,"to go for a walk",null,"заняття після уроків (школи)","to shoot films",null,null,null,"to shoot films"]
[5,"to practise",null,"знімати фільми",null,5,"to practise",null,"знімати фільми","to practise",null,null,null,"to practise"]
[6,"to shoot films",null,"мандрувати, блукати в  інтернеті, сидіти в інтернеті,переходити з одого сайту на інший ",null,6,"to shoot films",null,"мандрувати, блукати в  інтернеті, сидіти в інтернеті,переходити з одого сайту на інший ","to go for a walk",null,null,null,"to go for a walk"]
[7,"to surf the net",null,"піти на прогулянку",null,7,"to surf the net",null,"піти на прогулянку","to chew gum",null,null,null,"to chew gum"]
[8,"to take part",null,"практикувати",null,8,"to take part",null,"практикувати","to  skip classes",null,null,null,"to  skip classes"]
[9,"to tidy up the class ",null,"пропускати уроки",null,9,"to tidy up the class ",null,"пропускати уроки","after-school activity ",null,null,null,"after-school activity "]
[]
[]
[]
[]
[null,"Name_______________________              Date_______",null,null,null,null,"Name_______________________              Date_______",null,null,"Name_________________________              Date_______",null,null,null,"Name_________________________              Date_______"]
[]
[1,"after-school activity ",null,"прибрати у класі",null,1,"after-school activity ",null,"прибрати у класі","to tidy up the class ",null,null,null,"to tidy up the class "]
[2,"to  skip classes",null,"взяти участь",null,2,"to  skip classes",null,"взяти участь","to take part",null,null,null,"to take part"]
[3,"to chew gum",null,"жувати гумку",null,3,"to chew gum",null,"жувати гумку","to surf the net",null,null,null,"to surf the net"]
[4,"to go for a walk",null,"заняття після уроків (школи)",null,4,"to go for a walk",null,"заняття після уроків (школи)","to shoot films",null,null,null,"to shoot films"]
[5,"to practise",null,"знімати фільми",null,5,"to practise",null,"знімати фільми","to practise",null,null,null,"to practise"]
[6,"to shoot films",null,"мандрувати, блукати в  інтернеті, сидіти в інтернеті,переходити з одого сайту на інший ",null,6,"to shoot films",null,"мандрувати, блукати в  інтернеті, сидіти в інтернеті,переходити з одого сайту на інший ","to go for a walk",null,null,null,"to go for a walk"]
[7,"to surf the net",null,"піти на прогулянку",null,7,"to surf the net",null,"піти на прогулянку","to chew gum",null,null,null,"to chew gum"]
[8,"to take part",null,"практикувати",null,8,"to take part",null,"практикувати","to  skip classes",null,null,null,"to  skip classes"]
[9,"to tidy up the class ",null,"пропускати уроки",null,9,"to tidy up the class ",null,"пропускати уроки","after-school activity ",null,null,null,"after-school activity "]
[]
[]
[]
[]
[null,"Name_______________________              Date_______",null,null,null,null,"Name_______________________              Date_______",null,null,"Name_________________________              Date_______",null,null,null,"Name_________________________              Date_______"]
[]
[1,"after-school activity ",null,"прибрати у класі",null,1,"after-school activity ",null,"прибрати у класі","to tidy up the class ",null,null,null,"to tidy up the class "]
[2,"to  skip classes",null,"взяти участь",null,2,"to  skip classes",null,"взяти участь","to take part",null,null,null,"to take part"]
[3,"to chew gum",null,"жувати гумку",null,3,"to chew gum",null,"жувати гумку","to surf the net",null,null,null,"to surf the net"]
[4,"to go for a walk",null,"заняття після уроків (школи)",null,4,"to go for a walk",null,"заняття після уроків (школи)","to shoot films",null,null,null,"to shoot films"]
[5,"to practise",null,"знімати фільми",null,5,"to practise",null,"знімати фільми","to practise",null,null,null,"to practise"]
[6,"to shoot films",null,"мандрувати, блукати в  інтернеті, сидіти в інтернеті,переходити з одого сайту на інший ",null,6,"to shoot films",null,"мандрувати, блукати в  інтернеті, сидіти в інтернеті,переходити з одого сайту на інший ","to go for a walk",null,null,null,"to go for a walk"]
[7,"to surf the net",null,"піти на прогулянку",null,7,"to surf the net",null,"піти на прогулянку","to chew gum",null,null,null,"to chew gum"]
[8,"to take part",null,"практикувати",null,8,"to take part",null,"практикувати","to  skip classes",null,null,null,"to  skip classes"]
[9,"to tidy up the class ",null,"пропускати уроки",null,9,"to tidy up the class ",null,"пропускати уроки","after-school activity ",null,null,null,"after-school activity "]

{"sheet":"Лист6","index":39,"n_rows":10,"n_cols":2,"rows_kept":10,"cut":false,"hidden":false,"merged":[]}
["an event"," поді́я"]
["a club member","член клубу"]
["to dream","мрі́яти, уявля́ти"]
["to practice","практикувати"]
["to try out","випробовувати"]
["handy ","ручний"]
["I am keen on","я захоплююся"]
["to get together","збиратися, зустрічати"]
["to hang around (with)","зависати, бродити навколо"]
["to join in","приєднатися до"]

{"sheet":"Лист7","index":40,"n_rows":9,"n_cols":3,"rows_kept":9,"cut":false,"hidden":false,"merged":[]}
["late","[leɪt]","пізно"]
["heavy","[ˈhevɪ]","важкий"]
["cheap","[ʧiːp]","дешевий"]
["fat","[fæt]","товстий (повний)"]
["short","[ʃɔːt]","короткий"]
["light","[laɪt]","світлий"]
["through","[θruː]","крізь, через"]
["switch on","[swɪʧ]","увімкнути"]
["switch off","[swɪʧ]","вимкнути"]

{"sheet":"Лист8","index":41,"n_rows":10,"n_cols":3,"rows_kept":10,"cut":false,"hidden":false,"merged":[]}
["tidy (up) the room","[ˈtaɪdɪ]","прибрати у кімнаті"]
["do the washing up","[ˈwɔʃɪŋ]","мити посуд"]
["do the cooking","[ˈkukɪŋ]","приготувати їсти"]
[" iron","[ˈaɪən]","залізо, праска"]
["do the ironing","[ˈaɪənɪŋ]","прасувати"]
["sweep the floor","[swiːp]","замести підлогу"]
["water the plants","[ˈwɔːtə] [plɑːnts]","полити квіти"]
["do the laundry","[ˈlɔːndrɪ]","прати"]
["thing","[θɪŋ]","річ"]
[" fix things","[fɪks]","ремонтувати речі"]

{"sheet":"Лист9","index":42,"n_rows":10,"n_cols":3,"rows_kept":10,"cut":false,"hidden":false,"merged":[]}
["peel","[piːl]","очища́ти (фрукти, овочі)"]
["slice","[slaɪs]","рі́зати тонки́ми скибочка́ми"]
["mash","[mæʃ]","дави́ти; розмина́ти;"]
["mix","[mɪks]","змі́шувати"]
["oil","[ɔɪl]","олі́я; поливати олією"]
["boil","[bɔɪl]","кип'ятити"]
["chop","[ʧɔp]","руба́ти; нарі́зувати, криши́ти"]
["pour","[pɔː]","лити"]
["cut","[kʌt]","різати"]
["fry","[fraɪ]","смажити"]

{"sheet":"Лист10","index":43,"n_rows":11,"n_cols":7,"rows_kept":11,"cut":false,"hidden":false,"merged":[]}
[1,"food","[fuːd]","їжа",null,"вечеря","хліб"]
[2,"plant","[plɑːnt]","завод; рослина",null,"голод","рости, вирощувати"]
[3,"wheat","[(h)wiːt]","пшениця",null,"завод; рослина","картопля"]
[4,"corn","[kɔːn]","кукурудза",null,"земля, країна","пшениця"]
[5,"rice","[raɪs]","рис",null,"картопля","кукурудза"]
[6,"potato","[pəˈteɪtəu]","картопля",null,"їжа","рис"]
[7,"bread","[bred]","хліб",null,"кукурудза","їжа"]
[8,"supper","[ˈsʌpə]","вечеря",null,"пшениця","земля, країна"]
[9,"grow","[grəu]","рости, вирощувати",null,"рис","завод; рослина"]
[10,"land","[lænd]","земля, країна",null,"рости, вирощувати","голод"]
[11,"hunger","[ˈhʌŋgə]","голод",null,"хліб","вечеря"]

{"sheet":"Самостійна (5)","index":44,"n_rows":78,"n_cols":25,"rows_kept":78,"cut":false,"hidden":false,"merged":[]}
["Name_________________________              Date_______",null,null,null,null,"Name_________________________              Date_______",null,null,null,"Name_________________________              Date_______",null,null,null,"Name_________________________              Date_______"]
[]
[null,{"$f":"S3","v":"chemicals"},1,{"$f":"V3","v":"хімікати"},null,null,{"$f":"S3","v":"chemicals"},1,{"$f":"V3","v":"хімікати"},{"$f":"S16","v":"instead"},null,null,null,{"$f":"J3","v":"instead"},null,null,null,null,"chemicals",null,1,"хімікати"]
[null,"fizzy",2,"спраглий",null,null,{"$f":"S4","v":"fizzy"},2,{"$f":"V4","v":"спраглий"},{"$f":"S17","v":"thirsty"},null,null,null,{"$f":"J4","v":"thirsty"},null,null,null,null,"fizzy",null,2,"спраглий"]
[null,"fresh",3,"слива",null,null,"fresh",3,"слива","organic",null,null,null,"organic",null,null,null,null,"fresh",null,3,"слива"]
[null,"instead",4,"свіжий",null,null,"instead",4,"свіжий","possible",null,null,null,"possible",null,null,null,null,"instead",null,4,"свіжий"]
[null,"local",5,"органічний",null,null,"local",5,"органічний","plum",null,null,null,"plum",null,null,null,null,"local",null,5,"органічний"]
[null,"olive",6,"можливий",null,null,"olive",6,"можливий","produced",null,null,null,"produced",null,null,null,null,"olive",null,6,"можливий"]
[null,"organic",7,"місцевий",null,null,"organic",7,"місцевий","olive",null,null,null,"olive",null,null,null,null,"organic",null,7,"місцевий"]
[null,"plum",8,"маслина, оливка",null,null,"plum",8,"маслина, оливка","local",null,null,null,"local",null,null,null,null,"plum",null,8,"маслина, оливка"]
[null,"possible",9,"замість",null,null,"possible",9,"замість","fizzy",null,null,null,"fizzy",null,null,null,null,"possible",null,9,"замість"]
[null,"produced",10,"газований",null,null,"produced",10,"газований","fresh",null,null,null,"fresh",null,null,null,null,"produced",null,10,"газований"]
[null,"thirsty",11,"виготовляти",null,null,"thirsty",11,"виготовляти","chemicals",null,null,null,"chemicals",null,null,null,null,"thirsty",null,11,"виготовляти"]
[]
["Name_________________________              Date_______",null,null,null,null,"Name_________________________              Date_______",null,null,null,"Name_________________________              Date_______",null,null,null,"Name_________________________              Date_______"]
[null,null,null,null,null,null,null,null,null,null,null,null,null,null,null,null,null,null,"instead"]
[null,{"$f":"S3","v":"chemicals"},1,{"$f":"V3","v":"хімікати"},null,null,{"$f":"B17","v":"chemicals"},1,{"$f":"D17","v":"хімікати"},{"$f":"J3","v":"instead"},null,null,null,{"$f":"J17","v":"instead"},null,null,null,null,"thirsty"]
[null,{"$f":"S4","v":"fizzy"},2,{"$f":"V4","v":"спраглий"},null,null,{"$f":"B18","v":"fizzy"},2,{"$f":"D18","v":"спраглий"},{"$f":"J4","v":"thirsty"},null,null,null,{"$f":"J18","v":"thirsty"},null,null,null,null,"organic",null,null,null,null,null,"instead"]
[null,"fresh",3,"слива",null,null,"fresh",3,"слива","organic",null,null,null,"organic",null,null,null,null,"possible",null,null,null,null,null,"thirsty"]
[null,"instead",4,"свіжий",null,null,"instead",4,"свіжий","possible",null,null,null,"possible",null,null,null,null,"plum",null,null,null,null,null,"organic"]
[null,"local",5,"органічний",null,null,"local",5,"органічний","plum",null,null,null,"plum",null,null,null,null,"produced",null,null,null,null,null,"possible"]
[null,"olive",6,"можливий",null,null,"olive",6,"можливий","produced",null,null,null,"produced",null,null,null,null,"olive",null,null,null,null,null,"plum"]
[null,"organic",7,"місцевий",null,null,"organic",7,"місцевий","olive",null,null,null,"olive",null,null,null,null,"local",null,null,null,null,null,"produced"]
[null,"plum",8,"маслина, оливка",null,null,"plum",8,"маслина, оливка","local",null,null,null,"local",null,null,null,null,"fizzy",null,null,null,null,null,"olive"]
[null,"possible",9,"замість",null,null,"possible",9,"замість","fizzy",null,null,null,"fizzy",null,null,null,null,"fresh",null,null,null,null,null,"local"]
[null,"produced",10,"газований",null,null,"produced",10,"газований","fresh",null,null,null,"fresh",null,null,null,null,"chemicals",null,null,null,null,null,"fizzy"]
[null,"thirsty",11,"виготовляти",null,null,"thirsty",11,"виготовляти","chemicals",null,null,null,"chemicals",null,null,null,null,null,null,null,null,null,null,"fresh"]
[null,null,null,null,null,null,null,null,null,null,null,null,null,null,null,null,null,null,null,null,null,null,null,null,"chemicals"]
["Name_________________________              Date_______",null,null,null,null,"Name_________________________              Date_______",null,null,null,"Name_________________________              Date_______",null,null,null,"Name_________________________              Date_______"]
[]
[null,{"$f":"B17","v":"chemicals"},1,{"$f":"D17","v":"хімікати"},null,null,{"$f":"B31","v":"chemicals"},1,{"$f":"D31","v":"хімікати"},{"$f":"J17","v":"instead"},null,null,null,{"$f":"J31","v":"instead"}]
[null,{"$f":"B18","v":"fizzy"},2,{"$f":"D18","v":"спраглий"},null,null,{"$f":"B32","v":"fizzy"},2,{"$f":"D32","v":"спраглий"},{"$f":"J18","v":"thirsty"},null,null,null,{"$f":"J32","v":"thirsty"}]
[null,"fresh",3,"слива",null,null,"fresh",3,"слива","organic",null,null,null,"organic"]
[null,"instead",4,"свіжий",null,null,"instead",4,"свіжий","possible",null,null,null,"possible"]
[null,"local",5,"органічний",null,null,"local",5,"органічний","plum",null,null,null,"plum"]
[null,"olive",6,"можливий",null,null,"olive",6,"можливий","produced",null,null,null,"produced"]
[null,"organic",7,"місцевий",null,null,"organic",7,"місцевий","olive",null,null,null,"olive"]
[null,"plum",8,"маслина, оливка",null,null,"plum",8,"маслина, оливка","local",null,null,null,"local"]
[null,"possible",9,"замість",null,null,"possible",9,"замість","fizzy",null,null,null,"fizzy"]
[null,"produced",10,"газований",null,null,"produced",10,"газований","fresh",null,null,null,"fresh"]
[null,"thirsty",11,"виготовляти",null,null,"thirsty",11,"виготовляти","chemicals",null,null,null,"chemicals"]
[]
["Name_________________________              Date_______",null,null,null,null,null,null,null,null,"Name_________________________              Date_______",null,null,null,"Name_________________________              Date_______"]
[]
[null,{"$f":"B31","v":"chemicals"},1,{"$f":"D31","v":"хімікати"},null,null,{"$f":"B39","v":"possible"},9,{"$f":"D39","v":"замість"},{"$f":"J31","v":"instead"},null,null,null,{"$f":"J39","v":"fizzy"}]
[null,{"$f":"B32","v":"fizzy"},2,{"$f":"D32","v":"спраглий"},null,null,{"$f":"B40","v":"produced"},10,{"$f":"D40","v":"газований"},{"$f":"J32","v":"thirsty"},null,null,null,{"$f":"J40","v":"fresh"}]
[null,"fresh",3,"слива",null,null,{"$f":"B41","v":"thirsty"},11,{"$f":"D41","v":"виготовляти"},"organic",null,null,null,{"$f":"J41","v":"chemicals"}]
[null,"instead",4,"свіжий",null,null,null,null,null,"possible"]
[null,"local",5,"органічний",null,null,null,null,null,"plum"]
[null,"olive",6,"можливий",null,null,null,null,null,"produced"]
[null,{"$f":"B37","v":"organic"},7,{"$f":"D37","v":"місцевий"},null,null,null,null,null,{"$f":"J37","v":"olive"}]
[null,{"$f":"B38","v":"plum"},8,{"$f":"D38","v":"маслина, оливка"},null,null,null,null,null,{"$f":"J38","v":"local"}]
[]
[null,7]
[]
[]
[null,null,1,"як"]
[null,null,2,"що, який ",null,null,null,1,"wife"]
[null,null,3,"чому",null,null,null,2,"to laugh"]
[null,null,4,"чий",null,null,null,3,"question"]
[null,null,5,"хто",null,null,null,4,"plump"]
[null,null,6,"коли",null,null,null,5,"pilot"]
[null,null,7,"де, куди",null,null,null,6,"niece"]
[null,null,8," скільки ( як бгато)",null,null,null,7,"curious"]
[null,null,null,null,null,null,null,8,"boring"]
[null,null,null,null,null,null,null,9,"bald"]
[null,null,1,"як",null,null,null,10,"aunt"]
[null,null,2,"що, який "]
[null,null,3,"чому",null,null,null,1,"wife"]
[null,null,4,"чий",null,null,null,2,"to laugh"]
[null,null,5,"хто",null,null,null,3,"question"]
[null,null,6,"коли",null,null,null,4,"plump"]
[null,null,7,"де, куди",null,null,null,5,"pilot"]
[null,null,8," скільки ( як бгато)",null,null,null,6,"niece"]
[null,null,null,null,null,null,null,7,"curious"]
[null,null,null,null,null,null,null,8,"boring"]
[null,null,null,null,null,null,null,9,"bald"]
[null,null,null,null,null,null,null,10,"aunt"]

{"sheet":"Самостійна","index":45,"n_rows":78,"n_cols":25,"rows_kept":78,"cut":false,"hidden":false,"merged":[]}
["Name_________________________              Date_______",null,null,null,null,"Name_________________________              Date_______",null,null,null,"Name_________________________              Date_______",null,null,null,"Name_________________________              Date_______"]
[]
[null,{"$f":"S3","v":"peel"},1,{"$f":"V3","v":"смажити"},null,null,{"$f":"S3","v":"peel"},1,{"$f":"V3","v":"смажити"},{"$f":"S16","v":"instead"},null,null,null,{"$f":"J3","v":"instead"},null,null,null,null,"peel",null,"смажити","смажити"]
[null,"slice",2,"руба́ти; нарі́зувати, криши́ти",null,null,{"$f":"S4","v":"slice"},2,{"$f":"V4","v":"руба́ти; нарі́зувати, криши́ти"},{"$f":"S17","v":"thirsty"},null,null,null,{"$f":"J4","v":"thirsty"},null,null,null,null,"slice",null,"руба́ти; нарі́зувати, криши́ти","руба́ти; нарі́зувати, криши́ти"]
[null,"mash",3,"рі́зати тонки́ми скибочка́ми",null,null,"mash",3,"рі́зати тонки́ми скибочка́ми","organic",null,null,null,"organic",null,null,null,null,"mash",null,"рі́зати тонки́ми скибочка́ми","рі́зати тонки́ми скибочка́ми"]
[null,"mix",4,"різати",null,null,"mix",4,"різати","possible",null,null,null,"possible",null,null,null,null,"mix",null,"різати","різати"]
[null,"oil",5,"очища́ти (фрукти, овочі)",null,null,"oil",5,"очища́ти (фрукти, овочі)","plum",null,null,null,"plum",null,null,null,null,"oil",null,"очища́ти (фрукти, овочі)","очища́ти (фрукти, овочі)"]
[null,"boil",6,"олі́я; поливати олією",null,null,"boil",6,"олі́я; поливати олією","produced",null,null,null,"produced",null,null,null,null,"boil",null,"олі́я; поливати олією","олі́я; поливати олією"]
[null,"chop",7,"лити",null,null,"chop",7,"лити","olive",null,null,null,"olive",null,null,null,null,"chop",null,"лити","лити"]
[null,"pour",8,"кип'ятити",null,null,"pour",8,"кип'ятити","local",null,null,null,"local",null,null,null,null,"pour",null,"кип'ятити","кип'ятити"]
[null,"cut",9,"змі́шувати",null,null,"cut",9,"змі́шувати","fizzy",null,null,null,"fizzy",null,null,null,null,"cut",null,"змі́шувати","змі́шувати"]
[null,"fry",10,"дави́ти; розмина́ти;",null,null,"fry",10,"дави́ти; розмина́ти;","fresh",null,null,null,"fresh",null,null,null,null,"fry",null,"дави́ти; розмина́ти;","дави́ти; розмина́ти;"]
[null,0,11,0,null,null,0,11,0,"chemicals",null,null,null,"chemicals"]
[]
["Name_________________________              Date_______",null,null,null,null,"Name_________________________              Date_______",null,null,null,"Name_________________________              Date_______",null,null,null,"Name_________________________              Date_______"]
[null,null,null,null,null,null,null,null,null,null,null,null,null,null,null,null,null,null,"instead"]
[null,{"$f":"S3","v":"peel"},1,{"$f":"V3","v":"смажити"},null,null,{"$f":"B17","v":"peel"},1,{"$f":"D17","v":"смажити"},{"$f":"J3","v":"instead"},null,null,null,{"$f":"J17","v":"instead"},null,null,null,null,"thirsty"]
[null,{"$f":"S4","v":"slice"},2,{"$f":"V4","v":"руба́ти; нарі́зувати, криши́ти"},null,null,{"$f":"B18","v":"slice"},2,{"$f":"D18","v":"руба́ти; нарі́зувати, криши́ти"},{"$f":"J4","v":"thirsty"},null,null,null,{"$f":"J18","v":"thirsty"},null,null,null,null,"organic",null,null,null,null,null,"instead"]
[null,"mash",3,"рі́зати тонки́ми скибочка́ми",null,null,"mash",3,"рі́зати тонки́ми скибочка́ми","organic",null,null,null,"organic",null,null,null,null,"possible",null,null,null,null,null,"thirsty"]
[null,"mix",4,"різати",null,null,"mix",4,"різати","possible",null,null,null,"possible",null,null,null,null,"plum",null,null,null,null,null,"organic"]
[null,"oil",5,"очища́ти (фрукти, овочі)",null,null,"oil",5,"очища́ти (фрукти, овочі)","plum",null,null,null,"plum",null,null,null,null,"produced",null,null,null,null,null,"possible"]
[null,"boil",6,"олі́я; поливати олією",null,null,"boil",6,"олі́я; поливати олією","produced",null,null,null,"produced",null,null,null,null,"olive",null,null,null,null,null,"plum"]
[null,"chop",7,"лити",null,null,"chop",7,"лити","olive",null,null,null,"olive",null,null,null,null,"local",null,null,null,null,null,"produced"]
[null,"pour",8,"кип'ятити",null,null,"pour",8,"кип'ятити","local",null,null,null,"local",null,null,null,null,"fizzy",null,null,null,null,null,"olive"]
[null,"cut",9,"змі́шувати",null,null,"cut",9,"змі́шувати","fizzy",null,null,null,"fizzy",null,null,null,null,"fresh",null,null,null,null,null,"local"]
[null,"fry",10,"дави́ти; розмина́ти;",null,null,"fry",10,"дави́ти; розмина́ти;","fresh",null,null,null,"fresh",null,null,null,null,"chemicals",null,null,null,null,null,"fizzy"]
[null,0,11,0,null,null,0,11,0,"chemicals",null,null,null,"chemicals",null,null,null,null,null,null,null,null,null,null,"fresh"]
[null,null,null,null,null,null,null,null,null,null,null,null,null,null,null,null,null,null,null,null,null,null,null,null,"chemicals"]
["Name_________________________              Date_______",null,null,null,null,"Name_________________________              Date_______",null,null,null,"Name_________________________              Date_______",null,null,null,"Name_________________________              Date_______"]
[]
[null,{"$f":"B17","v":"peel"},1,{"$f":"D17","v":"смажити"},null,null,{"$f":"B31","v":"peel"},1,{"$f":"D31","v":"смажити"},{"$f":"J17","v":"instead"},null,null,null,{"$f":"J31","v":"instead"}]
[null,{"$f":"B18","v":"slice"},2,{"$f":"D18","v":"руба́ти; нарі́зувати, криши́ти"},null,null,{"$f":"B32","v":"slice"},2,{"$f":"D32","v":"руба́ти; нарі́зувати, криши́ти"},{"$f":"J18","v":"thirsty"},null,null,null,{"$f":"J32","v":"thirsty"}]
[null,"mash",3,"рі́зати тонки́ми скибочка́ми",null,null,"mash",3,"рі́зати тонки́ми скибочка́ми","organic",null,null,null,"organic"]
[null,"mix",4,"різати",null,null,"mix",4,"різати","possible",null,null,null,"possible"]
[null,"oil",5,"очища́ти (фрукти, овочі)",null,null,"oil",5,"очища́ти (фрукти, овочі)","plum",null,null,null,"plum"]
[null,"boil",6,"олі́я; поливати олією",null,null,"boil",6,"олі́я; поливати олією","produced",null,null,null,"produced"]
[null,"chop",7,"лити",null,null,"chop",7,"лити","olive",null,null,null,"olive"]
[null,"pour",8,"кип'ятити",null,null,"pour",8,"кип'ятити","local",null,null,null,"local"]
[null,"cut",9,"змі́шувати",null,null,"cut",9,"змі́шувати","fizzy",null,null,null,"fizzy"]
[null,"fry",10,"дави́ти; розмина́ти;",null,null,"fry",10,"дави́ти; розмина́ти;","fresh",null,null,null,"fresh"]
[null,0,11,0,null,null,0,11,0,"chemicals",null,null,null,"chemicals"]
[]
["Name_________________________              Date_______",null,null,null,null,null,null,null,null,"Name_________________________              Date_______",null,null,null,"Name_________________________              Date_______"]
[]
[null,{"$f":"B31","v":"peel"},1,{"$f":"D31","v":"смажити"},null,null,{"$f":"B39","v":"cut"},9,{"$f":"D39","v":"змі́шувати"},{"$f":"J31","v":"instead"},null,null,null,{"$f":"J39","v":"fizzy"}]
[null,{"$f":"B32","v":"slice"},2,{"$f":"D32","v":"руба́ти; нарі́зувати, криши́ти"},null,null,{"$f":"B40","v":"fry"},10,{"$f":"D40","v":"дави́ти; розмина́ти;"},{"$f":"J32","v":"thirsty"},null,null,null,{"$f":"J40","v":"fresh"}]
[null,"mash",3,"рі́зати тонки́ми скибочка́ми",null,null,{"$f":"B41","v":0},11,{"$f":"D41","v":0},"organic",null,null,null,{"$f":"J41","v":"chemicals"}]
[null,"mix",4,"різати",null,null,null,null,null,"possible"]
[null,"oil",5,"очища́ти (фрукти, овочі)",null,null,null,null,null,"plum"]
[null,"boil",6,"олі́я; поливати олією",null,null,null,null,null,"produced"]
[null,{"$f":"B37","v":"chop"},7,{"$f":"D37","v":"лити"},null,null,null,null,null,{"$f":"J37","v":"olive"}]
[null,{"$f":"B38","v":"pour"},8,{"$f":"D38","v":"кип'ятити"},null,null,null,null,null,{"$f":"J38","v":"local"}]
[]
[null,7]
[]
[]
[null,null,1,"як"]
[null,null,2,"що, який ",null,null,null,1,"wife"]
[null,null,3,"чому",null,null,null,2,"to laugh"]
[null,null,4,"чий",null,null,null,3,"question"]
[null,null,5,"хто",null,null,null,4,"plump"]
[null,null,6,"коли",null,null,null,5,"pilot"]
[null,null,7,"де, куди",null,null,null,6,"niece"]
[null,null,8," скільки ( як бгато)",null,null,null,7,"curious"]
[null,null,null,null,null,null,null,8,"boring"]
[null,null,null,null,null,null,null,9,"bald"]
[null,null,1,"як",null,null,null,10,"aunt"]
[null,null,2,"що, який "]
[null,null,3,"чому",null,null,null,1,"wife"]
[null,null,4,"чий",null,null,null,2,"to laugh"]
[null,null,5,"хто",null,null,null,3,"question"]
[null,null,6,"коли",null,null,null,4,"plump"]
[null,null,7,"де, куди",null,null,null,5,"pilot"]
[null,null,8," скільки ( як бгато)",null,null,null,6,"niece"]
[null,null,null,null,null,null,null,7,"curious"]
[null,null,null,null,null,null,null,8,"boring"]
[null,null,null,null,null,null,null,9,"bald"]
[null,null,null,null,null,null,null,10,"aunt"]

{"sheet":"самост (2)","index":46,"n_rows":55,"n_cols":18,"rows_kept":55,"cut":false,"hidden":false,"merged":[]}
[{"$f":"J1","v":1},{"$f":"K1","v":"fresh"},{"$f":"L1","v":0},{"$f":"M1","v":"хімікати"},null,{"$f":"A1","v":1},{"$f":"B1","v":"fresh"},{"$f":"C1","v":0},{"$f":"D1","v":"хімікати"},1,"fresh",null,"хімікати",null,null,"chemicals","[ˈkemɪk(ə)lz]","хімікати"]
[{"$f":"J2","v":2},"possible",0,"спраглий",null,{"$f":"A2","v":2},"possible",0,"спраглий",2,"possible",null,"спраглий",null,null,"fizzy","[ˈfɪzɪ]","спраглий"]
[3,"instead",0,"слива",null,3,"instead",0,"слива",3,"instead",null,"слива",null,null,"fresh","[freʃ]","слива"]
[4,"plum",0,"свіжий",null,4,"plum",0,"свіжий",4,"plum",null,"свіжий",null,null,"instead","[ɪnˈsted]","свіжий"]
[5,"thirsty",0,"органічний",null,5,"thirsty",0,"органічний",5,"thirsty",null,"органічний",null,null,"local","[ˈləuk(ə)l]","органічний"]
[6,"fizzy",0,"можливий",null,6,"fizzy",0,"можливий",6,"fizzy",null,"можливий",null,null,"olive","[ˈɔlɪv]","можливий"]
[7,"local",0,"місцевий",null,7,"local",0,"місцевий",7,"local",null,"місцевий",null,null,"organic","[ɔːˈgænɪk]","місцевий"]
[8,"produced",0,"маслина, оливка",null,8,"produced",0,"маслина, оливка",8,"produced",null,"маслина, оливка",null,null,"plum","[plʌm]","маслина, оливка"]
[9,"chemicals",0,"йогурт",null,9,"chemicals",0,"йогурт",9,"chemicals",null,"йогурт",null,null,"possible","[ˈpɔsəbl]","замість"]
[10,"olive",0,"замість",null,10,"olive",0,"замість",10,"olive",null,"замість",null,null,"produced","[ˈprɔdjuːs]","газований"]
[11,{"$f":"K11","v":"yoghurt "},0,"газований",null,11,"yoghurt ",0,"газований",11,"yoghurt ",null,"газований",null,null,"thirsty","[ˈθɜːstɪ]","виготовляти"]
[12,{"$f":"K12","v":"broccoli"},0,"виготовляти",null,12,"broccoli",0,"виготовляти",12,"broccoli",null,"виготовляти"]
[13,{"$f":"K13","v":"organic"},0,"броколі",null,13,"organic",0,"броколі",13,"organic",null,"броколі"]
[]
[1,{"$f":"B1","v":"fresh"},{"$f":"C1","v":0},{"$f":"D1","v":"хімікати"},null,1,{"$f":"B15","v":"fresh"},{"$f":"C15","v":0},{"$f":"D15","v":"хімікати"}]
[2,{"$f":"B2","v":"possible"},0,"спраглий",null,2,{"$f":"B16","v":"possible"},0,"спраглий"]
[3,"instead",0,"слива",null,3,"instead",0,"слива"]
[4,"plum",0,"свіжий",null,4,"plum",0,"свіжий"]
[5,"thirsty",0,"органічний",null,5,"thirsty",0,"органічний"]
[6,"fizzy",0,"можливий",null,6,"fizzy",0,"можливий"]
[7,"local",0,"місцевий",null,7,"local",0,"місцевий"]
[8,"produced",0,"маслина, оливка",null,8,"produced",0,"маслина, оливка"]
[9,"chemicals",0,"йогурт",null,9,"chemicals",0,"йогурт"]
[10,"olive",0,"замість",null,10,"olive",0,"замість"]
[11,"yoghurt ",0,"газований",null,11,"yoghurt ",0,"газований"]
[12,"broccoli",0,"виготовляти",null,12,"broccoli",0,"виготовляти"]
[13,"organic",0,"броколі",null,13,"organic",0,"броколі"]
[]
[1,{"$f":"B15","v":"fresh"},{"$f":"C15","v":0},{"$f":"D15","v":"хімікати"},null,1,{"$f":"B29","v":"fresh"},{"$f":"C29","v":0},{"$f":"D29","v":"хімікати"}]
[2,{"$f":"B16","v":"possible"},0,"спраглий",null,2,{"$f":"B30","v":"possible"},0,"спраглий"]
[3,"instead",0,"слива",null,3,"instead",0,"слива"]
[4,"plum",0,"свіжий",null,4,"plum",0,"свіжий"]
[5,"thirsty",0,"органічний",null,5,"thirsty",0,"органічний"]
[6,"fizzy",0,"можливий",null,6,"fizzy",0,"можливий"]
[7,"local",0,"місцевий",null,7,"local",0,"місцевий"]
[8,"produced",0,"маслина, оливка",null,8,"produced",0,"маслина, оливка"]
[9,"chemicals",0,"йогурт",null,9,"chemicals",0,"йогурт"]
[10,"olive",0,"замість",null,10,"olive",0,"замість"]
[11,"yoghurt ",0,"газований",null,11,"yoghurt ",0,"газований"]
[12,"broccoli",0,"виготовляти",null,12,"broccoli",0,"виготовляти"]
[13,"organic",0,"броколі",null,13,"organic",0,"броколі"]
[]
[1,{"$f":"B29","v":"fresh"},{"$f":"C29","v":0},{"$f":"D29","v":"хімікати"},null,1,{"$f":"B43","v":"fresh"},{"$f":"C43","v":0},{"$f":"D43","v":"хімікати"}]
[2,{"$f":"B30","v":"possible"},0,"спраглий",null,2,{"$f":"B44","v":"possible"},0,"спраглий"]
[3,"instead",0,"слива",null,3,"instead",0,"слива"]
[4,"plum",0,"свіжий",null,4,"plum",0,"свіжий"]
[5,"thirsty",0,"органічний",null,5,"thirsty",0,"органічний"]
[6,"fizzy",0,"можливий",null,6,"fizzy",0,"можливий"]
[7,"local",0,"місцевий",null,7,"local",0,"місцевий"]
[8,"produced",0,"маслина, оливка",null,8,"produced",0,"маслина, оливка"]
[9,"chemicals",0,"йогурт",null,9,"chemicals",0,"йогурт"]
[10,"olive",0,"замість",null,10,"olive",0,"замість"]
[11,"yoghurt ",0,"газований",null,11,"yoghurt ",0,"газований"]
[12,"broccoli",0,"виготовляти",null,12,"broccoli",0,"виготовляти"]
[13,"organic",0,"броколі",null,13,"organic",0,"броколі"]

{"sheet":"Самостійна (3)","index":47,"n_rows":54,"n_cols":27,"rows_kept":54,"cut":false,"hidden":false,"merged":[]}
["Name_________________________              Date_______",null,null,null,null,"Name_________________________              Date_______",null,null,null,"Name_________________________              Date_______",null,null,null,"Name_________________________              Date_______"]
[]
[null,{"$f":"S3","v":"food"},1,{"$f":"V3","v":"потребувати"},null,null,{"$f":"S3","v":"food"},1,{"$f":"V3","v":"потребувати"},{"$f":"S16","v":"grow"},null,null,null,{"$f":"J3","v":"grow"},null,null,null,null,"food",null,1,"потребувати",null,null,"after that",null,"потребувати"]
[null,"plant",2,"потім",null,null,{"$f":"S4","v":"plant"},2,{"$f":"V4","v":"потім"},{"$f":"S17","v":"land"},null,null,null,{"$f":"J4","v":"land"},null,null,null,null,"plant",null,2,"потім",null,null,"put","[put]","потім"]
[null,"wheat",3,"подавати (на стіл)",null,null,"wheat",3,"подавати (на стіл)","hunger",null,null,null,"hunger",null,null,null,null,"wheat",null,3,"подавати (на стіл)",null,null,"serve","[sɜːv]","подавати (на стіл)"]
[null,"corn",4,"після цього",null,null,"corn",4,"після цього","wheat",null,null,null,"wheat",null,null,null,null,"corn",null,4,"після цього",null,null,"pancake","[ˈpænkeɪk]","після цього"]
[null,"rice",5,"нарешті",null,null,"rice",5,"нарешті","corn",null,null,null,"corn",null,null,null,null,"rice",null,5,"нарешті",null,null,"need","[niːd]","нарешті"]
[null,"potato",6,"млинці, оладки",null,null,"potato",6,"млинці, оладки","rice",null,null,null,"rice",null,null,null,null,"potato",null,6,"млинці, оладки",null,null,"finally","[ˈfaɪn(ə)lɪ]","млинці, оладки"]
[null,"bread",7,"класти",null,null,"bread",7,"класти","food",null,null,null,"food",null,null,null,null,"bread",null,7,"класти",null,null,"then","[ðen]","класти"]
[null,"supper",8,"додавати",null,null,"supper",8,"додавати","plant",null,null,null,"plant",null,null,null,null,"supper",null,8,"додавати",null,null,"add","[æd]","додавати"]
[null,"grow",9,"борошно",null,null,"grow",9,"борошно","potato",null,null,null,"potato",null,null,null,null,"grow",null,9,"борошно",null,null,"flour","[ˈflauə]","борошно"]
[null,"land",10,0,null,null,"land",10,0,"bread",null,null,null,"bread",null,null,null,null,"land"]
[null,"hunger",11,0,null,null,"hunger",11,0,"supper",null,null,null,"supper",null,null,null,null,"hunger"]
[]
["Name_________________________              Date_______",null,null,null,null,"Name_________________________              Date_______",null,null,null,"Name_________________________              Date_______",null,null,null,"Name_________________________              Date_______"]
[null,null,null,null,null,null,null,null,null,null,null,null,null,null,null,null,null,null,"grow"]
[null,{"$f":"S3","v":"food"},1,{"$f":"V3","v":"потребувати"},null,null,{"$f":"B17","v":"food"},1,{"$f":"D17","v":"потребувати"},{"$f":"J3","v":"grow"},null,null,null,{"$f":"J17","v":"grow"},null,null,null,null,"land"]
[null,{"$f":"S4","v":"plant"},2,{"$f":"V4","v":"потім"},null,null,{"$f":"B18","v":"plant"},2,{"$f":"D18","v":"потім"},{"$f":"J4","v":"land"},null,null,null,{"$f":"J18","v":"land"},null,null,null,null,"hunger"]
[null,"wheat",3,"подавати (на стіл)",null,null,"wheat",3,"подавати (на стіл)","hunger",null,null,null,"hunger",null,null,null,null,"wheat"]
[null,"corn",4,"після цього",null,null,"corn",4,"після цього","wheat",null,null,null,"wheat",null,null,null,null,"corn"]
[null,"rice",5,"нарешті",null,null,"rice",5,"нарешті","corn",null,null,null,"corn",null,null,null,null,"rice"]
[null,"potato",6,"млинці, оладки",null,null,"potato",6,"млинці, оладки","rice",null,null,null,"rice",null,null,null,null,"food"]
[null,"bread",7,"класти",null,null,"bread",7,"класти","food",null,null,null,"food",null,null,null,null,"plant"]
[null,"supper",8,"додавати",null,null,"supper",8,"додавати","plant",null,null,null,"plant",null,null,null,null,"potato"]
[null,"grow",9,"борошно",null,null,"grow",9,"борошно","potato",null,null,null,"potato",null,null,null,null,"bread"]
[null,"land",10,0,null,null,"land",10,0,"bread",null,null,null,"bread",null,null,null,null,"supper"]
[null,"hunger",11,0,null,null,"hunger",11,0,"supper",null,null,null,"supper"]
[]
["Name_________________________              Date_______",null,null,null,null,"Name_________________________              Date_______",null,null,null,"Name_________________________              Date_______",null,null,null,"Name_________________________              Date_______"]
[]
[null,{"$f":"B17","v":"food"},1,{"$f":"D17","v":"потребувати"},null,null,{"$f":"B31","v":"food"},1,{"$f":"D31","v":"потребувати"},{"$f":"J17","v":"grow"},null,null,null,{"$f":"J31","v":"grow"}]
[null,{"$f":"B18","v":"plant"},2,{"$f":"D18","v":"потім"},null,null,{"$f":"B32","v":"plant"},2,{"$f":"D32","v":"потім"},{"$f":"J18","v":"land"},null,null,null,{"$f":"J32","v":"land"}]
[null,"wheat",3,"подавати (на стіл)",null,null,"wheat",3,"подавати (на стіл)","hunger",null,null,null,"hunger"]
[null,"corn",4,"після цього",null,null,"corn",4,"після цього","wheat",null,null,null,"wheat"]
[null,"rice",5,"нарешті",null,null,"rice",5,"нарешті","corn",null,null,null,"corn"]
[null,"potato",6,"млинці, оладки",null,null,"potato",6,"млинці, оладки","rice",null,null,null,"rice"]
[null,"bread",7,"класти",null,null,"bread",7,"класти","food",null,null,null,"food"]
[null,"supper",8,"додавати",null,null,"supper",8,"додавати","plant",null,null,null,"plant"]
[null,"grow",9,"борошно",null,null,"grow",9,"борошно","potato",null,null,null,"potato"]
[null,"land",10,0,null,null,"land",10,0,"bread",null,null,null,"bread"]
[null,"hunger",11,0,null,null,"hunger",11,0,"supper",null,null,null,"supper"]
[]
["Name_________________________              Date_______",null,null,null,null,null,null,null,null,"Name_________________________              Date_______",null,null,null,"Name_________________________              Date_______"]
[]
[null,{"$f":"B31","v":"food"},1,{"$f":"D31","v":"потребувати"},null,null,{"$f":"B39","v":"grow"},9,{"$f":"D39","v":"борошно"},{"$f":"J31","v":"grow"},null,null,null,{"$f":"J39","v":"potato"}]
[null,{"$f":"B32","v":"plant"},2,{"$f":"D32","v":"потім"},null,null,{"$f":"B40","v":"land"},10,{"$f":"D40","v":0},{"$f":"J32","v":"land"},null,null,null,{"$f":"J40","v":"bread"}]
[null,"wheat",3,"подавати (на стіл)",null,null,{"$f":"B41","v":"hunger"},11,{"$f":"D41","v":0},"hunger",null,null,null,{"$f":"J41","v":"supper"}]
[null,"corn",4,"після цього",null,null,null,null,null,"wheat"]
[null,"rice",5,"нарешті",null,null,null,null,null,"corn"]
[null,"potato",6,"млинці, оладки",null,null,null,null,null,"rice"]
[null,{"$f":"B37","v":"bread"},7,{"$f":"D37","v":"класти"},null,null,null,null,null,{"$f":"J37","v":"food"}]
[null,{"$f":"B38","v":"supper"},8,{"$f":"D38","v":"додавати"},null,null,null,null,null,{"$f":"J38","v":"plant"}]
[]
[null,7]

{"sheet":"Лист13","index":48,"n_rows":55,"n_cols":18,"rows_kept":55,"cut":false,"hidden":false,"merged":[]}
[{"$f":"J1","v":1},{"$f":"K1","v":"fresh"},{"$f":"L1","v":"[freʃ]"},{"$f":"M1","v":"свіжий"},null,{"$f":"A1","v":1},{"$f":"B1","v":"fresh"},{"$f":"C1","v":"[freʃ]"},{"$f":"D1","v":"свіжий"},1,"fresh","[freʃ]","свіжий",null,null,"chemicals","[ˈkemɪk(ə)lz]","хімікати"]
[{"$f":"J2","v":2},{"$f":"K2","v":"possible"},{"$f":"L2","v":"[ˈpɔsəbl]"},{"$f":"M2","v":"можливий"},null,{"$f":"A2","v":2},{"$f":"B2","v":"possible"},{"$f":"C2","v":"[ˈpɔsəbl]"},{"$f":"D2","v":"можливий"},2,"possible","[ˈpɔsəbl]","можливий",null,null,"fizzy","[ˈfɪzɪ]","спраглий"]
[3,"instead","[ɪnˈsted]","замість",null,3,"instead","[ɪnˈsted]","замість",3,"instead","[ɪnˈsted]","замість",null,null,"fresh","[freʃ]","слива"]
[4,"plum","[plʌm]","слива",null,4,"plum","[plʌm]","слива",4,"plum","[plʌm]","слива",null,null,"instead","[ɪnˈsted]","свіжий"]
[5,"thirsty","[ˈθɜːstɪ]","спраглий",null,5,"thirsty","[ˈθɜːstɪ]","спраглий",5,"thirsty","[ˈθɜːstɪ]","спраглий",null,null,"local","[ˈləuk(ə)l]","органічний"]
[6,"fizzy","[ˈfɪzɪ]","газований",null,6,"fizzy","[ˈfɪzɪ]","газований",6,"fizzy","[ˈfɪzɪ]","газований",null,null,"olive","[ˈɔlɪv]","можливий"]
[7,"local","[ˈləuk(ə)l]","місцевий",null,7,"local","[ˈləuk(ə)l]","місцевий",7,"local","[ˈləuk(ə)l]","місцевий",null,null,"organic","[ɔːˈgænɪk]","місцевий"]
[8,"produced","[ˈprɔdjuːs]","виготовляти",null,8,"produced","[ˈprɔdjuːs]","виготовляти",8,"produced","[ˈprɔdjuːs]","виготовляти",null,null,"plum","[plʌm]","маслина, оливка"]
[9,"chemicals","[ˈkemɪk(ə)lz]","хімікати",null,9,"chemicals","[ˈkemɪk(ə)lz]","хімікати",9,"chemicals","[ˈkemɪk(ə)lz]","хімікати",null,null,"possible","[ˈpɔsəbl]","замість"]
[10,"olive","[ˈɔlɪv]","маслина, оливка",null,10,"olive","[ˈɔlɪv]","маслина, оливка",10,"olive","[ˈɔlɪv]","маслина, оливка",null,null,"produced","[ˈprɔdjuːs]","газований"]
[{"$f":"J11","v":11},{"$f":"K11","v":"yoghurt "},{"$f":"L11","v":"[ˈjɒgət]"},{"$f":"M11","v":"йогурт"},null,{"$f":"A11","v":11},{"$f":"B11","v":"yoghurt "},{"$f":"C11","v":"[ˈjɒgət]"},{"$f":"D11","v":"йогурт"},11,"yoghurt ","[ˈjɒgət]","йогурт",null,null,"thirsty","[ˈθɜːstɪ]","виготовляти"]
[12,{"$f":"K12","v":"broccoli"},"[ˈbrɔkəlɪ]","броколі",null,12,"broccoli","[ˈbrɔkəlɪ]","броколі",12,"broccoli","[ˈbrɔkəlɪ]","броколі"]
[13,{"$f":"K13","v":"organic"},"[ɔːˈgænɪk]","органічний",null,13,"organic","[ɔːˈgænɪk]","органічний",13,"organic","[ɔːˈgænɪk]","органічний"]
[]
[1,{"$f":"B1","v":"fresh"},{"$f":"C1","v":"[freʃ]"},{"$f":"D1","v":"свіжий"},null,1,{"$f":"B15","v":"fresh"},{"$f":"C15","v":"[freʃ]"},{"$f":"D15","v":"свіжий"}]
[2,{"$f":"B2","v":"possible"},"[ˈpɔsəbl]","можливий",null,2,{"$f":"B16","v":"possible"},{"$f":"C16","v":"[ˈpɔsəbl]"},{"$f":"D16","v":"можливий"}]
[3,{"$f":"B3","v":"instead"},"[ɪnˈsted]","замість",null,3,"instead","[ɪnˈsted]","замість"]
[4,{"$f":"B4","v":"plum"},"[plʌm]","слива",null,4,"plum","[plʌm]","слива"]
[5,{"$f":"B5","v":"thirsty"},"[ˈθɜːstɪ]","спраглий",null,5,"thirsty","[ˈθɜːstɪ]","спраглий"]
[6,{"$f":"B6","v":"fizzy"},"[ˈfɪzɪ]","газований",null,6,"fizzy","[ˈfɪzɪ]","газований"]
[7,{"$f":"B7","v":"local"},"[ˈləuk(ə)l]","місцевий",null,7,"local","[ˈləuk(ə)l]","місцевий"]
[8,{"$f":"B8","v":"produced"},"[ˈprɔdjuːs]","виготовляти",null,8,"produced","[ˈprɔdjuːs]","виготовляти"]
[9,{"$f":"B9","v":"chemicals"},"[ˈkemɪk(ə)lz]","хімікати",null,9,"chemicals","[ˈkemɪk(ə)lz]","хімікати"]
[10,{"$f":"B10","v":"olive"},"[ˈɔlɪv]","маслина, оливка",null,10,"olive","[ˈɔlɪv]","маслина, оливка"]
[11,{"$f":"B11","v":"yoghurt "},"[ˈjɒgət]","йогурт",null,11,{"$f":"B25","v":"yoghurt "},{"$f":"C25","v":"[ˈjɒgət]"},{"$f":"D25","v":"йогурт"}]
[12,{"$f":"B12","v":"broccoli"},"[ˈbrɔkəlɪ]","броколі",null,12,"broccoli","[ˈbrɔkəlɪ]","броколі"]
[13,{"$f":"B13","v":"organic"},"[ɔːˈgænɪk]","органічний",null,13,"organic","[ɔːˈgænɪk]","органічний"]
[]
[1,{"$f":"B15","v":"fresh"},{"$f":"C15","v":"[freʃ]"},{"$f":"D15","v":"свіжий"},null,1,{"$f":"B29","v":"fresh"},{"$f":"C29","v":"[freʃ]"},{"$f":"D29","v":"свіжий"}]
[2,{"$f":"B16","v":"possible"},"[ˈpɔsəbl]","можливий",null,2,{"$f":"B30","v":"possible"},{"$f":"C30","v":"[ˈpɔsəbl]"},{"$f":"D30","v":"можливий"}]
[3,{"$f":"B17","v":"instead"},"[ɪnˈsted]","замість",null,3,"instead","[ɪnˈsted]","замість"]
[4,{"$f":"B18","v":"plum"},"[plʌm]","слива",null,4,"plum","[plʌm]","слива"]
[5,{"$f":"B19","v":"thirsty"},"[ˈθɜːstɪ]","спраглий",null,5,"thirsty","[ˈθɜːstɪ]","спраглий"]
[6,{"$f":"B20","v":"fizzy"},"[ˈfɪzɪ]","газований",null,6,"fizzy","[ˈfɪzɪ]","газований"]
[7,{"$f":"B21","v":"local"},"[ˈləuk(ə)l]","місцевий",null,7,"local","[ˈləuk(ə)l]","місцевий"]
[8,{"$f":"B22","v":"produced"},"[ˈprɔdjuːs]","виготовляти",null,8,"produced","[ˈprɔdjuːs]","виготовляти"]
[9,{"$f":"B23","v":"chemicals"},"[ˈkemɪk(ə)lz]","хімікати",null,9,"chemicals","[ˈkemɪk(ə)lz]","хімікати"]
[10,{"$f":"B24","v":"olive"},"[ˈɔlɪv]","маслина, оливка",null,10,"olive","[ˈɔlɪv]","маслина, оливка"]
[11,{"$f":"B25","v":"yoghurt "},"[ˈjɒgət]","йогурт",null,11,{"$f":"B39","v":"yoghurt "},{"$f":"C39","v":"[ˈjɒgət]"},{"$f":"D39","v":"йогурт"}]
[12,{"$f":"B26","v":"broccoli"},"[ˈbrɔkəlɪ]","броколі",null,12,"broccoli","[ˈbrɔkəlɪ]","броколі"]
[13,{"$f":"B27","v":"organic"},"[ɔːˈgænɪk]","органічний",null,13,"organic","[ɔːˈgænɪk]","органічний"]
[]
[1,{"$f":"B29","v":"fresh"},{"$f":"C29","v":"[freʃ]"},{"$f":"D29","v":"свіжий"},null,1,{"$f":"B43","v":"fresh"},{"$f":"C43","v":"[freʃ]"},{"$f":"D43","v":"свіжий"}]
[2,{"$f":"B30","v":"possible"},"[ˈpɔsəbl]","можливий",null,2,{"$f":"B44","v":"possible"},{"$f":"C44","v":"[ˈpɔsəbl]"},{"$f":"D44","v":"можливий"}]
[3,{"$f":"B31","v":"instead"},"[ɪnˈsted]","замість",null,3,"instead","[ɪnˈsted]","замість"]
[4,{"$f":"B32","v":"plum"},"[plʌm]","слива",null,4,"plum","[plʌm]","слива"]
[5,{"$f":"B33","v":"thirsty"},"[ˈθɜːstɪ]","спраглий",null,5,"thirsty","[ˈθɜːstɪ]","спраглий"]
[6,{"$f":"B34","v":"fizzy"},"[ˈfɪzɪ]","газований",null,6,"fizzy","[ˈfɪzɪ]","газований"]
[7,{"$f":"B35","v":"local"},"[ˈləuk(ə)l]","місцевий",null,7,"local","[ˈləuk(ə)l]","місцевий"]
[8,{"$f":"B36","v":"produced"},"[ˈprɔdjuːs]","виготовляти",null,8,"produced","[ˈprɔdjuːs]","виготовляти"]
[9,{"$f":"B37","v":"chemicals"},"[ˈkemɪk(ə)lz]","хімікати",null,9,"chemicals","[ˈkemɪk(ə)lz]","хімікати"]
[10,{"$f":"B38","v":"olive"},"[ˈɔlɪv]","маслина, оливка",null,10,"olive","[ˈɔlɪv]","маслина, оливка"]
[11,{"$f":"B39","v":"yoghurt "},"[ˈjɒgət]","йогурт",null,11,{"$f":"B53","v":"yoghurt "},{"$f":"C53","v":"[ˈjɒgət]"},{"$f":"D53","v":"йогурт"}]
[12,{"$f":"B40","v":"broccoli"},"[ˈbrɔkəlɪ]","броколі",null,12,"broccoli","[ˈbrɔkəlɪ]","броколі"]
[13,"organic","[ɔːˈgænɪk]","органічний",null,13,{"$f":"B55","v":"organic"},{"$f":"C55","v":"[ɔːˈgænɪk]"},{"$f":"D55","v":"органічний"}]

{"sheet":"Лист11","index":49,"n_rows":12,"n_cols":16,"rows_kept":12,"cut":false,"hidden":false,"merged":[]}
[null,"after that"]
[null,"put","[put]","класти"]
[null,"serve","[sɜːv]","подавати (на стіл)"]
[null,"pancake","[ˈpænkeɪk]","млинці, оладки"]
[null,"need","[niːd]","потребувати"]
[null,"finally","[ˈfaɪn(ə)lɪ]","нарешті"]
[null,"then","[ðen]","потім"]
[null,"add","[æd]","додавати"]
[null,"flour","[ˈflauə]","борошно",null,null,null,null,null,null,null,null,null,null,"після цього","цього"]
[]
[null,null,null,null,null,null,null,null,null,null,null,null,null,null,"(на","стіл)"]
[null,null,null,null,null,null,null,null,null,null,null,null,null,null,"оладки"]

{"sheet":"Лист14","index":50,"n_rows":15,"n_cols":1,"rows_kept":15,"cut":false,"hidden":false,"merged":[]}
["at the same time"]
["before eating"]
["lick your knife "]
["mouth"]
["fingers"]
["loudly"]
["leave the table"]
["while "]
["let "]
["whistle "]
["try "]
["mess "]
["around "]
[]
["вправа 4 с73"]

{"sheet":"Самостійна (2)","index":51,"n_rows":54,"n_cols":27,"rows_kept":54,"cut":false,"hidden":false,"merged":[]}
["Name_________________________              Date_______",null,null,null,null,"Name_________________________              Date_______",null,null,null,"Name_________________________              Date_______",null,null,null,"Name_________________________              Date_______"]
[]
[null,{"$f":"S3","v":"bread"},1,{"$f":"V3","v":"вечеря"},null,null,{"$f":"S3","v":"bread"},1,{"$f":"V3","v":"вечеря"},{"$f":"S16","v":"grow"},null,null,null,{"$f":"J3","v":"grow"},null,null,null,null,"bread",null,1,"вечеря",null,null,"food","[fuːd]","вечеря"]
[null,"corn",2,"голод",null,null,{"$f":"S4","v":"corn"},2,{"$f":"V4","v":"голод"},{"$f":"S17","v":"land"},null,null,null,{"$f":"J4","v":"land"},null,null,null,null,"corn",null,2,"голод",null,null,"plant","[plɑːnt]","голод"]
[null,"food",3,"завод; рослина",null,null,"food",3,"завод; рослина","hunger",null,null,null,"hunger",null,null,null,null,"food",null,3,"завод; рослина",null,null,"wheat","[(h)wiːt]","завод; рослина"]
[null,"grow",4,"земля, країна",null,null,"grow",4,"земля, країна","wheat",null,null,null,"wheat",null,null,null,null,"grow",null,4,"земля, країна",null,null,"corn","[kɔːn]","земля, країна"]
[null,"hunger",5,"їжа",null,null,"hunger",5,"їжа","corn",null,null,null,"corn",null,null,null,null,"hunger",null,5,"їжа",null,null,"rice","[raɪs]","їжа"]
[null,"land",6,"картопля",null,null,"land",6,"картопля","rice",null,null,null,"rice",null,null,null,null,"land",null,6,"картопля",null,null,"potato","[pəˈteɪtəu]","картопля"]
[null,"plant",7,"кукурудза",null,null,"plant",7,"кукурудза","food",null,null,null,"food",null,null,null,null,"plant",null,7,"кукурудза",null,null,"bread","[bred]","кукурудза"]
[null,"potato",8,"пшениця",null,null,"potato",8,"пшениця","plant",null,null,null,"plant",null,null,null,null,"potato",null,8,"пшениця",null,null,"supper","[ˈsʌpə]","пшениця"]
[null,"rice",9,"рис",null,null,"rice",9,"рис","potato",null,null,null,"potato",null,null,null,null,"rice",null,9,"рис",null,null,"grow","[grəu]","рис"]
[null,"supper",10,"рости, вирощувати",null,null,"supper",10,"рости, вирощувати","bread",null,null,null,"bread",null,null,null,null,"supper",null,10,"рости, вирощувати",null,null,"land","[lænd]","рости, вирощувати"]
[null,"wheat",11,"хліб",null,null,"wheat",11,"хліб","supper",null,null,null,"supper",null,null,null,null,"wheat",null,11,"хліб",null,null,"hunger","[ˈhʌŋgə]","хліб"]
[]
["Name_________________________              Date_______",null,null,null,null,"Name_________________________              Date_______",null,null,null,"Name_________________________              Date_______",null,null,null,"Name_________________________              Date_______"]
[null,null,null,null,null,null,null,null,null,null,null,null,null,null,null,null,null,null,"grow"]
[null,{"$f":"S3","v":"bread"},1,{"$f":"V3","v":"вечеря"},null,null,{"$f":"B17","v":"bread"},1,{"$f":"D17","v":"вечеря"},{"$f":"J3","v":"grow"},null,null,null,{"$f":"J17","v":"grow"},null,null,null,null,"land"]
[null,{"$f":"S4","v":"corn"},2,{"$f":"V4","v":"голод"},null,null,{"$f":"B18","v":"corn"},2,{"$f":"D18","v":"голод"},{"$f":"J4","v":"land"},null,null,null,{"$f":"J18","v":"land"},null,null,null,null,"hunger"]
[null,"food",3,"завод; рослина",null,null,"food",3,"завод; рослина","hunger",null,null,null,"hunger",null,null,null,null,"wheat"]
[null,"grow",4,"земля, країна",null,null,"grow",4,"земля, країна","wheat",null,null,null,"wheat",null,null,null,null,"corn"]
[null,"hunger",5,"їжа",null,null,"hunger",5,"їжа","corn",null,null,null,"corn",null,null,null,null,"rice"]
[null,"land",6,"картопля",null,null,"land",6,"картопля","rice",null,null,null,"rice",null,null,null,null,"food"]
[null,"plant",7,"кукурудза",null,null,"plant",7,"кукурудза","food",null,null,null,"food",null,null,null,null,"plant"]
[null,"potato",8,"пшениця",null,null,"potato",8,"пшениця","plant",null,null,null,"plant",null,null,null,null,"potato"]
[null,"rice",9,"рис",null,null,"rice",9,"рис","potato",null,null,null,"potato",null,null,null,null,"bread"]
[null,"supper",10,"рости, вирощувати",null,null,"supper",10,"рости, вирощувати","bread",null,null,null,"bread",null,null,null,null,"supper"]
[null,"wheat",11,"хліб",null,null,"wheat",11,"хліб","supper",null,null,null,"supper"]
[]
["Name_________________________              Date_______",null,null,null,null,"Name_________________________              Date_______",null,null,null,"Name_________________________              Date_______",null,null,null,"Name_________________________              Date_______"]
[]
[null,{"$f":"B17","v":"bread"},1,{"$f":"D17","v":"вечеря"},null,null,{"$f":"B31","v":"bread"},1,{"$f":"D31","v":"вечеря"},{"$f":"J17","v":"grow"},null,null,null,{"$f":"J31","v":"grow"}]
[null,{"$f":"B18","v":"corn"},2,{"$f":"D18","v":"голод"},null,null,{"$f":"B32","v":"corn"},2,{"$f":"D32","v":"голод"},{"$f":"J18","v":"land"},null,null,null,{"$f":"J32","v":"land"}]
[null,"food",3,"завод; рослина",null,null,"food",3,"завод; рослина","hunger",null,null,null,"hunger"]
[null,"grow",4,"земля, країна",null,null,"grow",4,"земля, країна","wheat",null,null,null,"wheat"]
[null,"hunger",5,"їжа",null,null,"hunger",5,"їжа","corn",null,null,null,"corn"]
[null,"land",6,"картопля",null,null,"land",6,"картопля","rice",null,null,null,"rice"]
[null,"plant",7,"кукурудза",null,null,"plant",7,"кукурудза","food",null,null,null,"food"]
[null,"potato",8,"пшениця",null,null,"potato",8,"пшениця","plant",null,null,null,"plant"]
[null,"rice",9,"рис",null,null,"rice",9,"рис","potato",null,null,null,"potato"]
[null,"supper",10,"рости, вирощувати",null,null,"supper",10,"рости, вирощувати","bread",null,null,null,"bread"]
[null,"wheat",11,"хліб",null,null,"wheat",11,"хліб","supper",null,null,null,"supper"]
[]
["Name_________________________              Date_______",null,null,null,null,null,null,null,null,"Name_________________________              Date_______",null,null,null,"Name_________________________              Date_______"]
[]
[null,{"$f":"B31","v":"bread"},1,{"$f":"D31","v":"вечеря"},null,null,{"$f":"B39","v":"rice"},9,{"$f":"D39","v":"рис"},{"$f":"J31","v":"grow"},null,null,null,{"$f":"J39","v":"potato"}]
[null,{"$f":"B32","v":"corn"},2,{"$f":"D32","v":"голод"},null,null,{"$f":"B40","v":"supper"},10,{"$f":"D40","v":"рости, вирощувати"},{"$f":"J32","v":"land"},null,null,null,{"$f":"J40","v":"bread"}]
[null,"food",3,"завод; рослина",null,null,{"$f":"B41","v":"wheat"},11,{"$f":"D41","v":"хліб"},"hunger",null,null,null,{"$f":"J41","v":"supper"}]
[null,"grow",4,"земля, країна",null,null,null,null,null,"wheat"]
[null,"hunger",5,"їжа",null,null,null,null,null,"corn"]
[null,"land",6,"картопля",null,null,null,null,null,"rice"]
[null,{"$f":"B37","v":"plant"},7,{"$f":"D37","v":"кукурудза"},null,null,null,null,null,{"$f":"J37","v":"food"}]
[null,{"$f":"B38","v":"potato"},8,{"$f":"D38","v":"пшениця"},null,null,null,null,null,{"$f":"J38","v":"plant"}]
[]
[null,7]

{"sheet":"Лист13 (2)","index":52,"n_rows":55,"n_cols":13,"rows_kept":55,"cut":false,"hidden":false,"merged":[]}
[{"$f":"J1","v":1},{"$f":"K1","v":"after that"},{"$f":"L1","v":0},{"$f":"M1","v":0},null,{"$f":"A1","v":1},{"$f":"B1","v":"after that"},{"$f":"C1","v":0},{"$f":"D1","v":0},1,"after that"]
[{"$f":"J2","v":2},"put","[put]","класти",null,{"$f":"A2","v":2},"put","[put]","класти",2,"put","[put]","класти"]
[3,"serve","[sɜːv]","подавати (на стіл)",null,3,"serve","[sɜːv]","подавати (на стіл)",3,"serve","[sɜːv]","подавати (на стіл)"]
[4,"pancake","[ˈpænkeɪk]","млинці, оладки",null,4,"pancake","[ˈpænkeɪk]","млинці, оладки",4,"pancake","[ˈpænkeɪk]","млинці, оладки"]
[5,"need","[niːd]","потребувати",null,5,"need","[niːd]","потребувати",5,"need","[niːd]","потребувати"]
[6,"finally","[ˈfaɪn(ə)lɪ]","нарешті",null,6,"finally","[ˈfaɪn(ə)lɪ]","нарешті",6,"finally","[ˈfaɪn(ə)lɪ]","нарешті"]
[7,"then","[ðen]","потім",null,7,"then","[ðen]","потім",7,"then","[ðen]","потім"]
[8,"add","[æd]","додавати",null,8,"add","[æd]","додавати",8,"add","[æd]","додавати"]
[9,"flour","[ˈflauə]","борошно",null,9,"flour","[ˈflauə]","борошно",9,"flour","[ˈflauə]","борошно"]
[10,0,0,0,null,10,0,0,0,10]
[11,{"$f":"K11","v":0},0,0,null,11,0,0,0,11]
[12,{"$f":"K12","v":0},0,0,null,12,0,0,0,12]
[13,{"$f":"K13","v":0},0,0,null,13,0,0,0,13]
[]
[1,{"$f":"B1","v":"after that"},{"$f":"C1","v":0},{"$f":"D1","v":0},null,1,{"$f":"B15","v":"after that"},{"$f":"C15","v":0},{"$f":"D15","v":0}]
[2,{"$f":"B2","v":"put"},"[put]","класти",null,2,{"$f":"B16","v":"put"},"[put]","класти"]
[3,"serve","[sɜːv]","подавати (на стіл)",null,3,"serve","[sɜːv]","подавати (на стіл)"]
[4,"pancake","[ˈpænkeɪk]","млинці, оладки",null,4,"pancake","[ˈpænkeɪk]","млинці, оладки"]
[5,"need","[niːd]","потребувати",null,5,"need","[niːd]","потребувати"]
[6,"finally","[ˈfaɪn(ə)lɪ]","нарешті",null,6,"finally","[ˈfaɪn(ə)lɪ]","нарешті"]
[7,"then","[ðen]","потім",null,7,"then","[ðen]","потім"]
[8,"add","[æd]","додавати",null,8,"add","[æd]","додавати"]
[9,"flour","[ˈflauə]","борошно",null,9,"flour","[ˈflauə]","борошно"]
[10,0,0,0,null,10,0,0,0]
[11,0,0,0,null,11,0,0,0]
[12,0,0,0,null,12,0,0,0]
[13,0,0,0,null,13,0,0,0]
[]
[1,{"$f":"B15","v":"after that"},{"$f":"C15","v":0},{"$f":"D15","v":0},null,1,{"$f":"B29","v":"after that"},{"$f":"C29","v":0},{"$f":"D29","v":0}]
[2,{"$f":"B16","v":"put"},"[put]","класти",null,2,{"$f":"B30","v":"put"},"[put]","класти"]
[3,"serve","[sɜːv]","подавати (на стіл)",null,3,"serve","[sɜːv]","подавати (на стіл)"]
[4,"pancake","[ˈpænkeɪk]","млинці, оладки",null,4,"pancake","[ˈpænkeɪk]","млинці, оладки"]
[5,"need","[niːd]","потребувати",null,5,"need","[niːd]","потребувати"]
[6,"finally","[ˈfaɪn(ə)lɪ]","нарешті",null,6,"finally","[ˈfaɪn(ə)lɪ]","нарешті"]
[7,"then","[ðen]","потім",null,7,"then","[ðen]","потім"]
[8,"add","[æd]","додавати",null,8,"add","[æd]","додавати"]
[9,"flour","[ˈflauə]","борошно",null,9,"flour","[ˈflauə]","борошно"]
[10,0,0,0,null,10,0,0,0]
[11,0,0,0,null,11,0,0,0]
[12,0,0,0,null,12,0,0,0]
[13,0,0,0,null,13,0,0,0]
[]
[1,{"$f":"B29","v":"after that"},{"$f":"C29","v":0},{"$f":"D29","v":0},null,1,{"$f":"B43","v":"after that"},{"$f":"C43","v":0},{"$f":"D43","v":0}]
[2,{"$f":"B30","v":"put"},"[put]","класти",null,2,{"$f":"B44","v":"put"},"[put]","класти"]
[3,"serve","[sɜːv]","подавати (на стіл)",null,3,"serve","[sɜːv]","подавати (на стіл)"]
[4,"pancake","[ˈpænkeɪk]","млинці, оладки",null,4,"pancake","[ˈpænkeɪk]","млинці, оладки"]
[5,"need","[niːd]","потребувати",null,5,"need","[niːd]","потребувати"]
[6,"finally","[ˈfaɪn(ə)lɪ]","нарешті",null,6,"finally","[ˈfaɪn(ə)lɪ]","нарешті"]
[7,"then","[ðen]","потім",null,7,"then","[ðen]","потім"]
[8,"add","[æd]","додавати",null,8,"add","[æd]","додавати"]
[9,"flour","[ˈflauə]","борошно",null,9,"flour","[ˈflauə]","борошно"]
[10,0,0,0,null,10,0,0,0]
[11,0,0,0,null,11,0,0,0]
[12,0,0,0,null,12,0,0,0]
[13,0,0,0,null,13,0,0,0]

{"sheet":"Лист13 (3)","index":53,"n_rows":55,"n_cols":13,"rows_kept":55,"cut":false,"hidden":false,"merged":[]}
[{"$f":"J1","v":1},{"$f":"K1","v":"background"},{"$f":"L1","v":"[ˈbækgraund]"},{"$f":"M1","v":"фон"},null,{"$f":"A1","v":1},{"$f":"B1","v":"background"},{"$f":"C1","v":"[ˈbækgraund]"},{"$f":"D1","v":"фон"},1,"background","[ˈbækgraund]","фон"]
[{"$f":"J2","v":2},"appear","[əˈpɪə]","пока́зуватися; з'явля́тися",null,{"$f":"A2","v":2},"appear","[əˈpɪə]","пока́зуватися; з'явля́тися",2,"appear","[əˈpɪə]","пока́зуватися; з'явля́тися"]
[3,"national","[ˈnæʃ(ə)n(ə)l]","націона́льний; наро́дний",null,3,"national","[ˈnæʃ(ə)n(ə)l]","націона́льний; наро́дний",3,"national","[ˈnæʃ(ə)n(ə)l]","націона́льний; наро́дний"]
[4,"represent","[ˌreprɪˈzent]","представля́ти",null,4,"represent","[ˌreprɪˈzent]","представля́ти",4,"represent","[ˌreprɪˈzent]","представля́ти"]
[5,"ring","[rɪŋ]","кільце́",null,5,"ring","[rɪŋ]","кільце́",5,"ring","[rɪŋ]","кільце́"]
[6,"inhabit","[ɪnˈhæbɪt]","жи́ти, ме́шкати, населя́ти",null,6,"inhabit","[ɪnˈhæbɪt]","жи́ти, ме́шкати, населя́ти",6,"inhabit","[ɪnˈhæbɪt]","жи́ти, ме́шкати, населя́ти"]
[7,"continent","[ˈkɔntɪnənt]","континент, материк",null,7,"continent","[ˈkɔntɪnənt]","континент, материк",7,"continent","[ˈkɔntɪnənt]","континент, материк"]
[8,"Europe","[ˈjuərəp]","Європа",null,8,"Europe","[ˈjuərəp]","Європа",8,"Europe","[ˈjuərəp]","Європа"]
[9,"Asia","[ˈeɪʃə]","Азія",null,9,"Asia","[ˈeɪʃə]","Азія",9,"Asia","[ˈeɪʃə]","Азія"]
[10,"Oceania","[ˌəuʃɪˈænɪə]","Океанія",null,10,"Oceania","[ˌəuʃɪˈænɪə]","Океанія",10,"Oceania","[ˌəuʃɪˈænɪə]","Океанія"]
[11,{"$f":"K11","v":0},0,0,null,11,0,0,0,11]
[12,{"$f":"K12","v":0},0,0,null,12,0,0,0,12]
[13,{"$f":"K13","v":0},0,0,null,13,0,0,0,13]
[]
[1,{"$f":"B1","v":"background"},{"$f":"C1","v":"[ˈbækgraund]"},{"$f":"D1","v":"фон"},null,1,{"$f":"B15","v":"background"},{"$f":"C15","v":"[ˈbækgraund]"},{"$f":"D15","v":"фон"}]
[2,{"$f":"B2","v":"appear"},"[əˈpɪə]","пока́зуватися; з'явля́тися",null,2,{"$f":"B16","v":"appear"},"[əˈpɪə]","пока́зуватися; з'явля́тися"]
[3,"national","[ˈnæʃ(ə)n(ə)l]","націона́льний; наро́дний",null,3,"national","[ˈnæʃ(ə)n(ə)l]","націона́льний; наро́дний"]
[4,"represent","[ˌreprɪˈzent]","представля́ти",null,4,"represent","[ˌreprɪˈzent]","представля́ти"]
[5,"ring","[rɪŋ]","кільце́",null,5,"ring","[rɪŋ]","кільце́"]
[6,"inhabit","[ɪnˈhæbɪt]","жи́ти, ме́шкати, населя́ти",null,6,"inhabit","[ɪnˈhæbɪt]","жи́ти, ме́шкати, населя́ти"]
[7,"continent","[ˈkɔntɪnənt]","континент, материк",null,7,"continent","[ˈkɔntɪnənt]","континент, материк"]
[8,"Europe","[ˈjuərəp]","Європа",null,8,"Europe","[ˈjuərəp]","Європа"]
[9,"Asia","[ˈeɪʃə]","Азія",null,9,"Asia","[ˈeɪʃə]","Азія"]
[10,"Oceania","[ˌəuʃɪˈænɪə]","Океанія",null,10,"Oceania","[ˌəuʃɪˈænɪə]","Океанія"]
[11,0,0,0,null,11,0,0,0]
[12,0,0,0,null,12,0,0,0]
[13,0,0,0,null,13,0,0,0]
[]
[1,{"$f":"B15","v":"background"},{"$f":"C15","v":"[ˈbækgraund]"},{"$f":"D15","v":"фон"},null,1,{"$f":"B29","v":"background"},{"$f":"C29","v":"[ˈbækgraund]"},{"$f":"D29","v":"фон"}]
[2,{"$f":"B16","v":"appear"},"[əˈpɪə]","пока́зуватися; з'явля́тися",null,2,{"$f":"B30","v":"appear"},"[əˈpɪə]","пока́зуватися; з'явля́тися"]
[3,"national","[ˈnæʃ(ə)n(ə)l]","націона́льний; наро́дний",null,3,"national","[ˈnæʃ(ə)n(ə)l]","націона́льний; наро́дний"]
[4,"represent","[ˌreprɪˈzent]","представля́ти",null,4,"represent","[ˌreprɪˈzent]","представля́ти"]
[5,"ring","[rɪŋ]","кільце́",null,5,"ring","[rɪŋ]","кільце́"]
[6,"inhabit","[ɪnˈhæbɪt]","жи́ти, ме́шкати, населя́ти",null,6,"inhabit","[ɪnˈhæbɪt]","жи́ти, ме́шкати, населя́ти"]
[7,"continent","[ˈkɔntɪnənt]","континент, материк",null,7,"continent","[ˈkɔntɪnənt]","континент, материк"]
[8,"Europe","[ˈjuərəp]","Європа",null,8,"Europe","[ˈjuərəp]","Європа"]
[9,"Asia","[ˈeɪʃə]","Азія",null,9,"Asia","[ˈeɪʃə]","Азія"]
[10,"Oceania","[ˌəuʃɪˈænɪə]","Океанія",null,10,"Oceania","[ˌəuʃɪˈænɪə]","Океанія"]
[11,0,0,0,null,11,0,0,0]
[12,0,0,0,null,12,0,0,0]
[13,0,0,0,null,13,0,0,0]
[]
[1,{"$f":"B29","v":"background"},{"$f":"C29","v":"[ˈbækgraund]"},{"$f":"D29","v":"фон"},null,1,{"$f":"B43","v":"background"},{"$f":"C43","v":"[ˈbækgraund]"},{"$f":"D43","v":"фон"}]
[2,{"$f":"B30","v":"appear"},"[əˈpɪə]","пока́зуватися; з'явля́тися",null,2,{"$f":"B44","v":"appear"},"[əˈpɪə]","пока́зуватися; з'явля́тися"]
[3,"national","[ˈnæʃ(ə)n(ə)l]","націона́льний; наро́дний",null,3,"national","[ˈnæʃ(ə)n(ə)l]","націона́льний; наро́дний"]
[4,"represent","[ˌreprɪˈzent]","представля́ти",null,4,"represent","[ˌreprɪˈzent]","представля́ти"]
[5,"ring","[rɪŋ]","кільце́",null,5,"ring","[rɪŋ]","кільце́"]
[6,"inhabit","[ɪnˈhæbɪt]","жи́ти, ме́шкати, населя́ти",null,6,"inhabit","[ɪnˈhæbɪt]","жи́ти, ме́шкати, населя́ти"]
[7,"continent","[ˈkɔntɪnənt]","континент, материк",null,7,"continent","[ˈkɔntɪnənt]","континент, материк"]
[8,"Europe","[ˈjuərəp]","Європа",null,8,"Europe","[ˈjuərəp]","Європа"]
[9,"Asia","[ˈeɪʃə]","Азія",null,9,"Asia","[ˈeɪʃə]","Азія"]
[10,"Oceania","[ˌəuʃɪˈænɪə]","Океанія",null,10,"Oceania","[ˌəuʃɪˈænɪə]","Океанія"]
[11,0,0,0,null,11,0,0,0]
[12,0,0,0,null,12,0,0,0]
[13,0,0,0,null,13,0,0,0]

{"sheet":"Лист12","index":54,"n_rows":0,"n_cols":0,"rows_kept":0,"cut":false,"hidden":false,"merged":[]}

{"sheet":"1 (15)","index":55,"n_rows":55,"n_cols":13,"rows_kept":55,"cut":false,"hidden":false,"merged":[]}
[null,null,null,"Form 7",null,null,null,null,"Form 7"]
[{"$f":"J2","v":1},{"$f":"K2","v":"I’d like"},{"$f":"L2","v":"."},{"$f":"M2","v":"я б хотів(ла)"},null,{"$f":"A2","v":1},{"$f":"B2","v":"I’d like"},{"$f":"C2","v":"."},{"$f":"D2","v":"я б хотів(ла)"},1,"I’d like",".","я б хотів(ла)"]
[{"$f":"J3","v":2},"sore throat","[sɔː] [θrəut]","біль у горлі",null,{"$f":"A3","v":2},"sore throat","[sɔː] [θrəut]","біль у горлі",2,"sore throat","[sɔː] [θrəut]","біль у горлі"]
[3,"couldn’t","[ˈkudnt]","не міг, не могла",null,3,"couldn’t","[ˈkudnt]","не міг, не могла",3,"couldn’t","[ˈkudnt]","не міг, не могла"]
[4,"medicine","[ˈmedɪsɪn]","медици́на; лі́ки",null,4,"medicine","[ˈmedɪsɪn]","медици́на; лі́ки",4,"medicine","[ˈmedɪsɪn]","медици́на; лі́ки"]
[5,"at the chemist’s","[ˈkemɪst]","в аптеці",null,5,"at the chemist’s","[ˈkemɪst]","в аптеці",5,"at the chemist’s","[ˈkemɪst]","в аптеці"]
[6,"buy, bought","[baɪ][bɔːt]","купувати",null,6,"buy, bought","[baɪ][bɔːt]","купувати",6,"buy, bought","[baɪ][bɔːt]","купувати"]
[7,"prescription","[prɪˈskrɪpʃ(ə)n]","реце́пт",null,7,"prescription","[prɪˈskrɪpʃ(ə)n]","реце́пт",7,"prescription","[prɪˈskrɪpʃ(ə)n]","реце́пт"]
[8,"trick","[trɪk]","хи́трість, трюк",null,8,"trick","[trɪk]","хи́трість, трюк",8,"trick","[trɪk]","хи́трість, трюк"]
[9,"get the treatment","[ˈtriːtmənt]","прийняти лікува́ння (ліки)",null,9,"get the treatment","[ˈtriːtmənt]","прийняти лікува́ння (ліки)",9,"get the treatment","[ˈtriːtmənt]","прийняти лікува́ння (ліки)"]
[10,"to make   her","get the treatment","змусити її прийняти ліки",null,10,"to make   her","get the treatment","змусити її прийняти ліки",10,"to make   her","get the treatment","змусити її прийняти ліки"]
[11,{"$f":"K12","v":"in my opinion"},"[əˈpɪnjən]","на мою думку",null,11,"in my opinion","[əˈpɪnjən]","на мою думку",11,"in my opinion","[əˈpɪnjən]","на мою думку"]
[12,{"$f":"K13","v":0},0,0,null,12,0,0,0,12]
[]
[null,null,null,"Form 7",null,null,null,null,"Form 7"]
[1,{"$f":"B2","v":"I’d like"},".","я б хотів(ла)",null,1,{"$f":"B16","v":"I’d like"},{"$f":"C16","v":"."},{"$f":"D16","v":"я б хотів(ла)"},null,"get the treatment"]
[2,"sore throat","[sɔː] [θrəut]","біль у горлі",null,2,{"$f":"B17","v":"sore throat"},"[sɔː] [θrəut]","біль у горлі",null,"in my opinion"]
[3,"couldn’t","[ˈkudnt]","не міг, не могла",null,3,"couldn’t","[ˈkudnt]","не міг, не могла"]
[4,"medicine","[ˈmedɪsɪn]","медици́на; лі́ки",null,4,"medicine","[ˈmedɪsɪn]","медици́на; лі́ки"]
[5,"at the chemist’s","[ˈkemɪst]","в аптеці",null,5,"at the chemist’s","[ˈkemɪst]","в аптеці"]
[6,"buy, bought","[baɪ][bɔːt]","купувати",null,6,"buy, bought","[baɪ][bɔːt]","купувати"]
[7,"prescription","[prɪˈskrɪpʃ(ə)n]","реце́пт",null,7,"prescription","[prɪˈskrɪpʃ(ə)n]","реце́пт"]
[8,"trick","[trɪk]","хи́трість, трюк",null,8,"trick","[trɪk]","хи́трість, трюк"]
[9,"get the treatment","[ˈtriːtmənt]","прийняти лікува́ння (ліки)",null,9,"get the treatment","[ˈtriːtmənt]","прийняти лікува́ння (ліки)"]
[10,"to make   her","get the treatment","змусити її прийняти ліки",null,10,"to make   her","get the treatment","змусити її прийняти ліки"]
[11,"in my opinion","[əˈpɪnjən]","на мою думку",null,11,"in my opinion","[əˈpɪnjən]","на мою думку"]
[12,0,0,0,null,12,0,0,0]
[]
[null,null,null,"Form 7",null,null,null,null,"Form 7"]
[1,{"$f":"B16","v":"I’d like"},".","я б хотів(ла)",null,1,{"$f":"B30","v":"I’d like"},{"$f":"C30","v":"."},{"$f":"D30","v":"я б хотів(ла)"}]
[2,"sore throat","[sɔː] [θrəut]","біль у горлі",null,2,{"$f":"B31","v":"sore throat"},"[sɔː] [θrəut]","біль у горлі"]
[3,"couldn’t","[ˈkudnt]","не міг, не могла",null,3,"couldn’t","[ˈkudnt]","не міг, не могла"]
[4,"medicine","[ˈmedɪsɪn]","медици́на; лі́ки",null,4,"medicine","[ˈmedɪsɪn]","медици́на; лі́ки"]
[5,"at the chemist’s","[ˈkemɪst]","в аптеці",null,5,"at the chemist’s","[ˈkemɪst]","в аптеці"]
[6,"buy, bought","[baɪ][bɔːt]","купувати",null,6,"buy, bought","[baɪ][bɔːt]","купувати"]
[7,"prescription","[prɪˈskrɪpʃ(ə)n]","реце́пт",null,7,"prescription","[prɪˈskrɪpʃ(ə)n]","реце́пт"]
[8,"trick","[trɪk]","хи́трість, трюк",null,8,"trick","[trɪk]","хи́трість, трюк"]
[9,"get the treatment","[ˈtriːtmənt]","прийняти лікува́ння (ліки)",null,9,"get the treatment","[ˈtriːtmənt]","прийняти лікува́ння (ліки)"]
[10,"to make   her","get the treatment","змусити її прийняти ліки",null,10,"to make   her","get the treatment","змусити її прийняти ліки"]
[11,"in my opinion","[əˈpɪnjən]","на мою думку",null,11,"in my opinion","[əˈpɪnjən]","на мою думку"]
[12,0,0,0,null,12,0,0,0]
[]
[null,null,null,"Form 7",null,null,null,null,"Form 7"]
[1,{"$f":"B30","v":"I’d like"},".","я б хотів(ла)",null,1,{"$f":"B44","v":"I’d like"},{"$f":"C44","v":"."},{"$f":"D44","v":"я б хотів(ла)"}]
[2,"sore throat","[sɔː] [θrəut]","біль у горлі",null,2,{"$f":"B45","v":"sore throat"},"[sɔː] [θrəut]","біль у горлі"]
[3,"couldn’t","[ˈkudnt]","не міг, не могла",null,3,"couldn’t","[ˈkudnt]","не міг, не могла"]
[4,"medicine","[ˈmedɪsɪn]","медици́на; лі́ки",null,4,"medicine","[ˈmedɪsɪn]","медици́на; лі́ки"]
[5,"at the chemist’s","[ˈkemɪst]","в аптеці",null,5,"at the chemist’s","[ˈkemɪst]","в аптеці"]
[6,"buy, bought","[baɪ][bɔːt]","купувати",null,6,"buy, bought","[baɪ][bɔːt]","купувати"]
[7,"prescription","[prɪˈskrɪpʃ(ə)n]","реце́пт",null,7,"prescription","[prɪˈskrɪpʃ(ə)n]","реце́пт"]
[8,"trick","[trɪk]","хи́трість, трюк",null,8,"trick","[trɪk]","хи́трість, трюк"]
[9,"get the treatment","[ˈtriːtmənt]","прийняти лікува́ння (ліки)",null,9,"get the treatment","[ˈtriːtmənt]","прийняти лікува́ння (ліки)"]
[10,"to make   her","get the treatment","змусити її прийняти ліки",null,10,"to make   her","get the treatment","змусити її прийняти ліки"]
[11,"in my opinion","[əˈpɪnjən]","на мою думку",null,11,"in my opinion","[əˈpɪnjən]","на мою думку"]
[12,0,0,0,null,12,0,0,0]

{"sheet":"Лист13 (4)","index":56,"n_rows":55,"n_cols":13,"rows_kept":55,"cut":false,"hidden":false,"merged":[]}
[{"$f":"J1","v":1},{"$f":"K1","v":"event"},{"$f":"L1","v":"[ɪˈvent]"},{"$f":"M1","v":"подія"},null,{"$f":"A1","v":1},{"$f":"B1","v":"event"},{"$f":"C1","v":"[ɪˈvent]"},{"$f":"D1","v":"подія"},1,"event","[ɪˈvent]","подія"]
[{"$f":"J2","v":2},"silver","[ˈsɪlvə]","срібло",null,{"$f":"A2","v":2},"silver","[ˈsɪlvə]","срібло",2,"silver","[ˈsɪlvə]","срібло"]
[3,"however","[hauˈevə]","проте, однак",null,3,"however","[hauˈevə]","проте, однак",3,"however","[hauˈevə]","проте, однак"]
[4,"ancient","[ˈeɪn(t)ʃ(ə)nt]","старода́вній",null,4,"ancient","[ˈeɪn(t)ʃ(ə)nt]","старода́вній",4,"ancient","[ˈeɪn(t)ʃ(ə)nt]","старода́вній"]
[5,"torch","[tɔːʧ]","факел",null,5,"torch","[tɔːʧ]","факел",5,"torch","[tɔːʧ]","факел"]
[6,"carry","[ˈkærɪ]","нести",null,6,"carry","[ˈkærɪ]","нести",6,"carry","[ˈkærɪ]","нести"]
[7,"flame","[fleɪm]","вогонь, полум'я",null,7,"flame","[fleɪm]","вогонь, полум'я",7,"flame","[fleɪm]","вогонь, полум'я"]
[8,"remain","[rɪˈmeɪn]","залишатися",null,8,"remain","[rɪˈmeɪn]","залишатися",8,"remain","[rɪˈmeɪn]","залишатися"]
[9,"ceremony","[ˈserɪmənɪ]","церемонія",null,9,"ceremony","[ˈserɪmənɪ]","церемонія",9,"ceremony","[ˈserɪmənɪ]","церемонія"]
[10,0,0,0,null,10,0,0,0,10]
[11,{"$f":"K11","v":0},0,0,null,11,0,0,0,11]
[12,{"$f":"K12","v":0},0,0,null,12,0,0,0,12]
[13,{"$f":"K13","v":0},0,0,null,13,0,0,0,13]
[]
[1,{"$f":"B1","v":"event"},{"$f":"C1","v":"[ɪˈvent]"},{"$f":"D1","v":"подія"},null,1,{"$f":"B15","v":"event"},{"$f":"C15","v":"[ɪˈvent]"},{"$f":"D15","v":"подія"}]
[2,{"$f":"B2","v":"silver"},"[ˈsɪlvə]","срібло",null,2,{"$f":"B16","v":"silver"},"[ˈsɪlvə]","срібло"]
[3,"however","[hauˈevə]","проте, однак",null,3,"however","[hauˈevə]","проте, однак"]
[4,"ancient","[ˈeɪn(t)ʃ(ə)nt]","старода́вній",null,4,"ancient","[ˈeɪn(t)ʃ(ə)nt]","старода́вній"]
[5,"torch","[tɔːʧ]","факел",null,5,"torch","[tɔːʧ]","факел"]
[6,"carry","[ˈkærɪ]","нести",null,6,"carry","[ˈkærɪ]","нести"]
[7,"flame","[fleɪm]","вогонь, полум'я",null,7,"flame","[fleɪm]","вогонь, полум'я"]
[8,"remain","[rɪˈmeɪn]","залишатися",null,8,"remain","[rɪˈmeɪn]","залишатися"]
[9,"ceremony","[ˈserɪmənɪ]","церемонія",null,9,"ceremony","[ˈserɪmənɪ]","церемонія"]
[10,0,0,0,null,10,0,0,0]
[11,0,0,0,null,11,0,0,0]
[12,0,0,0,null,12,0,0,0]
[13,0,0,0,null,13,0,0,0]
[]
[1,{"$f":"B15","v":"event"},{"$f":"C15","v":"[ɪˈvent]"},{"$f":"D15","v":"подія"},null,1,{"$f":"B29","v":"event"},{"$f":"C29","v":"[ɪˈvent]"},{"$f":"D29","v":"подія"}]
[2,{"$f":"B16","v":"silver"},"[ˈsɪlvə]","срібло",null,2,{"$f":"B30","v":"silver"},"[ˈsɪlvə]","срібло"]
[3,"however","[hauˈevə]","проте, однак",null,3,"however","[hauˈevə]","проте, однак"]
[4,"ancient","[ˈeɪn(t)ʃ(ə)nt]","старода́вній",null,4,"ancient","[ˈeɪn(t)ʃ(ə)nt]","старода́вній"]
[5,"torch","[tɔːʧ]","факел",null,5,"torch","[tɔːʧ]","факел"]
[6,"carry","[ˈkærɪ]","нести",null,6,"carry","[ˈkærɪ]","нести"]
[7,"flame","[fleɪm]","вогонь, полум'я",null,7,"flame","[fleɪm]","вогонь, полум'я"]
[8,"remain","[rɪˈmeɪn]","залишатися",null,8,"remain","[rɪˈmeɪn]","залишатися"]
[9,"ceremony","[ˈserɪmənɪ]","церемонія",null,9,"ceremony","[ˈserɪmənɪ]","церемонія"]
[10,0,0,0,null,10,0,0,0]
[11,0,0,0,null,11,0,0,0]
[12,0,0,0,null,12,0,0,0]
[13,0,0,0,null,13,0,0,0]
[]
[1,{"$f":"B29","v":"event"},{"$f":"C29","v":"[ɪˈvent]"},{"$f":"D29","v":"подія"},null,1,{"$f":"B43","v":"event"},{"$f":"C43","v":"[ɪˈvent]"},{"$f":"D43","v":"подія"}]
[2,{"$f":"B30","v":"silver"},"[ˈsɪlvə]","срібло",null,2,{"$f":"B44","v":"silver"},"[ˈsɪlvə]","срібло"]
[3,"however","[hauˈevə]","проте, однак",null,3,"however","[hauˈevə]","проте, однак"]
[4,"ancient","[ˈeɪn(t)ʃ(ə)nt]","старода́вній",null,4,"ancient","[ˈeɪn(t)ʃ(ə)nt]","старода́вній"]
[5,"torch","[tɔːʧ]","факел",null,5,"torch","[tɔːʧ]","факел"]
[6,"carry","[ˈkærɪ]","нести",null,6,"carry","[ˈkærɪ]","нести"]
[7,"flame","[fleɪm]","вогонь, полум'я",null,7,"flame","[fleɪm]","вогонь, полум'я"]
[8,"remain","[rɪˈmeɪn]","залишатися",null,8,"remain","[rɪˈmeɪn]","залишатися"]
[9,"ceremony","[ˈserɪmənɪ]","церемонія",null,9,"ceremony","[ˈserɪmənɪ]","церемонія"]
[10,0,0,0,null,10,0,0,0]
[11,0,0,0,null,11,0,0,0]
[12,0,0,0,null,12,0,0,0]
[13,0,0,0,null,13,0,0,0]

{"sheet":"Лист13 (5)","index":57,"n_rows":62,"n_cols":14,"rows_kept":62,"cut":false,"hidden":false,"merged":[]}
[{"$f":"J1","v":1},{"$f":"K1","v":"headache "},{"$f":"L1","v":"[ˈhedeɪk]"},{"$f":"M1","v":"головний біль"},null,{"$f":"A1","v":1},{"$f":"B1","v":"headache "},{"$f":"C1","v":"[ˈhedeɪk]"},{"$f":"D1","v":"головний біль"},1,"headache ","[ˈhedeɪk]","головний біль"]
[{"$f":"J2","v":2},"toothache","[ˈtuːθeɪk]","зубний біль",null,{"$f":"A2","v":2},"toothache","[ˈtuːθeɪk]","зубний біль",2,"toothache","[ˈtuːθeɪk]","зубний біль"]
[3,"stomachache","[ˈstʌməkeɪk]","біль у шлунку",null,3,"stomachache","[ˈstʌməkeɪk]","біль у шлунку",3,"stomachache","[ˈstʌməkeɪk]","біль у шлунку"]
[4,"earache","[ˈɪəreɪk]","біль у вусі",null,4,"earache","[ˈɪəreɪk]","біль у вусі",4,"earache","[ˈɪəreɪk]","біль у вусі"]
[5,"backache","[ˈbækeɪk]","біль у спині",null,5,"backache","[ˈbækeɪk]","біль у спині",5,"backache","[ˈbækeɪk]","біль у спині"]
[6,0,0,0,null,6,0,0,0,6]
[7,0,0,0,null,7,0,0,0,7]
[8,0,0,0,null,8,0,0,0,8]
[9,0,0,0,null,9,0,0,0,9,null,null,null,"біль у вусі"]
[10,0,0,0,null,10,0,0,0,10,null,null,null,"біль у спині"]
[11,{"$f":"K11","v":0},0,0,null,11,0,0,0,11,null,null,null,"біль у шлунку"]
[12,{"$f":"K12","v":0},0,0,null,12,0,0,0,12,null,null,null,"головний біль"]
[13,{"$f":"K13","v":0},0,0,null,13,0,0,0,13,null,null,null,"зубний біль"]
[]
[1,{"$f":"B1","v":"headache "},{"$f":"C1","v":"[ˈhedeɪk]"},{"$f":"D1","v":"головний біль"},null,1,{"$f":"B15","v":"headache "},{"$f":"C15","v":"[ˈhedeɪk]"},{"$f":"D15","v":"головний біль"}]
[2,{"$f":"B2","v":"toothache"},"[ˈtuːθeɪk]","зубний біль",null,2,{"$f":"B16","v":"toothache"},"[ˈtuːθeɪk]","зубний біль"]
[3,"stomachache","[ˈstʌməkeɪk]","біль у шлунку",null,3,"stomachache","[ˈstʌməkeɪk]","біль у шлунку",null,"stomach","[ˈstʌmək]","шлу́нок; живі́т","@"]
[4,"earache","[ˈɪəreɪk]","біль у вусі",null,4,"earache","[ˈɪəreɪk]","біль у вусі",null,"head","[hed]","голова́","@"]
[5,"backache","[ˈbækeɪk]","біль у спині",null,5,"backache","[ˈbækeɪk]","біль у спині",null,"tooth","[tuːθ]","зуб","@"]
[6,0,0,0,null,6,0,0,0,null,"teeth","[tiːθ]","зуби","@"]
[7,0,0,0,null,7,0,0,0,null,"ear","[ɪə]","ву́хо","@"]
[8,0,0,0,null,8,0,0,0,null,"ache","[eɪk]","біль;  болі́ти","@"]
[9,0,0,0,null,9,0,0,0,null,"medicine","[ˈmeds(ə)n]","ліки; медици́на","@"]
[10,0,0,0,null,10,0,0,0]
[11,0,0,0,null,11,0,0,0]
[12,0,0,0,null,12,0,0,0]
[13,0,0,0,null,13,0,0,0]
[]
[1,{"$f":"B15","v":"headache "},{"$f":"C15","v":"[ˈhedeɪk]"},{"$f":"D15","v":"головний біль"},null,1,{"$f":"B29","v":"headache "},{"$f":"C29","v":"[ˈhedeɪk]"},{"$f":"D29","v":"головний біль"}]
[2,{"$f":"B16","v":"toothache"},"[ˈtuːθeɪk]","зубний біль",null,2,{"$f":"B30","v":"toothache"},"[ˈtuːθeɪk]","зубний біль"]
[3,"stomachache","[ˈstʌməkeɪk]","біль у шлунку",null,3,"stomachache","[ˈstʌməkeɪk]","біль у шлунку"]
[4,"earache","[ˈɪəreɪk]","біль у вусі",null,4,"earache","[ˈɪəreɪk]","біль у вусі"]
[5,"backache","[ˈbækeɪk]","біль у спині",null,5,"backache","[ˈbækeɪk]","біль у спині"]
[6,0,0,0,null,6,0,0,0]
[7,0,0,0,null,7,0,0,0]
[8,0,0,0,null,8,0,0,0]
[9,0,0,0,null,9,0,0,0]
[10,0,0,0,null,10,0,0,0]
[11,0,0,0,null,11,0,0,0]
[12,0,0,0,null,12,0,0,0]
[13,0,0,0,null,13,0,0,0]
[]
[1,{"$f":"B29","v":"headache "},{"$f":"C29","v":"[ˈhedeɪk]"},{"$f":"D29","v":"головний біль"},null,1,{"$f":"B43","v":"headache "},{"$f":"C43","v":"[ˈhedeɪk]"},{"$f":"D43","v":"головний біль"}]
[2,{"$f":"B30","v":"toothache"},"[ˈtuːθeɪk]","зубний біль",null,2,{"$f":"B44","v":"toothache"},"[ˈtuːθeɪk]","зубний біль"]
[3,"stomachache","[ˈstʌməkeɪk]","біль у шлунку",null,3,"stomachache","[ˈstʌməkeɪk]","біль у шлунку"]
[4,"earache","[ˈɪəreɪk]","біль у вусі",null,4,"earache","[ˈɪəreɪk]","біль у вусі"]
[5,"backache","[ˈbækeɪk]","біль у спині",null,5,"backache","[ˈbækeɪk]","біль у спині"]
[6,0,0,0,null,6,0,0,0]
[7,0,0,0,null,7,0,0,0]
[8,0,0,0,null,8,0,0,0]
[9,0,0,0,null,9,0,0,0]
[10,0,0,0,null,10,0,0,0]
[11,0,0,0,null,11,0,0,0]
[12,0,0,0,null,12,0,0,0]
[13,0,0,0,null,13,0,0,0]
[]
[]
[1,"headache ","[ˈhedeɪk]","головний біль"]
[2,"toothache","[ˈtuːθeɪk]","зубний біль"]
[3,"stomachache","[ˈstʌməkeɪk]","біль у шлунку"]
[4,"earache","[ˈɪəreɪk]","біль у вусі"]
[5,"backache","[ˈbækeɪk]","біль у спині"]

{"sheet":"Самостійна (6)","index":58,"n_rows":78,"n_cols":25,"rows_kept":78,"cut":false,"hidden":false,"merged":[]}
["Name_________________________              Date_______",null,null,null,null,"Name_________________________              Date_______",null,null,null,"Name_________________________              Date_______",null,null,null,"Name_________________________              Date_______"]
[]
[null,{"$f":"S3","v":"headache "},1,{"$f":"V3","v":"біль у вусі"},null,null,{"$f":"S3","v":"headache "},1,{"$f":"V3","v":"біль у вусі"},{"$f":"S16","v":"toothache"},null,null,null,{"$f":"J3","v":"toothache"},null,null,null,null,"headache ",null,1,"біль у вусі"]
[null,"toothache",2,"біль у спині",null,null,{"$f":"S4","v":"toothache"},2,{"$f":"V4","v":"біль у спині"},{"$f":"S17","v":"stomachache"},null,null,null,{"$f":"J4","v":"stomachache"},null,null,null,null,"toothache",null,2,"біль у спині"]
[null,"stomachache",3,"біль у шлунку",null,null,"stomachache",3,"біль у шлунку","headache ",null,null,null,"headache ",null,null,null,null,"stomachache",null,3,"біль у шлунку"]
[null,"earache",4,"головний біль",null,null,"earache",4,"головний біль","earache",null,null,null,"earache",null,null,null,null,"earache",null,4,"головний біль"]
[null,"backache",5,"зубний біль",null,null,"backache",5,"зубний біль","backache",null,null,null,"backache",null,null,null,null,"backache",null,5,"зубний біль"]
[null,0,6,0,null,null,0,6,0,0,null,null,null,0,null,null,null,null,null,null,6]
[null,0,7,0,null,null,0,7,0,0,null,null,null,0,null,null,null,null,null,null,7]
[null,0,8,0,null,null,0,8,0,0,null,null,null,0,null,null,null,null,null,null,8]
[null,0,9,0,null,null,0,9,0,0,null,null,null,0,null,null,null,null,null,null,9]
[null,0,10,0,null,null,0,10,0,0,null,null,null,0,null,null,null,null,null,null,10]
[null,0,11,0,null,null,0,11,0,0,null,null,null,0,null,null,null,null,null,null,11]
[]
["Name_________________________              Date_______",null,null,null,null,"Name_________________________              Date_______",null,null,null,"Name_________________________              Date_______",null,null,null,"Name_________________________              Date_______"]
[null,null,null,null,null,null,null,null,null,null,null,null,null,null,null,null,null,null,"toothache"]
[null,{"$f":"S3","v":"headache "},1,{"$f":"V3","v":"біль у вусі"},null,null,{"$f":"B17","v":"headache "},1,{"$f":"D17","v":"біль у вусі"},{"$f":"J3","v":"toothache"},null,null,null,{"$f":"J17","v":"toothache"},null,null,null,null,"stomachache"]
[null,{"$f":"S4","v":"toothache"},2,{"$f":"V4","v":"біль у спині"},null,null,{"$f":"B18","v":"toothache"},2,{"$f":"D18","v":"біль у спині"},{"$f":"J4","v":"stomachache"},null,null,null,{"$f":"J18","v":"stomachache"},null,null,null,null,"headache ",null,null,null,null,null,"toothache"]
[null,"stomachache",3,"біль у шлунку",null,null,"stomachache",3,"біль у шлунку","headache ",null,null,null,"headache ",null,null,null,null,"earache",null,null,null,null,null,"stomachache"]
[null,"earache",4,"головний біль",null,null,"earache",4,"головний біль","earache",null,null,null,"earache",null,null,null,null,"backache",null,null,null,null,null,"headache "]
[null,"backache",5,"зубний біль",null,null,"backache",5,"зубний біль","backache",null,null,null,"backache",null,null,null,null,null,null,null,null,null,null,"earache"]
[null,0,6,0,null,null,0,6,0,0,null,null,null,0,null,null,null,null,null,null,null,null,null,null,"backache"]
[null,0,7,0,null,null,0,7,0,0,null,null,null,0,null,null,null,null,null,null,null,null,null,null,"produced"]
[null,0,8,0,null,null,0,8,0,0,null,null,null,0,null,null,null,null,null,null,null,null,null,null,"olive"]
[null,0,9,0,null,null,0,9,0,0,null,null,null,0,null,null,null,null,null,null,null,null,null,null,"local"]
[null,0,10,0,null,null,0,10,0,0,null,null,null,0,null,null,null,null,null,null,null,null,null,null,"fizzy"]
[null,0,11,0,null,null,0,11,0,0,null,null,null,0,null,null,null,null,null,null,null,null,null,null,"fresh"]
[null,null,null,null,null,null,null,null,null,null,null,null,null,null,null,null,null,null,null,null,null,null,null,null,"chemicals"]
["Name_________________________              Date_______",null,null,null,null,"Name_________________________              Date_______",null,null,null,"Name_________________________              Date_______",null,null,null,"Name_________________________              Date_______"]
[]
[null,{"$f":"B17","v":"headache "},1,{"$f":"D17","v":"біль у вусі"},null,null,{"$f":"B31","v":"headache "},1,{"$f":"D31","v":"біль у вусі"},{"$f":"J17","v":"toothache"},null,null,null,{"$f":"J31","v":"toothache"}]
[null,{"$f":"B18","v":"toothache"},2,{"$f":"D18","v":"біль у спині"},null,null,{"$f":"B32","v":"toothache"},2,{"$f":"D32","v":"біль у спині"},{"$f":"J18","v":"stomachache"},null,null,null,{"$f":"J32","v":"stomachache"}]
[null,"stomachache",3,"біль у шлунку",null,null,"stomachache",3,"біль у шлунку","headache ",null,null,null,"headache "]
[null,"earache",4,"головний біль",null,null,"earache",4,"головний біль","earache",null,null,null,"earache"]
[null,"backache",5,"зубний біль",null,null,"backache",5,"зубний біль","backache",null,null,null,"backache"]
[null,0,6,0,null,null,0,6,0,0,null,null,null,0]
[null,0,7,0,null,null,0,7,0,0,null,null,null,0]
[null,0,8,0,null,null,0,8,0,0,null,null,null,0]
[null,0,9,0,null,null,0,9,0,0,null,null,null,0]
[null,0,10,0,null,null,0,10,0,0,null,null,null,0]
[null,0,11,0,null,null,0,11,0,0,null,null,null,0]
[]
["Name_________________________              Date_______",null,null,null,null,null,null,null,null,"Name_________________________              Date_______",null,null,null,"Name_________________________              Date_______"]
[]
[null,{"$f":"B31","v":"headache "},1,{"$f":"D31","v":"біль у вусі"},null,null,{"$f":"B39","v":0},9,{"$f":"D39","v":0},{"$f":"J31","v":"toothache"},null,null,null,{"$f":"J39","v":0}]
[null,{"$f":"B32","v":"toothache"},2,{"$f":"D32","v":"біль у спині"},null,null,{"$f":"B40","v":0},10,{"$f":"D40","v":0},{"$f":"J32","v":"stomachache"},null,null,null,{"$f":"J40","v":0}]
[null,"stomachache",3,"біль у шлунку",null,null,{"$f":"B41","v":0},11,{"$f":"D41","v":0},"headache ",null,null,null,{"$f":"J41","v":0}]
[null,"earache",4,"головний біль",null,null,null,null,null,"earache"]
[null,"backache",5,"зубний біль",null,null,null,null,null,"backache"]
[null,0,6,0,null,null,null,null,null,0]
[null,{"$f":"B37","v":0},7,{"$f":"D37","v":0},null,null,null,null,null,{"$f":"J37","v":0}]
[null,{"$f":"B38","v":0},8,{"$f":"D38","v":0},null,null,null,null,null,{"$f":"J38","v":0}]
[]
[null,7]
[]
[]
[null,null,1,"як"]
[null,null,2,"що, який ",null,null,null,1,"wife"]
[null,null,3,"чому",null,null,null,2,"to laugh"]
[null,null,4,"чий",null,null,null,3,"question"]
[null,null,5,"хто",null,null,null,4,"plump"]
[null,null,6,"коли",null,null,null,5,"pilot"]
[null,null,7,"де, куди",null,null,null,6,"niece"]
[null,null,8," скільки ( як бгато)",null,null,null,7,"curious"]
[null,null,null,null,null,null,null,8,"boring"]
[null,null,null,null,null,null,null,9,"bald"]
[null,null,1,"як",null,null,null,10,"aunt"]
[null,null,2,"що, який "]
[null,null,3,"чому",null,null,null,1,"wife"]
[null,null,4,"чий",null,null,null,2,"to laugh"]
[null,null,5,"хто",null,null,null,3,"question"]
[null,null,6,"коли",null,null,null,4,"plump"]
[null,null,7,"де, куди",null,null,null,5,"pilot"]
[null,null,8," скільки ( як бгато)",null,null,null,6,"niece"]
[null,null,null,null,null,null,null,7,"curious"]
[null,null,null,null,null,null,null,8,"boring"]
[null,null,null,null,null,null,null,9,"bald"]
[null,null,null,null,null,null,null,10,"aunt"]

{"sheet":"Лист13 (6)","index":59,"n_rows":62,"n_cols":13,"rows_kept":62,"cut":false,"hidden":false,"merged":[]}
[{"$f":"J1","v":1},{"$f":"K1","v":"rash"},{"$f":"L1","v":"[ræʃ]"},{"$f":"M1","v":"висип"},null,{"$f":"A1","v":1},{"$f":"B1","v":"rash"},{"$f":"C1","v":"[ræʃ]"},{"$f":"D1","v":"висип"},1,"rash","[ræʃ]","висип"]
[{"$f":"J2","v":2},"throat","[θrəut]","горло",null,{"$f":"A2","v":2},"throat","[θrəut]","горло",2,"throat","[θrəut]","горло"]
[3,"sore throat","[sɔː] [θrəut]","біль у горлі",null,3,"sore throat","[sɔː] [θrəut]","біль у горлі",3,"sore throat","[sɔː] [θrəut]","біль у горлі"]
[4,"feel dizzy","[fiːl] [ˈdɪzɪ]","відчувати головокружіння",null,4,"feel dizzy","[fiːl] [ˈdɪzɪ]","відчувати головокружіння",4,"feel dizzy","[fiːl] [ˈdɪzɪ]","відчувати головокружіння"]
[5,"stomach","[ˈstʌmək]","шлунок",null,5,"stomach","[ˈstʌmək]","шлунок",5,"stomach","[ˈstʌmək]","шлунок"]
[6,"bruise","[bruːz]","синяк",null,6,"bruise","[bruːz]","синяк",6,"bruise","[bruːz]","синяк"]
[7,"flu","[fluː]","грип",null,7,"flu","[fluː]","грип",7,"flu","[fluː]","грип"]
[8,"cough","[kɔf]","кашель",null,8,"cough","[kɔf]","кашель",8,"cough","[kɔf]","кашель"]
[9,"fever","[ˈfiːvə]","жар, лихоманка",null,9,"fever","[ˈfiːvə]","жар, лихоманка",9,"fever","[ˈfiːvə]","жар, лихоманка"]
[10,0,0,0,null,10,0,0,0,10]
[11,{"$f":"K11","v":0},0,0,null,11,0,0,0,11]
[12,{"$f":"K12","v":0},0,0,null,12,0,0,0,12]
[13,{"$f":"K13","v":0},0,0,null,13,0,0,0,13]
[]
[1,{"$f":"B1","v":"rash"},{"$f":"C1","v":"[ræʃ]"},{"$f":"D1","v":"висип"},null,1,{"$f":"B15","v":"rash"},{"$f":"C15","v":"[ræʃ]"},{"$f":"D15","v":"висип"}]
[2,{"$f":"B2","v":"throat"},"[θrəut]","горло",null,2,{"$f":"B16","v":"throat"},"[θrəut]","горло"]
[3,"sore throat","[sɔː] [θrəut]","біль у горлі",null,3,"sore throat","[sɔː] [θrəut]","біль у горлі"]
[4,"feel dizzy","[fiːl] [ˈdɪzɪ]","відчувати головокружіння",null,4,"feel dizzy","[fiːl] [ˈdɪzɪ]","відчувати головокружіння"]
[5,"stomach","[ˈstʌmək]","шлунок",null,5,"stomach","[ˈstʌmək]","шлунок"]
[6,"bruise","[bruːz]","синяк",null,6,"bruise","[bruːz]","синяк"]
[7,"flu","[fluː]","грип",null,7,"flu","[fluː]","грип"]
[8,"cough","[kɔf]","кашель",null,8,"cough","[kɔf]","кашель"]
[9,"fever","[ˈfiːvə]","жар, лихоманка",null,9,"fever","[ˈfiːvə]","жар, лихоманка"]
[10,0,0,0,null,10,0,0,0]
[11,0,0,0,null,11,0,0,0]
[12,0,0,0,null,12,0,0,0]
[13,0,0,0,null,13,0,0,0]
[]
[1,{"$f":"B15","v":"rash"},{"$f":"C15","v":"[ræʃ]"},{"$f":"D15","v":"висип"},null,1,{"$f":"B29","v":"rash"},{"$f":"C29","v":"[ræʃ]"},{"$f":"D29","v":"висип"}]
[2,{"$f":"B16","v":"throat"},"[θrəut]","горло",null,2,{"$f":"B30","v":"throat"},"[θrəut]","горло"]
[3,"sore throat","[sɔː] [θrəut]","біль у горлі",null,3,"sore throat","[sɔː] [θrəut]","біль у горлі"]
[4,"feel dizzy","[fiːl] [ˈdɪzɪ]","відчувати головокружіння",null,4,"feel dizzy","[fiːl] [ˈdɪzɪ]","відчувати головокружіння"]
[5,"stomach","[ˈstʌmək]","шлунок",null,5,"stomach","[ˈstʌmək]","шлунок"]
[6,"bruise","[bruːz]","синяк",null,6,"bruise","[bruːz]","синяк"]
[7,"flu","[fluː]","грип",null,7,"flu","[fluː]","грип"]
[8,"cough","[kɔf]","кашель",null,8,"cough","[kɔf]","кашель"]
[9,"fever","[ˈfiːvə]","жар, лихоманка",null,9,"fever","[ˈfiːvə]","жар, лихоманка"]
[10,0,0,0,null,10,0,0,0]
[11,0,0,0,null,11,0,0,0]
[12,0,0,0,null,12,0,0,0]
[13,0,0,0,null,13,0,0,0]
[]
[1,{"$f":"B29","v":"rash"},{"$f":"C29","v":"[ræʃ]"},{"$f":"D29","v":"висип"},null,1,{"$f":"B43","v":"rash"},{"$f":"C43","v":"[ræʃ]"},{"$f":"D43","v":"висип"}]
[2,{"$f":"B30","v":"throat"},"[θrəut]","горло",null,2,{"$f":"B44","v":"throat"},"[θrəut]","горло"]
[3,"sore throat","[sɔː] [θrəut]","біль у горлі",null,3,"sore throat","[sɔː] [θrəut]","біль у горлі"]
[4,"feel dizzy","[fiːl] [ˈdɪzɪ]","відчувати головокружіння",null,4,"feel dizzy","[fiːl] [ˈdɪzɪ]","відчувати головокружіння"]
[5,"stomach","[ˈstʌmək]","шлунок",null,5,"stomach","[ˈstʌmək]","шлунок"]
[6,"bruise","[bruːz]","синяк",null,6,"bruise","[bruːz]","синяк"]
[7,"flu","[fluː]","грип",null,7,"flu","[fluː]","грип"]
[8,"cough","[kɔf]","кашель",null,8,"cough","[kɔf]","кашель"]
[9,"fever","[ˈfiːvə]","жар, лихоманка",null,9,"fever","[ˈfiːvə]","жар, лихоманка"]
[10,0,0,0,null,10,0,0,0]
[11,0,0,0,null,11,0,0,0]
[12,0,0,0,null,12,0,0,0]
[13,0,0,0,null,13,0,0,0]
[]
[]
[1,"headache ","[ˈhedeɪk]","головний біль"]
[2,"toothache","[ˈtuːθeɪk]","зубний біль"]
[3,"stomachache","[ˈstʌməkeɪk]","біль у шлунку"]
[4,"earache","[ˈɪəreɪk]","біль у вусі"]
[5,"backache","[ˈbækeɪk]","біль у спині"]

{"sheet":"Самостійна (7)","index":60,"n_rows":78,"n_cols":25,"rows_kept":78,"cut":false,"hidden":false,"merged":[]}
["Name_________________________              Date_______",null,null,null,null,"Name_________________________              Date_______",null,null,null,"Name_________________________              Date_______",null,null,null,"Name_________________________              Date_______"]
[]
[null,{"$f":"S3","v":"rash"},1,{"$f":"V3","v":"шлунок"},null,null,{"$f":"S3","v":"rash"},1,{"$f":"V3","v":"шлунок"},{"$f":"S16","v":"throat"},null,null,null,{"$f":"J3","v":"throat"},null,null,null,null,"rash",null,1,"шлунок"]
[null,"throat",2,"синяк",null,null,{"$f":"S4","v":"throat"},2,{"$f":"V4","v":"синяк"},{"$f":"S17","v":"stomach"},null,null,null,{"$f":"J4","v":"stomach"},null,null,null,null,"throat",null,2,"синяк"]
[null,"sore throat",3,"кашель",null,null,"sore throat",3,"кашель","sore throat",null,null,null,"sore throat",null,null,null,null,"sore throat",null,3,"кашель"]
[null,"feel dizzy",4,"жар, лихоманка",null,null,"feel dizzy",4,"жар, лихоманка","rash",null,null,null,"rash",null,null,null,null,"feel dizzy",null,4,"жар, лихоманка"]
[null,"stomach",5,"грип",null,null,"stomach",5,"грип","flu",null,null,null,"flu",null,null,null,null,"stomach",null,5,"грип"]
[null,"bruise",6,"горло",null,null,"bruise",6,"горло","fever",null,null,null,"fever",null,null,null,null,"bruise",null,6,"горло"]
[null,"flu",7,"відчувати головокружіння",null,null,"flu",7,"відчувати головокружіння","feel dizzy",null,null,null,"feel dizzy",null,null,null,null,"flu",null,7,"відчувати головокружіння"]
[null,"cough",8,"висип",null,null,"cough",8,"висип","cough",null,null,null,"cough",null,null,null,null,"cough",null,8,"висип"]
[null,"fever",9,"біль у горлі",null,null,"fever",9,"біль у горлі","bruise",null,null,null,"bruise",null,null,null,null,"fever",null,9,"біль у горлі"]
[null,0,10,0,null,null,0,10,0,0,null,null,null,0,null,null,null,null,null,null,10]
[null,0,11,0,null,null,0,11,0,0,null,null,null,0,null,null,null,null,null,null,11]
[]
["Name_________________________              Date_______",null,null,null,null,"Name_________________________              Date_______",null,null,null,"Name_________________________              Date_______",null,null,null,"Name_________________________              Date_______"]
[null,null,null,null,null,null,null,null,null,null,null,null,null,null,null,null,null,null,"throat"]
[null,{"$f":"S3","v":"rash"},1,{"$f":"V3","v":"шлунок"},null,null,{"$f":"B17","v":"rash"},1,{"$f":"D17","v":"шлунок"},{"$f":"J3","v":"throat"},null,null,null,{"$f":"J17","v":"throat"},null,null,null,null,"stomach"]
[null,{"$f":"S4","v":"throat"},2,{"$f":"V4","v":"синяк"},null,null,{"$f":"B18","v":"throat"},2,{"$f":"D18","v":"синяк"},{"$f":"J4","v":"stomach"},null,null,null,{"$f":"J18","v":"stomach"},null,null,null,null,"sore throat",null,null,null,null,null,"throat"]
[null,"sore throat",3,"кашель",null,null,"sore throat",3,"кашель","sore throat",null,null,null,"sore throat",null,null,null,null,"rash",null,null,null,null,null,"stomach"]
[null,"feel dizzy",4,"жар, лихоманка",null,null,"feel dizzy",4,"жар, лихоманка","rash",null,null,null,"rash",null,null,null,null,"flu",null,null,null,null,null,"sore throat"]
[null,"stomach",5,"грип",null,null,"stomach",5,"грип","flu",null,null,null,"flu",null,null,null,null,"fever",null,null,null,null,null,"rash"]
[null,"bruise",6,"горло",null,null,"bruise",6,"горло","fever",null,null,null,"fever",null,null,null,null,"feel dizzy",null,null,null,null,null,"flu"]
[null,"flu",7,"відчувати головокружіння",null,null,"flu",7,"відчувати головокружіння","feel dizzy",null,null,null,"feel dizzy",null,null,null,null,"cough",null,null,null,null,null,"fever"]
[null,"cough",8,"висип",null,null,"cough",8,"висип","cough",null,null,null,"cough",null,null,null,null,"bruise",null,null,null,null,null,"feel dizzy"]
[null,"fever",9,"біль у горлі",null,null,"fever",9,"біль у горлі","bruise",null,null,null,"bruise",null,null,null,null,null,null,null,null,null,null,"cough"]
[null,0,10,0,null,null,0,10,0,0,null,null,null,0,null,null,null,null,null,null,null,null,null,null,"bruise"]
[null,0,11,0,null,null,0,11,0,0,null,null,null,0,null,null,null,null,null,null,null,null,null,null,"fresh"]
[null,null,null,null,null,null,null,null,null,null,null,null,null,null,null,null,null,null,null,null,null,null,null,null,"chemicals"]
["Name_________________________              Date_______",null,null,null,null,"Name_________________________              Date_______",null,null,null,"Name_________________________              Date_______",null,null,null,"Name_________________________              Date_______"]
[]
[null,{"$f":"B17","v":"rash"},1,{"$f":"D17","v":"шлунок"},null,null,{"$f":"B31","v":"rash"},1,{"$f":"D31","v":"шлунок"},{"$f":"J17","v":"throat"},null,null,null,{"$f":"J31","v":"throat"}]
[null,{"$f":"B18","v":"throat"},2,{"$f":"D18","v":"синяк"},null,null,{"$f":"B32","v":"throat"},2,{"$f":"D32","v":"синяк"},{"$f":"J18","v":"stomach"},null,null,null,{"$f":"J32","v":"stomach"}]
[null,"sore throat",3,"кашель",null,null,"sore throat",3,"кашель","sore throat",null,null,null,"sore throat"]
[null,"feel dizzy",4,"жар, лихоманка",null,null,"feel dizzy",4,"жар, лихоманка","rash",null,null,null,"rash"]
[null,"stomach",5,"грип",null,null,"stomach",5,"грип","flu",null,null,null,"flu"]
[null,"bruise",6,"горло",null,null,"bruise",6,"горло","fever",null,null,null,"fever"]
[null,"flu",7,"відчувати головокружіння",null,null,"flu",7,"відчувати головокружіння","feel dizzy",null,null,null,"feel dizzy"]
[null,"cough",8,"висип",null,null,"cough",8,"висип","cough",null,null,null,"cough"]
[null,"fever",9,"біль у горлі",null,null,"fever",9,"біль у горлі","bruise",null,null,null,"bruise"]
[null,0,10,0,null,null,0,10,0,0,null,null,null,0]
[null,0,11,0,null,null,0,11,0,0,null,null,null,0]
[]
["Name_________________________              Date_______",null,null,null,null,null,null,null,null,"Name_________________________              Date_______",null,null,null,"Name_________________________              Date_______"]
[]
[null,{"$f":"B31","v":"rash"},1,{"$f":"D31","v":"шлунок"},null,null,{"$f":"B39","v":"fever"},9,{"$f":"D39","v":"біль у горлі"},{"$f":"J31","v":"throat"},null,null,null,{"$f":"J39","v":"bruise"}]
[null,{"$f":"B32","v":"throat"},2,{"$f":"D32","v":"синяк"},null,null,{"$f":"B40","v":0},10,{"$f":"D40","v":0},{"$f":"J32","v":"stomach"},null,null,null,{"$f":"J40","v":0}]
[null,"sore throat",3,"кашель",null,null,{"$f":"B41","v":0},11,{"$f":"D41","v":0},"sore throat",null,null,null,{"$f":"J41","v":0}]
[null,"feel dizzy",4,"жар, лихоманка",null,null,null,null,null,"rash"]
[null,"stomach",5,"грип",null,null,null,null,null,"flu"]
[null,"bruise",6,"горло",null,null,null,null,null,"fever"]
[null,{"$f":"B37","v":"flu"},7,{"$f":"D37","v":"відчувати головокружіння"},null,null,null,null,null,{"$f":"J37","v":"feel dizzy"}]
[null,{"$f":"B38","v":"cough"},8,{"$f":"D38","v":"висип"},null,null,null,null,null,{"$f":"J38","v":"cough"}]
[]
[null,7]
[]
[]
[null,null,1,"як"]
[null,null,2,"що, який ",null,null,null,1,"wife"]
[null,null,3,"чому",null,null,null,2,"to laugh"]
[null,null,4,"чий",null,null,null,3,"question"]
[null,null,5,"хто",null,null,null,4,"plump"]
[null,null,6,"коли",null,null,null,5,"pilot"]
[null,null,7,"де, куди",null,null,null,6,"niece"]
[null,null,8," скільки ( як бгато)",null,null,null,7,"curious"]
[null,null,null,null,null,null,null,8,"boring"]
[null,null,null,null,null,null,null,9,"bald"]
[null,null,1,"як",null,null,null,10,"aunt"]
[null,null,2,"що, який "]
[null,null,3,"чому",null,null,null,1,"wife"]
[null,null,4,"чий",null,null,null,2,"to laugh"]
[null,null,5,"хто",null,null,null,3,"question"]
[null,null,6,"коли",null,null,null,4,"plump"]
[null,null,7,"де, куди",null,null,null,5,"pilot"]
[null,null,8," скільки ( як бгато)",null,null,null,6,"niece"]
[null,null,null,null,null,null,null,7,"curious"]
[null,null,null,null,null,null,null,8,"boring"]
[null,null,null,null,null,null,null,9,"bald"]
[null,null,null,null,null,null,null,10,"aunt"]

{"sheet":"Лист13 (7)","index":61,"n_rows":62,"n_cols":13,"rows_kept":62,"cut":false,"hidden":false,"merged":[]}
[{"$f":"J1","v":1},{"$f":"K1","v":"medicine"},{"$f":"L1","v":"[ˈmedɪsɪn]"},{"$f":"M1","v":"ліки"},null,{"$f":"A1","v":1},{"$f":"B1","v":"medicine"},{"$f":"C1","v":"[ˈmedɪsɪn]"},{"$f":"D1","v":"ліки"},1,"medicine","[ˈmedɪsɪn]","ліки"]
[{"$f":"J2","v":2},"better","[ˈbetə]","краще",null,{"$f":"A2","v":2},"better","[ˈbetə]","краще",2,"better","[ˈbetə]","краще"]
[3,"get better","[ˈbetə]","покращити",null,3,"get better","[ˈbetə]","покращити",3,"get better","[ˈbetə]","покращити"]
[4,"be able to","[biː] [ˈeɪbl] ","бути в змозі",null,4,"be able to","[biː] [ˈeɪbl] ","бути в змозі",4,"be able to","[biː] [ˈeɪbl] ","бути в змозі"]
[5,"keep fit","[kiːp] [fɪt]","бути бадьорим, здоровим",null,5,"keep fit","[kiːp] [fɪt]","бути бадьорим, здоровим",5,"keep fit","[kiːp] [fɪt]","бути бадьорим, здоровим"]
[6,"you should","[ʃud] ","вам слід",null,6,"you should","[ʃud] ","вам слід",6,"you should","[ʃud] ","вам слід"]
[7,"cold","[kəuld]","холод",null,7,"cold","[kəuld]","холод",7,"cold","[kəuld]","холод"]
[8,"catch cold","[kæʧ]  [kəuld]","застудитися (спіймати холод)",null,8,"catch cold","[kæʧ]  [kəuld]","застудитися (спіймати холод)",8,"catch cold","[kæʧ]  [kəuld]","застудитися (спіймати холод)"]
[9,"around","[əˈraund]","навколо",null,9,"around","[əˈraund]","навколо",9,"around","[əˈraund]","навколо"]
[10,"other","[ˈʌðə]","інший",null,10,"other","[ˈʌðə]","інший",10,"other","[ˈʌðə]","інший"]
[11,{"$f":"K11","v":0},0,0,null,11,0,0,0,11]
[12,{"$f":"K12","v":0},0,0,null,12,0,0,0,12]
[13,{"$f":"K13","v":0},0,0,null,13,0,0,0,13]
[]
[1,{"$f":"B1","v":"medicine"},{"$f":"C1","v":"[ˈmedɪsɪn]"},{"$f":"D1","v":"ліки"},null,1,{"$f":"B15","v":"medicine"},{"$f":"C15","v":"[ˈmedɪsɪn]"},{"$f":"D15","v":"ліки"}]
[2,{"$f":"B2","v":"better"},"[ˈbetə]","краще",null,2,{"$f":"B16","v":"better"},"[ˈbetə]","краще"]
[3,"get better","[ˈbetə]","покращити",null,3,"get better","[ˈbetə]","покращити"]
[4,"be able to","[biː] [ˈeɪbl] ","бути в змозі",null,4,"be able to","[biː] [ˈeɪbl] ","бути в змозі"]
[5,"keep fit","[kiːp] [fɪt]","бути бадьорим, здоровим",null,5,"keep fit","[kiːp] [fɪt]","бути бадьорим, здоровим"]
[6,"you should","[ʃud] ","вам слід",null,6,"you should","[ʃud] ","вам слід"]
[7,"cold","[kəuld]","холод",null,7,"cold","[kəuld]","холод"]
[8,"catch cold","[kæʧ]  [kəuld]","застудитися (спіймати холод)",null,8,"catch cold","[kæʧ]  [kəuld]","застудитися (спіймати холод)"]
[9,"around","[əˈraund]","навколо",null,9,"around","[əˈraund]","навколо"]
[10,"other","[ˈʌðə]","інший",null,10,"other","[ˈʌðə]","інший"]
[11,0,0,0,null,11,0,0,0]
[12,0,0,0,null,12,0,0,0]
[13,0,0,0,null,13,0,0,0]
[]
[1,{"$f":"B15","v":"medicine"},{"$f":"C15","v":"[ˈmedɪsɪn]"},{"$f":"D15","v":"ліки"},null,1,{"$f":"B29","v":"medicine"},{"$f":"C29","v":"[ˈmedɪsɪn]"},{"$f":"D29","v":"ліки"}]
[2,{"$f":"B16","v":"better"},"[ˈbetə]","краще",null,2,{"$f":"B30","v":"better"},"[ˈbetə]","краще"]
[3,"get better","[ˈbetə]","покращити",null,3,"get better","[ˈbetə]","покращити"]
[4,"be able to","[biː] [ˈeɪbl] ","бути в змозі",null,4,"be able to","[biː] [ˈeɪbl] ","бути в змозі"]
[5,"keep fit","[kiːp] [fɪt]","бути бадьорим, здоровим",null,5,"keep fit","[kiːp] [fɪt]","бути бадьорим, здоровим"]
[6,"you should","[ʃud] ","вам слід",null,6,"you should","[ʃud] ","вам слід"]
[7,"cold","[kəuld]","холод",null,7,"cold","[kəuld]","холод"]
[8,"catch cold","[kæʧ]  [kəuld]","застудитися (спіймати холод)",null,8,"catch cold","[kæʧ]  [kəuld]","застудитися (спіймати холод)"]
[9,"around","[əˈraund]","навколо",null,9,"around","[əˈraund]","навколо"]
[10,"other","[ˈʌðə]","інший",null,10,"other","[ˈʌðə]","інший"]
[11,0,0,0,null,11,0,0,0]
[12,0,0,0,null,12,0,0,0]
[13,0,0,0,null,13,0,0,0]
[]
[1,{"$f":"B29","v":"medicine"},{"$f":"C29","v":"[ˈmedɪsɪn]"},{"$f":"D29","v":"ліки"},null,1,{"$f":"B43","v":"medicine"},{"$f":"C43","v":"[ˈmedɪsɪn]"},{"$f":"D43","v":"ліки"}]
[2,{"$f":"B30","v":"better"},"[ˈbetə]","краще",null,2,{"$f":"B44","v":"better"},"[ˈbetə]","краще"]
[3,"get better","[ˈbetə]","покращити",null,3,"get better","[ˈbetə]","покращити"]
[4,"be able to","[biː] [ˈeɪbl] ","бути в змозі",null,4,"be able to","[biː] [ˈeɪbl] ","бути в змозі"]
[5,"keep fit","[kiːp] [fɪt]","бути бадьорим, здоровим",null,5,"keep fit","[kiːp] [fɪt]","бути бадьорим, здоровим"]
[6,"you should","[ʃud] ","вам слід",null,6,"you should","[ʃud] ","вам слід"]
[7,"cold","[kəuld]","холод",null,7,"cold","[kəuld]","холод"]
[8,"catch cold","[kæʧ]  [kəuld]","застудитися (спіймати холод)",null,8,"catch cold","[kæʧ]  [kəuld]","застудитися (спіймати холод)"]
[9,"around","[əˈraund]","навколо",null,9,"around","[əˈraund]","навколо"]
[10,"other","[ˈʌðə]","інший",null,10,"other","[ˈʌðə]","інший"]
[11,0,0,0,null,11,0,0,0]
[12,0,0,0,null,12,0,0,0]
[13,0,0,0,null,13,0,0,0]
[]
[]
[1,"headache ","[ˈhedeɪk]","головний біль"]
[2,"toothache","[ˈtuːθeɪk]","зубний біль"]
[3,"stomachache","[ˈstʌməkeɪk]","біль у шлунку"]
[4,"earache","[ˈɪəreɪk]","біль у вусі"]
[5,"backache","[ˈbækeɪk]","біль у спині"]

{"sheet":"Самостійна (8)","index":62,"n_rows":78,"n_cols":25,"rows_kept":78,"cut":false,"hidden":false,"merged":[]}
["Name_________________________              Date_______",null,null,null,null,"Name_________________________              Date_______",null,null,null,"Name_________________________              Date_______",null,null,null,"Name_________________________              Date_______"]
[]
[null,{"$f":"S3","v":"medicine"},1,{"$f":"V3","v":"бути бадьорим, здоровим"},null,null,{"$f":"S3","v":"medicine"},1,{"$f":"V3","v":"бути бадьорим, здоровим"},{"$f":"S16","v":"you should"},null,null,null,{"$f":"J3","v":"you should"},null,null,null,null,"medicine",null,1,"бути бадьорим, здоровим"]
[null,"better",2,"бути в змозі",null,null,{"$f":"S4","v":"better"},2,{"$f":"V4","v":"бути в змозі"},{"$f":"S17","v":"other"},null,null,null,{"$f":"J4","v":"other"},null,null,null,null,"better",null,2,"бути в змозі"]
[null,"get better",3,"вам слід",null,null,"get better",3,"вам слід","medicine",null,null,null,"medicine",null,null,null,null,"get better",null,3,"вам слід"]
[null,"be able to",4,"застудитися (спіймати холод)",null,null,"be able to",4,"застудитися (спіймати холод)","keep fit",null,null,null,"keep fit",null,null,null,null,"be able to",null,4,"застудитися (спіймати холод)"]
[null,"keep fit",5,"інший",null,null,"keep fit",5,"інший","get better",null,null,null,"get better",null,null,null,null,"keep fit",null,5,"інший"]
[null,"you should",6,"краще",null,null,"you should",6,"краще","cold",null,null,null,"cold",null,null,null,null,"you should",null,6,"краще"]
[null,"cold",7,"ліки",null,null,"cold",7,"ліки","catch cold",null,null,null,"catch cold",null,null,null,null,"cold",null,7,"ліки"]
[null,"catch cold",8,"навколо",null,null,"catch cold",8,"навколо","better",null,null,null,"better",null,null,null,null,"catch cold",null,8,"навколо"]
[null,"around",9,"покращити",null,null,"around",9,"покращити","be able to",null,null,null,"be able to",null,null,null,null,"around",null,9,"покращити"]
[null,"other",10,"холод",null,null,"other",10,"холод","around",null,null,null,"around",null,null,null,null,"other",null,10,"холод"]
[null,0,11,0,null,null,0,11,0,0,null,null,null,0,null,null,null,null,null,null,11]
[]
["Name_________________________              Date_______",null,null,null,null,"Name_________________________              Date_______",null,null,null,"Name_________________________              Date_______",null,null,null,"Name_________________________              Date_______"]
[null,null,null,null,null,null,null,null,null,null,null,null,null,null,null,null,null,null,"you should"]
[null,{"$f":"S3","v":"medicine"},1,{"$f":"V3","v":"бути бадьорим, здоровим"},null,null,{"$f":"B17","v":"medicine"},1,{"$f":"D17","v":"бути бадьорим, здоровим"},{"$f":"J3","v":"you should"},null,null,null,{"$f":"J17","v":"you should"},null,null,null,null,"other"]
[null,{"$f":"S4","v":"better"},2,{"$f":"V4","v":"бути в змозі"},null,null,{"$f":"B18","v":"better"},2,{"$f":"D18","v":"бути в змозі"},{"$f":"J4","v":"other"},null,null,null,{"$f":"J18","v":"other"},null,null,null,null,"medicine",null,null,null,null,null,"you should"]
[null,"get better",3,"вам слід",null,null,"get better",3,"вам слід","medicine",null,null,null,"medicine",null,null,null,null,"keep fit",null,null,null,null,null,"other"]
[null,"be able to",4,"застудитися (спіймати холод)",null,null,"be able to",4,"застудитися (спіймати холод)","keep fit",null,null,null,"keep fit",null,null,null,null,"get better",null,null,null,null,null,"medicine"]
[null,"keep fit",5,"інший",null,null,"keep fit",5,"інший","get better",null,null,null,"get better",null,null,null,null,"cold",null,null,null,null,null,"keep fit"]
[null,"you should",6,"краще",null,null,"you should",6,"краще","cold",null,null,null,"cold",null,null,null,null,"catch cold",null,null,null,null,null,"get better"]
[null,"cold",7,"ліки",null,null,"cold",7,"ліки","catch cold",null,null,null,"catch cold",null,null,null,null,"better",null,null,null,null,null,"cold"]
[null,"catch cold",8,"навколо",null,null,"catch cold",8,"навколо","better",null,null,null,"better",null,null,null,null,"be able to",null,null,null,null,null,"catch cold"]
[null,"around",9,"покращити",null,null,"around",9,"покращити","be able to",null,null,null,"be able to",null,null,null,null,"around",null,null,null,null,null,"better"]
[null,"other",10,"холод",null,null,"other",10,"холод","around",null,null,null,"around",null,null,null,null,null,null,null,null,null,null,"be able to"]
[null,0,11,0,null,null,0,11,0,0,null,null,null,0,null,null,null,null,null,null,null,null,null,null,"around"]
[null,null,null,null,null,null,null,null,null,null,null,null,null,null,null,null,null,null,null,null,null,null,null,null,"chemicals"]
["Name_________________________              Date_______",null,null,null,null,"Name_________________________              Date_______",null,null,null,"Name_________________________              Date_______",null,null,null,"Name_________________________              Date_______"]
[]
[null,{"$f":"B17","v":"medicine"},1,{"$f":"D17","v":"бути бадьорим, здоровим"},null,null,{"$f":"B31","v":"medicine"},1,{"$f":"D31","v":"бути бадьорим, здоровим"},{"$f":"J17","v":"you should"},null,null,null,{"$f":"J31","v":"you should"}]
[null,{"$f":"B18","v":"better"},2,{"$f":"D18","v":"бути в змозі"},null,null,{"$f":"B32","v":"better"},2,{"$f":"D32","v":"бути в змозі"},{"$f":"J18","v":"other"},null,null,null,{"$f":"J32","v":"other"}]
[null,"get better",3,"вам слід",null,null,"get better",3,"вам слід","medicine",null,null,null,"medicine"]
[null,"be able to",4,"застудитися (спіймати холод)",null,null,"be able to",4,"застудитися (спіймати холод)","keep fit",null,null,null,"keep fit"]
[null,"keep fit",5,"інший",null,null,"keep fit",5,"інший","get better",null,null,null,"get better"]
[null,"you should",6,"краще",null,null,"you should",6,"краще","cold",null,null,null,"cold"]
[null,"cold",7,"ліки",null,null,"cold",7,"ліки","catch cold",null,null,null,"catch cold"]
[null,"catch cold",8,"навколо",null,null,"catch cold",8,"навколо","better",null,null,null,"better"]
[null,"around",9,"покращити",null,null,"around",9,"покращити","be able to",null,null,null,"be able to"]
[null,"other",10,"холод",null,null,"other",10,"холод","around",null,null,null,"around"]
[null,0,11,0,null,null,0,11,0,0,null,null,null,0]
[]
["Name_________________________              Date_______",null,null,null,null,null,null,null,null,"Name_________________________              Date_______",null,null,null,"Name_________________________              Date_______"]
[]
[null,{"$f":"B31","v":"medicine"},1,{"$f":"D31","v":"бути бадьорим, здоровим"},null,null,{"$f":"B39","v":"around"},9,{"$f":"D39","v":"покращити"},{"$f":"J31","v":"you should"},null,null,null,{"$f":"J39","v":"be able to"}]
[null,{"$f":"B32","v":"better"},2,{"$f":"D32","v":"бути в змозі"},null,null,{"$f":"B40","v":"other"},10,{"$f":"D40","v":"холод"},{"$f":"J32","v":"other"},null,null,null,{"$f":"J40","v":"around"}]
[null,"get better",3,"вам слід",null,null,{"$f":"B41","v":0},11,{"$f":"D41","v":0},"medicine",null,null,null,{"$f":"J41","v":0}]
[null,"be able to",4,"застудитися (спіймати холод)",null,null,null,null,null,"keep fit"]
[null,"keep fit",5,"інший",null,null,null,null,null,"get better"]
[null,"you should",6,"краще",null,null,null,null,null,"cold"]
[null,{"$f":"B37","v":"cold"},7,{"$f":"D37","v":"ліки"},null,null,null,null,null,{"$f":"J37","v":"catch cold"}]
[null,{"$f":"B38","v":"catch cold"},8,{"$f":"D38","v":"навколо"},null,null,null,null,null,{"$f":"J38","v":"better"}]
[]
[null,7]
[]
[]
[null,null,1,"як"]
[null,null,2,"що, який ",null,null,null,1,"wife"]
[null,null,3,"чому",null,null,null,2,"to laugh"]
[null,null,4,"чий",null,null,null,3,"question"]
[null,null,5,"хто",null,null,null,4,"plump"]
[null,null,6,"коли",null,null,null,5,"pilot"]
[null,null,7,"де, куди",null,null,null,6,"niece"]
[null,null,8," скільки ( як бгато)",null,null,null,7,"curious"]
[null,null,null,null,null,null,null,8,"boring"]
[null,null,null,null,null,null,null,9,"bald"]
[null,null,1,"як",null,null,null,10,"aunt"]
[null,null,2,"що, який "]
[null,null,3,"чому",null,null,null,1,"wife"]
[null,null,4,"чий",null,null,null,2,"to laugh"]
[null,null,5,"хто",null,null,null,3,"question"]
[null,null,6,"коли",null,null,null,4,"plump"]
[null,null,7,"де, куди",null,null,null,5,"pilot"]
[null,null,8," скільки ( як бгато)",null,null,null,6,"niece"]
[null,null,null,null,null,null,null,7,"curious"]
[null,null,null,null,null,null,null,8,"boring"]
[null,null,null,null,null,null,null,9,"bald"]
[null,null,null,null,null,null,null,10,"aunt"]

{"sheet":"Лист13 (8)","index":63,"n_rows":62,"n_cols":13,"rows_kept":62,"cut":false,"hidden":false,"merged":[]}
[{"$f":"J1","v":1},{"$f":"K1","v":"regularly "},{"$f":"L1","v":"[ˈregjələlɪ]"},{"$f":"M1","v":"регулярно"},null,{"$f":"A1","v":1},{"$f":"B1","v":"regularly "},{"$f":"C1","v":"[ˈregjələlɪ]"},{"$f":"D1","v":"регулярно"},1,"regularly ","[ˈregjələlɪ]","регулярно"]
[{"$f":"J2","v":2},{"$f":"K2","v":"useful "},"[ˈjuːsful]","корисно",null,{"$f":"A2","v":2},"useful ","[ˈjuːsful]","корисно",2,"useful ","[ˈjuːsful]","корисно"]
[3,"thing","[θɪŋ]","річ",null,3,"thing","[θɪŋ]","річ",3,"thing","[θɪŋ]","річ"]
[4,"complete","[kəmˈpliːt]","повний",null,4,"complete","[kəmˈpliːt]","повний",4,"complete","[kəmˈpliːt]","повний"]
[5,"pay","[peɪ]","платити",null,5,"pay","[peɪ]","платити",5,"pay","[peɪ]","платити"]
[6,"quick","[kwɪk]","швидко",null,6,"quick","[kwɪk]","швидко",6,"quick","[kwɪk]","швидко"]
[7,"examine","[ˈtriːtmənt]","оглядати ",null,7,"examine","[ˈtriːtmənt]","оглядати ",7,"examine","[ˈtriːtmənt]","оглядати "]
[8,"prescribe","[prɪˈskraɪb]","виписувати (ліки)",null,8,"prescribe","[prɪˈskraɪb]","виписувати (ліки)",8,"prescribe","[prɪˈskraɪb]","виписувати (ліки)"]
[9,"treatment","[ˈtriːtmənt]","лікування",null,9,"treatment","[ˈtriːtmənt]","лікування",9,"treatment","[ˈtriːtmənt]","лікування"]
[10,0,0,0,null,10,0,0,0,10]
[11,{"$f":"K11","v":0},0,0,null,11,0,0,0,11]
[12,{"$f":"K12","v":0},0,0,null,12,0,0,0,12]
[13,{"$f":"K13","v":0},0,0,null,13,0,0,0,13]
[]
[1,{"$f":"B1","v":"regularly "},{"$f":"C1","v":"[ˈregjələlɪ]"},{"$f":"D1","v":"регулярно"},null,1,{"$f":"B15","v":"regularly "},{"$f":"C15","v":"[ˈregjələlɪ]"},{"$f":"D15","v":"регулярно"}]
[2,{"$f":"B2","v":"useful "},"[ˈjuːsful]","корисно",null,2,{"$f":"B16","v":"useful "},"[ˈjuːsful]","корисно"]
[3,"thing","[θɪŋ]","річ",null,3,"thing","[θɪŋ]","річ"]
[4,"complete","[kəmˈpliːt]","повний",null,4,"complete","[kəmˈpliːt]","повний"]
[5,"pay","[peɪ]","платити",null,5,"pay","[peɪ]","платити"]
[6,"quick","[kwɪk]","швидко",null,6,"quick","[kwɪk]","швидко"]
[7,"examine","[ˈtriːtmənt]","оглядати ",null,7,"examine","[ˈtriːtmənt]","оглядати "]
[8,"prescribe","[prɪˈskraɪb]","виписувати (ліки)",null,8,"prescribe","[prɪˈskraɪb]","виписувати (ліки)"]
[9,"treatment","[ˈtriːtmənt]","лікування",null,9,"treatment","[ˈtriːtmənt]","лікування"]
[10,0,0,0,null,10,0,0,0]
[11,0,0,0,null,11,0,0,0]
[12,0,0,0,null,12,0,0,0]
[13,0,0,0,null,13,0,0,0]
[]
[1,{"$f":"B15","v":"regularly "},{"$f":"C15","v":"[ˈregjələlɪ]"},{"$f":"D15","v":"регулярно"},null,1,{"$f":"B29","v":"regularly "},{"$f":"C29","v":"[ˈregjələlɪ]"},{"$f":"D29","v":"регулярно"}]
[2,{"$f":"B16","v":"useful "},"[ˈjuːsful]","корисно",null,2,{"$f":"B30","v":"useful "},"[ˈjuːsful]","корисно"]
[3,"thing","[θɪŋ]","річ",null,3,"thing","[θɪŋ]","річ"]
[4,"complete","[kəmˈpliːt]","повний",null,4,"complete","[kəmˈpliːt]","повний"]
[5,"pay","[peɪ]","платити",null,5,"pay","[peɪ]","платити"]
[6,"quick","[kwɪk]","швидко",null,6,"quick","[kwɪk]","швидко"]
[7,"examine","[ˈtriːtmənt]","оглядати ",null,7,"examine","[ˈtriːtmənt]","оглядати "]
[8,"prescribe","[prɪˈskraɪb]","виписувати (ліки)",null,8,"prescribe","[prɪˈskraɪb]","виписувати (ліки)"]
[9,"treatment","[ˈtriːtmənt]","лікування",null,9,"treatment","[ˈtriːtmənt]","лікування"]
[10,0,0,0,null,10,0,0,0]
[11,0,0,0,null,11,0,0,0]
[12,0,0,0,null,12,0,0,0]
[13,0,0,0,null,13,0,0,0]
[]
[1,{"$f":"B29","v":"regularly "},{"$f":"C29","v":"[ˈregjələlɪ]"},{"$f":"D29","v":"регулярно"},null,1,{"$f":"B43","v":"regularly "},{"$f":"C43","v":"[ˈregjələlɪ]"},{"$f":"D43","v":"регулярно"}]
[2,{"$f":"B30","v":"useful "},"[ˈjuːsful]","корисно",null,2,{"$f":"B44","v":"useful "},"[ˈjuːsful]","корисно"]
[3,"thing","[θɪŋ]","річ",null,3,"thing","[θɪŋ]","річ"]
[4,"complete","[kəmˈpliːt]","повний",null,4,"complete","[kəmˈpliːt]","повний"]
[5,"pay","[peɪ]","платити",null,5,"pay","[peɪ]","платити"]
[6,"quick","[kwɪk]","швидко",null,6,"quick","[kwɪk]","швидко"]
[7,"examine","[ˈtriːtmənt]","оглядати ",null,7,"examine","[ˈtriːtmənt]","оглядати "]
[8,"prescribe","[prɪˈskraɪb]","виписувати (ліки)",null,8,"prescribe","[prɪˈskraɪb]","виписувати (ліки)"]
[9,"treatment","[ˈtriːtmənt]","лікування",null,9,"treatment","[ˈtriːtmənt]","лікування"]
[10,0,0,0,null,10,0,0,0]
[11,0,0,0,null,11,0,0,0]
[12,0,0,0,null,12,0,0,0]
[13,0,0,0,null,13,0,0,0]
[]
[]
[1,"headache ","[ˈhedeɪk]","головний біль"]
[2,"toothache","[ˈtuːθeɪk]","зубний біль"]
[3,"stomachache","[ˈstʌməkeɪk]","біль у шлунку"]
[4,"earache","[ˈɪəreɪk]","біль у вусі"]
[5,"backache","[ˈbækeɪk]","біль у спині"]

{"sheet":"Самостійна (9)","index":64,"n_rows":78,"n_cols":28,"rows_kept":78,"cut":false,"hidden":false,"merged":[]}
["Name_________________________              Date_______",null,null,null,null,"Name_________________________              Date_______",null,null,null,"Name_________________________              Date_______",null,null,null,"Name_________________________              Date_______"]
[]
[null,{"$f":"S3","v":"complete"},1,{"$f":"V3","v":"швидко"},null,null,{"$f":"S3","v":"complete"},1,{"$f":"V3","v":"швидко"},{"$f":"S16","v":"useful "},null,null,null,{"$f":"J3","v":"useful "},null,null,null,null,"complete",null,1,"швидко"]
[null,"examine",2,"річ",null,null,{"$f":"S4","v":"examine"},2,{"$f":"V4","v":"річ"},{"$f":"S17","v":"treatment"},null,null,null,{"$f":"J4","v":"treatment"},null,null,null,null,"examine",null,2,"річ",null,null,null,null,null,"швидко"]
[null,"pay",3,"регулярно",null,null,"pay",3,"регулярно","thing",null,null,null,"thing",null,null,null,null,"pay",null,3,"регулярно",null,null,null,null,null,"річ"]
[null,"prescribe",4,"повний",null,null,"prescribe",4,"повний","regularly ",null,null,null,"regularly ",null,null,null,null,"prescribe",null,4,"повний",null,null,null,null,null,"регулярно"]
[null,"quick",5,"платити",null,null,"quick",5,"платити","quick",null,null,null,"quick",null,null,null,null,"quick",null,5,"платити",null,null,null,null,null,"повний"]
[null,"regularly ",6,"оглядати ",null,null,"regularly ",6,"оглядати ","prescribe",null,null,null,"prescribe",null,null,null,null,"regularly ",null,6,"оглядати ",null,null,null,null,null,"платити"]
[null,"thing",7,"лікування",null,null,"thing",7,"лікування","pay",null,null,null,"pay",null,null,null,null,"thing",null,7,"лікування",null,null,null,null,null,"оглядати "]
[null,"treatment",8,"корисно",null,null,"treatment",8,"корисно","examine",null,null,null,"examine",null,null,null,null,"treatment",null,8,"корисно",null,null,null,null,null,"лікування"]
[null,"useful ",9,"виписувати (ліки)",null,null,"useful ",9,"виписувати (ліки)","complete",null,null,null,"complete",null,null,null,null,"useful ",null,9,"виписувати (ліки)",null,null,null,null,null,"корисно"]
[null,0,10,0,null,null,0,10,0,0,null,null,null,0,null,null,null,null,null,null,10,null,null,null,null,null,null,"виписувати (ліки)"]
[null,0,11,0,null,null,0,11,0,0,null,null,null,0,null,null,null,null,null,null,11]
[]
["Name_________________________              Date_______",null,null,null,null,"Name_________________________              Date_______",null,null,null,"Name_________________________              Date_______",null,null,null,"Name_________________________              Date_______"]
[null,null,null,null,null,null,null,null,null,null,null,null,null,null,null,null,null,null,"useful "]
[null,{"$f":"S3","v":"complete"},1,{"$f":"V3","v":"швидко"},null,null,{"$f":"B17","v":"complete"},1,{"$f":"D17","v":"швидко"},{"$f":"J3","v":"useful "},null,null,null,{"$f":"J17","v":"useful "},null,null,null,null,"treatment"]
[null,{"$f":"S4","v":"examine"},2,{"$f":"V4","v":"річ"},null,null,{"$f":"B18","v":"examine"},2,{"$f":"D18","v":"річ"},{"$f":"J4","v":"treatment"},null,null,null,{"$f":"J18","v":"treatment"},null,null,null,null,"thing",null,null,null,null,null,"you should"]
[null,"pay",3,"регулярно",null,null,"pay",3,"регулярно","thing",null,null,null,"thing",null,null,null,null,"regularly ",null,null,null,null,null,"other"]
[null,"prescribe",4,"повний",null,null,"prescribe",4,"повний","regularly ",null,null,null,"regularly ",null,null,null,null,"quick",null,null,null,null,null,"medicine"]
[null,"quick",5,"платити",null,null,"quick",5,"платити","quick",null,null,null,"quick",null,null,null,null,"prescribe",null,null,null,null,null,"keep fit"]
[null,"regularly ",6,"оглядати ",null,null,"regularly ",6,"оглядати ","prescribe",null,null,null,"prescribe",null,null,null,null,"pay",null,null,null,null,null,"get better"]
[null,"thing",7,"лікування",null,null,"thing",7,"лікування","pay",null,null,null,"pay",null,null,null,null,"examine",null,null,null,null,null,"cold"]
[null,"treatment",8,"корисно",null,null,"treatment",8,"корисно","examine",null,null,null,"examine",null,null,null,null,"complete",null,null,null,null,null,"catch cold"]
[null,"useful ",9,"виписувати (ліки)",null,null,"useful ",9,"виписувати (ліки)","complete",null,null,null,"complete",null,null,null,null,null,null,null,null,null,null,"better"]
[null,0,10,0,null,null,0,10,0,0,null,null,null,0,null,null,null,null,null,null,null,null,null,null,"be able to"]
[null,0,11,0,null,null,0,11,0,0,null,null,null,0,null,null,null,null,null,null,null,null,null,null,"around"]
[null,null,null,null,null,null,null,null,null,null,null,null,null,null,null,null,null,null,null,null,null,null,null,null,"chemicals"]
["Name_________________________              Date_______",null,null,null,null,"Name_________________________              Date_______",null,null,null,"Name_________________________              Date_______",null,null,null,"Name_________________________              Date_______"]
[]
[null,{"$f":"B17","v":"complete"},1,{"$f":"D17","v":"швидко"},null,null,{"$f":"B31","v":"complete"},1,{"$f":"D31","v":"швидко"},{"$f":"J17","v":"useful "},null,null,null,{"$f":"J31","v":"useful "}]
[null,{"$f":"B18","v":"examine"},2,{"$f":"D18","v":"річ"},null,null,{"$f":"B32","v":"examine"},2,{"$f":"D32","v":"річ"},{"$f":"J18","v":"treatment"},null,null,null,{"$f":"J32","v":"treatment"}]
[null,"pay",3,"регулярно",null,null,"pay",3,"регулярно","thing",null,null,null,"thing"]
[null,"prescribe",4,"повний",null,null,"prescribe",4,"повний","regularly ",null,null,null,"regularly "]
[null,"quick",5,"платити",null,null,"quick",5,"платити","quick",null,null,null,"quick"]
[null,"regularly ",6,"оглядати ",null,null,"regularly ",6,"оглядати ","prescribe",null,null,null,"prescribe"]
[null,"thing",7,"лікування",null,null,"thing",7,"лікування","pay",null,null,null,"pay"]
[null,"treatment",8,"корисно",null,null,"treatment",8,"корисно","examine",null,null,null,"examine"]
[null,"useful ",9,"виписувати (ліки)",null,null,"useful ",9,"виписувати (ліки)","complete",null,null,null,"complete"]
[null,0,10,0,null,null,0,10,0,0,null,null,null,0]
[null,0,11,0,null,null,0,11,0,0,null,null,null,0]
[]
["Name_________________________              Date_______",null,null,null,null,null,null,null,null,"Name_________________________              Date_______",null,null,null,"Name_________________________              Date_______"]
[]
[null,{"$f":"B31","v":"complete"},1,{"$f":"D31","v":"швидко"},null,null,{"$f":"B39","v":"useful "},9,{"$f":"D39","v":"виписувати (ліки)"},{"$f":"J31","v":"useful "},null,null,null,{"$f":"J39","v":"complete"}]
[null,{"$f":"B32","v":"examine"},2,{"$f":"D32","v":"річ"},null,null,{"$f":"B40","v":0},10,{"$f":"D40","v":0},{"$f":"J32","v":"treatment"},null,null,null,{"$f":"J40","v":0}]
[null,"pay",3,"регулярно",null,null,{"$f":"B41","v":0},11,{"$f":"D41","v":0},"thing",null,null,null,{"$f":"J41","v":0}]
[null,"prescribe",4,"повний",null,null,null,null,null,"regularly "]
[null,"quick",5,"платити",null,null,null,null,null,"quick"]
[null,"regularly ",6,"оглядати ",null,null,null,null,null,"prescribe"]
[null,{"$f":"B37","v":"thing"},7,{"$f":"D37","v":"лікування"},null,null,null,null,null,{"$f":"J37","v":"pay"}]
[null,{"$f":"B38","v":"treatment"},8,{"$f":"D38","v":"корисно"},null,null,null,null,null,{"$f":"J38","v":"examine"}]
[]
[null,7]
[]
[]
[null,null,1,"як"]
[null,null,2,"що, який ",null,null,null,1,"wife"]
[null,null,3,"чому",null,null,null,2,"to laugh"]
[null,null,4,"чий",null,null,null,3,"question"]
[null,null,5,"хто",null,null,null,4,"plump"]
[null,null,6,"коли",null,null,null,5,"pilot"]
[null,null,7,"де, куди",null,null,null,6,"niece"]
[null,null,8," скільки ( як бгато)",null,null,null,7,"curious"]
[null,null,null,null,null,null,null,8,"boring"]
[null,null,null,null,null,null,null,9,"bald"]
[null,null,1,"як",null,null,null,10,"aunt"]
[null,null,2,"що, який "]
[null,null,3,"чому",null,null,null,1,"wife"]
[null,null,4,"чий",null,null,null,2,"to laugh"]
[null,null,5,"хто",null,null,null,3,"question"]
[null,null,6,"коли",null,null,null,4,"plump"]
[null,null,7,"де, куди",null,null,null,5,"pilot"]
[null,null,8," скільки ( як бгато)",null,null,null,6,"niece"]
[null,null,null,null,null,null,null,7,"curious"]
[null,null,null,null,null,null,null,8,"boring"]
[null,null,null,null,null,null,null,9,"bald"]
[null,null,null,null,null,null,null,10,"aunt"]

{"sheet":"Лист13 (9)","index":65,"n_rows":62,"n_cols":29,"rows_kept":62,"cut":false,"hidden":false,"merged":[]}
[{"$f":"J1","v":1},{"$f":"K1","v":"symptom"},{"$f":"L1","v":"['sɪmptəm]"},{"$f":"M1","v":"симптом"},null,{"$f":"A1","v":1},{"$f":"B1","v":"symptom"},{"$f":"C1","v":"['sɪmptəm]"},{"$f":"D1","v":"симптом"},1,"symptom","['sɪmptəm]","симптом"]
[{"$f":"J2","v":2},"disease","[dɪ'ziːz]","хвороба",null,{"$f":"A2","v":2},"disease","[dɪ'ziːz]","хвороба",2,"disease","[dɪ'ziːz]","хвороба"]
[3,"local doctor ","['ləuk(ə)l]","місцевий",null,3,"local doctor ","['ləuk(ə)l]","місцевий",3,"local doctor ","['ləuk(ə)l]","місцевий"]
[4,"characterized","['kærəkt(ə)raɪzd]",{"$f":"M4","v":" тут: характеризується"},null,4,"characterized","['kærəkt(ə)raɪzd]"," тут: характеризується",4,"characterized","['kærəkt(ə)raɪzd]"," тут: характеризується"]
[5,"sign","[saɪn]","знак, ознака",null,5,"sign","[saɪn]","знак, ознака",5,"sign","[saɪn]","знак, ознака"]
[6,"tongue","[tʌŋ]","язик",null,6,"tongue","[tʌŋ]","язик",6,"tongue","[tʌŋ]","язик"]
[7,"lung","[lʌŋ]","легеня",null,7,"lung","[lʌŋ]","легеня",7,"lung","[lʌŋ]","легеня"]
[8,"treatment","['triːtmənt]","лікування",null,8,"treatment","['triːtmənt]","лікування",8,"treatment","['triːtmənt]","лікування"]
[9,"accident","['æksɪd(ə)nt]",{"$f":"M9","v":"нещасний випадок; аварія;"},null,9,"accident","['æksɪd(ə)nt]","нещасний випадок; аварія;",9,"accident","['æksɪd(ə)nt]","нещасний випадок; аварія;"]
[10,0,0,0,null,10,0,0,0,10]
[11,{"$f":"K11","v":0},0,0,null,11,0,0,0,11]
[12,{"$f":"K12","v":0},0,0,null,12,0,0,0,12]
[13,{"$f":"K13","v":0},0,0,null,13,0,0,0,13,null,null,null,null,null,null,"symptom","['sɪmptəm]","симптом"]
[null,null,null,null,null,null,null,null,null,null,null,null,null,null,null,null,"disease","[dɪ'ziːz]","хвороба"]
[1,{"$f":"B1","v":"symptom"},{"$f":"C1","v":"['sɪmptəm]"},{"$f":"D1","v":"симптом"},null,1,{"$f":"B15","v":"symptom"},{"$f":"C15","v":"['sɪmptəm]"},{"$f":"D15","v":"симптом"},null,null,null,null,null,null,null,"local","doctor ","['ləuk(ə)l]","місцевий","лікар"]
[2,{"$f":"B2","v":"disease"},"[dɪ'ziːz]","хвороба",null,2,{"$f":"B16","v":"disease"},"[dɪ'ziːz]","хвороба",null,null,null,null,null,null,null,"characterized","['kærəkt(ə)raɪzd]","тут:","характеризується"]
[3,"local doctor ","['ləuk(ə)l]","місцевий",null,3,"local doctor ","['ləuk(ə)l]","місцевий",null,null,null,null,null,null,null,"sign","[saɪn]","знак,","ознака"]
[4,"characterized","['kærəkt(ə)raɪzd]"," тут: характеризується",null,4,"characterized","['kærəkt(ə)raɪzd]"," тут: характеризується",null,null,null,null,null,null,null,"a","set","of","specific","symptoms","and","signs,","–","сукупність","характерних","симптомів","і","ознак"]
[5,"sign","[saɪn]","знак, ознака",null,5,"sign","[saɪn]","знак, ознака",null,null,null,null,null,null,null,"tongue","[tʌŋ]","язик"]
[6,"tongue","[tʌŋ]","язик",null,6,"tongue","[tʌŋ]","язик",null,null,null,null,null,null,null,"lung","[lʌŋ]","легеня"]
[7,"lung","[lʌŋ]","легеня",null,7,"lung","[lʌŋ]","легеня",null,null,null,null,null,null,null,"treatment['triːtmənt]","лікування"]
[8,"treatment","['triːtmənt]","лікування",null,8,"treatment","['triːtmənt]","лікування",null,null,null,null,null,null,null,"accident","['æksɪd(ə)nt]","нещасний","випадок;","аварія;"]
[9,"accident","['æksɪd(ə)nt]","нещасний випадок; аварія;",null,9,"accident","['æksɪd(ə)nt]","нещасний випадок; аварія;"]
[10,0,0,0,null,10,0,0,0]
[11,0,0,0,null,11,0,0,0]
[12,0,0,0,null,12,0,0,0]
[13,0,0,0,null,13,0,0,0]
[]
[1,{"$f":"B15","v":"symptom"},{"$f":"C15","v":"['sɪmptəm]"},{"$f":"D15","v":"симптом"},null,1,{"$f":"B29","v":"symptom"},{"$f":"C29","v":"['sɪmptəm]"},{"$f":"D29","v":"симптом"}]
[2,{"$f":"B16","v":"disease"},"[dɪ'ziːz]","хвороба",null,2,{"$f":"B30","v":"disease"},"[dɪ'ziːz]","хвороба"]
[3,"local doctor ","['ləuk(ə)l]","місцевий",null,3,"local doctor ","['ləuk(ə)l]","місцевий"]
[4,"characterized","['kærəkt(ə)raɪzd]"," тут: характеризується",null,4,"characterized","['kærəkt(ə)raɪzd]"," тут: характеризується"]
[5,"sign","[saɪn]","знак, ознака",null,5,"sign","[saɪn]","знак, ознака"]
[6,"tongue","[tʌŋ]","язик",null,6,"tongue","[tʌŋ]","язик"]
[7,"lung","[lʌŋ]","легеня",null,7,"lung","[lʌŋ]","легеня"]
[8,"treatment","['triːtmənt]","лікування",null,8,"treatment","['triːtmənt]","лікування"]
[9,"accident","['æksɪd(ə)nt]","нещасний випадок; аварія;",null,9,"accident","['æksɪd(ə)nt]","нещасний випадок; аварія;"]
[10,0,0,0,null,10,0,0,0]
[11,0,0,0,null,11,0,0,0]
[12,0,0,0,null,12,0,0,0]
[13,0,0,0,null,13,0,0,0]
[]
[1,{"$f":"B29","v":"symptom"},{"$f":"C29","v":"['sɪmptəm]"},{"$f":"D29","v":"симптом"},null,1,{"$f":"B43","v":"symptom"},{"$f":"C43","v":"['sɪmptəm]"},{"$f":"D43","v":"симптом"}]
[2,{"$f":"B30","v":"disease"},"[dɪ'ziːz]","хвороба",null,2,{"$f":"B44","v":"disease"},"[dɪ'ziːz]","хвороба"]
[3,"local doctor ","['ləuk(ə)l]","місцевий",null,3,"local doctor ","['ləuk(ə)l]","місцевий"]
[4,"characterized","['kærəkt(ə)raɪzd]"," тут: характеризується",null,4,"characterized","['kærəkt(ə)raɪzd]"," тут: характеризується"]
[5,"sign","[saɪn]","знак, ознака",null,5,"sign","[saɪn]","знак, ознака"]
[6,"tongue","[tʌŋ]","язик",null,6,"tongue","[tʌŋ]","язик"]
[7,"lung","[lʌŋ]","легеня",null,7,"lung","[lʌŋ]","легеня"]
[8,"treatment","['triːtmənt]","лікування",null,8,"treatment","['triːtmənt]","лікування"]
[9,"accident","['æksɪd(ə)nt]","нещасний випадок; аварія;",null,9,"accident","['æksɪd(ə)nt]","нещасний випадок; аварія;"]
[10,0,0,0,null,10,0,0,0]
[11,0,0,0,null,11,0,0,0]
[12,0,0,0,null,12,0,0,0]
[13,0,0,0,null,13,0,0,0]
[]
[]
[1,"headache ","[ˈhedeɪk]","головний біль"]
[2,"toothache","[ˈtuːθeɪk]","зубний біль"]
[3,"stomachache","[ˈstʌməkeɪk]","біль у шлунку"]
[4,"earache","[ˈɪəreɪk]","біль у вусі"]
[5,"backache","[ˈbækeɪk]","біль у спині"]

{"sheet":"Лист13 (10)","index":66,"n_rows":62,"n_cols":13,"rows_kept":62,"cut":false,"hidden":false,"merged":[]}
[{"$f":"J1","v":1},{"$f":"K1","v":"to break"},{"$f":"L1","v":" [breɪk]"},{"$f":"M1","v":"ламати, розбивати"},null,{"$f":"A1","v":1},{"$f":"B1","v":"to break"},{"$f":"C1","v":" [breɪk]"},{"$f":"D1","v":"ламати, розбивати"},1,"to break"," [breɪk]","ламати, розбивати"]
[{"$f":"J2","v":2},"ambulance","[ˈæmbjələn(t)s]","швидка",null,{"$f":"A2","v":2},"ambulance","[ˈæmbjələn(t)s]","швидка",2,"ambulance","[ˈæmbjələn(t)s]","швидка"]
[3,"to bring","[brɪŋ]","приносити",null,3,"to bring","[brɪŋ]","приносити",3,"to bring","[brɪŋ]","приносити"]
[4,"bore","[bɔː]",{"$f":"M4","v":"нудьга"},null,4,"bore","[bɔː]","нудьга",4,"bore","[bɔː]","нудьга"]
[5,"to recover","[rɪˈkʌvə]","видужувати",null,5,"to recover","[rɪˈkʌvə]","видужувати",5,"to recover","[rɪˈkʌvə]","видужувати"]
[6,"advice","[ədˈvaɪs]","порада",null,6,"advice","[ədˈvaɪs]","порада",6,"advice","[ədˈvaɪs]","порада"]
[7,"other","[ˈʌðə]","інший",null,7,"other","[ˈʌðə]","інший",7,"other","[ˈʌðə]","інший"]
[8,"piece","[piːs]","кусок, шматок",null,8,"piece","[piːs]","кусок, шматок",8,"piece","[piːs]","кусок, шматок"]
[9,0,0,{"$f":"M9","v":0},null,9,0,0,0,9]
[10,0,0,0,null,10,0,0,0,10]
[11,{"$f":"K11","v":0},0,0,null,11,0,0,0,11]
[12,{"$f":"K12","v":0},0,0,null,12,0,0,0,12]
[13,{"$f":"K13","v":0},0,0,null,13,0,0,0,13]
[]
[1,{"$f":"B1","v":"to break"},{"$f":"C1","v":" [breɪk]"},{"$f":"D1","v":"ламати, розбивати"},null,1,{"$f":"B15","v":"to break"},{"$f":"C15","v":" [breɪk]"},{"$f":"D15","v":"ламати, розбивати"}]
[2,{"$f":"B2","v":"ambulance"},"[ˈæmbjələn(t)s]","швидка",null,2,{"$f":"B16","v":"ambulance"},"[ˈæmbjələn(t)s]","швидка"]
[3,"to bring","[brɪŋ]","приносити",null,3,"to bring","[brɪŋ]","приносити"]
[4,"bore","[bɔː]","нудьга",null,4,"bore","[bɔː]","нудьга"]
[5,"to recover","[rɪˈkʌvə]","видужувати",null,5,"to recover","[rɪˈkʌvə]","видужувати"]
[6,"advice","[ədˈvaɪs]","порада",null,6,"advice","[ədˈvaɪs]","порада"]
[7,"other","[ˈʌðə]","інший",null,7,"other","[ˈʌðə]","інший"]
[8,"piece","[piːs]","кусок, шматок",null,8,"piece","[piːs]","кусок, шматок"]
[9,0,0,0,null,9,0,0,0]
[10,0,0,0,null,10,0,0,0]
[11,0,0,0,null,11,0,0,0]
[12,0,0,0,null,12,0,0,0]
[13,0,0,0,null,13,0,0,0]
[]
[1,{"$f":"B15","v":"to break"},{"$f":"C15","v":" [breɪk]"},{"$f":"D15","v":"ламати, розбивати"},null,1,{"$f":"B29","v":"to break"},{"$f":"C29","v":" [breɪk]"},{"$f":"D29","v":"ламати, розбивати"}]
[2,{"$f":"B16","v":"ambulance"},"[ˈæmbjələn(t)s]","швидка",null,2,{"$f":"B30","v":"ambulance"},"[ˈæmbjələn(t)s]","швидка"]
[3,"to bring","[brɪŋ]","приносити",null,3,"to bring","[brɪŋ]","приносити"]
[4,"bore","[bɔː]","нудьга",null,4,"bore","[bɔː]","нудьга"]
[5,"to recover","[rɪˈkʌvə]","видужувати",null,5,"to recover","[rɪˈkʌvə]","видужувати"]
[6,"advice","[ədˈvaɪs]","порада",null,6,"advice","[ədˈvaɪs]","порада"]
[7,"other","[ˈʌðə]","інший",null,7,"other","[ˈʌðə]","інший"]
[8,"piece","[piːs]","кусок, шматок",null,8,"piece","[piːs]","кусок, шматок"]
[9,0,0,0,null,9,0,0,0]
[10,0,0,0,null,10,0,0,0]
[11,0,0,0,null,11,0,0,0]
[12,0,0,0,null,12,0,0,0]
[13,0,0,0,null,13,0,0,0]
[]
[1,{"$f":"B29","v":"to break"},{"$f":"C29","v":" [breɪk]"},{"$f":"D29","v":"ламати, розбивати"},null,1,{"$f":"B43","v":"to break"},{"$f":"C43","v":" [breɪk]"},{"$f":"D43","v":"ламати, розбивати"}]
[2,{"$f":"B30","v":"ambulance"},"[ˈæmbjələn(t)s]","швидка",null,2,{"$f":"B44","v":"ambulance"},"[ˈæmbjələn(t)s]","швидка"]
[3,"to bring","[brɪŋ]","приносити",null,3,"to bring","[brɪŋ]","приносити"]
[4,"bore","[bɔː]","нудьга",null,4,"bore","[bɔː]","нудьга"]
[5,"to recover","[rɪˈkʌvə]","видужувати",null,5,"to recover","[rɪˈkʌvə]","видужувати"]
[6,"advice","[ədˈvaɪs]","порада",null,6,"advice","[ədˈvaɪs]","порада"]
[7,"other","[ˈʌðə]","інший",null,7,"other","[ˈʌðə]","інший"]
[8,"piece","[piːs]","кусок, шматок",null,8,"piece","[piːs]","кусок, шматок"]
[9,0,0,0,null,9,0,0,0]
[10,0,0,0,null,10,0,0,0]
[11,0,0,0,null,11,0,0,0]
[12,0,0,0,null,12,0,0,0]
[13,0,0,0,null,13,0,0,0]
[]
[]
[1,"headache ","[ˈhedeɪk]","головний біль"]
[2,"toothache","[ˈtuːθeɪk]","зубний біль"]
[3,"stomachache","[ˈstʌməkeɪk]","біль у шлунку"]
[4,"earache","[ˈɪəreɪk]","біль у вусі"]
[5,"backache","[ˈbækeɪk]","біль у спині"]

{"sheet":"Самостійна (10)","index":67,"n_rows":78,"n_cols":28,"rows_kept":78,"cut":false,"hidden":false,"merged":[]}
["Name_________________________              Date_______",null,null,null,null,"Name_________________________              Date_______",null,null,null,"Name_________________________              Date_______",null,null,null,"Name_________________________              Date_______"]
[null,null,null,null,null,null,null,null,null,null,null,null,null,null,null,null,null,null,null,null,null,null,null,null,null,null,null,"швидка"]
[null,{"$f":"S3","v":"advice"},1,{"$f":"V3","v":"швидка"},null,null,{"$f":"S3","v":"advice"},1,{"$f":"V3","v":"швидка"},{"$f":"S16","v":"to recover"},null,null,null,{"$f":"J3","v":"to recover"},null,null,null,null,"advice",null,1,"швидка",null,null,null,null,null,"приносити"]
[null,"ambulance",2,"приносити",null,null,{"$f":"S4","v":"ambulance"},2,{"$f":"V4","v":"приносити"},{"$f":"S17","v":"to bring"},null,null,null,{"$f":"J4","v":"to bring"},null,null,null,null,"ambulance",null,2,"приносити",null,null,null,null,null,"порада"]
[null,"bore",3,"порада",null,null,"bore",3,"порада","to break",null,null,null,"to break",null,null,null,null,"bore",null,3,"порада",null,null,null,null,null,"нудьга"]
[null,"other",4,"нудьга",null,null,"other",4,"нудьга","piece",null,null,null,"piece",null,null,null,null,"other",null,4,"нудьга",null,null,null,null,null,"ламати, розбивати"]
[null,"piece",5,"ламати, розбивати",null,null,"piece",5,"ламати, розбивати","other",null,null,null,"other",null,null,null,null,"piece",null,5,"ламати, розбивати",null,null,null,null,null,"кусок, шматок"]
[null,"to break",6,"кусок, шматок",null,null,"to break",6,"кусок, шматок","bore",null,null,null,"bore",null,null,null,null,"to break",null,6,"кусок, шматок",null,null,null,null,null,"інший"]
[null,"to bring",7,"інший",null,null,"to bring",7,"інший","ambulance",null,null,null,"ambulance",null,null,null,null,"to bring",null,7,"інший",null,null,null,null,null,"видужувати"]
[null,"to recover",8,"видужувати",null,null,"to recover",8,"видужувати","advice",null,null,null,"advice",null,null,null,null,"to recover",null,8,"видужувати"]
[null,0,9,0,null,null,0,9,0,0,null,null,null,0,null,null,null,null,null,null,9]
[null,0,10,0,null,null,0,10,0,0,null,null,null,0,null,null,null,null,null,null,10]
[null,0,11,0,null,null,0,11,0,0,null,null,null,0,null,null,null,null,null,null,11]
[]
["Name_________________________              Date_______",null,null,null,null,"Name_________________________              Date_______",null,null,null,"Name_________________________              Date_______",null,null,null,"Name_________________________              Date_______"]
[null,null,null,null,null,null,null,null,null,null,null,null,null,null,null,null,null,null,"to recover",null,null,null,null,null,"to recover"]
[null,{"$f":"S3","v":"advice"},1,{"$f":"V3","v":"швидка"},null,null,{"$f":"B17","v":"advice"},1,{"$f":"D17","v":"швидка"},{"$f":"J3","v":"to recover"},null,null,null,{"$f":"J17","v":"to recover"},null,null,null,null,"to bring",null,null,null,null,null,"to bring"]
[null,{"$f":"S4","v":"ambulance"},2,{"$f":"V4","v":"приносити"},null,null,{"$f":"B18","v":"ambulance"},2,{"$f":"D18","v":"приносити"},{"$f":"J4","v":"to bring"},null,null,null,{"$f":"J18","v":"to bring"},null,null,null,null,"to break",null,null,null,null,null,"to break"]
[null,"bore",3,"порада",null,null,"bore",3,"порада","to break",null,null,null,"to break",null,null,null,null,"piece",null,null,null,null,null,"piece"]
[null,"other",4,"нудьга",null,null,"other",4,"нудьга","piece",null,null,null,"piece",null,null,null,null,"other",null,null,null,null,null,"other"]
[null,"piece",5,"ламати, розбивати",null,null,"piece",5,"ламати, розбивати","other",null,null,null,"other",null,null,null,null,"bore",null,null,null,null,null,"bore"]
[null,"to break",6,"кусок, шматок",null,null,"to break",6,"кусок, шматок","bore",null,null,null,"bore",null,null,null,null,"ambulance",null,null,null,null,null,"ambulance"]
[null,"to bring",7,"інший",null,null,"to bring",7,"інший","ambulance",null,null,null,"ambulance",null,null,null,null,"advice",null,null,null,null,null,"advice"]
[null,"to recover",8,"видужувати",null,null,"to recover",8,"видужувати","advice",null,null,null,"advice"]
[null,0,9,0,null,null,0,9,0,0,null,null,null,0]
[null,0,10,0,null,null,0,10,0,0,null,null,null,0]
[null,0,11,0,null,null,0,11,0,0,null,null,null,0]
[]
["Name_________________________              Date_______",null,null,null,null,"Name_________________________              Date_______",null,null,null,"Name_________________________              Date_______",null,null,null,"Name_________________________              Date_______"]
[]
[null,{"$f":"B17","v":"advice"},1,{"$f":"D17","v":"швидка"},null,null,{"$f":"B31","v":"advice"},1,{"$f":"D31","v":"швидка"},{"$f":"J17","v":"to recover"},null,null,null,{"$f":"J31","v":"to recover"}]
[null,{"$f":"B18","v":"ambulance"},2,{"$f":"D18","v":"приносити"},null,null,{"$f":"B32","v":"ambulance"},2,{"$f":"D32","v":"приносити"},{"$f":"J18","v":"to bring"},null,null,null,{"$f":"J32","v":"to bring"}]
[null,"bore",3,"порада",null,null,"bore",3,"порада","to break",null,null,null,"to break"]
[null,"other",4,"нудьга",null,null,"other",4,"нудьга","piece",null,null,null,"piece"]
[null,"piece",5,"ламати, розбивати",null,null,"piece",5,"ламати, розбивати","other",null,null,null,"other"]
[null,"to break",6,"кусок, шматок",null,null,"to break",6,"кусок, шматок","bore",null,null,null,"bore"]
[null,"to bring",7,"інший",null,null,"to bring",7,"інший","ambulance",null,null,null,"ambulance"]
[null,"to recover",8,"видужувати",null,null,"to recover",8,"видужувати","advice",null,null,null,"advice"]
[null,0,9,0,null,null,0,9,0,0,null,null,null,0]
[null,0,10,0,null,null,0,10,0,0,null,null,null,0]
[null,0,11,0,null,null,0,11,0,0,null,null,null,0]
[]
["Name_________________________              Date_______",null,null,null,null,null,null,null,null,"Name_________________________              Date_______",null,null,null,"Name_________________________              Date_______"]
[]
[null,{"$f":"B31","v":"advice"},1,{"$f":"D31","v":"швидка"},null,null,{"$f":"B39","v":0},9,{"$f":"D39","v":0},{"$f":"J31","v":"to recover"},null,null,null,{"$f":"J39","v":0}]
[null,{"$f":"B32","v":"ambulance"},2,{"$f":"D32","v":"приносити"},null,null,{"$f":"B40","v":0},10,{"$f":"D40","v":0},{"$f":"J32","v":"to bring"},null,null,null,{"$f":"J40","v":0}]
[null,"bore",3,"порада",null,null,{"$f":"B41","v":0},11,{"$f":"D41","v":0},"to break",null,null,null,{"$f":"J41","v":0}]
[null,"other",4,"нудьга",null,null,null,null,null,"piece"]
[null,"piece",5,"ламати, розбивати",null,null,null,null,null,"other"]
[null,"to break",6,"кусок, шматок",null,null,null,null,null,"bore"]
[null,{"$f":"B37","v":"to bring"},7,{"$f":"D37","v":"інший"},null,null,null,null,null,{"$f":"J37","v":"ambulance"}]
[null,{"$f":"B38","v":"to recover"},8,{"$f":"D38","v":"видужувати"},null,null,null,null,null,{"$f":"J38","v":"advice"}]
[]
[null,7]
[]
[]
[null,null,1,"як"]
[null,null,2,"що, який ",null,null,null,1,"wife"]
[null,null,3,"чому",null,null,null,2,"to laugh"]
[null,null,4,"чий",null,null,null,3,"question"]
[null,null,5,"хто",null,null,null,4,"plump"]
[null,null,6,"коли",null,null,null,5,"pilot"]
[null,null,7,"де, куди",null,null,null,6,"niece"]
[null,null,8," скільки ( як бгато)",null,null,null,7,"curious"]
[null,null,null,null,null,null,null,8,"boring"]
[null,null,null,null,null,null,null,9,"bald"]
[null,null,1,"як",null,null,null,10,"aunt"]
[null,null,2,"що, який "]
[null,null,3,"чому",null,null,null,1,"wife"]
[null,null,4,"чий",null,null,null,2,"to laugh"]
[null,null,5,"хто",null,null,null,3,"question"]
[null,null,6,"коли",null,null,null,4,"plump"]
[null,null,7,"де, куди",null,null,null,5,"pilot"]
[null,null,8," скільки ( як бгато)",null,null,null,6,"niece"]
[null,null,null,null,null,null,null,7,"curious"]
[null,null,null,null,null,null,null,8,"boring"]
[null,null,null,null,null,null,null,9,"bald"]
[null,null,null,null,null,null,null,10,"aunt"]

{"sheet":"1 (11)","index":68,"n_rows":55,"n_cols":11,"rows_kept":55,"cut":false,"hidden":false,"merged":[]}
[null,null,null,"Form 7",null,null,null,null,"Form 7"]
[{"$f":"J2","v":1},{"$f":"K2","v":"washing machine"},{"$f":"L2","v":0},{"$f":"M2","v":0},null,{"$f":"A2","v":1},{"$f":"B2","v":"washing machine"},{"$f":"C2","v":0},{"$f":"D2","v":0},1,"washing machine"]
[{"$f":"J3","v":2},"a vacuum cleaner",0,0,null,{"$f":"A3","v":2},"a vacuum cleaner",0,0,2,"a vacuum cleaner"]
[3,"a hairdryer",0,0,null,3,"a hairdryer",0,0,3,"a hairdryer"]
[4,0,0,0,null,4,0,0,0,4]
[5,0,0,0,null,5,0,0,0,5]
[6,0,0,0,null,6,0,0,0,6]
[7,0,0,0,null,7,0,0,0,7]
[8,0,0,0,null,8,0,0,0,8]
[9,0,0,0,null,9,0,0,0,9]
[10,0,0,0,null,10,0,0,0,10]
[11,{"$f":"K12","v":0},0,0,null,11,0,0,0,11]
[12,{"$f":"K13","v":0},0,0,null,12,0,0,0,12]
[]
[null,null,null,"Form 7",null,null,null,null,"Form 7"]
[1,{"$f":"B2","v":"washing machine"},0,0,null,1,{"$f":"B16","v":"washing machine"},{"$f":"C16","v":0},{"$f":"D16","v":0}]
[2,"a vacuum cleaner",0,0,null,2,{"$f":"B17","v":"a vacuum cleaner"},0,0]
[3,"a hairdryer",0,0,null,3,"a hairdryer",0,0]
[4,0,0,0,null,4,0,0,0]
[5,0,0,0,null,5,0,0,0]
[6,0,0,0,null,6,0,0,0]
[7,0,0,0,null,7,0,0,0]
[8,0,0,0,null,8,0,0,0]
[9,0,0,0,null,9,0,0,0]
[10,0,0,0,null,10,0,0,0]
[11,0,0,0,null,11,0,0,0]
[12,0,0,0,null,12,0,0,0]
[]
[null,null,null,"Form 7",null,null,null,null,"Form 7"]
[1,{"$f":"B16","v":"washing machine"},0,0,null,1,{"$f":"B30","v":"washing machine"},{"$f":"C30","v":0},{"$f":"D30","v":0}]
[2,"a vacuum cleaner",0,0,null,2,{"$f":"B31","v":"a vacuum cleaner"},0,0]
[3,"a hairdryer",0,0,null,3,"a hairdryer",0,0]
[4,0,0,0,null,4,0,0,0]
[5,0,0,0,null,5,0,0,0]
[6,0,0,0,null,6,0,0,0]
[7,0,0,0,null,7,0,0,0]
[8,0,0,0,null,8,0,0,0]
[9,0,0,0,null,9,0,0,0]
[10,0,0,0,null,10,0,0,0]
[11,0,0,0,null,11,0,0,0]
[12,0,0,0,null,12,0,0,0]
[]
[null,null,null,"Form 7",null,null,null,null,"Form 7"]
[1,{"$f":"B30","v":"washing machine"},0,0,null,1,{"$f":"B44","v":"washing machine"},{"$f":"C44","v":0},{"$f":"D44","v":0}]
[2,"a vacuum cleaner",0,0,null,2,{"$f":"B45","v":"a vacuum cleaner"},0,0]
[3,"a hairdryer",0,0,null,3,"a hairdryer",0,0]
[4,0,0,0,null,4,0,0,0]
[5,0,0,0,null,5,0,0,0]
[6,0,0,0,null,6,0,0,0]
[7,0,0,0,null,7,0,0,0]
[8,0,0,0,null,8,0,0,0]
[9,0,0,0,null,9,0,0,0]
[10,0,0,0,null,10,0,0,0]
[11,0,0,0,null,11,0,0,0]
[12,0,0,0,null,12,0,0,0]

{"sheet":"1 (13)","index":69,"n_rows":55,"n_cols":13,"rows_kept":55,"cut":false,"hidden":false,"merged":[]}
[null,null,null,"Form 7",null,null,null,null,"Form 7"]
[{"$f":"J2","v":1},{"$f":"K2","v":"napkin"},{"$f":"L2","v":"[ˈnæpkɪn]"},{"$f":"M2","v":"серве́тка"},null,{"$f":"A2","v":1},{"$f":"B2","v":"napkin"},{"$f":"C2","v":"[ˈnæpkɪn]"},{"$f":"D2","v":"серве́тка"},1,"napkin","[ˈnæpkɪn]","серве́тка"]
[{"$f":"J3","v":2},"plate","[pleɪt]","тарі́лка",null,{"$f":"A3","v":2},"plate","[pleɪt]","тарі́лка",2,"plate","[pleɪt]","тарі́лка"]
[3,"glass","[glɑːs]"," скло, скля́нка",null,3,"glass","[glɑːs]"," скло, скля́нка",3,"glass","[glɑːs]"," скло, скля́нка"]
[4,"fork","[fɔːk]","виде́лка",null,4,"fork","[fɔːk]","виде́лка",4,"fork","[fɔːk]","виде́лка"]
[5,"knife","[naɪf]","ніж",null,5,"knife","[naɪf]","ніж",5,"knife","[naɪf]","ніж"]
[6,"spoon","[spuːn]","ло́жка",null,6,"spoon","[spuːn]","ло́жка",6,"spoon","[spuːn]","ло́жка"]
[7,"loud","[laud]","гучни́й",null,7,"loud","[laud]","гучни́й",7,"loud","[laud]","гучни́й"]
[8,"mess","[mes]","бе́злад",null,8,"mess","[mes]","бе́злад",8,"mess","[mes]","бе́злад"]
[9,"vinegar","[ˈvɪnɪgə]","о́цет",null,9,"vinegar","[ˈvɪnɪgə]","о́цет",9,"vinegar","[ˈvɪnɪgə]","о́цет"]
[10,"bowl","[bəul]","ча́ша, миска, глибока тарілка",null,10,"bowl","[bəul]","ча́ша, миска, глибока тарілка",10,"bowl","[bəul]","ча́ша, миска, глибока тарілка"]
[11,{"$f":"K12","v":0},0,0,null,11,0,0,0,11]
[12,{"$f":"K13","v":0},0,0,null,12,0,0,0,12]
[]
[null,null,null,"Form 7",null,null,null,null,"Form 7"]
[1,{"$f":"B2","v":"napkin"},"[ˈnæpkɪn]","серве́тка",null,1,{"$f":"B16","v":"napkin"},{"$f":"C16","v":"[ˈnæpkɪn]"},{"$f":"D16","v":"серве́тка"}]
[2,"plate","[pleɪt]","тарі́лка",null,2,{"$f":"B17","v":"plate"},"[pleɪt]","тарі́лка"]
[3,"glass","[glɑːs]"," скло, скля́нка",null,3,"glass","[glɑːs]"," скло, скля́нка"]
[4,"fork","[fɔːk]","виде́лка",null,4,"fork","[fɔːk]","виде́лка"]
[5,"knife","[naɪf]","ніж",null,5,"knife","[naɪf]","ніж"]
[6,"spoon","[spuːn]","ло́жка",null,6,"spoon","[spuːn]","ло́жка"]
[7,"loud","[laud]","гучни́й",null,7,"loud","[laud]","гучни́й"]
[8,"mess","[mes]","бе́злад",null,8,"mess","[mes]","бе́злад"]
[9,"vinegar","[ˈvɪnɪgə]","о́цет",null,9,"vinegar","[ˈvɪnɪgə]","о́цет"]
[10,"bowl","[bəul]","ча́ша, миска, глибока тарілка",null,10,"bowl","[bəul]","ча́ша, миска, глибока тарілка"]
[11,0,0,0,null,11,0,0,0]
[12,0,0,0,null,12,0,0,0]
[]
[null,null,null,"Form 7",null,null,null,null,"Form 7"]
[1,{"$f":"B16","v":"napkin"},"[ˈnæpkɪn]","серве́тка",null,1,{"$f":"B30","v":"napkin"},{"$f":"C30","v":"[ˈnæpkɪn]"},{"$f":"D30","v":"серве́тка"}]
[2,"plate","[pleɪt]","тарі́лка",null,2,{"$f":"B31","v":"plate"},"[pleɪt]","тарі́лка"]
[3,"glass","[glɑːs]"," скло, скля́нка",null,3,"glass","[glɑːs]"," скло, скля́нка"]
[4,"fork","[fɔːk]","виде́лка",null,4,"fork","[fɔːk]","виде́лка"]
[5,"knife","[naɪf]","ніж",null,5,"knife","[naɪf]","ніж"]
[6,"spoon","[spuːn]","ло́жка",null,6,"spoon","[spuːn]","ло́жка"]
[7,"loud","[laud]","гучни́й",null,7,"loud","[laud]","гучни́й"]
[8,"mess","[mes]","бе́злад",null,8,"mess","[mes]","бе́злад"]
[9,"vinegar","[ˈvɪnɪgə]","о́цет",null,9,"vinegar","[ˈvɪnɪgə]","о́цет"]
[10,"bowl","[bəul]","ча́ша, миска, глибока тарілка",null,10,"bowl","[bəul]","ча́ша, миска, глибока тарілка"]
[11,0,0,0,null,11,0,0,0]
[12,0,0,0,null,12,0,0,0]
[]
[null,null,null,"Form 7",null,null,null,null,"Form 7"]
[1,{"$f":"B30","v":"napkin"},"[ˈnæpkɪn]","серве́тка",null,1,{"$f":"B44","v":"napkin"},{"$f":"C44","v":"[ˈnæpkɪn]"},{"$f":"D44","v":"серве́тка"}]
[2,"plate","[pleɪt]","тарі́лка",null,2,{"$f":"B45","v":"plate"},"[pleɪt]","тарі́лка"]
[3,"glass","[glɑːs]"," скло, скля́нка",null,3,"glass","[glɑːs]"," скло, скля́нка"]
[4,"fork","[fɔːk]","виде́лка",null,4,"fork","[fɔːk]","виде́лка"]
[5,"knife","[naɪf]","ніж",null,5,"knife","[naɪf]","ніж"]
[6,"spoon","[spuːn]","ло́жка",null,6,"spoon","[spuːn]","ло́жка"]
[7,"loud","[laud]","гучни́й",null,7,"loud","[laud]","гучни́й"]
[8,"mess","[mes]","бе́злад",null,8,"mess","[mes]","бе́злад"]
[9,"vinegar","[ˈvɪnɪgə]","о́цет",null,9,"vinegar","[ˈvɪnɪgə]","о́цет"]
[10,"bowl","[bəul]","ча́ша, миска, глибока тарілка",null,10,"bowl","[bəul]","ча́ша, миска, глибока тарілка"]
[11,0,0,0,null,11,0,0,0]
[12,0,0,0,null,12,0,0,0]

{"sheet":"Сам (8)","index":70,"n_rows":52,"n_cols":28,"rows_kept":52,"cut":false,"hidden":false,"merged":[]}
["Name_________________________   Form 7   Date_______",null,null,null,null,"Name_________________________   Form 7   Date_______",null,null,null,"Name_________________________   Form 7   Date_______",null,null,null,"Name_________________________   Form 7   Date_______"]
[]
[null,{"$f":"S3","v":"napkin"},1,{"$f":"V3","v":"ча́ша, миска, глибока тарілка"},null,null,{"$f":"S3","v":"napkin"},1,{"$f":"V3","v":"ча́ша, миска, глибока тарілка"},{"$f":"S16","v":"napkin"},null,null,null,{"$f":"J3","v":"napkin"},null,null,null,null,"napkin",null,1,"ча́ша, миска, глибока тарілка"]
[null,"plate",2,"тарі́лка",null,null,{"$f":"S4","v":"plate"},2,{"$f":"V4","v":"тарі́лка"},{"$f":"S17","v":"plate"},null,null,null,{"$f":"J4","v":"plate"},null,null,null,null,"plate",null,2,"тарі́лка",null,null,null,null,null,"ча́ша, миска, глибока тарілка"]
[null,"vinegar",3,"серве́тка",null,null,"vinegar",3,"серве́тка","vinegar",null,null,null,"vinegar",null,null,null,null,"vinegar",null,3,"серве́тка",null,null,null,"napkin","[ˈnæpkɪn]","тарі́лка"]
[null,"spoon",4,"о́цет",null,null,"spoon",4,"о́цет","spoon",null,null,null,"spoon",null,null,null,null,"spoon",null,4,"о́цет",null,null,null,"plate","[pleɪt]","серве́тка"]
[null,"mess",5,"ніж",null,null,"mess",5,"ніж","mess",null,null,null,"mess",null,null,null,null,"mess",null,5,"ніж",null,null,null,"vinegar","[ˈvɪnɪgə]","о́цет"]
[null,"loud",6,"ло́жка",null,null,"loud",6,"ло́жка","loud",null,null,null,"loud",null,null,null,null,"loud",null,6,"ло́жка",null,null,null,"spoon","[spuːn]","ніж"]
[null,"knife",7,"гучни́й",null,null,"knife",7,"гучни́й","knife",null,null,null,"knife",null,null,null,null,"knife",null,7,"гучни́й",null,null,null,"mess","[mes]","ло́жка"]
[null,"glass",8,"виде́лка",null,null,"glass",8,"виде́лка","glass",null,null,null,"glass",null,null,null,null,"glass",null,8,"виде́лка",null,null,null,"loud","[laud]","гучни́й"]
[null,"fork",9,"бе́злад",null,null,"fork",9,"бе́злад","fork",null,null,null,"fork",null,null,null,null,"fork",null,9,"бе́злад",null,null,null,"knife","[naɪf]","виде́лка"]
[null,"bowl",10," скло, скля́нка",null,null,"bowl",10," скло, скля́нка","bowl",null,null,null,"bowl",null,null,null,null,"bowl",null,10," скло, скля́нка",null,null,null,"glass","[glɑːs]","бе́злад"]
[null,0,11,0,null,null,0,11,0,0,null,null,null,0,null,null,null,null,null,null,11,null,null,null,null,"fork","[fɔːk]"," скло, скля́нка"]
[null,null,null,null,null,null,null,null,null,null,null,null,null,null,null,null,null,null,null,null,null,null,null,null,null,"bowl","[bəul]"]
["Name_________________________   Form 7   Date_______",null,null,null,null,"Name_________________________   Form 7   Date_______",null,null,null,"Name_________________________   Form 7   Date_______",null,null,null,"Name_________________________   Form 7   Date_______"]
[null,null,null,null,null,null,null,null,null,null,null,null,null,null,null,null,null,null,"napkin"]
[null,{"$f":"S3","v":"napkin"},1,{"$f":"V3","v":"ча́ша, миска, глибока тарілка"},null,null,{"$f":"B17","v":"napkin"},1,{"$f":"D17","v":"ча́ша, миска, глибока тарілка"},{"$f":"J3","v":"napkin"},null,null,null,{"$f":"J17","v":"napkin"},null,null,null,null,"plate"]
[null,{"$f":"S4","v":"plate"},2,{"$f":"V4","v":"тарі́лка"},null,null,{"$f":"B18","v":"plate"},2,{"$f":"D18","v":"тарі́лка"},{"$f":"J4","v":"plate"},null,null,null,{"$f":"J18","v":"plate"},null,null,null,null,"vinegar"]
[null,"vinegar",3,"серве́тка",null,null,"vinegar",3,"серве́тка","vinegar",null,null,null,"vinegar",null,null,null,null,"spoon"]
[null,"spoon",4,"о́цет",null,null,"spoon",4,"о́цет","spoon",null,null,null,"spoon",null,null,null,null,"mess"]
[null,"mess",5,"ніж",null,null,"mess",5,"ніж","mess",null,null,null,"mess",null,null,null,null,"loud"]
[null,"loud",6,"ло́жка",null,null,"loud",6,"ло́жка","loud",null,null,null,"loud",null,null,null,null,"knife"]
[null,"knife",7,"гучни́й",null,null,"knife",7,"гучни́й","knife",null,null,null,"knife",null,null,null,null,"glass"]
[null,"glass",8,"виде́лка",null,null,"glass",8,"виде́лка","glass",null,null,null,"glass",null,null,null,null,"fork"]
[null,"fork",9,"бе́злад",null,null,"fork",9,"бе́злад","fork",null,null,null,"fork",null,null,null,null,"bowl"]
[null,"bowl",10," скло, скля́нка",null,null,"bowl",10," скло, скля́нка","bowl",null,null,null,"bowl"]
[null,0,11,0,null,null,0,11,0,0,null,null,null,0]
[]
["Name_________________________   Form 7   Date_______",null,null,null,null,"Name_________________________   Form 7   Date_______",null,null,null,"Name_________________________   Form 7   Date_______",null,null,null,"Name_________________________   Form 7   Date_______"]
[]
[null,{"$f":"B17","v":"napkin"},1,{"$f":"D17","v":"ча́ша, миска, глибока тарілка"},null,null,{"$f":"B31","v":"napkin"},1,{"$f":"D31","v":"ча́ша, миска, глибока тарілка"},{"$f":"J17","v":"napkin"},null,null,null,{"$f":"J31","v":"napkin"}]
[null,{"$f":"B18","v":"plate"},2,{"$f":"D18","v":"тарі́лка"},null,null,{"$f":"B32","v":"plate"},2,{"$f":"D32","v":"тарі́лка"},{"$f":"J18","v":"plate"},null,null,null,{"$f":"J32","v":"plate"}]
[null,"vinegar",3,"серве́тка",null,null,"vinegar",3,"серве́тка","vinegar",null,null,null,"vinegar"]
[null,"spoon",4,"о́цет",null,null,"spoon",4,"о́цет","spoon",null,null,null,"spoon"]
[null,"mess",5,"ніж",null,null,"mess",5,"ніж","mess",null,null,null,"mess"]
[null,"loud",6,"ло́жка",null,null,"loud",6,"ло́жка","loud",null,null,null,"loud"]
[null,"knife",7,"гучни́й",null,null,"knife",7,"гучни́й","knife",null,null,null,"knife"]
[null,"glass",8,"виде́лка",null,null,"glass",8,"виде́лка","glass",null,null,null,"glass"]
[null,"fork",9,"бе́злад",null,null,"fork",9,"бе́злад","fork",null,null,null,"fork"]
[null,"bowl",10," скло, скля́нка",null,null,"bowl",10," скло, скля́нка","bowl",null,null,null,"bowl"]
[null,0,11,0,null,null,0,11,0,0,null,null,null,0]
[]
["Name_________________________   Form 7   Date_______",null,null,null,null,null,null,null,null,"Name_________________________   Form 7   Date_______"]
[]
[null,{"$f":"B31","v":"napkin"},1,{"$f":"D31","v":"ча́ша, миска, глибока тарілка"},null,null,{"$f":"B39","v":"fork"},9,{"$f":"D39","v":"бе́злад"},{"$f":"J31","v":"napkin"},null,null,null,{"$f":"J39","v":"fork"}]
[null,{"$f":"B32","v":"plate"},2,{"$f":"D32","v":"тарі́лка"},null,null,{"$f":"B40","v":"bowl"},10,{"$f":"D40","v":" скло, скля́нка"},{"$f":"J32","v":"plate"},null,null,null,{"$f":"J40","v":"bowl"}]
[null,"vinegar",3,"серве́тка",null,null,{"$f":"B41","v":0},11,{"$f":"D41","v":0},"vinegar",null,null,null,{"$f":"J41","v":0}]
[null,"spoon",4,"о́цет",null,null,null,null,null,"spoon"]
[null,"mess",5,"ніж",null,null,null,null,null,"mess"]
[null,"loud",6,"ло́жка",null,null,null,null,null,"loud"]
[null,{"$f":"B37","v":"knife"},7,{"$f":"D37","v":"гучни́й"},null,null,null,null,null,{"$f":"J37","v":"knife"}]
[null,{"$f":"B38","v":"glass"},8,{"$f":"D38","v":"виде́лка"},null,null,null,null,null,{"$f":"J38","v":"glass"}]

{"sheet":"1 (18)","index":71,"n_rows":55,"n_cols":13,"rows_kept":55,"cut":false,"hidden":false,"merged":[]}
[null,null,null,"Form 7",null,null,null,null,"Form 7"]
[{"$f":"J2","v":1},{"$f":"K2","v":"aid"},{"$f":"L2","v":"[eɪd]"},{"$f":"M2","v":"допомо́га"},null,{"$f":"A2","v":1},{"$f":"B2","v":"aid"},{"$f":"C2","v":"[eɪd]"},{"$f":"D2","v":"допомо́га"},1,"aid","[eɪd]","допомо́га"]
[{"$f":"J3","v":2},"mean","[miːn]","означа́ти",null,{"$f":"A3","v":2},"mean","[miːn]","означа́ти",2,"mean","[miːn]","означа́ти"]
[3,"night","[naɪt]","ніч",null,3,"night","[naɪt]","ніч",3,"night","[naɪt]","ніч"]
[4,"take off","[teɪk] [ɔf]\n","зняти, прибрати",null,4,"take off","[teɪk] [ɔf]\n","зняти, прибрати",4,"take off","[teɪk] [ɔf]\n","зняти, прибрати"]
[5,"serious","[ˈsɪ(ə)rɪəs]","серйо́зний",null,5,"serious","[ˈsɪ(ə)rɪəs]","серйо́зний",5,"serious","[ˈsɪ(ə)rɪəs]","серйо́зний"]
[6,"forward","[ˈfɔːwəd]","впере́д; да́лі",null,6,"forward","[ˈfɔːwəd]","впере́д; да́лі",6,"forward","[ˈfɔːwəd]","впере́д; да́лі"]
[7,"close","[kləus]","бли́зько, закривати",null,7,"close","[kləus]","бли́зько, закривати",7,"close","[kləus]","бли́зько, закривати"]
[8,"blood","[blʌd]","кров",null,8,"blood","[blʌd]","кров",8,"blood","[blʌd]","кров"]
[9,"cut","[kʌt]","рі́зати, поріз",null,9,"cut","[kʌt]","рі́зати, поріз",9,"cut","[kʌt]","рі́зати, поріз"]
[10,0,0,0,null,10,0,0,0,10]
[11,{"$f":"K12","v":0},0,0,null,11,0,0,0,11]
[12,{"$f":"K13","v":0},0,0,null,12,0,0,0,12]
[]
[null,null,null,"Form 7",null,null,null,null,"Form 7"]
[1,{"$f":"B2","v":"aid"},"[eɪd]","допомо́га",null,1,{"$f":"B16","v":"aid"},{"$f":"C16","v":"[eɪd]"},{"$f":"D16","v":"допомо́га"}]
[2,"mean","[miːn]","означа́ти",null,2,{"$f":"B17","v":"mean"},"[miːn]","означа́ти"]
[3,"night","[naɪt]","ніч",null,3,"night","[naɪt]","ніч"]
[4,"take off","[teɪk] [ɔf]\n","зняти, прибрати",null,4,"take off","[teɪk] [ɔf]\n","зняти, прибрати"]
[5,"serious","[ˈsɪ(ə)rɪəs]","серйо́зний",null,5,"serious","[ˈsɪ(ə)rɪəs]","серйо́зний"]
[6,"forward","[ˈfɔːwəd]","впере́д; да́лі",null,6,"forward","[ˈfɔːwəd]","впере́д; да́лі"]
[7,"close","[kləus]","бли́зько, закривати",null,7,"close","[kləus]","бли́зько, закривати"]
[8,"blood","[blʌd]","кров",null,8,"blood","[blʌd]","кров"]
[9,"cut","[kʌt]","рі́зати, поріз",null,9,"cut","[kʌt]","рі́зати, поріз"]
[10,0,0,0,null,10,0,0,0]
[11,0,0,0,null,11,0,0,0]
[12,0,0,0,null,12,0,0,0]
[]
[null,null,null,"Form 7",null,null,null,null,"Form 7"]
[1,{"$f":"B16","v":"aid"},"[eɪd]","допомо́га",null,1,{"$f":"B30","v":"aid"},{"$f":"C30","v":"[eɪd]"},{"$f":"D30","v":"допомо́га"}]
[2,"mean","[miːn]","означа́ти",null,2,{"$f":"B31","v":"mean"},"[miːn]","означа́ти"]
[3,"night","[naɪt]","ніч",null,3,"night","[naɪt]","ніч"]
[4,"take off","[teɪk] [ɔf]\n","зняти, прибрати",null,4,"take off","[teɪk] [ɔf]\n","зняти, прибрати"]
[5,"serious","[ˈsɪ(ə)rɪəs]","серйо́зний",null,5,"serious","[ˈsɪ(ə)rɪəs]","серйо́зний"]
[6,"forward","[ˈfɔːwəd]","впере́д; да́лі",null,6,"forward","[ˈfɔːwəd]","впере́д; да́лі"]
[7,"close","[kləus]","бли́зько, закривати",null,7,"close","[kləus]","бли́зько, закривати"]
[8,"blood","[blʌd]","кров",null,8,"blood","[blʌd]","кров"]
[9,"cut","[kʌt]","рі́зати, поріз",null,9,"cut","[kʌt]","рі́зати, поріз"]
[10,0,0,0,null,10,0,0,0]
[11,0,0,0,null,11,0,0,0]
[12,0,0,0,null,12,0,0,0]
[]
[null,null,null,"Form 7",null,null,null,null,"Form 7"]
[1,{"$f":"B30","v":"aid"},"[eɪd]","допомо́га",null,1,{"$f":"B44","v":"aid"},{"$f":"C44","v":"[eɪd]"},{"$f":"D44","v":"допомо́га"}]
[2,"mean","[miːn]","означа́ти",null,2,{"$f":"B45","v":"mean"},"[miːn]","означа́ти"]
[3,"night","[naɪt]","ніч",null,3,"night","[naɪt]","ніч"]
[4,"take off","[teɪk] [ɔf]\n","зняти, прибрати",null,4,"take off","[teɪk] [ɔf]\n","зняти, прибрати"]
[5,"serious","[ˈsɪ(ə)rɪəs]","серйо́зний",null,5,"serious","[ˈsɪ(ə)rɪəs]","серйо́зний"]
[6,"forward","[ˈfɔːwəd]","впере́д; да́лі",null,6,"forward","[ˈfɔːwəd]","впере́д; да́лі"]
[7,"close","[kləus]","бли́зько, закривати",null,7,"close","[kləus]","бли́зько, закривати"]
[8,"blood","[blʌd]","кров",null,8,"blood","[blʌd]","кров"]
[9,"cut","[kʌt]","рі́зати, поріз",null,9,"cut","[kʌt]","рі́зати, поріз"]
[10,0,0,0,null,10,0,0,0]
[11,0,0,0,null,11,0,0,0]
[12,0,0,0,null,12,0,0,0]

{"sheet":"1 (19)","index":72,"n_rows":55,"n_cols":12,"rows_kept":55,"cut":false,"hidden":false,"merged":[]}
[null,null,null,"Form 7",null,null,null,null,"Form 7"]
[{"$f":"J2","v":1},{"$f":"K2","v":"to have"},{"$f":"L2","v":"in for the doctor"},{"$f":"M2","v":0},null,{"$f":"A2","v":1},{"$f":"B2","v":"to have"},{"$f":"C2","v":"in for the doctor"},{"$f":"D2","v":0},1,"to have","in for the doctor"]
[{"$f":"J3","v":2},"to catch","sick",0,null,{"$f":"A3","v":2},"to catch","sick",0,2,"to catch","sick"]
[3,"to ask","for help",0,null,3,"to ask","for help",0,3,"to ask","for help"]
[4,"to cut","fi t",0,null,4,"to cut","fi t",0,4,"to cut","fi t"]
[5,"to break","fi rst aid",0,null,5,"to break","fi rst aid",0,5,"to break","fi rst aid"]
[6,"to give","a stomach ache",0,null,6,"to give","a stomach ache",0,6,"to give","a stomach ache"]
[7,"to call","a leg",0,null,7,"to call","a leg",0,7,"to call","a leg"]
[8,"to feel","a medicine",0,null,8,"to feel","a medicine",0,8,"to feel","a medicine"]
[9,"to keep","a fi nger",0,null,9,"to keep","a fi nger",0,9,"to keep","a fi nger"]
[10,"to look","ill",0,null,10,"to look","ill",0,10,"to look","ill"]
[11,{"$f":"K12","v":"to take"},"a cold",0,null,11,"to take","a cold",0,11,"to take","a cold"]
[12,{"$f":"K13","v":0},0,0,null,12,0,0,0,12]
[]
[null,null,null,"Form 7",null,null,null,null,"Form 7"]
[1,{"$f":"B2","v":"to have"},"in for the doctor",0,null,1,{"$f":"B16","v":"to have"},{"$f":"C16","v":"in for the doctor"},{"$f":"D16","v":0}]
[2,"to catch","sick",0,null,2,{"$f":"B17","v":"to catch"},"sick",0]
[3,"to ask","for help",0,null,3,"to ask","for help",0]
[4,"to cut","fi t",0,null,4,"to cut","fi t",0]
[5,"to break","fi rst aid",0,null,5,"to break","fi rst aid",0]
[6,"to give","a stomach ache",0,null,6,"to give","a stomach ache",0]
[7,"to call","a leg",0,null,7,"to call","a leg",0]
[8,"to feel","a medicine",0,null,8,"to feel","a medicine",0]
[9,"to keep","a fi nger",0,null,9,"to keep","a fi nger",0]
[10,"to look","ill",0,null,10,"to look","ill",0]
[11,"to take","a cold",0,null,11,"to take","a cold",0]
[12,0,0,0,null,12,0,0,0]
[]
[null,null,null,"Form 7",null,null,null,null,"Form 7"]
[1,{"$f":"B16","v":"to have"},"in for the doctor",0,null,1,{"$f":"B30","v":"to have"},{"$f":"C30","v":"in for the doctor"},{"$f":"D30","v":0}]
[2,"to catch","sick",0,null,2,{"$f":"B31","v":"to catch"},"sick",0]
[3,"to ask","for help",0,null,3,"to ask","for help",0]
[4,"to cut","fi t",0,null,4,"to cut","fi t",0]
[5,"to break","fi rst aid",0,null,5,"to break","fi rst aid",0]
[6,"to give","a stomach ache",0,null,6,"to give","a stomach ache",0]
[7,"to call","a leg",0,null,7,"to call","a leg",0]
[8,"to feel","a medicine",0,null,8,"to feel","a medicine",0]
[9,"to keep","a fi nger",0,null,9,"to keep","a fi nger",0]
[10,"to look","ill",0,null,10,"to look","ill",0]
[11,"to take","a cold",0,null,11,"to take","a cold",0]
[12,0,0,0,null,12,0,0,0]
[]
[null,null,null,"Form 7",null,null,null,null,"Form 7"]
[1,{"$f":"B30","v":"to have"},"in for the doctor",0,null,1,{"$f":"B44","v":"to have"},{"$f":"C44","v":"in for the doctor"},{"$f":"D44","v":0}]
[2,"to catch","sick",0,null,2,{"$f":"B45","v":"to catch"},"sick",0]
[3,"to ask","for help",0,null,3,"to ask","for help",0]
[4,"to cut","fi t",0,null,4,"to cut","fi t",0]
[5,"to break","fi rst aid",0,null,5,"to break","fi rst aid",0]
[6,"to give","a stomach ache",0,null,6,"to give","a stomach ache",0]
[7,"to call","a leg",0,null,7,"to call","a leg",0]
[8,"to feel","a medicine",0,null,8,"to feel","a medicine",0]
[9,"to keep","a fi nger",0,null,9,"to keep","a fi nger",0]
[10,"to look","ill",0,null,10,"to look","ill",0]
[11,"to take","a cold",0,null,11,"to take","a cold",0]
[12,0,0,0,null,12,0,0,0]

{"sheet":"1 (20)","index":73,"n_rows":55,"n_cols":13,"rows_kept":55,"cut":false,"hidden":false,"merged":[]}
[null,null,null,"Form 7",null,null,null,null,"Form 7"]
[{"$f":"J2","v":1},{"$f":"K2","v":"horror film"},{"$f":"L2","v":"[ˊhɒrə] [fɪlm]"},{"$f":"M2","v":"фільм жахів"},null,{"$f":"A2","v":1},{"$f":"B2","v":"horror film"},{"$f":"C2","v":"[ˊhɒrə] [fɪlm]"},{"$f":"D2","v":"фільм жахів"},1,"horror film","[ˊhɒrə] [fɪlm]","фільм жахів"]
[{"$f":"J3","v":2},"musical","[ˈmjuːzɪk(ə)l]","мю́зикл",null,{"$f":"A3","v":2},"musical","[ˈmjuːzɪk(ə)l]","мю́зикл",2,"musical","[ˈmjuːzɪk(ə)l]","мю́зикл"]
[3,"action film","[ˈækʃ(ə)n] [fɪlm]","бойовик",null,3,"action film",{"$f":"C4","v":"[ˈækʃ(ə)n] [fɪlm]"},"бойовик",3,"action film","[ˈækʃ(ə)n] [fɪlm]","бойовик"]
[4,"thriller","[ˈθrɪlə]","трилер",null,4,"thriller","[ˈθrɪlə]","трилер",4,"thriller","[ˈθrɪlə]","трилер"]
[5,"comedy","[ˈkɒmɪdɪ]","коме́дія",null,5,"comedy","[ˈkɒmɪdɪ]","коме́дія",5,"comedy","[ˈkɒmɪdɪ]","коме́дія"]
[6,"science fiction film","[ˈsaɪəns] [ˈfɪkʃ(ə)n] [fɪlm]","науково-фантастичний фільм ",null,6,"science fiction film","[ˈsaɪəns] [ˈfɪkʃ(ə)n] [fɪlm]","науково-фантастичний фільм ",6,"science fiction film","[ˈsaɪəns] [ˈfɪkʃ(ə)n] [fɪlm]","науково-фантастичний фільм "]
[7,"cartoon","[kɑːˈtuːn]","мультфільм",null,7,"cartoon","[kɑːˈtuːn]","мультфільм",7,"cartoon","[kɑːˈtuːn]","мультфільм"]
[8,"historical film","[hɪsˈtɒrɪk(ə)l] [fɪlm]","історичний фільм",null,8,"historical film","[hɪsˈtɒrɪk(ə)l] [fɪlm]","історичний фільм",8,"historical film","[hɪsˈtɒrɪk(ə)l] [fɪlm]","історичний фільм"]
[9,0,0,0,null,9,0,0,0,9]
[10,0,0,0,null,10,0,0,0,10]
[11,{"$f":"K12","v":0},0,0,null,11,0,0,0,11]
[12,{"$f":"K13","v":0},0,0,null,12,0,0,0,12]
[]
[null,null,null,"Form 7",null,null,null,null,"Form 7"]
[1,{"$f":"B2","v":"horror film"},"[ˊhɒrə] [fɪlm]","фільм жахів",null,1,{"$f":"B16","v":"horror film"},{"$f":"C16","v":"[ˊhɒrə] [fɪlm]"},{"$f":"D16","v":"фільм жахів"}]
[2,"musical","[ˈmjuːzɪk(ə)l]","мю́зикл",null,2,{"$f":"B17","v":"musical"},"[ˈmjuːzɪk(ə)l]","мю́зикл"]
[3,"action film","[ˈækʃ(ə)n] [fɪlm]","бойовик",null,3,"action film","[ˈækʃ(ə)n] [fɪlm]","бойовик"]
[4,"thriller","[ˈθrɪlə]","трилер",null,4,"thriller","[ˈθrɪlə]","трилер",null,null,null,"a horror film"]
[5,"comedy","[ˈkɒmɪdɪ]","коме́дія",null,5,"comedy","[ˈkɒmɪdɪ]","коме́дія",null,null,null,"a musical"]
[6,"science fiction film","[ˈsaɪəns] [ˈfɪkʃ(ə)n] [fɪlm]","науково-фантастичний фільм ",null,6,"science fiction film","[ˈsaɪəns] [ˈfɪkʃ(ə)n] [fɪlm]","науково-фантастичний фільм ",null,null,null,"an action film"]
[7,"cartoon","[kɑːˈtuːn]","мультфільм",null,7,"cartoon","[kɑːˈtuːn]","мультфільм",null,null,null,"a thriller"]
[8,"historical film","[hɪsˈtɒrɪk(ə)l] [fɪlm]","історичний фільм",null,8,"historical film","[hɪsˈtɒrɪk(ə)l] [fɪlm]","історичний фільм",null,null,null,"a comedy"]
[9,0,0,0,null,9,0,0,0,null,null,null,"a science fiction film"]
[10,0,0,0,null,10,0,0,0,null,null,null,"a cartoon"]
[11,0,0,0,null,11,0,0,0,null,null,null,"a historical film"]
[12,0,0,0,null,12,0,0,0]
[]
[null,null,null,"Form 7",null,null,null,null,"Form 7"]
[1,{"$f":"B16","v":"horror film"},"[ˊhɒrə] [fɪlm]","фільм жахів",null,1,{"$f":"B30","v":"horror film"},{"$f":"C30","v":"[ˊhɒrə] [fɪlm]"},{"$f":"D30","v":"фільм жахів"}]
[2,"musical","[ˈmjuːzɪk(ə)l]","мю́зикл",null,2,{"$f":"B31","v":"musical"},"[ˈmjuːzɪk(ə)l]","мю́зикл"]
[3,"action film","[ˈækʃ(ə)n] [fɪlm]","бойовик",null,3,"action film","[ˈækʃ(ə)n] [fɪlm]","бойовик"]
[4,"thriller","[ˈθrɪlə]","трилер",null,4,"thriller","[ˈθrɪlə]","трилер"]
[5,"comedy","[ˈkɒmɪdɪ]","коме́дія",null,5,"comedy","[ˈkɒmɪdɪ]","коме́дія"]
[6,"science fiction film","[ˈsaɪəns] [ˈfɪkʃ(ə)n] [fɪlm]","науково-фантастичний фільм ",null,6,"science fiction film","[ˈsaɪəns] [ˈfɪkʃ(ə)n] [fɪlm]","науково-фантастичний фільм "]
[7,"cartoon","[kɑːˈtuːn]","мультфільм",null,7,"cartoon","[kɑːˈtuːn]","мультфільм"]
[8,"historical film","[hɪsˈtɒrɪk(ə)l] [fɪlm]","історичний фільм",null,8,"historical film","[hɪsˈtɒrɪk(ə)l] [fɪlm]","історичний фільм"]
[9,0,0,0,null,9,0,0,0]
[10,0,0,0,null,10,0,0,0]
[11,0,0,0,null,11,0,0,0]
[12,0,0,0,null,12,0,0,0]
[]
[null,null,null,"Form 7",null,null,null,null,"Form 7"]
[1,{"$f":"B30","v":"horror film"},"[ˊhɒrə] [fɪlm]","фільм жахів",null,1,{"$f":"B44","v":"horror film"},{"$f":"C44","v":"[ˊhɒrə] [fɪlm]"},{"$f":"D44","v":"фільм жахів"}]
[2,"musical","[ˈmjuːzɪk(ə)l]","мю́зикл",null,2,{"$f":"B45","v":"musical"},"[ˈmjuːzɪk(ə)l]","мю́зикл"]
[3,"action film","[ˈækʃ(ə)n] [fɪlm]","бойовик",null,3,"action film","[ˈækʃ(ə)n] [fɪlm]","бойовик"]
[4,"thriller","[ˈθrɪlə]","трилер",null,4,"thriller","[ˈθrɪlə]","трилер"]
[5,"comedy","[ˈkɒmɪdɪ]","коме́дія",null,5,"comedy","[ˈkɒmɪdɪ]","коме́дія"]
[6,"science fiction film","[ˈsaɪəns] [ˈfɪkʃ(ə)n] [fɪlm]","науково-фантастичний фільм ",null,6,"science fiction film","[ˈsaɪəns] [ˈfɪkʃ(ə)n] [fɪlm]","науково-фантастичний фільм "]
[7,"cartoon","[kɑːˈtuːn]","мультфільм",null,7,"cartoon","[kɑːˈtuːn]","мультфільм"]
[8,"historical film","[hɪsˈtɒrɪk(ə)l] [fɪlm]","історичний фільм",null,8,"historical film","[hɪsˈtɒrɪk(ə)l] [fɪlm]","історичний фільм"]
[9,0,0,0,null,9,0,0,0]
[10,0,0,0,null,10,0,0,0]
[11,0,0,0,null,11,0,0,0]
[12,0,0,0,null,12,0,0,0]

{"sheet":"1 (21)","index":74,"n_rows":55,"n_cols":11,"rows_kept":55,"cut":false,"hidden":false,"merged":[]}
[null,null,null,"Form 7",null,null,null,null,"Form 7"]
[{"$f":"J2","v":1},{"$f":"K2","v":"base"},{"$f":"L2","v":0},{"$f":"M2","v":0},null,{"$f":"A2","v":1},{"$f":"B2","v":"base"},{"$f":"C2","v":0},{"$f":"D2","v":0},1,"base"]
[{"$f":"J3","v":2},"comic",0,0,null,{"$f":"A3","v":2},"comic",0,0,2,"comic"]
[3,"character",0,0,null,3,"character",0,0,3,"character"]
[4,"main",0,0,null,4,"main",0,0,4,"main"]
[5,"bit (bite, bitten)",0,0,null,5,"bit (bite, bitten)",0,0,5,"bit (bite, bitten)"]
[6,"turn",0,0,null,6,"turn",0,0,6,"turn"]
[7,"hero",0,0,null,7,"hero",0,0,7,"hero"]
[8,"fight",0,0,null,8,"fight",0,0,8,"fight"]
[9,"evil",0,0,null,9,"evil",0,0,9,"evil"]
[10,"enjoyable",0,0,null,10,"enjoyable",0,0,10,"enjoyable"]
[11,{"$f":"K12","v":0},0,0,null,11,0,0,0,11]
[12,{"$f":"K13","v":0},0,0,null,12,0,0,0,12]
[]
[null,null,null,"Form 7",null,null,null,null,"Form 7"]
[1,{"$f":"B2","v":"base"},0,0,null,1,{"$f":"B16","v":"base"},{"$f":"C16","v":0},{"$f":"D16","v":0}]
[2,"comic",0,0,null,2,{"$f":"B17","v":"comic"},0,0]
[3,"character",0,0,null,3,"character",0,0]
[4,"main",0,0,null,4,"main",0,0]
[5,"bit (bite, bitten)",0,0,null,5,"bit (bite, bitten)",0,0]
[6,"turn",0,0,null,6,"turn",0,0]
[7,"hero",0,0,null,7,"hero",0,0]
[8,"fight",0,0,null,8,"fight",0,0]
[9,"evil",0,0,null,9,"evil",0,0]
[10,"enjoyable",0,0,null,10,"enjoyable",0,0]
[11,0,0,0,null,11,0,0,0]
[12,0,0,0,null,12,0,0,0]
[]
[null,null,null,"Form 7",null,null,null,null,"Form 7"]
[1,{"$f":"B16","v":"base"},0,0,null,1,{"$f":"B30","v":"base"},{"$f":"C30","v":0},{"$f":"D30","v":0}]
[2,"comic",0,0,null,2,{"$f":"B31","v":"comic"},0,0]
[3,"character",0,0,null,3,"character",0,0]
[4,"main",0,0,null,4,"main",0,0]
[5,"bit (bite, bitten)",0,0,null,5,"bit (bite, bitten)",0,0]
[6,"turn",0,0,null,6,"turn",0,0]
[7,"hero",0,0,null,7,"hero",0,0]
[8,"fight",0,0,null,8,"fight",0,0]
[9,"evil",0,0,null,9,"evil",0,0]
[10,"enjoyable",0,0,null,10,"enjoyable",0,0]
[11,0,0,0,null,11,0,0,0]
[12,0,0,0,null,12,0,0,0]
[]
[null,null,null,"Form 7",null,null,null,null,"Form 7"]
[1,{"$f":"B30","v":"base"},0,0,null,1,{"$f":"B44","v":"base"},{"$f":"C44","v":0},{"$f":"D44","v":0}]
[2,"comic",0,0,null,2,{"$f":"B45","v":"comic"},0,0]
[3,"character",0,0,null,3,"character",0,0]
[4,"main",0,0,null,4,"main",0,0]
[5,"bit (bite, bitten)",0,0,null,5,"bit (bite, bitten)",0,0]
[6,"turn",0,0,null,6,"turn",0,0]
[7,"hero",0,0,null,7,"hero",0,0]
[8,"fight",0,0,null,8,"fight",0,0]
[9,"evil",0,0,null,9,"evil",0,0]
[10,"enjoyable",0,0,null,10,"enjoyable",0,0]
[11,0,0,0,null,11,0,0,0]
[12,0,0,0,null,12,0,0,0]

{"sheet":"1 22","index":75,"n_rows":55,"n_cols":13,"rows_kept":55,"cut":false,"hidden":false,"merged":[]}
[null,null,null,"Form 7",null,null,null,null,"Form 7"]
[{"$f":"J2","v":1},{"$f":"K2","v":"humorous"},{"$f":"L2","v":"[ˈhjuːm(ə)rəs]"},{"$f":"M2","v":"гумористи́чний; смішни́й"},null,{"$f":"A2","v":1},{"$f":"B2","v":"humorous"},{"$f":"C2","v":"[ˈhjuːm(ə)rəs]"},{"$f":"D2","v":"гумористи́чний; смішни́й"},1,"humorous","[ˈhjuːm(ə)rəs]","гумористи́чний; смішни́й"]
[{"$f":"J3","v":2},"event","[ɪˈvent]","поді́я",null,{"$f":"A3","v":2},"event","[ɪˈvent]","поді́я",2,"event","[ɪˈvent]","поді́я"]
[3,"frighten","[ˈfraɪtn]","ляка́ти, страха́ти",null,3,"frighten","[ˈfraɪtn]","ляка́ти, страха́ти",3,"frighten","[ˈfraɪtn]","ляка́ти, страха́ти"]
[4,"crime","[kraɪm]","зло́чин",null,4,"crime","[kraɪm]","зло́чин",4,"crime","[kraɪm]","зло́чин"]
[5,"adventure","[ədˈvenʧə]","приго́да",null,5,"adventure","[ədˈvenʧə]","приго́да",5,"adventure","[ədˈvenʧə]","приго́да"]
[6,"past","[pɑːst]","мину́лий",null,6,"past","[pɑːst]","мину́лий",6,"past","[pɑːst]","мину́лий"]
[7,"future","[ˈfjuːʧə]","майбу́тній",null,7,"future","[ˈfjuːʧə]","майбу́тній",7,"future","[ˈfjuːʧə]","майбу́тній"]
[8,"excite","[ɪkˈsaɪt]","хвилюва́ти",null,8,"excite","[ɪkˈsaɪt]","хвилюва́ти",8,"excite","[ɪkˈsaɪt]","хвилюва́ти"]
[9,0,0,0,null,9,0,0,0,9]
[10,0,0,0,null,10,0,0,0,10]
[11,{"$f":"K12","v":0},0,0,null,11,0,0,0,11]
[12,{"$f":"K13","v":0},0,0,null,12,0,0,0,12]
[]
[null,null,null,"Form 7",null,null,null,null,"Form 7"]
[1,{"$f":"B2","v":"humorous"},"[ˈhjuːm(ə)rəs]","гумористи́чний; смішни́й",null,1,{"$f":"B16","v":"humorous"},{"$f":"C16","v":"[ˈhjuːm(ə)rəs]"},{"$f":"D16","v":"гумористи́чний; смішни́й"}]
[2,"event","[ɪˈvent]","поді́я",null,2,{"$f":"B17","v":"event"},"[ɪˈvent]","поді́я"]
[3,"frighten","[ˈfraɪtn]","ляка́ти, страха́ти",null,3,"frighten","[ˈfraɪtn]","ляка́ти, страха́ти"]
[4,"crime","[kraɪm]","зло́чин",null,4,"crime","[kraɪm]","зло́чин"]
[5,"adventure","[ədˈvenʧə]","приго́да",null,5,"adventure","[ədˈvenʧə]","приго́да"]
[6,"past","[pɑːst]","мину́лий",null,6,"past","[pɑːst]","мину́лий"]
[7,"future","[ˈfjuːʧə]","майбу́тній",null,7,"future","[ˈfjuːʧə]","майбу́тній"]
[8,"excite","[ɪkˈsaɪt]","хвилюва́ти",null,8,"excite","[ɪkˈsaɪt]","хвилюва́ти"]
[9,0,0,0,null,9,0,0,0]
[10,0,0,0,null,10,0,0,0]
[11,0,0,0,null,11,0,0,0]
[12,0,0,0,null,12,0,0,0]
[]
[null,null,null,"Form 7",null,null,null,null,"Form 7"]
[1,{"$f":"B16","v":"humorous"},"[ˈhjuːm(ə)rəs]","гумористи́чний; смішни́й",null,1,{"$f":"B30","v":"humorous"},{"$f":"C30","v":"[ˈhjuːm(ə)rəs]"},{"$f":"D30","v":"гумористи́чний; смішни́й"}]
[2,"event","[ɪˈvent]","поді́я",null,2,{"$f":"B31","v":"event"},"[ɪˈvent]","поді́я"]
[3,"frighten","[ˈfraɪtn]","ляка́ти, страха́ти",null,3,"frighten","[ˈfraɪtn]","ляка́ти, страха́ти"]
[4,"crime","[kraɪm]","зло́чин",null,4,"crime","[kraɪm]","зло́чин"]
[5,"adventure","[ədˈvenʧə]","приго́да",null,5,"adventure","[ədˈvenʧə]","приго́да"]
[6,"past","[pɑːst]","мину́лий",null,6,"past","[pɑːst]","мину́лий"]
[7,"future","[ˈfjuːʧə]","майбу́тній",null,7,"future","[ˈfjuːʧə]","майбу́тній"]
[8,"excite","[ɪkˈsaɪt]","хвилюва́ти",null,8,"excite","[ɪkˈsaɪt]","хвилюва́ти"]
[9,0,0,0,null,9,0,0,0]
[10,0,0,0,null,10,0,0,0]
[11,0,0,0,null,11,0,0,0]
[12,0,0,0,null,12,0,0,0]
[]
[null,null,null,"Form 7",null,null,null,null,"Form 7"]
[1,{"$f":"B30","v":"humorous"},"[ˈhjuːm(ə)rəs]","гумористи́чний; смішни́й",null,1,{"$f":"B44","v":"humorous"},{"$f":"C44","v":"[ˈhjuːm(ə)rəs]"},{"$f":"D44","v":"гумористи́чний; смішни́й"}]
[2,"event","[ɪˈvent]","поді́я",null,2,{"$f":"B45","v":"event"},"[ɪˈvent]","поді́я"]
[3,"frighten","[ˈfraɪtn]","ляка́ти, страха́ти",null,3,"frighten","[ˈfraɪtn]","ляка́ти, страха́ти"]
[4,"crime","[kraɪm]","зло́чин",null,4,"crime","[kraɪm]","зло́чин"]
[5,"adventure","[ədˈvenʧə]","приго́да",null,5,"adventure","[ədˈvenʧə]","приго́да"]
[6,"past","[pɑːst]","мину́лий",null,6,"past","[pɑːst]","мину́лий"]
[7,"future","[ˈfjuːʧə]","майбу́тній",null,7,"future","[ˈfjuːʧə]","майбу́тній"]
[8,"excite","[ɪkˈsaɪt]","хвилюва́ти",null,8,"excite","[ɪkˈsaɪt]","хвилюва́ти"]
[9,0,0,0,null,9,0,0,0]
[10,0,0,0,null,10,0,0,0]
[11,0,0,0,null,11,0,0,0]
[12,0,0,0,null,12,0,0,0]

{"sheet":"1 (22)","index":76,"n_rows":55,"n_cols":25,"rows_kept":55,"cut":false,"hidden":false,"merged":[]}
[null,null,null,"Form 7",null,null,null,null,"Form 7"]
[{"$f":"J2","v":1},{"$f":"K2","v":"sleep"},{"$f":"L2","v":"[sliːp]"},{"$f":"M2","v":"спати"},null,{"$f":"A2","v":1},{"$f":"B2","v":"sleep"},{"$f":"C2","v":"[sliːp]"},{"$f":"D2","v":"спати"},1,"sleep","[sliːp]","спати"]
[{"$f":"J3","v":2},"speak","[spi:k]","говорити,розмовляти",null,{"$f":"A3","v":2},"speak","[spi:k]","говорити,розмовляти",2,"speak","[spi:k]","говорити,розмовляти",null,null,null,null,null,null,null,null,null,null,"sleep","[sliːp]"]
[3,"spend","[spend]","тратити, проводити (час)",null,3,"spend","[spend]","тратити, проводити (час)",3,"spend","[spend]","тратити, проводити (час)",null,null,null,null,null,null,null,null,null,null,"speak","[spi:k]"]
[4,"stand","[stænd]","стояти",null,4,"stand","[stænd]","стояти",4,"stand","[stænd]","стояти",null,null,null,null,null,null,null,null,null,null,"spend","[spend]"]
[5,"tell","[tel]","розповідати",null,5,"tell","[tel]","розповідати",5,"tell","[tel]","розповідати",null,null,null,null,null,null,null,null,null,null,"stand","[stænd]"]
[6,"take","[teɪk]","брати",null,6,"take","[teɪk]","брати",6,"take","[teɪk]","брати",null,null,null,null,null,null,null,null,null,null,"swim","[swim]"]
[7,"think","[θɪŋk]","думати",null,7,"think","[θɪŋk]","думати",7,"think","[θɪŋk]","думати",null,null,null,null,null,null,null,null,null,null,"tell","[tel]"]
[8,"understand","[ˌʌndə'stænd]","розуміти",null,8,"understand","[ˌʌndə'stænd]","розуміти",8,"understand","[ˌʌndə'stænd]","розуміти",null,null,null,null,null,null,null,null,null,null,"take","[teɪk]"]
[9,"wear","[wea]","носити, одягатися",null,9,"wear","[wea]","носити, одягатися",9,"wear","[wea]","носити, одягатися",null,null,null,null,null,null,null,null,null,null,"think","[θɪŋk]"]
[10,"win","[win]","перемагати,виграв.",null,10,"win","[win]","перемагати,виграв.",10,"win","[win]","перемагати,виграв.",null,null,null,null,null,null,null,null,null,null,"throw","[θrəu]"]
[11,{"$f":"K12","v":"write"},"[raɪt]","писати",null,11,"write","[raɪt]","писати",11,"write","[raɪt]","писати",null,null,null,null,null,null,null,null,null,null,"understand","[ˌʌndə'stænd]"]
[12,{"$f":"K13","v":0},0,0,null,12,0,0,0,12,null,null,null,null,null,null,null,null,null,null,null,null,null,"wake","[weɪk]"]
[null,null,null,null,null,null,null,null,null,null,null,null,null,null,null,null,null,null,null,null,null,null,null,"wear","[wea]"]
[null,null,null,"Form 7",null,null,null,null,"Form 7",null,null,null,null,null,null,null,null,null,null,null,null,null,null,"win","[win]"]
[1,{"$f":"B2","v":"sleep"},"[sliːp]","спати",null,1,{"$f":"B16","v":"sleep"},{"$f":"C16","v":"[sliːp]"},{"$f":"D16","v":"спати"},null,null,null,null,null,"sleep [sliːp]","slept [slept]","slept [slept]","спати",null,null,null,null,null,"write","[raɪt]"]
[2,"speak","[spi:k]","говорити,розмовляти",null,2,{"$f":"B17","v":"speak"},"[spi:k]","говорити,розмовляти",null,null,null,null,null,"speak [spi:k]","spoke [spəuk]","spoken ['spəuk(ə)n]","говорити,розмовляти"]
[3,"spend","[spend]","тратити, проводити (час)",null,3,"spend","[spend]","тратити, проводити (час)",null,"wake up","up",null,null,"spend [spend]","spent [spent]","spent [spent]","тратити, проводити (час)"]
[4,"stand","[stænd]","стояти",null,4,"stand","[stænd]","стояти",null,null,null,null,null,"stand [stænd]","stood [stuːd]","stood [stuːd]","стояти"]
[5,"tell","[tel]","розповідати",null,5,"tell","[tel]","розповідати",null,null,null,null,null,"swim [swim]","swam [swæm]","swum [swʌm]","плавати"]
[6,"take","[teɪk]","брати",null,6,"take","[teɪk]","брати",null,null,null,null,null,"tell [tel]","told [təuld]","told [təuld]","розповідати"]
[7,"think","[θɪŋk]","думати",null,7,"think","[θɪŋk]","думати",null,null,null,null,null,"take [teɪk]","took [tuk]","taken ['teɪk(ə)n]","брати"]
[8,"understand","[ˌʌndə'stænd]","розуміти",null,8,"understand","[ˌʌndə'stænd]","розуміти",null,null,null,null,null,"think [θɪŋk]","thought [θɔːt]","thought [θɔːt]","думати"]
[9,"wear","[wea]","носити, одягатися",null,9,"wear","[wea]","носити, одягатися",null,null,null,null,null,"throw [θrəu]","threw [θruː]","thrown [θrəun]","кидати"]
[10,"win","[win]","перемагати,виграв.",null,10,"win","[win]","перемагати,виграв.",null,null,null,null,null,"understand                                  [ˌʌndə'stænd]","understood [ˌʌndə'stud]","understood [ˌʌndə'stud]","розуміти"]
[11,"write","[raɪt]","писати",null,11,"write","[raɪt]","писати",null,null,null,null,null,"wake [weɪk]","woke [wəuk]","woken ['wəuk(ə)n]","прокидатися"]
[12,0,0,0,null,12,0,0,0,null,null,null,null,null,"wear [wea]","wore [wɔː]","worn [wɔːn]","носити, одягатися"]
[null,null,null,null,null,null,null,null,null,null,null,null,null,null,"win [win]","won [wʌn]","won [wʌn]","перемагати,виграв."]
[null,null,null,"Form 7",null,null,null,null,"Form 7",null,null,null,null,null,"write [raɪt]","wrote [rəut]","written ['rɪt(ə)n]","писати"]
[1,{"$f":"B16","v":"sleep"},"[sliːp]","спати",null,1,{"$f":"B30","v":"sleep"},{"$f":"C30","v":"[sliːp]"},{"$f":"D30","v":"спати"}]
[2,"speak","[spi:k]","говорити,розмовляти",null,2,{"$f":"B31","v":"speak"},"[spi:k]","говорити,розмовляти"]
[3,"spend","[spend]","тратити, проводити (час)",null,3,"spend","[spend]","тратити, проводити (час)"]
[4,"stand","[stænd]","стояти",null,4,"stand","[stænd]","стояти"]
[5,"tell","[tel]","розповідати",null,5,"tell","[tel]","розповідати"]
[6,"take","[teɪk]","брати",null,6,"take","[teɪk]","брати"]
[7,"think","[θɪŋk]","думати",null,7,"think","[θɪŋk]","думати"]
[8,"understand","[ˌʌndə'stænd]","розуміти",null,8,"understand","[ˌʌndə'stænd]","розуміти"]
[9,"wear","[wea]","носити, одягатися",null,9,"wear","[wea]","носити, одягатися"]
[10,"win","[win]","перемагати,виграв.",null,10,"win","[win]","перемагати,виграв."]
[11,"write","[raɪt]","писати",null,11,"write","[raɪt]","писати"]
[12,0,0,0,null,12,0,0,0]
[]
[null,null,null,"Form 7",null,null,null,null,"Form 7"]
[1,{"$f":"B30","v":"sleep"},"[sliːp]","спати",null,1,{"$f":"B44","v":"sleep"},{"$f":"C44","v":"[sliːp]"},{"$f":"D44","v":"спати"}]
[2,"speak","[spi:k]","говорити,розмовляти",null,2,{"$f":"B45","v":"speak"},"[spi:k]","говорити,розмовляти"]
[3,"spend","[spend]","тратити, проводити (час)",null,3,"spend","[spend]","тратити, проводити (час)"]
[4,"stand","[stænd]","стояти",null,4,"stand","[stænd]","стояти"]
[5,"tell","[tel]","розповідати",null,5,"tell","[tel]","розповідати"]
[6,"take","[teɪk]","брати",null,6,"take","[teɪk]","брати"]
[7,"think","[θɪŋk]","думати",null,7,"think","[θɪŋk]","думати"]
[8,"understand","[ˌʌndə'stænd]","розуміти",null,8,"understand","[ˌʌndə'stænd]","розуміти"]
[9,"wear","[wea]","носити, одягатися",null,9,"wear","[wea]","носити, одягатися"]
[10,"win","[win]","перемагати,виграв.",null,10,"win","[win]","перемагати,виграв."]
[11,"write","[raɪt]","писати",null,11,"write","[raɪt]","писати"]
[12,0,0,0,null,12,0,0,0]